{"text_format":"1","workbook":"xlsx","n_sheets":5,"sheets":["Version Summary","TR-181i2.7","TR-135 STB","RDK Custom DM","Merged"],"not_rendered":{"charts":0,"images":2,"macros":1,"external_links":0,"defined_names":645,"comments":0,"pivot_tables":0},"unopened":[],"bounds":{"document_bytes":16777216,"sheet_cells":100000,"rows_first":2000,"rows_last":500,"rows_between":2000,"halvings":0,"cell_chars":16384,"cell_head_chars":4096},"cells_cut":0,"cells_raw":0,"read":"whole","date_system":"1900"}

{"sheet":"Version Summary","index":0,"n_rows":25,"n_cols":6,"rows_kept":25,"cut":false,"hidden":false,"merged":[]}
[]
[]
[]
[]
[null,"Version","Date","Description","Author","Comments"]
[null,"v0.1","2012-11-16","Initial List of Parameters","Mohit Gupta","TR-181i2a3 Reference Data Model"]
[null,"v0.1.1","2012-11-21","Added STB Service","Mohit Gupta","TR-135 Reference Model"]
[null,"v0.2","2012-11-26","XI-3 Custom Model","Mohit Gupta + Rajnish Dey","XI-3 Reference Pages on Confluence"]
[null,"v0.3","2012-11-28","XI-3 Data Model","Mohit Gupta + Rajnish Dey","XI-3 Reference Pages on Confluence"]
[null,"v0.4","2012-12-03","XI-3 Data Model","Mohit Gupta","Corrected path for custom objects"]
[null,"v0.5","2013-04-30","XI-3 Data Model","Mohit Gupta","Updated and Added new parameters required by Operations team"]
[null,"v0.6","2013-07-09","XI-3 Data Model","Mohit Gupta","Updated and Added new parameters as requested by XI3 Dev Team"]
[null,"v0.7","2013-07-09","Xi3 Data Model with Day 0, PDRI and GrandSlam","Jaci Bates","Merged worksheets and added Day 0, PDRI and GrandSlam identification columns."]
[null,"v0.7","2013-07-16","XI-3 Data Model","Mohit Gupta","Minor modification to existing parameter description"]
[null,"v0.8","2013-08-20","XI-3 Data Model with UPnP Discovery","Mohit Gupta","Adding UPnP Discovery Objects per discussion with Stephen"]
[null,"v0.8","2013-08-23","XI-3 Data Model with MoCA Mesh Table","Mohit Gupta","Adding MoCA MeshTable custom extension per discussion with Kevin"]
[null,"v0.8","2013-08-27","XI-3 Data Model Corrections","Mohit Gupta","Corrections to the descriptions/write fields for some parameters"]
[null,"v0.9","2013-09-24","XI-3 Data Model split","Mohit Gupta","XI-3 Custom model is being split between RDK Common and Comcast Private objects. Also updated RF4CE object per the discussion."]
[null,"v0.9","2013-10-21","XI-3 Data Model additions","Mohit Gupta","RF4CE Remote Object is updated with more parameters"]
[null,"v0.9","2013-11-25","XI-3 Data Model additions","Mohit Gupta","SD Card Interface is added to RDK Model"]
[null,"v0.9.1","2014-02-04","Re-Merged","Jaci Bates","Added back Macros, captured tags, defined deltas from version 7"]
[null,"v1.00","2014-03-03","Re-Format and XMPP Addition","Mohit Gupta","First Released version with RDK Objects"]
[null,"v1.01","2014-03-10","Re-Merged Mohit's changes","Jaci Bates","Copied in Mohit's modified sheets, included Macros, captured tags and merged."]
[null,"v1.01","2014-03-26","Updated the model based on discussion points","Mohit Gupta","Updated the data model parameters for CPU Temp and TRM as discussed with the team"]
[null,"v1.0.2","2014-03-27","Re-merged","Jaci Bates","Re-merged the worksheets."]

{"sheet":"TR-181i2.7","index":1,"n_rows":2252,"n_cols":9,"rows_kept":2252,"cut":false,"hidden":false,"merged":[[2232,7,2234,7],[2232,8,2234,8],[2232,0,2234,0],[2232,1,2234,1],[2232,2,2234,2],[2232,4,2234,4],[2232,5,2234,5],[2232,6,2234,6],[2218,7,2220,7],[2218,8,2220,8],[2221,0,2229,0],[2221,1,2229,1],[2221,2,2229,2],[2221,4,2229,4],[2221,5,2229,5],[2221,6,2229,6],[2221,7,2229,7],[2221,8,2229,8],[2218,0,2220,0],[2218,1,2220,1],[2218,2,2220,2],[2218,4,2220,4],[2218,5,2220,5],[2218,6,2220,6],[2205,7,2209,7],[2205,8,2209,8],[2211,0,2217,0],[2211,1,2217,1],[2211,2,2217,2],[2211,4,2217,4],[2211,5,2217,5],[2211,6,2217,6],[2211,7,2217,7],[2211,8,2217,8],[2205,0,2209,0],[2205,1,2209,1],[2205,2,2209,2],[2205,4,2209,4],[2205,5,2209,5],[2205,6,2209,6],[2195,7,2199,7],[2195,8,2199,8],[2200,0,2204,0],[2200,1,2204,1],[2200,2,2204,2],[2200,4,2204,4],[2200,5,2204,5],[2200,6,2204,6],[2200,7,2204,7],[2200,8,2204,8],[2195,0,2199,0],[2195,1,2199,1],[2195,2,2199,2],[2195,4,2199,4],[2195,5,2199,5],[2195,6,2199,6],[2185,7,2189,7],[2185,8,2189,8],[2190,0,2194,0],[2190,1,2194,1],[2190,2,2194,2],[2190,4,2194,4],[2190,5,2194,5],[2190,6,2194,6],[2190,7,2194,7],[2190,8,2194,8],[2185,0,2189,0],[2185,1,2189,1],[2185,2,2189,2],[2185,4,2189,4],[2185,5,2189,5],[2185,6,2189,6],[2173,7,2177,7],[2173,8,2177,8],[2178,0,2184,0],[2178,1,2184,1],[2178,2,2184,2],[2178,4,2184,4],[2178,5,2184,5],[2178,6,2184,6],[2178,7,2184,7],[2178,8,2184,8],[2173,0,2177,0],[2173,1,2177,1],[2173,2,2177,2],[2173,4,2177,4],[2173,5,2177,5],[2173,6,2177,6],[2152,7,2166,7],[2152,8,2166,8],[2168,0,2172,0],[2168,1,2172,1],[2168,2,2172,2],[2168,4,2172,4],[2168,5,2172,5],[2168,6,2172,6],[2168,7,2172,7],[2168,8,2172,8],[2152,0,2166,0],[2152,1,2166,1],[2152,2,2166,2],[2152,4,2166,4],[2152,5,2166,5],[2152,6,2166,6],[2134,7,2142,7],[2134,8,2142,8],[2144,0,2148,0],[2144,1,2148,1],[2144,2,2148,2],[2144,4,2148,4],[2144,5,2148,5],[2144,6,2148,6],[2144,7,2148,7],[2144,8,2148,8],[2134,0,2142,0],[2134,1,2142,1],[2134,2,2142,2],[2134,4,2142,4],[2134,5,2142,5],[2134,6,2142,6],[2126,7,2130,7],[2126,8,2130,8],[2131,0,2133,0],[2131,1,2133,1],[2131,2,2133,2],[2131,4,2133,4],[2131,5,2133,5],[2131,6,2133,6],[2131,7,2133,7],[2131,8,2133,8],[2126,0,2130,0],[2126,1,2130,1],[2126,2,2130,2],[2126,4,2130,4],[2126,5,2130,5],[2126,6,2130,6],[2092,7,2096,7],[2092,8,2096,8],[2098,0,2122,0],[2098,1,2122,1],[2098,2,2122,2],[2098,4,2122,4],[2098,5,2122,5],[2098,6,2122,6],[2098,7,2122,7],[2098,8,2122,8],[2092,0,2096,0],[2092,1,2096,1],[2092,2,2096,2],[2092,4,2096,4],[2092,5,2096,5],[2092,6,2096,6],[2082,7,2086,7],[2082,8,2086,8],[2087,0,2091,0],[2087,1,2091,1],[2087,2,2091,2],[2087,4,2091,4],[2087,5,2091,5],[2087,6,2091,6],[2087,7,2091,7],[2087,8,2091,8],[2082,0,2086,0],[2082,1,2086,1],[2082,2,2086,2],[2082,4,2086,4],[2082,5,2086,5],[2082,6,2086,6],[2075,7,2077,7],[2075,8,2077,8],[2078,0,2080,0],[2078,1,2080,1],[2078,2,2080,2],[2078,4,2080,4],[2078,5,2080,5],[2078,6,2080,6],[2078,7,2080,7],[2078,8,2080,8],[2075,0,2077,0],[2075,1,2077,1],[2075,2,2077,2],[2075,4,2077,4],[2075,5,2077,5],[2075,6,2077,6],[2066,7,2070,7],[2066,8,2070,8],[2071,0,2073,0],[2071,1,2073,1],[2071,2,2073,2],[2071,4,2073,4],[2071,5,2073,5],[2071,6,2073,6],[2071,7,2073,7],[2071,8,2073,8],[2066,0,2070,0],[2066,1,2070,1],[2066,2,2070,2],[2066,4,2070,4],[2066,5,2070,5],[2066,6,2070,6],[2049,7,2051,7],[2049,8,2051,8],[2053,0,2055,0],[2053,1,2055,1],[2053,2,2055,2],[2053,4,2055,4],[2053,5,2055,5],[2053,6,2055,6],[2053,7,2055,7],[2053,8,2055,8],[2049,0,2051,0],[2049,1,2051,1],[2049,2,2051,2],[2049,4,2051,4],[2049,5,2051,5],[2049,6,2051,6],[2036,7,2040,7],[2036,8,2040,8],[2046,0,2048,0],[2046,1,2048,1],[2046,2,2048,2],[2046,4,2048,4],[2046,5,2048,5],[2046,6,2048,6],[2046,7,2048,7],[2046,8,2048,8],[2036,0,2040,0],[2036,1,2040,1],[2036,2,2040,2],[2036,4,2040,4],[2036,5,2040,5],[2036,6,2040,6],[2023,7,2029,7],[2023,8,2029,8],[2030,0,2033,0],[2030,1,2033,1],[2030,2,2033,2],[2030,4,2033,4],[2030,5,2033,5],[2030,6,2033,6],[2030,7,2033,7],[2030,8,2033,8],[2023,0,2029,0],[2023,1,2029,1],[2023,2,2029,2],[2023,4,2029,4],[2023,5,2029,5],[2023,6,2029,6],[2014,7,2018,7],[2014,8,2018,8],[2020,0,2022,0],[2020,1,2022,1],[2020,2,2022,2],[2020,4,2022,4],[2020,5,2022,5],[2020,6,2022,6],[2020,7,2022,7],[2020,8,2022,8],[2014,0,2018,0],[2014,1,2018,1],[2014,2,2018,2],[2014,4,2018,4],[2014,5,2018,5],[2014,6,2018,6],[1998,7,2003,7],[1998,8,2003,8],[2004,0,2011,0],[2004,1,2011,1],[2004,2,2011,2],[2004,4,2011,4],[2004,5,2011,5],[2004,6,2011,6],[2004,7,2011,7],[2004,8,2011,8],[1998,0,2003,0],[1998,1,2003,1],[1998,2,2003,2],[1998,4,2003,4],[1998,5,2003,5],[1998,6,2003,6],[1988,7,1990,7],[1988,8,1990,8],[1991,0,1997,0],[1991,1,1997,1],[1991,2,1997,2],[1991,4,1997,4],[1991,5,1997,5],[1991,6,1997,6],[1991,7,1997,7],[1991,8,1997,8],[1988,0,1990,0],[1988,1,1990,1],[1988,2,1990,2],[1988,4,1990,4],[1988,5,1990,5],[1988,6,1990,6],[1971,7,1979,7],[1971,8,1979,8],[1982,0,1986,0],[1982,1,1986,1],[1982,2,1986,2],[1982,4,1986,4],[1982,5,1986,5],[1982,6,1986,6],[1982,7,1986,7],[1982,8,1986,8],[1971,0,1979,0],[1971,1,1979,1],[1971,2,1979,2],[1971,4,1979,4],[1971,5,1979,5],[1971,6,1979,6],[1958,7,1964,7],[1958,8,1964,8],[1965,0,1970,0],[1965,1,1970,1],[1965,2,1970,2],[1965,4,1970,4],[1965,5,1970,5],[1965,6,1970,6],[1965,7,1970,7],[1965,8,1970,8],[1958,0,1964,0],[1958,1,1964,1],[1958,2,1964,2],[1958,4,1964,4],[1958,5,1964,5],[1958,6,1964,6],[1949,7,1951,7],[1949,8,1951,8],[1955,0,1957,0],[1955,1,1957,1],[1955,2,1957,2],[1955,4,1957,4],[1955,5,1957,5],[1955,6,1957,6],[1955,7,1957,7],[1955,8,1957,8],[1949,0,1951,0],[1949,1,1951,1],[1949,2,1951,2],[1949,4,1951,4],[1949,5,1951,5],[1949,6,1951,6],[1941,7,1945,7],[1941,8,1945,8],[1946,0,1948,0],[1946,1,1948,1],[1946,2,1948,2],[1946,4,1948,4],[1946,5,1948,5],[1946,6,1948,6],[1946,7,1948,7],[1946,8,1948,8],[1941,0,1945,0],[1941,1,1945,1],[1941,2,1945,2],[1941,4,1945,4],[1941,5,1945,5],[1941,6,1945,6],[1921,7,1926,7],[1921,8,1926,8],[1936,0,1940,0],[1936,1,1940,1],[1936,2,1940,2],[1936,4,1940,4],[1936,5,1940,5],[1936,6,1940,6],[1936,7,1940,7],[1936,8,1940,8],[1921,0,1926,0],[1921,1,1926,1],[1921,2,1926,2],[1921,4,1926,4],[1921,5,1926,5],[1921,6,1926,6],[1905,7,1907,7],[1905,8,1907,8],[1909,0,1920,0],[1909,1,1920,1],[1909,2,1920,2],[1909,4,1920,4],[1909,5,1920,5],[1909,6,1920,6],[1909,7,1920,7],[1909,8,1920,8],[1905,0,1907,0],[1905,1,1907,1],[1905,2,1907,2],[1905,4,1907,4],[1905,5,1907,5],[1905,6,1907,6],[1897,7,1899,7],[1897,8,1899,8],[1901,0,1903,0],[1901,1,1903,1],[1901,2,1903,2],[1901,4,1903,4],[1901,5,1903,5],[1901,6,1903,6],[1901,7,1903,7],[1901,8,1903,8],[1897,0,1899,0],[1897,1,1899,1],[1897,2,1899,2],[1897,4,1899,4],[1897,5,1899,5],[1897,6,1899,6],[1867,7,1892,7],[1867,8,1892,8],[1893,0,1895,0],[1893,1,1895,1],[1893,2,1895,2],[1893,4,1895,4],[1893,5,1895,5],[1893,6,1895,6],[1893,7,1895,7],[1893,8,1895,8],[1867,0,1892,0],[1867,1,1892,1],[1867,2,1892,2],[1867,4,1892,4],[1867,5,1892,5],[1867,6,1892,6],[1851,7,1858,7],[1851,8,1858,8],[1860,0,1866,0],[1860,1,1866,1],[1860,2,1866,2],[1860,4,1866,4],[1860,5,1866,5],[1860,6,1866,6],[1860,7,1866,7],[1860,8,1866,8],[1851,0,1858,0],[1851,1,1858,1],[1851,2,1858,2],[1851,4,1858,4],[1851,5,1858,5],[1851,6,1858,6],[1835,7,1841,7],[1835,8,1841,8],[1843,0,1850,0],[1843,1,1850,1],[1843,2,1850,2],[1843,4,1850,4],[1843,5,1850,5],[1843,6,1850,6],[1843,7,1850,7],[1843,8,1850,8],[1835,0,1841,0],[1835,1,1841,1],[1835,2,1841,2],[1835,4,1841,4],[1835,5,1841,5],[1835,6,1841,6],[1821,7,1827,7],[1821,8,1827,8],[1828,0,1834,0],[1828,1,1834,1],[1828,2,1834,2],[1828,4,1834,4],[1828,5,1834,5],[1828,6,1834,6],[1828,7,1834,7],[1828,8,1834,8],[1821,0,1827,0],[1821,1,1827,1],[1821,2,1827,2],[1821,4,1827,4],[1821,5,1827,5],[1821,6,1827,6],[1815,7,1817,7],[1815,8,1817,8],[1818,0,1820,0],[1818,1,1820,1],[1818,2,1820,2],[1818,4,1820,4],[1818,5,1820,5],[1818,6,1820,6],[1818,7,1820,7],[1818,8,1820,8],[1815,0,1817,0],[1815,1,1817,1],[1815,2,1817,2],[1815,4,1817,4],[1815,5,1817,5],[1815,6,1817,6],[1807,7,1811,7],[1807,8,1811,8],[1812,0,1814,0],[1812,1,1814,1],[1812,2,1814,2],[1812,4,1814,4],[1812,5,1814,5],[1812,6,1814,6],[1812,7,1814,7],[1812,8,1814,8],[1807,0,1811,0],[1807,1,1811,1],[1807,2,1811,2],[1807,4,1811,4],[1807,5,1811,5],[1807,6,1811,6],[1796,7,1800,7],[1796,8,1800,8],[1801,0,1806,0],[1801,1,1806,1],[1801,2,1806,2],[1801,4,1806,4],[1801,5,1806,5],[1801,6,1806,6],[1801,7,1806,7],[1801,8,1806,8],[1796,0,1800,0],[1796,1,1800,1],[1796,2,1800,2],[1796,4,1800,4],[1796,5,1800,5],[1796,6,1800,6],[1761,7,1763,7],[1761,8,1763,8],[1764,0,1795,0],[1764,1,1795,1],[1764,2,1795,2],[1764,4,1795,4],[1764,5,1795,5],[1764,6,1795,6],[1764,7,1795,7],[1764,8,1795,8],[1761,0,1763,0],[1761,1,1763,1],[1761,2,1763,2],[1761,4,1763,4],[1761,5,1763,5],[1761,6,1763,6],[1745,7,1752,7],[1745,8,1752,8],[1753,0,1760,0],[1753,1,1760,1],[1753,2,1760,2],[1753,4,1760,4],[1753,5,1760,5],[1753,6,1760,6],[1753,7,1760,7],[1753,8,1760,8],[1745,0,1752,0],[1745,1,1752,1],[1745,2,1752,2],[1745,4,1752,4],[1745,5,1752,5],[1745,6,1752,6],[1729,7,1735,7],[1729,8,1735,8],[1736,0,1742,0],[1736,1,1742,1],[1736,2,1742,2],[1736,4,1742,4],[1736,5,1742,5],[1736,6,1742,6],[1736,7,1742,7],[1736,8,1742,8],[1729,0,1735,0],[1729,1,1735,1],[1729,2,1735,2],[1729,4,1735,4],[1729,5,1735,5],[1729,6,1735,6],[1719,7,1721,7],[1719,8,1721,8],[1722,0,1728,0],[1722,1,1728,1],[1722,2,1728,2],[1722,4,1728,4],[1722,5,1728,5],[1722,6,1728,6],[1722,7,1728,7],[1722,8,1728,8],[1719,0,1721,0],[1719,1,1721,1],[1719,2,1721,2],[1719,4,1721,4],[1719,5,1721,5],[1719,6,1721,6],[1711,7,1715,7],[1711,8,1715,8],[1716,0,1718,0],[1716,1,1718,1],[1716,2,1718,2],[1716,4,1718,4],[1716,5,1718,5],[1716,6,1718,6],[1716,7,1718,7],[1716,8,1718,8],[1711,0,1715,0],[1711,1,1715,1],[1711,2,1715,2],[1711,4,1715,4],[1711,5,1715,5],[1711,6,1715,6],[1700,7,1704,7],[1700,8,1704,8],[1705,0,1710,0],[1705,1,1710,1],[1705,2,1710,2],[1705,4,1710,4],[1705,5,1710,5],[1705,6,1710,6],[1705,7,1710,7],[1705,8,1710,8],[1700,0,1704,0],[1700,1,1704,1],[1700,2,1704,2],[1700,4,1704,4],[1700,5,1704,5],[1700,6,1704,6],[1665,7,1667,7],[1665,8,1667,8],[1668,0,1699,0],[1668,1,1699,1],[1668,2,1699,2],[1668,4,1699,4],[1668,5,1699,5],[1668,6,1699,6],[1668,7,1699,7],[1668,8,1699,8],[1665,0,1667,0],[1665,1,1667,1],[1665,2,1667,2],[1665,4,1667,4],[1665,5,1667,5],[1665,6,1667,6],[1647,7,1649,7],[1647,8,1649,8],[1650,0,1652,0],[1650,1,1652,1],[1650,2,1652,2],[1650,4,1652,4],[1650,5,1652,5],[1650,6,1652,6],[1650,7,1652,7],[1650,8,1652,8],[1647,0,1649,0],[1647,1,1649,1],[1647,2,1649,2],[1647,4,1649,4],[1647,5,1649,5],[1647,6,1649,6],[1621,7,1623,7],[1621,8,1623,8],[1634,0,1646,0],[1634,1,1646,1],[1634,2,1646,2],[1634,4,1646,4],[1634,5,1646,5],[1634,6,1646,6],[1634,7,1646,7],[1634,8,1646,8],[1621,0,1623,0],[1621,1,1623,1],[1621,2,1623,2],[1621,4,1623,4],[1621,5,1623,5],[1621,6,1623,6],[1592,7,1617,7],[1592,8,1617,8],[1618,0,1620,0],[1618,1,1620,1],[1618,2,1620,2],[1618,4,1620,4],[1618,5,1620,5],[1618,6,1620,6],[1618,7,1620,7],[1618,8,1620,8],[1592,0,1617,0],[1592,1,1617,1],[1592,2,1617,2],[1592,4,1617,4],[1592,5,1617,5],[1592,6,1617,6],[1582,7,1584,7],[1582,8,1584,8],[1585,0,1589,0],[1585,1,1589,1],[1585,2,1589,2],[1585,4,1589,4],[1585,5,1589,5],[1585,6,1589,6],[1585,7,1589,7],[1585,8,1589,8],[1582,0,1584,0],[1582,1,1584,1],[1582,2,1584,2],[1582,4,1584,4],[1582,5,1584,5],[1582,6,1584,6],[1574,7,1576,7],[1574,8,1576,8],[1579,0,1581,0],[1579,1,1581,1],[1579,2,1581,2],[1579,4,1581,4],[1579,5,1581,5],[1579,6,1581,6],[1579,7,1581,7],[1579,8,1581,8],[1574,0,1576,0],[1574,1,1576,1],[1574,2,1576,2],[1574,4,1576,4],[1574,5,1576,5],[1574,6,1576,6],[1567,7,1569,7],[1567,8,1569,8],[1570,0,1572,0],[1570,1,1572,1],[1570,2,1572,2],[1570,4,1572,4],[1570,5,1572,5],[1570,6,1572,6],[1570,7,1572,7],[1570,8,1572,8],[1567,0,1569,0],[1567,1,1569,1],[1567,2,1569,2],[1567,4,1569,4],[1567,5,1569,5],[1567,6,1569,6],[1549,7,1551,7],[1549,8,1551,8],[1552,0,1554,0],[1552,1,1554,1],[1552,2,1554,2],[1552,4,1554,4],[1552,5,1554,5],[1552,6,1554,6],[1552,7,1554,7],[1552,8,1554,8],[1549,0,1551,0],[1549,1,1551,1],[1549,2,1551,2],[1549,4,1551,4],[1549,5,1551,5],[1549,6,1551,6],[1541,7,1545,7],[1541,8,1545,8],[1546,0,1548,0],[1546,1,1548,1],[1546,2,1548,2],[1546,4,1548,4],[1546,5,1548,5],[1546,6,1548,6],[1546,7,1548,7],[1546,8,1548,8],[1541,0,1545,0],[1541,1,1545,1],[1541,2,1545,2],[1541,4,1545,4],[1541,5,1545,5],[1541,6,1545,6],[1531,7,1535,7],[1531,8,1535,8],[1536,0,1540,0],[1536,1,1540,1],[1536,2,1540,2],[1536,4,1540,4],[1536,5,1540,5],[1536,6,1540,6],[1536,7,1540,7],[1536,8,1540,8],[1531,0,1535,0],[1531,1,1535,1],[1531,2,1535,2],[1531,4,1535,4],[1531,5,1535,5],[1531,6,1535,6],[1513,7,1527,7],[1513,8,1527,8],[1528,0,1530,0],[1528,1,1530,1],[1528,2,1530,2],[1528,4,1530,4],[1528,5,1530,5],[1528,6,1530,6],[1528,7,1530,7],[1528,8,1530,8],[1513,0,1527,0],[1513,1,1527,1],[1513,2,1527,2],[1513,4,1527,4],[1513,5,1527,5],[1513,6,1527,6],[1490,7,1494,7],[1490,8,1494,8],[1495,0,1512,0],[1495,1,1512,1],[1495,2,1512,2],[1495,4,1512,4],[1495,5,1512,5],[1495,6,1512,6],[1495,7,1512,7],[1495,8,1512,8],[1490,0,1494,0],[1490,1,1494,1],[1490,2,1494,2],[1490,4,1494,4],[1490,5,1494,5],[1490,6,1494,6],[1471,7,1479,7],[1471,8,1479,8],[1480,0,1489,0],[1480,1,1489,1],[1480,2,1489,2],[1480,4,1489,4],[1480,5,1489,5],[1480,6,1489,6],[1480,7,1489,7],[1480,8,1489,8],[1471,0,1479,0],[1471,1,1479,1],[1471,2,1479,2],[1471,4,1479,4],[1471,5,1479,5],[1471,6,1479,6],[1445,7,1462,7],[1445,8,1462,8],[1464,0,1470,0],[1464,1,1470,1],[1464,2,1470,2],[1464,4,1470,4],[1464,5,1470,5],[1464,6,1470,6],[1464,7,1470,7],[1464,8,1470,8],[1445,0,1462,0],[1445,1,1462,1],[1445,2,1462,2],[1445,4,1462,4],[1445,5,1462,5],[1445,6,1462,6],[1437,7,1439,7],[1437,8,1439,8],[1440,0,1444,0],[1440,1,1444,1],[1440,2,1444,2],[1440,4,1444,4],[1440,5,1444,5],[1440,6,1444,6],[1440,7,1444,7],[1440,8,1444,8],[1437,0,1439,0],[1437,1,1439,1],[1437,2,1439,2],[1437,4,1439,4],[1437,5,1439,5],[1437,6,1439,6],[1427,7,1433,7],[1427,8,1433,8],[1434,0,1436,0],[1434,1,1436,1],[1434,2,1436,2],[1434,4,1436,4],[1434,5,1436,5],[1434,6,1436,6],[1434,7,1436,7],[1434,8,1436,8],[1427,0,1433,0],[1427,1,1433,1],[1427,2,1433,2],[1427,4,1433,4],[1427,5,1433,5],[1427,6,1433,6],[1414,7,1418,7],[1414,8,1418,8],[1419,0,1426,0],[1419,1,1426,1],[1419,2,1426,2],[1419,4,1426,4],[1419,5,1426,5],[1419,6,1426,6],[1419,7,1426,7],[1419,8,1426,8],[1414,0,1418,0],[1414,1,1418,1],[1414,2,1418,2],[1414,4,1418,4],[1414,5,1418,5],[1414,6,1418,6],[1392,7,1403,7],[1392,8,1403,8],[1404,0,1413,0],[1404,1,1413,1],[1404,2,1413,2],[1404,4,1413,4],[1404,5,1413,5],[1404,6,1413,6],[1404,7,1413,7],[1404,8,1413,8],[1392,0,1403,0],[1392,1,1403,1],[1392,2,1403,2],[1392,4,1403,4],[1392,5,1403,5],[1392,6,1403,6],[1362,7,1380,7],[1362,8,1380,8],[1382,0,1391,0],[1382,1,1391,1],[1382,2,1391,2],[1382,4,1391,4],[1382,5,1391,5],[1382,6,1391,6],[1382,7,1391,7],[1382,8,1391,8],[1362,0,1380,0],[1362,1,1380,1],[1362,2,1380,2],[1362,4,1380,4],[1362,5,1380,5],[1362,6,1380,6],[1352,7,1354,7],[1352,8,1354,8],[1355,0,1361,0],[1355,1,1361,1],[1355,2,1361,2],[1355,4,1361,4],[1355,5,1361,5],[1355,6,1361,6],[1355,7,1361,7],[1355,8,1361,8],[1352,0,1354,0],[1352,1,1354,1],[1352,2,1354,2],[1352,4,1354,4],[1352,5,1354,5],[1352,6,1354,6],[1339,7,1348,7],[1339,8,1348,8],[1349,0,1351,0],[1349,1,1351,1],[1349,2,1351,2],[1349,4,1351,4],[1349,5,1351,5],[1349,6,1351,6],[1349,7,1351,7],[1349,8,1351,8],[1339,0,1348,0],[1339,1,1348,1],[1339,2,1348,2],[1339,4,1348,4],[1339,5,1348,5],[1339,6,1348,6],[1323,7,1327,7],[1323,8,1327,8],[1329,0,1338,0],[1329,1,1338,1],[1329,2,1338,2],[1329,4,1338,4],[1329,5,1338,5],[1329,6,1338,6],[1329,7,1338,7],[1329,8,1338,8],[1323,0,1327,0],[1323,1,1327,1],[1323,2,1327,2],[1323,4,1327,4],[1323,5,1327,5],[1323,6,1327,6],[1314,7,1316,7],[1314,8,1316,8],[1320,0,1322,0],[1320,1,1322,1],[1320,2,1322,2],[1320,4,1322,4],[1320,5,1322,5],[1320,6,1322,6],[1320,7,1322,7],[1320,8,1322,8],[1314,0,1316,0],[1314,1,1316,1],[1314,2,1316,2],[1314,4,1316,4],[1314,5,1316,5],[1314,6,1316,6],[1298,7,1304,7],[1298,8,1304,8],[1306,0,1313,0],[1306,1,1313,1],[1306,2,1313,2],[1306,4,1313,4],[1306,5,1313,5],[1306,6,1313,6],[1306,7,1313,7],[1306,8,1313,8],[1298,0,1304,0],[1298,1,1304,1],[1298,2,1304,2],[1298,4,1304,4],[1298,5,1304,5],[1298,6,1304,6]],"merged_total":2600,"flags":["merged_cut"]}
["Name","Type","Write","Description","Object Default","Version","Requirement","Impl?\nY/N","Example Data / Comments"]
["TR-181 Issue 2 (Device:2.7) DataModel Definitions for RDK based devices"]
["Device.","object","-","The top-level object for a Device.","-",2,"MUST"]
["RootDataModelVersion","string­(32)","-","Root data model version, e.g. 2.4. For a vendor-defined root data model, this is the standard Broadband Forum model on which the vendor-defined model is based. Possible patterns:","-",2.4,"SHOULD"]
[]
[null,null,null,"2\\.\\d+"]
[]
["InterfaceStackNumberOfEntries","unsignedInt","-","The number of entries in the InterfaceStack table.","-",2,"MUST"]
["Device.DeviceInfo.","object","-","This object contains general device information.","-",2,"MUST"]
["Manufacturer","string­(64)","-","The manufacturer of the CPE (human readable string).","-",2,"MUST",null,"Name of the manufacturer."]
["ManufacturerOUI","string­(6:6)","-","Organizationally unique identifier of the device manufacturer. Represented as a six hexadecimal-digit value using all upper-case letters and including any leading zeros. Possible patterns:","-",2,"MUST",null,"OUI of the manufacturer. Same class of devices MUST follow the same OUI."]
[]
[null,null,null,"[0-9A-F]{6}"]
[]
[null,null,null,"The value MUST be a valid OUI as defined in [OUI]."]
[]
[null,null,null,"This value MUST remain fixed over the lifetime of the device, including across firmware updates. Any change would indicate that it's a new device and would therefore require a BOOTSTRAP Inform."]
["ModelName","string­(64)","-","Model name of the CPE (human readable string).","-",2,"MUST",null,"This MUST be based on Comcast_X_HW* specification and of the format TUVVVWXY."]
["Description","string­(256)","-","A full description of the CPE device (human readable string).","-",2,"MUST"]
["ProductClass","string­(64)","-","Identifier of the class of product for which the serial number applies. That is, for a given manufacturer, this parameter is used to identify the product or class of product over which the SerialNumber parameter is unique.","-",2,"MUST",null,"XI3"]
[]
[null,null,null,"This value MUST remain fixed over the lifetime of the device, including across firmware updates. Any change would indicate that it's a new device and would therefore require a BOOTSTRAP Inform."]
["SerialNumber","string­(64)","-","Identifier of the particular device that is unique for the indicated class of product and manufacturer.","-",2,"MUST",null,"Serial Number of the box."]
[]
[null,null,null,"This value MUST remain fixed over the lifetime of the device, including across firmware updates. Any change would indicate that it's a new device and would therefore require a BOOTSTRAP Inform."]
["HardwareVersion","string­(64)","-","A string identifying the particular CPE model and version.","-",2,"MUST",null,"This MUST be based on Comcast_X_HW* specification and of the format VM.m.R."]
["SoftwareVersion","string­(64)","-","A string identifying the software version currently installed in the CPE (i.e. version of the overall CPE firmware).","-",2,"MUST",null,"Software/Firmware version of the running image on the box (Vx.y.z)"]
[]
[null,null,null,"To allow version comparisons, this element SHOULD be in the form of dot-delimited integers, where each successive integer represents a more minor category of variation. For example, 3.0.21 where the components mean: Major.Minor.Build."]
["AdditionalHardwareVersion","string­(64)","-","Comma-separated list (maximum length 64) of strings. Each entry is an additional version. Represents any additional hardware version information the vendor might wish to supply.","-",2,"If Applicable"]
["AdditionalSoftwareVersion","string­(64)","-","Comma-separated list (maximum length 64) of strings. Each entry is an additional version. Represents any additional software version information the vendor might wish to supply.","-",2,"MUST",null,"Additional information about the images stored in non-volatile memory. E.g.\nB-DRI: V.x.y.z 0xSTAT,  P-DRI: V.x.y.z 0xSTAT,  U-PDRI: V.x.y.z 0xSTAT,  PCI-1: V.x.y.z 0xSTAT, PCI-2: V.x.y.z 0xSTAT"]
["ProvisioningCode","string­(64)","W","Identifier of the primary service provider and other provisioning information, which MAY be used by the ACS to determine service provider-specific customization and provisioning parameters.","-",2,"MUST",null,"This MUST be the SOC ID installed on the box."]
["UpTime","unsignedInt","-","Time in seconds since the CPE was last restarted.","-",2,"MUST"]
["FirstUseDate","dateTime","-","Date and time in UTC that the CPE first both successfully established an IP-layer network connection and acquired an absolute time reference using NTP or equivalent over that network connection. The CPE MAY reset this date after a factory reset.","-",2,"MUST"]
[]
[null,null,null,"If NTP or equivalent is not available, this parameter, if present, SHOULD be set to the Unknown Time value."]
["VendorConfigFileNumberOfEntries","unsignedInt","-","The number of entries in the VendorConfigFile table.","-",2,"MAY"]
["SupportedDataModelNumberOfEntries","unsignedInt","-","The number of entries in the SupportedDataModel table.","-",2,"SHOULD"]
["ProcessorNumberOfEntries","unsignedInt","-","The number of entries in the Processor table.","-",2.1,"N/A"]
["VendorLogFileNumberOfEntries","unsignedInt","-","The number of entries in the VendorLogFile table.","-",2.1,"SHOULD"]
["Device.DeviceInfo.VendorConfigFile.{i}.","object","-","Every instance of this object is a Vendor Configuration File, and contains parameters associated with the Vendor Configuration File.","-",2,"MAY",null,"\nNote: If VendorConfigFileNumberOfEntries is a NON-ZERO value, this object MUST be defined."]
[]
[null,null,null,"This table of Vendor Configuration Files is for information only and does not allow the ACS to operate on these files in any way."]
[]
[null,null,null,"Whenever the CPE successfully downloads a configuration file as a result of the Download RPC with the FileType argument of 3 Vendor Configuration File, the CPE MUST update this table."]
[]
[null,null,null,"At most one entry in this table can exist with a given value for Alias, or with a given value for Name."]
["Alias","string­(64)","W","A non-volatile handle used to reference this instance. Alias provides a mechanism for an ACS to label this instance for future reference.","-",2]
[]
[null,null,null,"If the CPE supports the Alias-based Addressing feature as defined in [Section 3.6.1/TR-069a4] and described in [Appendix II/TR-069a4], the following mandatory constraints MUST be enforced:"]
[]
[null,null,null,"Its value MUST NOT be empty."]
[null,null,null,"Its value MUST start with a letter."]
[null,null,null,"If its instance object is created by the CPE, the initial value MUST start with a \"cpe-\" prefix."]
[null,null,null,"The CPE MUST NOT change the parameter value."]
[]
["Name","string­(64)","-","Name of the vendor configuration file.","-",2]
[]
[null,null,null,"If the CPE is able to obtain the name of the configuration file from the file itself, then the value of this parameter MUST be set to that name."]
[]
[null,null,null,"Otherwise, if the CPE can extract the file name from the URL used to download the configuration file, then the value of this parameter MUST be set to that name."]
[]
[null,null,null,"Otherwise, the value of this parameter MUST be set to the value of the TargetFileName argument of the Download RPC used to download this configuration file."]
["Version","string­(16)","-","A string identifying the configuration file version currently used in the CPE.","-",2]
[]
[null,null,null,"If the CPE is able to obtain the version of the configuration file from the file itself, then the value of this parameter MUST be set to the obtained value."]
[]
[null,null,null,"Otherwise, the value of this parameter MUST be an empty string."]
["Date","dateTime","-","Date and time when the content of the current version of this vendor configuration file was first applied by the CPE.","-",2]
["Description","string­(256)","-","A description of the vendor configuration file (human-readable string).","-",2]
["Device.DeviceInfo.SupportedDataModel.{i}.","object","-","This table contains details of the device's Current Supported Data Model.","-",2,"SHOULD",null,"\nNote: If SupportedDataModelNumberOfEntries is a NON-ZERO value, this object MUST be defined."]
[]
[null,null,null,"The table MUST describe the device's entire Supported Data Model. Therefore, if a device's Supported Data Model changes at run-time, entries will need to be added or removed as appropriate."]
[]
[null,null,null,"Each table entry MUST refer to only a single Root Object or Service Object. The device MAY choose to use more than one table entry for a given Root Object or Service Object."]
[]
[null,null,null,"Considering that every device has some form of a data model, this table MUST NOT be empty."]
[]
[null,null,null,"At most one entry in this table can exist with a given value for URL, or with a given value for Alias."]
["Alias","string­(64)","W","A non-volatile handle used to reference this instance. Alias provides a mechanism for an ACS to label this instance for future reference.","-",2.2999999999999998]
[]
[null,null,null,"If the CPE supports the Alias-based Addressing feature as defined in [Section 3.6.1/TR-069a4] and described in [Appendix II/TR-069a4], the following mandatory constraints MUST be enforced:"]
[]
[null,null,null,"Its value MUST NOT be empty."]
[null,null,null,"Its value MUST start with a letter."]
[null,null,null,"If its instance object is created by the CPE, the initial value MUST start with a \"cpe-\" prefix."]
[null,null,null,"The CPE MUST NOT change the parameter value."]
[]
["URL","string­(256)","-","URL ([RFC3986]) that describes some or all of the device's Current Supported Data Model.","-",2]
[]
[null,null,null,"The URL MUST reference an XML file which describes the appropriate part of the Supported Data Model."]
[]
[null,null,null,"The referenced XML file MUST be compliant with the DT (Device Type) Schema that is described in [Annex B/TR-106a3], including any additional normative requirements referenced within the Schema."]
[]
[null,null,null,"The XML file referenced by this URL MUST NOT change while the CPE is running, and SHOULD NOT change across a CPE reboot. Note that, if the same XML file is to be used for multiple CPE, this strongly suggests that the XML file referenced by this URL should never change."]
[]
[null,null,null,"The URL MAY permit the XML file to be accessed at run-time, in which case, the XML file MAY be located within the CPE."]
[]
[null,null,null,"Behavior in the event of an invalid URL, failure to access the referenced XML file, or an invalid XML file, is implementation-dependent."]
["URN","string­(256)","-","URN ([RFC3986]) that is the value of the spec attribute in the DM (data model) Instance that defines the Root Object or Service Object referenced by this table entry.","-",2]
[]
[null,null,null,"For example, if this table entry references a DT Instance that refers to the Device:1.3 Root Object, the value of this parameter would be urn:broadband-forum-org:tr-157-1-0-0, because TR-157 defines Device:1.3. If the DT Instance instead referred to a vendor-specific Root Object, e.g. X_EXAMPLE_Device:1.0 (derived from Device:1.3), the value of this parameter would be something like urn:example-com:device-1-0-0."]
["Features","string","-","Comma-separated list of strings. This parameter MUST list exactly the features that are defined using the top-level feature element in the DT Instance referenced by URL.","-",2]
[]
[null,null,null,"For example, if the DT instance specified the following:"]
[]
[null,null,null,"<feature name=\"DNSServer\"/>"]
[null,null,null,"<feature name=\"Router\"/>"]
[null,null,null,"<feature name=\"X_MyDeviceFeature\"/>"]
[]
[null,null,null,"then the value of this parameter might be DNSServer,Router,X_MyDeviceFeature. The order in which the features are listed is not significant."]
["Device.DeviceInfo.MemoryStatus.","object","-","Status of the device's volatile physical memory.","-",2,"MUST"]
["Total","unsignedInt","-","The total physical RAM, in kilobytes, installed on the device.","-",2,"MUST"]
["Free","unsignedInt","-","The free physical RAM, in kilobytes, currently available on the device.","-",2,"MUST"]
["Device.DeviceInfo.ProcessStatus.","object","-","Status of the processes on the device.","-",2,"MUST"]
["CPUUsage","unsignedInt­[:100]","-","The total amount of the CPU, in percent, rounded up to the nearest whole percent. In the case that multiple CPU are present, this value represents the average of all CPU.","-",2,"MUST"]
["ProcessNumberOfEntries","unsignedInt","-","The number of entries in the Process table.","-",2,"MUST"]
[]
[null,null,null,"Since a Process can come and go very quickly, the CPE SHOULD place a locally specified limit on the frequency at which it will notify the ACS of value changes, as described in [Section 3.2.1/TR-069a2]."]
["Device.DeviceInfo.ProcessStatus.Process.{i}.","object","-","List of all processes running on the device.","-",2,"MUST"]
[]
[null,null,null,"At most one entry in this table can exist with a given value for PID."]
["PID","unsignedInt","-","The Process Identifier.","-",2,"MUST"]
["Command","string­(256)","-","The name of the command that has caused the process to exist.","-",2,"MUST"]
["Size","unsignedInt","-","The size in kilobytes of the memory occupied by the process.","-",2,"MUST"]
["Priority","unsignedInt­[:99]","-","The priority of the process where 0 is highest.","-",2,"MUST"]
["CPUTime","unsignedInt","-","The amount of time in milliseconds that the process has spent taking up CPU time since the process was started.","-",2,"MUST"]
["State","string","-","The current state that the process is in. Enumeration of:","-",2,"MUST"]
[]
[null,null,null,"Running"]
[null,null,null,"Sleeping"]
[null,null,null,"Stopped"]
[null,null,null,"Idle (OPTIONAL)"]
[null,null,null,"Uninterruptible (OPTIONAL)"]
[null,null,null,"Zombie (OPTIONAL)"]
[]
["Device.DeviceInfo.TemperatureStatus.","object","-","Status of the temperature of the device.","-",2,"MUST"]
["TemperatureSensorNumberOfEntries","unsignedInt","-","The number of entries in the TemperatureSensor table.","-",2,"MUST",null,"Only 1, CPU Temperature Sensor"]
["Device.DeviceInfo.TemperatureStatus.TemperatureSensor.{i}.","object","-","This object represents information that the device has obtained via sampling an internal temperature sensor.","-",2,"MUST"]
[]
[null,null,null,"At most one entry in this table can exist with a given value for Name, or with a given value for Alias."]
["Name","string­(256)","-","Name of this temperature sensor. This text MUST be sufficient to distinguish this temperature sensor from other temperature sensors.","-",2,"MUST",null,"CPU_TEMPERATURE"]
["Value","int­[-274:]","-","This temperature sensor's last good reading in degrees celsius.","-",2,"MUST",null,"degree Celsius"]
[]
[null,null,null,"A value of -274 (which is below absolute zero) indicates a good reading has not been obtained since last reset."]
["LastUpdate","dateTime","-","The time at which this temperature sensor's last good reading was obtained.","-",2,"MUST"]
[]
[null,null,null,"The Unknown Time value, as defined in [TR-106a2], indicates a good reading has not been obtained since last reset."]
["MaxValue","int­[-274:]","-","This temperature sensor's highest value reading in degrees celsius since last reset.","-",2,"MUST",null,"Read the temperature value periodically every PollingInterval (see below parameters) and store the highest temperature value  with the time of read (unless the hardware supports it automatically)"]
[]
[null,null,null,"A value of -274 (which is below absolute zero) indicates a good reading has not been obtained since last reset."]
["MaxTime","dateTime","-","The time at which this temperature sensor's highest value was read.","-",2,"MUST"]
[]
[null,null,null,"The Unknown Time value, as defined in [TR-106a2], indicates a good reading has not been obtained since last reset."]
["HighAlarmValue","int­[-274:]","W","This temperature sensor's high alarm value in degrees celsius.","-",2,"SHOULD"]
[]
[null,null,null,"A value of -274 (which is below absolute zero) indicates a non configured value."]
[]
[null,null,null,"A change to this value will cause HighAlarmTime to be reset."]
["HighAlarmTime","dateTime","-","Initial time at which this temperature sensor's HighAlarmValue was encountered.","-",2,"SHOULD"]
[]
[null,null,null,"This value is only set the first time the alarm is seen and not changed until the next reset."]
[]
[null,null,null,"The Unknown Time value, as defined in [TR-106a2], indicates that an alarm has not been encountered since the last reset."]
["PollingInterval","unsignedInt","W","The interval, measured in seconds, in which the device polls this TemperatureSensor.",5,2.1,"MUST",null,"Default 5 seconds. Configurable by the ACS."]
[]
[null,null,null,"If the value is 0 then the device selects its own polling interval."]
[]
[null,null,null,"If the value is greater than 0 then the device MUST use this value as the polling interval."]
["Device.DeviceInfo.VendorLogFile.{i}.","object","-","Each table entry represents a Vendor Log File.","-",2.1,"MAY",null,"If the device has logging enabled by default and creates one or multiple files for this purpose, this object should be created with the file information so that the ACS can request the box to upload log files to a server for troubleshooting purposes. The contents of the log file are out of the scope of this document."]
[]
[null,null,null,"This table of log files is informational only and does not allow the ACS to operate on these files in any way."]
[]
[null,null,null,"At most one entry in this table can exist with a given value for Alias, or with a given value for Name."]
["Alias","string­(64)","W","A non-volatile handle used to reference this instance. Alias provides a mechanism for an ACS to label this instance for future reference.","-",2.1,"MAY"]
[]
[null,null,null,"If the CPE supports the Alias-based Addressing feature as defined in [Section 3.6.1/TR-069a4] and described in [Appendix II/TR-069a4], the following mandatory constraints MUST be enforced:"]
[]
[null,null,null,"Its value MUST NOT be empty."]
[null,null,null,"Its value MUST start with a letter."]
[null,null,null,"If its instance object is created by the CPE, the initial value MUST start with a \"cpe-\" prefix."]
[null,null,null,"The CPE MUST NOT change the parameter value."]
[]
["Name","string­(64)","-","Name of the log file.","-",2.1,"MAY"]
[]
[null,null,null,"Typically this will be the full file system path, but provided that it is guaranteed to be unique across current and future log files, it MAY be a shorter name derived from the file system path, or be derived via another mechanism."]
["MaximumSize","unsignedInt","-","The maximum size of the log file in bytes. If the device doesn’t know the maximum file size then MaximumSize will be 0.","-",2.1,"MAY"]
["Persistent","boolean","-","When true, the log file contents are preserved across a device reboot.","-",2.1,"MAY"]
[]
[null,null,null,"When false, the log file contents will be purged when the device is rebooted."]
["Device.ManagementServer.","object","-","This object contains parameters relating to the CPE's association with an ACS.","-",2,"MUST"]
["EnableCWMP","boolean","W","Enables and disables the CPE's support for CWMP.","-",2,"MUST"]
[]
[null,null,null,"false means that CWMP support in the CPE is disabled, in which case the device MUST NOT send any Inform messages to the ACS or accept any Connection Request notifications from the ACS."]
[]
[null,null,null,"true means that CWMP support on the CPE is enabled."]
[]
[null,null,null,"The subscriber can re-enable the CPE's CWMP support either by performing a factory reset or by using a LAN-side protocol to change the value of this parameter back to true."]
[]
[null,null,null,"The factory default value MUST be true."]
["URL","string­(256)","W","URL, as defined in [RFC3986], for the CPE to connect to the ACS using the CPE WAN Management Protocol.","-",2,"MUST"]
[]
[null,null,null,"This parameter MUST be in the form of a valid HTTP or HTTPS URL."]
[]
[null,null,null,"The host portion of this URL is used by the CPE for validating the ACS certificate when using SSL or TLS."]
[]
[null,null,null,"Note that on a factory reset of the CPE, the value of this parameter might be reset to its factory value. If an ACS modifies the value of this parameter, it SHOULD be prepared to accommodate the situation that the original value is restored as the result of a factory reset."]
["Username","string­(256)","W","Username used to authenticate the CPE when making a connection to the ACS using the CPE WAN Management Protocol.","-",2,"MUST"]
[]
[null,null,null,"This username is used only for HTTP-based authentication of the CPE."]
[]
[null,null,null,"Note that on a factory reset of the CPE, the value of this parameter might be reset to its factory value. If an ACS modifies the value of this parameter, it SHOULD be prepared to accommodate the situation that the original value is restored as the result of a factory reset."]
["Password","string­(256)","W","Password used to authenticate the CPE when making a connection to the ACS using the CPE WAN Management Protocol.","-",2,"MUST"]
[]
[null,null,null,"This password is used only for HTTP-based authentication of the CPE."]
[]
[null,null,null,"Note that on a factory reset of the CPE, the value of this parameter might be reset to its factory value. If an ACS modifies the value of this parameter, it SHOULD be prepared to accommodate the situation that the original value is restored as the result of a factory reset."]
[]
[null,null,null,"When read, this parameter returns an empty string, regardless of the actual value."]
["PeriodicInformEnable","boolean","W","Whether or not the CPE MUST periodically send CPE information to the ACS using the Inform method call.","-",2,"MUST"]
["PeriodicInformInterval","unsignedInt­[1:]","W","The duration in seconds of the interval for which the CPE MUST attempt to connect with the ACS and call the Inform method if PeriodicInformEnable is true.","-",2,"MUST"]
["PeriodicInformTime","dateTime","W","An absolute time reference in UTC to determine when the CPE will initiate the periodic Inform method calls. Each Inform call MUST occur at this reference time plus or minus an integer multiple of the PeriodicInformInterval.","-",2,"MUST"]
[]
[null,null,null,"PeriodicInformTime is used only to set the phase of the periodic Informs. The actual value of PeriodicInformTime can be arbitrarily far into the past or future."]
[]
[null,null,null,"For example, if PeriodicInformInterval is 86400 (a day) and if PeriodicInformTime is set to UTC midnight on some day (in the past, present, or future) then periodic Informs will occur every day at UTC midnight. These MUST begin on the very next midnight, even if PeriodicInformTime refers to a day in the future."]
[]
[null,null,null,"The Unknown Time value defined in [Section 3.2/TR-106a2] indicates that no particular time reference is specified. That is, the CPE MAY locally choose the time reference, and needs only to adhere to the specified PeriodicInformInterval."]
[]
[null,null,null,"If absolute time is not available to the CPE, its periodic Inform behavior MUST be the same as if the PeriodicInformTime parameter was set to the Unknown Time value."]
["ParameterKey","string­(32)","-","ParameterKey provides the ACS a reliable and extensible means to track changes made by the ACS. The value of ParameterKey MUST be equal to the value of the ParameterKey argument from the most recent successful SetParameterValues, AddObject, or DeleteObject method call from the ACS.","-",2,"MUST"]
[]
[null,null,null,"The CPE MUST set ParameterKey to the value specified in the corresponding method arguments if and only if the method completes successfully and no fault response is generated. If a method call does not complete successfully (implying that the changes requested in the method did not take effect), the value of ParameterKey MUST NOT be modified."]
[]
[null,null,null,"The CPE MUST only modify the value of ParameterKey as a result of SetParameterValues, AddObject, DeleteObject, or due to a factory reset. On factory reset, the value of ParameterKey MUST be set to an empty string."]
["ConnectionRequestURL","string­(256)","-","HTTP URL, as defined in [RFC3986], for an ACS to make a Connection Request notification to the CPE.","-",2,"MUST"]
[]
[null,null,null,"In the form:"]
[]
[null,null,null,"http://host:port/path"]
[]
[null,null,null,"The host portion of the URL MAY be the IP address for the management interface of the CPE in lieu of a host name."]
[]
[null,null,null,"Note: If the host portion of the URL is a literal IPv6 address then it MUST be enclosed in square brackets (see [Section 3.2.2/RFC3986])."]
["ConnectionRequestUsername","string­(256)","W","Username used to authenticate an ACS making a Connection Request to the CPE.","-",2,"MUST"]
["ConnectionRequestPassword","string­(256)","W","Password used to authenticate an ACS making a Connection Request to the CPE.","-",2,"MUST"]
[]
[null,null,null,"When read, this parameter returns an empty string, regardless of the actual value."]
["UpgradesManaged","boolean","W","Indicates whether or not the ACS will manage upgrades for the CPE. If true, the CPE SHOULD NOT use other means other than the ACS to seek out available upgrades. If false, the CPE MAY use other means for this purpose.","-",2,"MUST"]
[]
[null,null,null,"Note that an autonomous upgrade (reported via an \"10 AUTONOMOUS TRANSFER COMPLETE\" Inform Event code) SHOULD be regarded as a managed upgrade if it is performed according to ACS-specified policy."]
["DefaultActiveNotificationThrottle","unsignedInt","W","This parameter is used to control throttling of active notifications sent by the CPE to the ACS. It defines the minimum number of seconds that the CPE MUST wait since the end of the last session with the ACS before establishing a new session for the purpose of delivering an active notification.","-",2,"MUST"]
[]
[null,null,null,"In other words, if CPE needs to establish a new session with the ACS for the sole purpose of delivering an active notification, it MUST delay establishing such a session as needed to ensure that the minimum time since the last session completion has been met."]
[]
[null,null,null,"The time is counted since the last successfully completed session, regardless of whether or not it was used for active notifications or other purposes. However, if connection to the ACS is established for purposes other than just delivering active notifications, including for the purpose of retrying a failed session, such connection MUST NOT be delayed based on this parameter value, and the pending active notifications MUST be communicated during that connection."]
[]
[null,null,null,"The time of the last session completion does not need to be tracked across reboots."]
["CWMPRetryMinimumWaitInterval","unsignedInt­[1:65535]","W","Configures the first session retry wait interval, in seconds, as specified in [Section 3.2.1.1/TR-069a2].","-",2,"MUST"]
[]
[null,null,null,"A value of 5 corresponds to the default behavior that is described in [TR-069a2]."]
[]
[null,null,null,"The device MUST use a random value between CWMPRetryMinimumWaitInterval and (CWMPRetryMinimumWaitInterval * CWMPRetryIntervalMultiplier / 1000) as the first retry wait interval. Other values in the retry pattern MUST be calculated using this value as a starting point."]
["CWMPRetryIntervalMultiplier","unsignedInt­[1000:65535]","W","Configures the retry interval multiplier as specified in [Section 3.2.1.1/TR-069a2].","-",2,"MUST"]
[]
[null,null,null,"This value is expressed in units of 0.001. Hence the values of the multiplier range between 1.000 and 65.535."]
[]
[null,null,null,"A value of 2000 corresponds to the default behavior that is described in [TR-069a2]."]
[]
[null,null,null,"The device MUST use a random value between CWMPRetryMinimumWaitInterval and (CWMPRetryMinimumWaitInterval * CWMPRetryIntervalMultiplier / 1000) as the first retry wait interval. Other values in the retry pattern MUST be calculated using this value as a starting point."]
["UDPConnectionRequestAddress","string­(256)","-","Address and port to which an ACS MAY send a UDP Connection Request to the CPE (see [Annex G/TR-069a2]).","-",2,"MUST"]
[]
[null,null,null,"This parameter is represented in the form of an Authority element as defined in [RFC3986]. The value MUST be in one of the following two forms:"]
[]
[null,null,null,"host:port"]
[null,null,null,"host"]
[]
[null,null,null,"When STUNEnable is true, the host and port portions of this parameter MUST represent the public address and port corresponding to the NAT binding through which the ACS can send UDP Connection Request messages (once this information is learned by the CPE through the use of STUN)."]
[null,null,null,"When STUNEnable is false, the host and port portions of the URL MUST represent the local IP address and port on which the CPE is listening for UDP Connection Request messages."]
[]
[null,null,null,"The second form of this parameter MAY be used only if the port value is equal to 80."]
[]
[null,null,null,"Note: If the host portion of the URL is a literal IPv6 address then it MUST be enclosed in square brackets (see [Section 3.2.2/RFC3986])."]
["STUNEnable","boolean","W","Enables or disables the use of STUN by the CPE. This applies only to the use of STUN in association with the ACS to allow UDP Connection Requests.","-",2,"MUST"]
["STUNServerAddress","string­(256)","W","Host name or IP address of the STUN server for the CPE to send Binding Requests if STUN is enabled via STUNEnable.","-",2,"MUST"]
[]
[null,null,null,"If is an empty string and STUNEnable is true, the CPE MUST use the address of the ACS extracted from the host portion of the ACS URL."]
["STUNServerPort","unsignedInt­[0:65535]","W","Port number of the STUN server for the CPE to send Binding Requests if STUN is enabled via STUNEnable.","-",2,"MUST"]
[]
[null,null,null,"By default, this SHOULD be the equal to the default STUN port, 3478."]
["STUNUsername","string­(256)","W","If is not an empty string, the value of the STUN USERNAME attribute to be used in Binding Requests (only if message integrity has been requested by the STUN server).","-",2,"MUST"]
[]
[null,null,null,"If is an empty string, the CPE MUST NOT send STUN Binding Requests with message integrity."]
["STUNPassword","string­(256)","W","The value of the STUN Password to be used in computing the MESSAGE-INTEGRITY attribute to be used in Binding Requests (only if message integrity has been requested by the STUN server).","-",2,"MUST"]
[]
[null,null,null,"When read, this parameter returns an empty string, regardless of the actual value."]
["STUNMaximumKeepAlivePeriod","int­[-1:]","W","If STUN Is enabled, the maximum period, in seconds, that STUN Binding Requests MUST be sent by the CPE for the purpose of maintaining the binding in the Gateway. This applies specifically to Binding Requests sent from the UDP Connection Request address and port.","-",2,"MUST"]
[]
[null,null,null,"A value of -1 indicates that no maximum period is specified."]
["STUNMinimumKeepAlivePeriod","unsignedInt","W","If STUN Is enabled, the minimum period, in seconds, that STUN Binding Requests can be sent by the CPE for the purpose of maintaining the binding in the Gateway. This limit applies only to Binding Requests sent from the UDP Connection Request address and port, and only those that do not contain the BINDING-CHANGE attribute. This limit does not apply to retransmissions following the procedures defined in [RFC3489].","-",2,"MUST"]
["NATDetected","boolean","-","When STUN is enabled, this parameter indicates whether or not the CPE has detected address and/or port mapping in use.","-",2,"MUST"]
[]
[null,null,null,"A true value indicates that the received MAPPED-ADDRESS in the most recent Binding Response differs from the CPE's source address and port."]
[]
[null,null,null,"When STUNEnable is false, this value MUST be false."]
["AliasBasedAddressing","boolean","-","Indicates whether or not the Alias-Based Addressing Mechanism is supported.","-",2.2999999999999998,"MUST",null,"\nNote: Alias based addressing is not supported as of now. The value of this parameter will be FALSE."]
[]
[null,null,null,"A true value indicates that the CPE supports the Alias-Based Addressing Mechanism, as defined in [Section 3.6.1/TR-069a4] and described in [Appendix II/TR-069a4]."]
["InstanceMode","string","W","Instance identification mode as defined in [Section 3.6.1/TR-069a4]. When AliasBasedAddressing is true, InstanceMode is used by the ACS to control whether the CPE will use Instance Numbers or Instance Aliases in returned Path Names. Enumeration of:","-",2.2999999999999998,"N/A"]
[]
[null,null,null,"InstanceNumber"]
[null,null,null,"InstanceAlias"]
[]
[null,null,null,"This parameter is REQUIRED for any CPE supporting Alias-Based Addressing."]
[]
[null,null,null,"The factory default value MUST be InstanceNumber."]
["AutoCreateInstances","boolean","W","Enable or disable the Auto-Create Instance Mechanism. When AliasBasedAddressing is true, AutoCreateInstances indicates whether or not the CPE will automatically create instances while processing a SetParameterValues RPC (as defined in [A.3.2.1/TR-069a4]).","-",2.2999999999999998,"N/A"]
[]
[null,null,null,"A true value indicates that the CPE will perform auto-creation of instances when the Alias-Based Addressing Mechanism is used in SetParameterValues RPC."]
[null,null,null,"A false value indicates that the CPE will not create new object instances. Instead, it will reject the setting of parameters in unrecognized instances and respond with a fault code."]
[]
[null,null,null,"This parameter is REQUIRED for any CPE supporting Alias-Based Addressing."]
[]
[null,null,null,"The factory default value MUST be false."]
["SupportedConnReqMethods","string","-","Comma-separated list of strings. The connection request methods supported by this ManagementServer. Each list item is an enumeration of:","-",2.7,"MUST"]
[]
[null,null,null,"HTTP (The connection request method as specified in [Section 3.2.2 ACS Connection Initiation/TR-069], REQUIRED)"]
[null,null,null,"STUN (The connection request method as specified in [Annex G Connection Request via NAT Gateway/TR-069], OPTIONAL)"]
[null,null,null,"XMPP (The connection request method as specified in [Annex K XMPP Connection Request/TR-069a5], OPTIONAL)"]
[]
["ConnReqXMPPConnection","string","W","The value MUST be the path name of the XMPP.Connection instance that is used for connection requests to this ManagementServer. If the referenced object is deleted, the parameter value MUST be set to an empty string.","-",2.7,"MUST"]
["ConnReqAllowedJabberIDs","string","W","When an XMPP Connection Request is sent to a CPE the XMPP IQ Stanza will contian a \"from\" address that contains the Jabber ID of the initiating entity.","-",2.7,"MUST"]
[]
[null,null,null,"This parameter is a Comma-separated list (up to 32 items) of strings (maximum item length 256). Each entry represents a Jabber ID, or address, that is allowed to initiate an XMPP Connection Request."]
[]
[null,null,null,"Each Jabber ID is allowed to be either a \"Full JID\" (containing a local-part, domain-part, and resource-part in the following format: \"local-part@domain-part/resource-part\") or a \"Bare JID\" (containing a local-part and a domain-part in the following format: \"local-part@domain-part\"). \"Full JID\" entries require an exact match whereas \"Bare JID\" entries are a wildcard match and will match any Jabber ID with the same local-part and domain-part independent of the resource-part."]
[]
[null,null,null,"For example, if ConnReqAllowedJabberIDs contained \"ACS1@tr069.example.com, ACS2@tr-069.example.com/resource1\" then the following incoming \"from\" addresses would be allowed:"]
[]
[null,null,null,"\"ACS1@tr069.example.com/resource1\""]
[null,null,null,"\"ACS1@tr069.example.com/resource2\""]
[null,null,null,"\"ACS2@tr069.example.com/resource1\""]
[]
[null,null,null,"And the following incoming \"from\" addresses would not be allowed:"]
[]
[null,null,null,"\"ACS2@tr069.example.com/resource2\""]
[null,null,null,"\"ACS@tr069.example.com/resource\""]
[]
[null,null,null,"If this Parameter is an empty string then all Jabber IDs are allowed and an XMPP Connection Request can not be deemed invalid due to the \"from\" address."]
["ConnReqJabberID","string","-","The value MUST be the value of the XMPP.Connection.{i}.JabberID contained in the XMPP.Connection instance referenced by the ConnReqXMPPConnection parameter.","-",2.7,"MUST"]
[]
[null,null,null,"If the ConnReqXMPPConnection parameter is empty or the XMPP.Connection instance being reference is disabled, then this value will be empty."]
[]
[null,null,null,"If the XMPP.Connection instance being referenced by the ConnReqXMPPConnection parameter is lost (XMPP.Connection.{i}.Status parameter changes from Enabled to some other value), then the value of this parameter MUST remain unchanged until the connection can be reestablished and a new XMPP.Connection.{i}.JabberID can be established. If the new XMPP.Connection.{i}.JabberID is identical to the existing value, then the value of this parameter MUST NOT be altered and a VALUE CHANGE event MUST NOT be generated."]
["Device.GatewayInfo.","object","-","This object contains information associated with a connected Internet Gateway Device.","-",2,"SHOULD"]
["ManufacturerOUI","string­(6)","-","Organizationally unique identifier of the associated Internet Gateway Device. Possible patterns:","-",2,"SHOULD"]
[]
[null,null,null,"<Empty> (an empty string)"]
[null,null,null,"[0-9A-F]{6}"]
[]
[null,null,null,"An empty string indicates that there is no associated Internet Gateway Device that has been detected."]
["ProductClass","string­(64)","-","Identifier of the product class of the associated Internet Gateway Device. An empty string indicates either that there is no associated Internet Gateway Device that has been detected, or the Internet Gateway Device does not support the use of the product-class parameter.","-",2,"SHOULD"]
["SerialNumber","string­(64)","-","Serial number of the associated Internet Gateway Device. An empty string indicates that there is no associated Internet Gateway Device that has been detected.","-",2,"SHOULD"]
["Device.Time.","object","-","This object contains parameters relating an NTP or SNTP time client in the CPE.","-",2,"MUST"]
["Enable","boolean","W","Enables or disables the NTP or SNTP time client.","-",2,"MUST"]
["Status","string","-","Status of Time support on the CPE. Enumeration of:","-",2,"MUST"]
[]
[null,null,null,"Disabled"]
[null,null,null,"Unsynchronized"]
[null,null,null,"Synchronized"]
[null,null,null,"Error_FailedToSynchronize"]
[null,null,null,"Error (OPTIONAL)"]
[]
[null,null,null,"The Unsynchronized value indicates that the CPE's absolute time has not yet been set."]
[]
[null,null,null,"The Synchronized value indicates that the CPE has acquired accurate absolute time; its current time is accurate."]
[]
[null,null,null,"The Error_FailedToSynchronize value indicates that the CPE failed to acquire accurate absolute time; its current time is not accurate."]
[]
[null,null,null,"The Error value MAY be used by the CPE to indicate a locally defined error condition."]
["NTPServer1","string­(64)","W","First NTP timeserver. Either a host name or IP address.","-",2,"MUST"]
["NTPServer2","string­(64)","W","Second NTP timeserver. Either a host name or IP address.","-",2,"MUST"]
["NTPServer3","string­(64)","W","Third NTP timeserver. Either a host name or IP address.","-",2,"MUST"]
["NTPServer4","string­(64)","W","Fourth NTP timeserver. Either a host name or IP address.","-",2,"MUST"]
["NTPServer5","string­(64)","W","Fifth NTP timeserver. Either a host name or IP address.","-",2,"MUST"]
["CurrentLocalTime","dateTime","-","The current date and time in the CPE's local time zone.","-",2,"MUST"]
["LocalTimeZone","string­(256)","W","The local time zone definition, encoded according to IEEE 1003.1 (POSIX). The following is an example value:","-",2,"MUST"]
[]
[null,null,null,"EST+5EDT,M4.1.0/2,M10.5.0/2"]
[]
["Device.InterfaceStack.{i}.","object","-","This table contains information about the relationships between the multiple layers of interface objects ([Section 4.3/TR-181i2]). In particular, it contains information on which interfaces run on top of which other interfaces.","-",2,"MUST"]
[]
[null,null,null,"This table is auto-generated by the CPE based on the LowerLayers parameters on individual interface objects."]
[]
[null,null,null,"Each table row represents a \"link\" between two interface objects, a higher-layer interface object (referenced by HigherLayer) and a lower-layer interface object (referenced by LowerLayer). Consequently, if a referenced interface object is deleted, the CPE MUST delete the corresponding InterfaceStack row(s) that had referenced it."]
[]
[null,null,null,"At most one entry in this table can exist with the same values for HigherLayer and LowerLayer, or with a given value for Alias."]
["Alias","string­(64)","W","A non-volatile handle used to reference this instance. Alias provides a mechanism for an ACS to label this instance for future reference.","-",2.2999999999999998,"N/A"]
[]
[null,null,null,"If the CPE supports the Alias-based Addressing feature as defined in [Section 3.6.1/TR-069a4] and described in [Appendix II/TR-069a4], the following mandatory constraints MUST be enforced:"]
[]
[null,null,null,"Its value MUST NOT be empty."]
[null,null,null,"Its value MUST start with a letter."]
[null,null,null,"If its instance object is created by the CPE, the initial value MUST start with a \"cpe-\" prefix."]
[null,null,null,"The CPE MUST NOT change the parameter value."]
[]
["HigherLayer","string­(256)","-","A reference to the interface object corresponding to the higher layer of the relationship, i.e. the interface which runs on top of the interface identified by the corresponding instance of LowerLayer.","-",2,"MUST"]
[]
[null,null,null,"When the referenced higher layer interface is deleted, the CPE MUST delete the table row."]
["LowerLayer","string­(256)","-","A reference to the interface object corresponding to the lower layer of the relationship, i.e. the interface which runs below the interface identified by the corresponding instance of HigherLayer.","-",2,"MUST"]
[]
[null,null,null,"When the referenced lower layer interface is deleted, the CPE MUST delete the table row."]
["HigherAlias","string­(64)","-","The value of the Alias parameter for the interface object referenced by HigherLayer.","-",2,"N/A"]
["LowerAlias","string­(64)","-","The value of the Alias parameter for the interface object referenced by LowerLayer.","-",2,"N/A"]
["Device.Ethernet.","object","-","Ethernet object. This object models several Ethernet interface objects, each representing a different stack layer, including: Interface, Link, and VLANTermination. Interface is media-specific and models a port, the PHY layer, and the MAC layer. Link is media-independent and models the Logical Link Control (LLC) layer. A VLANTermination, when present, is expected to be stacked on top of Link objects to receive and send frames with a configured VLANID.","-",2,"MUST"]
["InterfaceNumberOfEntries","unsignedInt","-","The number of entries in the Interface table.","-",2,"MUST"]
["LinkNumberOfEntries","unsignedInt","-","The number of entries in the Link table.","-",2,"MUST"]
["Device.Ethernet.Interface.{i}.","object","-","Ethernet interface table (a stackable interface object as described in [Section 4.2/TR-181i2]). This table models physical Ethernet ports, but in terms of the interface stack it also models the PHY and MAC level Ethernet interface.","-",2,"MUST"]
[]
[null,null,null,"At most one entry in this table can exist with a given value for Alias, or with a given value for Name."]
["Enable","boolean","W","Enables or disables the interface.","-",2,"MUST"]
[]
[null,null,null,"This parameter is based on ifAdminStatus from [RFC2863]."]
["Status","string","-","The current operational state of the interface (see [Section 4.2.2/TR-181i2]). Enumeration of:","-",2,"MUST"]
[]
[null,null,null,"Up"]
[null,null,null,"Down"]
[null,null,null,"Unknown"]
[null,null,null,"Dormant"]
[null,null,null,"NotPresent"]
[null,null,null,"LowerLayerDown"]
[null,null,null,"Error (OPTIONAL)"]
[]
[null,null,null,"When Enable is false then Status SHOULD normally be Down (or NotPresent or Error if there is a fault condition on the interface)."]
[]
[null,null,null,"When Enable is changed to true then Status SHOULD change to Up if and only if the interface is able to transmit and receive network traffic; it SHOULD change to Dormant if and only if the interface is operable but is waiting for external actions before it can transmit and receive network traffic (and subsequently change to Up if still operable when the expected actions have completed); it SHOULD change to LowerLayerDown if and only if the interface is prevented from entering the Up state because one or more of the interfaces beneath it is down; it SHOULD remain in the Error state if there is an error or other fault condition detected on the interface; it SHOULD remain in the NotPresent state if the interface has missing (typically hardware) components; it SHOULD change to Unknown if the state of the interface can not be determined for some reason."]
[]
[null,null,null,"This parameter is based on ifOperStatus from [RFC2863]."]
["Alias","string­(64)","W","A non-volatile handle used to reference this instance. Alias provides a mechanism for an ACS to label this instance for future reference.","-",2,"N/A"]
[]
[null,null,null,"If the CPE supports the Alias-based Addressing feature as defined in [Section 3.6.1/TR-069a4] and described in [Appendix II/TR-069a4], the following mandatory constraints MUST be enforced:"]
[]
[null,null,null,"Its value MUST NOT be empty."]
[null,null,null,"Its value MUST start with a letter."]
[null,null,null,"If its instance object is created by the CPE, the initial value MUST start with a \"cpe-\" prefix."]
[null,null,null,"The CPE MUST NOT change the parameter value."]
[]
["Name","string­(64)","-","The textual name of the interface as assigned by the CPE.","-",2,"SHOULD"]
["LastChange","unsignedInt","-","The accumulated time in seconds since the interface entered its current operational state.","-",2,"MUST"]
["LowerLayers","string­(1024)","W","Comma-separated list (maximum length 1024) of strings. Each list item MUST be the path name of an interface object that is stacked immediately below this interface object. If the referenced object is deleted, the corresponding item MUST be removed from the list. See [Section 4.2.1/TR-181i2].","-",2,"MUST"]
[]
[null,null,null,"Note: Since Interface is a layer 1 interface, it is expected that LowerLayers will not be used."]
["Upstream","boolean","-","Indicates whether the interface points towards the Internet (true) or towards End Devices (false).","-",2,"MUST"]
[]
[null,null,null,"For example:"]
[]
[null,null,null,"For an Internet Gateway Device, Upstream will be true for all WAN interfaces and false for all LAN interfaces."]
[null,null,null,"For a standalone WiFi Access Point that is connected via Ethernet to an Internet Gateway Device, Upstream will be true for the Ethernet interface and false for the WiFi Radio interface."]
[null,null,null,"For an End Device, Upstream will be true for all interfaces."]
[]
["MACAddress","string­(17)","-","[MACAddress] The MAC Address of the interface.","-",2,"MUST"]
[]
[null,null,null,"Note: This is not necessarily the same as the Ethernet header source or destination MAC address, which is associated with the IP interface and is modeled via the Ethernet.Link.{i}.MACAddress parameter."]
["MaxBitRate","int­[-1:]","W","The maximum upstream and downstream PHY bit rate supported by this interface (expressed in Mbps).","-",2,"MUST"]
[]
[null,null,null,"A value of -1 indicates automatic selection of the maximum bit rate."]
["DuplexMode","string","W","The duplex mode available to this connection. Enumeration of:","-",2,"MUST"]
[]
[null,null,null,"Half"]
[null,null,null,"Full"]
[null,null,null,"Auto"]
[]
["Device.Ethernet.Interface.{i}.Stats.","object","-","Throughput statistics for this interface.","-",2,"MUST"]
[]
[null,null,null,"The CPE MUST reset the interface's Stats parameters (unless otherwise stated in individual object or parameter descriptions) either when the interface becomes operationally down due to a previous administrative down (i.e. the interface's Status parameter transitions to a down state after the interface is disabled) or when the interface becomes administratively up (i.e. the interface's Enable parameter transitions from false to true). Administrative and operational interface status is discussed in [Section 4.2.2/TR-181i2]."]
["BytesSent","unsignedLong","-","The total number of bytes transmitted out of the interface, including framing characters.","-",2,"MUST"]
["BytesReceived","unsignedLong","-","The total number of bytes received on the interface, including framing characters.","-",2,"MUST"]
["PacketsSent","unsignedLong","-","The total number of packets transmitted out of the interface.","-",2,"MUST"]
["PacketsReceived","unsignedLong","-","The total number of packets received on the interface.","-",2,"MUST"]
["ErrorsSent","unsignedInt","-","The total number of outbound packets that could not be transmitted because of errors.","-",2,"MUST"]
["ErrorsReceived","unsignedInt","-","The total number of inbound packets that contained errors preventing them from being delivered to a higher-layer protocol.","-",2,"MUST"]
["UnicastPacketsSent","unsignedLong","-","The total number of packets requested for transmission which were not addressed to a multicast or broadcast address at this layer, including those that were discarded or not sent.","-",2,"MUST"]
["UnicastPacketsReceived","unsignedLong","-","The total number of received packets, delivered by this layer to a higher layer, which were not addressed to a multicast or broadcast address at this layer.","-",2,"MUST"]
["DiscardPacketsSent","unsignedInt","-","The total number of outbound packets which were chosen to be discarded even though no errors had been detected to prevent their being transmitted. One possible reason for discarding such a packet could be to free up buffer space.","-",2,"MUST"]
["DiscardPacketsReceived","unsignedInt","-","The total number of inbound packets which were chosen to be discarded even though no errors had been detected to prevent their being delivered. One possible reason for discarding such a packet could be to free up buffer space.","-",2,"MUST"]
["MulticastPacketsSent","unsignedLong","-","The total number of packets that higher-level protocols requested for transmission and which were addressed to a multicast address at this layer, including those that were discarded or not sent.","-",2,"MUST"]
["MulticastPacketsReceived","unsignedLong","-","The total number of received packets, delivered by this layer to a higher layer, which were addressed to a multicast address at this layer.","-",2,"MUST"]
["BroadcastPacketsSent","unsignedLong","-","The total number of packets that higher-level protocols requested for transmission and which were addressed to a broadcast address at this layer, including those that were discarded or not sent.","-",2,"MUST"]
["BroadcastPacketsReceived","unsignedLong","-","The total number of received packets, delivered by this layer to a higher layer, which were addressed to a broadcast address at this layer.","-",2,"MUST"]
["UnknownProtoPacketsReceived","unsignedInt","-","The total number of packets received via the interface which were discarded because of an unknown or unsupported protocol.","-",2,"MUST"]
["Device.Ethernet.Link.{i}.","object","W","Ethernet link layer table (a stackable interface object as described in [Section 4.2/TR-181i2]). Table entries model the Logical Link Control (LLC) layer. It is expected that an Ethernet Link interface can be stacked above any lower-layer interface object capable of carrying Ethernet frames.","-",2,"MUST"]
[]
[null,null,null,"At most one entry in this table (regardless of whether or not it is enabled) can exist with a given value for Alias, or with a given value for Name. On creation of a new table entry, the CPE MUST choose initial values for Alias and Name such that the new entry does not conflict with any existing entries."]
[]
[null,null,null,"At most one enabled entry in this table can exist with a given value for MACAddress."]
["Enable","boolean","W","Enables or disables the link.",false,2,"MUST"]
[]
[null,null,null,"This parameter is based on ifAdminStatus from [RFC2863]."]
["Status","string","-","The current operational state of the link (see [Section 4.2.2/TR-181i2]). Enumeration of:","\"Down\"",2,"MUST"]
[]
[null,null,null,"Up"]
[null,null,null,"Down"]
[null,null,null,"Unknown"]
[null,null,null,"Dormant"]
[null,null,null,"NotPresent"]
[null,null,null,"LowerLayerDown"]
[null,null,null,"Error (OPTIONAL)"]
[]
[null,null,null,"When Enable is false then Status SHOULD normally be Down (or NotPresent or Error if there is a fault condition on the interface)."]
[]
[null,null,null,"When Enable is changed to true then Status SHOULD change to Up if and only if the interface is able to transmit and receive network traffic; it SHOULD change to Dormant if and only if the interface is operable but is waiting for external actions before it can transmit and receive network traffic (and subsequently change to Up if still operable when the expected actions have completed); it SHOULD change to LowerLayerDown if and only if the interface is prevented from entering the Up state because one or more of the interfaces beneath it is down; it SHOULD remain in the Error state if there is an error or other fault condition detected on the interface; it SHOULD remain in the NotPresent state if the interface has missing (typically hardware) components; it SHOULD change to Unknown if the state of the interface can not be determined for some reason."]
[]
[null,null,null,"This parameter is based on ifOperStatus from [RFC2863]."]
["Alias","string­(64)","W","A non-volatile handle used to reference this instance. Alias provides a mechanism for an ACS to label this instance for future reference.","-",2,"N/A"]
[]
[null,null,null,"If the CPE supports the Alias-based Addressing feature as defined in [Section 3.6.1/TR-069a4] and described in [Appendix II/TR-069a4], the following mandatory constraints MUST be enforced:"]
[]
[null,null,null,"Its value MUST NOT be empty."]
[null,null,null,"Its value MUST start with a letter."]
[null,null,null,"If its instance object is created by the CPE, the initial value MUST start with a \"cpe-\" prefix."]
[null,null,null,"The CPE MUST NOT change the parameter value."]
[]
["Name","string­(64)","-","The textual name of the link as assigned by the CPE.","-",2,"MUST"]
["LastChange","unsignedInt","-","The accumulated time in seconds since the link entered its current operational state.","-",2,"MAY"]
["LowerLayers","string­(1024)","W","Comma-separated list (maximum length 1024) of strings. Each list item MUST be the path name of an interface object that is stacked immediately below this interface object. If the referenced object is deleted, the corresponding item MUST be removed from the list. See [Section 4.2.1/TR-181i2].","<Empty>",2,"MUST"]
["MACAddress","string­(17)","-","[MACAddress] The MAC address used for packets sent via this interface. Provides the source MAC address for outgoing traffic and the destination MAC address for incoming traffic.","-",2,"SHOULD"]
["PriorityTagging","boolean","W","Enables or disables priority tagging on this Ethernet Link.",false,2,"N/A"]
[]
[null,null,null,"When true, egress frames leaving this interface will be priority tagged with the frame's associated priority value, which will either be derived directly from the ingress frame or else set via QoS.Classification.{i}.EthernetPriorityMark."]
[]
[null,null,null,"When false, egress frames leaving this interface will be untagged."]
[]
[null,null,null,"The parameter does not affect reception of ingress frames."]
["Device.Ethernet.Link.{i}.Stats.","object","-","Throughput statistics for this interface.","-",2,"MAY"]
[]
[null,null,null,"The CPE MUST reset the interface's Stats parameters (unless otherwise stated in individual object or parameter descriptions) either when the interface becomes operationally down due to a previous administrative down (i.e. the interface's Status parameter transitions to a down state after the interface is disabled) or when the interface becomes administratively up (i.e. the interface's Enable parameter transitions from false to true). Administrative and operational interface status is discussed in [Section 4.2.2/TR-181i2]."]
["BytesSent","unsignedLong","-","The total number of bytes transmitted out of the interface, including framing characters.","-",2,"MAY"]
["BytesReceived","unsignedLong","-","The total number of bytes received on the interface, including framing characters.","-",2,"MAY"]
["PacketsSent","unsignedLong","-","The total number of packets transmitted out of the interface.","-",2,"MAY"]
["PacketsReceived","unsignedLong","-","The total number of packets received on the interface.","-",2,"MAY"]
["ErrorsSent","unsignedInt","-","The total number of outbound packets that could not be transmitted because of errors.","-",2,"MAY"]
["ErrorsReceived","unsignedInt","-","The total number of inbound packets that contained errors preventing them from being delivered to a higher-layer protocol.","-",2,"MAY"]
["UnicastPacketsSent","unsignedLong","-","The total number of packets requested for transmission which were not addressed to a multicast or broadcast address at this layer, including those that were discarded or not sent.","-",2,"MAY"]
["UnicastPacketsReceived","unsignedLong","-","The total number of received packets, delivered by this layer to a higher layer, which were not addressed to a multicast or broadcast address at this layer.","-",2,"MAY"]
["DiscardPacketsSent","unsignedInt","-","The total number of outbound packets which were chosen to be discarded even though no errors had been detected to prevent their being transmitted. One possible reason for discarding such a packet could be to free up buffer space.","-",2,"MAY"]
["DiscardPacketsReceived","unsignedInt","-","The total number of inbound packets which were chosen to be discarded even though no errors had been detected to prevent their being delivered. One possible reason for discarding such a packet could be to free up buffer space.","-",2,"MAY"]
["MulticastPacketsSent","unsignedLong","-","The total number of packets that higher-level protocols requested for transmission and which were addressed to a multicast address at this layer, including those that were discarded or not sent.","-",2,"MAY"]
["MulticastPacketsReceived","unsignedLong","-","The total number of received packets, delivered by this layer to a higher layer, which were addressed to a multicast address at this layer.","-",2,"MAY"]
["BroadcastPacketsSent","unsignedLong","-","The total number of packets that higher-level protocols requested for transmission and which were addressed to a broadcast address at this layer, including those that were discarded or not sent.","-",2,"MAY"]
["BroadcastPacketsReceived","unsignedLong","-","The total number of received packets, delivered by this layer to a higher layer, which were addressed to a broadcast address at this layer.","-",2,"MAY"]
["UnknownProtoPacketsReceived","unsignedInt","-","The total number of packets received via the interface which were discarded because of an unknown or unsupported protocol.","-",2,"MAY"]
["Device.USB.","object","-","Universal Serial Bus ([USB1.0], [USB2.0], [USB3.0]). This object contains the Interface, Port, and USBHosts objects.","-",2,"MUST"]
["Device.USB.USBHosts.","object","-","This object models the CPE's USB Host controllers.","-",2,"MUST"]
[]
[null,null,null,"See [Appendix I/TR-157] for Theory of Operation."]
["HostNumberOfEntries","unsignedInt","-","The number of entries in the Host table.","-",2,"MUST"]
["Device.USB.USBHosts.Host.{i}.","object","-","Table of CPE USB Host controllers.","-",2,"MUST"]
[]
[null,null,null,"At most one entry in this table can exist with a given value for Name, or with a given value for Alias."]
["Alias","string­(64)","W","A non-volatile handle used to reference this instance. Alias provides a mechanism for an ACS to label this instance for future reference.","-",2.2999999999999998,"N/A"]
[]
[null,null,null,"If the CPE supports the Alias-based Addressing feature as defined in [Section 3.6.1/TR-069a4] and described in [Appendix II/TR-069a4], the following mandatory constraints MUST be enforced:"]
[]
[null,null,null,"Its value MUST NOT be empty."]
[null,null,null,"Its value MUST start with a letter."]
[null,null,null,"If its instance object is created by the CPE, the initial value MUST start with a \"cpe-\" prefix."]
[null,null,null,"The CPE MUST NOT change the parameter value."]
[]
["Enable","boolean","W","Enables or disables the USB Host controller.","-",2,"MUST"]
["Name","string­(64)","-","User-readable host controller name.","-",2,"SHOULD"]
["Type","string","-","Type of USB Host","-",2,"MUST"]
[]
[null,null,null,"Enumeration of:"]
[]
[null,null,null,"OHCI (Open Host Controller Interface)"]
[null,null,null,"EHCI (Enhanced Host Controller Interface)"]
[null,null,null,"UHCI (Universal Host Controller Interface)"]
[null,null,null,"xHCI (Extensible Host Controller Interface)"]
[]
["Reset","boolean","W","When set to true, reset the Host Controller and apply the reset signaling (see [Chapter 7.1.7.5/USB2.0]) to all of the Host Controller Hub downstream ports.","-",2,"SHOULD"]
[]
[null,null,null,"The value is not saved in the device's state and setting it to false has no effect."]
[]
[null,null,null,"When read, this parameter returns false, regardless of the actual value."]
["PowerManagementEnable","boolean","W","When set to true, PowerManagementEnable enables the Host Controller to invoke Power Management policy, i.e. controlled Suspend (see [USB2.0], Chapters 4.3.2, 7.1.7.6, and 11.9).","-",2,"SHOULD"]
[]
[null,null,null,"When set to false PowerManagementEnable immediately disables the Host controller Power Management policy."]
["USBVersion","string­(4)","-","USB specification version with which the controller complies. Example: \"1.1\"","-",2,"MUST"]
["DeviceNumberOfEntries","unsignedInt","-","The number of entries in the Device table.","-",2,"MUST"]
["Device.USB.USBHosts.Host.{i}.Device.{i}.","object","-","Table of connected USB devices.","-",2,"MUST"]
[]
[null,null,null,"At most one entry in this table can exist with a given value for DeviceNumber."]
["DeviceNumber","unsignedInt","-","Device number on USB bus.","-",2,"MUST"]
["USBVersion","string­(4)","-","USB specification version with which the device complies. Example: \"1.1\"","-",2,"MUST"]
["DeviceClass","hexBinary­(1)","-","Class Code as assigned by USB-IF.","-",2,"MUST"]
[]
[null,null,null,"When 0x00, each device specifies its own class code. When 0xFF, the class code is vendor specified."]
["DeviceSubClass","hexBinary­(1)","-","Subclass code (assigned by USB-IF).","-",2,"MUST"]
["DeviceVersion","unsignedInt­[:65535]","-","Device release number.","-",2,"MUST"]
["DeviceProtocol","hexBinary­(1)","-","Protocol code (assigned by USB-IF).","-",2,"MUST"]
["ProductID","unsignedInt­[:65535]","-","Product ID (assigned by manufacturer).","-",2,"MUST"]
["VendorID","unsignedInt­[:65535]","-","Vendor ID (assigned by USB-IF).","-",2,"MUST"]
["Manufacturer","string­(64)","-","Device Manufacturer string descriptor.","-",2,"MUST"]
["ProductClass","string­(64)","-","Device Product Class string descriptor.","-",2,"MUST"]
["SerialNumber","string­(64)","-","Device SerialNumber string descriptor.","-",2,"MUST"]
["Port","unsignedInt­[:255]","-","Hub port on parent device.","-",2,"MUST"]
[]
[null,null,null,"0 when no parent."]
["USBPort","string","-","The value MUST be the path name of a row in the USB.Port table. If the referenced object is deleted, the parameter value MUST be set to an empty string. This is a reference to the USB host device to which this (external) USB device is connected.","-",2,"MUST"]
["Rate","string","-","Speed of the USB device. Enumeration of:","-",2,"MUST"]
[]
[null,null,null,"Low (1.5 Mbits/sec (187.5 KB/sec) defined in [USB1.0])"]
[null,null,null,"Full (12 Mbits/sec (1.5 MB/sec) defined in [USB1.0])"]
[null,null,null,"High (480 Mbits/sec (60 MB/sec) defined in [USB2.0])"]
[null,null,null,"Super (5.0 Gbits/sec (625 MB/sec) defined in [USB3.0])"]
[]
[null,null,null,"Internal signaling between the connected USB device and the USB Host Controller provide the information needed to determine the negotiated rate."]
["Parent","string","-","The value MUST be the path name of a row in the Device table. If the referenced object is deleted, the parameter value MUST be set to an empty string. This is a reference to the parent USB device (e.g. hub device).","-",2,"MUST"]
[]
[null,null,null,"This is an empty string for a device connected to the Host controller (root hub)."]
["MaxChildren","unsignedInt","-","Number of ports. Only applies for hub device, equal to 0 for other devices.","-",2,"MUST"]
["IsSuspended","boolean","-","When true the associated Device is in a suspended (i.e. low-power) state (see [Chapter 11.9/USB2.0]).","-",2,"SHOULD"]
[]
[null,null,null,"When false the associated Device is in any of the other states specified by the USB 2.0 Device State Machine (see [Chapter 9.1.1/USB2.0])."]
["IsSelfPowered","boolean","-","When true the associated device is at least partly powered by a local source (see [Chapter 9.4.5/USB2.0]).","-",2,"SHOULD"]
[]
[null,null,null,"When false the associated device draws all the current it needs from the USB bus."]
["ConfigurationNumberOfEntries","unsignedInt","-","The number of entries in the Configuration table.","-",2,"SHOULD"]
["Device.USB.USBHosts.Host.{i}.Device.{i}.Configuration.{i}.","object","-","Table of device configurations.","-",2,"SHOULD"]
[]
[null,null,null,"At most one entry in this table can exist with a given value for ConfigurationNumber."]
["ConfigurationNumber","unsignedInt","-","The identifier for each Device Configuration.","-",2,"SHOULD"]
["InterfaceNumberOfEntries","unsignedInt","-","The number of entries in the Interface table.","-",2,"SHOULD"]
["Device.USB.USBHosts.Host.{i}.Device.{i}.Configuration.{i}.Interface.{i}.","object","-","Table of device interface descriptors.","-",2,"SHOULD"]
[]
[null,null,null,"At most one entry in this table can exist with a given value for InterfaceNumber."]
["InterfaceNumber","unsignedInt­[:255]","-","Number of this interface (from USB interface descriptor).","-",2,"SHOULD"]
["InterfaceClass","hexBinary­(1)","-","Class Code as assigned by USB-IF.","-",2,"SHOULD"]
[]
[null,null,null,"When 0x00, each interface specifies its own class code. When 0xFF, the class code is vendor specified."]
["InterfaceSubClass","hexBinary­(1)","-","Subclass code (assigned by USB-IF).","-",2,"SHOULD"]
["InterfaceProtocol","hexBinary­(1)","-","Protocol code (assigned by USB-IF).","-",2,"SHOULD"]
["Device.MoCA.","object","-","MoCA object that contains the Interface table [MoCAv1.0] [MoCAv1.1].","-",2,"MUST"]
["InterfaceNumberOfEntries","unsignedInt","-","The number of entries in the Interface table.","-",2,"MUST"]
["Device.MoCA.Interface.{i}.","object","-","MoCA interface table (a stackable interface object as described in [Section 4.2/TR-181i2]). Each table entry models the PHY and MAC levels of a MoCA interface [MoCAv1.0] [MoCAv1.1].","-",2,"MUST"]
[]
[null,null,null,"At most one entry in this table can exist with a given value for Alias, or with a given value for Name."]
["Enable","boolean","W","Enables or disables the interface.","-",2,"MUST"]
[]
[null,null,null,"This parameter is based on ifAdminStatus from [RFC2863]."]
["Status","string","-","The current operational state of the interface (see [Section 4.2.2/TR-181i2]). Enumeration of:","-",2,"MUST"]
[]
[null,null,null,"Up"]
[null,null,null,"Down"]
[null,null,null,"Unknown"]
[null,null,null,"Dormant"]
[null,null,null,"NotPresent"]
[null,null,null,"LowerLayerDown"]
[null,null,null,"Error (OPTIONAL)"]
[]
[null,null,null,"When Enable is false then Status SHOULD normally be Down (or NotPresent or Error if there is a fault condition on the interface)."]
[]
[null,null,null,"When Enable is changed to true then Status SHOULD change to Up if and only if the interface is able to transmit and receive network traffic; it SHOULD change to Dormant if and only if the interface is operable but is waiting for external actions before it can transmit and receive network traffic (and subsequently change to Up if still operable when the expected actions have completed); it SHOULD change to LowerLayerDown if and only if the interface is prevented from entering the Up state because one or more of the interfaces beneath it is down; it SHOULD remain in the Error state if there is an error or other fault condition detected on the interface; it SHOULD remain in the NotPresent state if the interface has missing (typically hardware) components; it SHOULD change to Unknown if the state of the interface can not be determined for some reason."]
[]
[null,null,null,"This parameter is based on ifOperStatus from [RFC2863]."]
["Alias","string­(64)","W","A non-volatile handle used to reference this instance. Alias provides a mechanism for an ACS to label this instance for future reference.","-",2,"N/A"]
[]
[null,null,null,"If the CPE supports the Alias-based Addressing feature as defined in [Section 3.6.1/TR-069a4] and described in [Appendix II/TR-069a4], the following mandatory constraints MUST be enforced:"]
[]
[null,null,null,"Its value MUST NOT be empty."]
[null,null,null,"Its value MUST start with a letter."]
[null,null,null,"If its instance object is created by the CPE, the initial value MUST start with a \"cpe-\" prefix."]
[null,null,null,"The CPE MUST NOT change the parameter value."]
[]
["Name","string­(64)","-","The textual name of the interface as assigned by the CPE.","-",2,"SHOULD"]
["LastChange","unsignedInt","-","The accumulated time in seconds since the interface entered its current operational state.","-",2,"MUST"]
["LowerLayers","string­(1024)","W","Comma-separated list (maximum length 1024) of strings. Each list item MUST be the path name of an interface object that is stacked immediately below this interface object. If the referenced object is deleted, the corresponding item MUST be removed from the list. See [Section 4.2.1/TR-181i2].","-",2,"MUST"]
[]
[null,null,null,"Note: Since Interface is a layer 1 interface, it is expected that LowerLayers will not be used."]
["Upstream","boolean","-","Indicates whether the interface points towards the Internet (true) or towards End Devices (false).","-",2,"MUST"]
[]
[null,null,null,"For example:"]
[]
[null,null,null,"For an Internet Gateway Device, Upstream will be true for all WAN interfaces and false for all LAN interfaces."]
[null,null,null,"For a standalone WiFi Access Point that is connected via Ethernet to an Internet Gateway Device, Upstream will be true for the Ethernet interface and false for the WiFi Radio interface."]
[null,null,null,"For an End Device, Upstream will be true for all interfaces."]
[]
["MACAddress","string­(17)","-","[MACAddress] The MAC Address of the interface.","-",2,"MUST"]
[]
[null,null,null,"Note: This is not necessarily the same as the Ethernet header source or destination MAC address, which is associated with the IP interface and is modeled via the Ethernet.Link.{i}.MACAddress parameter."]
["FirmwareVersion","string­(64)","-","This interface's firmware version.","-",2,"MAY"]
[]
[null,null,null,"This parameter is based on mocaIfSoftwareVersion from [MOCA11-MIB]."]
["MaxBitRate","unsignedInt","-","The maximum MoCA PHY bit rate (expressed in Mbps).","-",2,"SHOULD"]
["MaxIngressBW","unsignedInt","-","The maximum bandwidth of this interface for flows onto the MoCA network in Mbps.","-",2,"MUST"]
[]
[null,null,null,"This parameter is based on mocaIfMaxIngressNodeBw from [MOCA11-MIB]."]
["MaxEgressBW","unsignedInt","-","The maximum bandwidth of this interface for flows from the MoCA network in Mbps.","-",2,"MUST"]
[]
[null,null,null,"This parameter is based on mocaIfMaxEgressNodeBw from [MOCA11-MIB]."]
["HighestVersion","string­(64)","-","Identifies the highest MoCA version that this interface supports.","-",2,"SHOULD"]
[]
[null,null,null,"This element MUST be in the form of dot-delimited integers, where each successive integer represents a more minor category of variation. For example, 1.0, where the components mean major.minor revision number. Possible patterns:"]
[]
[null,null,null,"\\d+(\\.\\d+)*"]
[]
[null,null,null,"This parameter is based on mocaIfMocaVersion from [MOCA11-MIB]."]
["CurrentVersion","string­(64)","-","Identifies the MoCA version that the MoCA network is currently running.","-",2,"SHOULD"]
[]
[null,null,null,"This element MUST be in the form of dot-delimited integers, where each successive integer represents a more minor category of variation. For example, 1.0, where the components mean major.minor revision number. Possible patterns:"]
[]
[null,null,null,"\\d+(\\.\\d+)*"]
[]
[null,null,null,"This parameter is based on mocaIfNetworkVersion from [MOCA11-MIB]."]
["NetworkCoordinator","unsignedInt","-","The Node ID of the current Network Coordinator (NC) for the MoCA network.","-",2,"MUST"]
[]
[null,null,null,"This parameter is based on mocaIfNC from [MOCA11-MIB]."]
["NodeID","unsignedInt","-","The Node ID of this interface.","-",2,"MUST"]
[]
[null,null,null,"This parameter is based on mocaIfNodeID from [MOCA11-MIB]."]
["MaxNodes","boolean","-","The maximum network node capability supported by the interface. If MaxNodes is true then the interface supports 16 nodes (the maximum for a MoCA 1.1 network). If MaxNodes is false then the interface supports 8 nodes (the maximum for a MoCA 1.0 network).","-",2,"MAY"]
["PreferredNC","boolean","W","Whether this interface is a preferred Network Coordinator (NC).","-",2,"MUST"]
[]
[null,null,null,"This parameter is based on mocaIfPreferredNC from [MOCA11-MIB]."]
["BackupNC","unsignedInt","-","The Node ID of the backup Network Coordinator node.","-",2,"MUST"]
[]
[null,null,null,"This parameter is based on mocaIfBackupNC from [MOCA11-MIB]."]
["PrivacyEnabledSetting","boolean","W","The configured privacy mode. This indicates whether link-layer security is enabled (true) or disabled (false) for network admission.","-",2,"MUST"]
[]
[null,null,null,"The configured privacy setting MAY NOT match the current operational state (PrivacyEnabled), since this setting is only applied during network formation or admission."]
["PrivacyEnabled","boolean","-","Indicates whether link-layer security is enabled or disabled.","-",2,"MUST"]
[]
[null,null,null,"This parameter is based on mocaIfPrivacyEnable from [MOCA11-MIB]."]
["FreqCapabilityMask","hexBinary­(8:8)","-","Hexadecimal encoded 64-bit mask of supported frequencies. This is the bit map of the spectrum that the interface supports, and each bit represents 25 MHz of spectrum. The least significant bit of the rightmost character corresponds to 800MHz, which is the lowest frequency.","-",2,"MUST"]
[]
[null,null,null,"For example, an interface that supports 1150 MHz through 1500 MHz would have a value of 0x000000001FFFC000."]
[]
[null,null,null,"This parameter is based on mocaIfCapabilityMask from [MOCA11-MIB]."]
["FreqCurrentMaskSetting","hexBinary­(8:8)","W","The configured hexadecimal encoded 64-bit mask of enabled frequencies for network admission.","-",2,"MUST"]
[]
[null,null,null,"The configured frequencies MAY NOT match the current operational state (FreqCurrentMask), since this setting is only applied during network formation or admission."]
["FreqCurrentMask","hexBinary­(8:8)","-","Hexadecimal encoded 64-bit mask of used frequencies. This is the bit map of the spectrum that can be used and is a subset of the FreqCapabilityMask. Each bit represents 25 MHz of spectrum. The least significant bit of the rightmost character corresponds to 800MHz, which is the lowest frequency.","-",2,"MUST"]
[]
[null,null,null,"This parameter is based on mocaIfChannelMask from [MOCA11-MIB]."]
["CurrentOperFreq","unsignedInt","-","Current Operational Frequency. The RF frequency in Hz to which the MoCA interface is currently tuned. This parameter is only valid when Status is Up.","-",2,"MUST"]
[]
[null,null,null,"This parameter is based on mocaIfRFChannel from [MOCA11-MIB]."]
["LastOperFreq","unsignedInt","-","Last Operational Frequency. The RF frequency in Hz to which the MoCA interface was tuned when last in the Up state.","-",2,"MUST"]
[]
[null,null,null,"This parameter is based on mocaIfLOF from [MOCA11-MIB]."]
["KeyPassphrase","string­(12:17)","W","MoCA Password. The value consists of numeric characters (0-9). Possible patterns:","-",2,"MUST"]
[]
[null,null,null,"\\d+"]
[]
[null,null,null,"This parameter is based on mocaIfPassword from [MOCA11-MIB]."]
[]
[null,null,null,"When read, this parameter returns an empty string, regardless of the actual value."]
["TxPowerLimit","unsignedInt","W","Transmit Power attenuation in dB relative to the maximum transmit power.","-",2,"MUST"]
[]
[null,null,null,"The MoCA interface SHOULD have Enable set to false for any change in this configuration. If the parameter is modified when Enable is true then this change might take several minutes to complete."]
[]
[null,null,null,"This parameter is based on mocaIfTxPowerLimit from [MOCA11-MIB]."]
["PowerCntlPhyTarget","unsignedInt","W","Target PHY rate in Mbps for the power control algorithm.","-",2,"MAY"]
[]
[null,null,null,"The MoCA interface SHOULD have Enable set to false for any change in this configuration. If the parameter is modified when Enable is true then this change might take several minutes to complete."]
[]
[null,null,null,"This parameter is based on mocaIfPowerControlTargetRate from [MOCA11-MIB]."]
["BeaconPowerLimit","unsignedInt","W","Beacon Transmit Power attenuation in dB relative to the maximum transmit power.","-",2,"MUST"]
[]
[null,null,null,"The MoCA interface SHOULD have Enable set to false for any change in this configuration. If the parameter is modified when Enable is true then this change might take several minutes to complete."]
[]
[null,null,null,"This parameter is based on mocaIfBeaconPowerLimit from [MOCA11-MIB]."]
["NetworkTabooMask","hexBinary­(8:8)","-","Hexadecimal encoded 64-bit mask of MoCA taboo channels identified for the home network. This is the bit map of the spectrum that the interface supports, and each bit represents 25 MHz of spectrum. The least significant bit of the rightmost character corresponds to 800MHz, which is the lowest frequency.","-",2,"MAY"]
[]
[null,null,null,"This parameter is based on mocaIfTabooChannelMask from [MOCA11-MIB]."]
["NodeTabooMask","hexBinary­(8:8)","-","Hexadecimal encoded 64-bit mask of supported frequencies. This is the bit map of the spectrum that the interface supports, and each bit represents 25 MHz of spectrum. The least significant bit of the rightmost character corresponds to 800MHz, which is the lowest frequency.","-",2,"MAY"]
[]
[null,null,null,"This parameter is based on mocaIfNodeTabooChannelMask from [MOCA11-MIB]."]
["TxBcastRate","unsignedInt","-","The broadcast PHY transmit rate in Mbps for this interface.","-",2,"MAY"]
[]
[null,null,null,"This parameter is based on mocaIfTxGcdRate from [MOCA11-MIB]."]
["TxBcastPowerReduction","unsignedInt","-","Transmit Power attenuation in dB relative to the maximum transmit power for broadcast transmissions.","-",2,"MAY"]
[]
[null,null,null,"This parameter is based on mocaIfTxGcdPowerReduction from [MOCA11-MIB]."]
["QAM256Capable","boolean","-","Whether this interface supports the 256 QAM feature.","-",2,"MAY"]
[]
[null,null,null,"This parameter is based on mocaIfQAM256Capable from [MOCA11-MIB]."]
["PacketAggregationCapability","unsignedInt­[0:10]","-","The packet aggregation capability supported by the interface. Standard values are 0 (no support), 6 (6 packets) or 10 (10 packets).","-",2,"MAY"]
[]
[null,null,null,"This parameter is based on mocaIfPacketsAggrCapability from [MOCA11-MIB]."]
["AssociatedDeviceNumberOfEntries","unsignedInt","-","The number of entries in the AssociatedDevice table.","-",2,"SHOULD"]
["Device.MoCA.Interface.{i}.Stats.","object","-","Throughput statistics for this interface.","-",2,"MUST"]
[]
[null,null,null,"The CPE MUST reset the interface's Stats parameters (unless otherwise stated in individual object or parameter descriptions) either when the interface becomes operationally down due to a previous administrative down (i.e. the interface's Status parameter transitions to a down state after the interface is disabled) or when the interface becomes administratively up (i.e. the interface's Enable parameter transitions from false to true). Administrative and operational interface status is discussed in [Section 4.2.2/TR-181i2]."]
["BytesSent","unsignedLong","-","The total number of bytes transmitted out of the interface, including framing characters.","-",2,"MUST"]
["BytesReceived","unsignedLong","-","The total number of bytes received on the interface, including framing characters.","-",2,"MUST"]
["PacketsSent","unsignedLong","-","The total number of packets transmitted out of the interface.","-",2,"MUST"]
["PacketsReceived","unsignedLong","-","The total number of packets received on the interface.","-",2,"MUST"]
["ErrorsSent","unsignedInt","-","The total number of outbound packets that could not be transmitted because of errors.","-",2,"SHOULD"]
["ErrorsReceived","unsignedInt","-","The total number of inbound packets that contained errors preventing them from being delivered to a higher-layer protocol.","-",2,"SHOULD"]
["UnicastPacketsSent","unsignedLong","-","The total number of packets requested for transmission which were not addressed to a multicast or broadcast address at this layer, including those that were discarded or not sent.","-",2,"SHOULD"]
["UnicastPacketsReceived","unsignedLong","-","The total number of received packets, delivered by this layer to a higher layer, which were not addressed to a multicast or broadcast address at this layer.","-",2,"SHOULD"]
["DiscardPacketsSent","unsignedInt","-","The total number of outbound packets which were chosen to be discarded even though no errors had been detected to prevent their being transmitted. One possible reason for discarding such a packet could be to free up buffer space.","-",2,"SHOULD"]
["DiscardPacketsReceived","unsignedInt","-","The total number of inbound packets which were chosen to be discarded even though no errors had been detected to prevent their being delivered. One possible reason for discarding such a packet could be to free up buffer space.","-",2,"SHOULD"]
["MulticastPacketsSent","unsignedLong","-","The total number of packets that higher-level protocols requested for transmission and which were addressed to a multicast address at this layer, including those that were discarded or not sent.","-",2,"SHOULD"]
["MulticastPacketsReceived","unsignedLong","-","The total number of received packets, delivered by this layer to a higher layer, which were addressed to a multicast address at this layer.","-",2,"SHOULD"]
["BroadcastPacketsSent","unsignedLong","-","The total number of packets that higher-level protocols requested for transmission and which were addressed to a broadcast address at this layer, including those that were discarded or not sent.","-",2,"SHOULD"]
["BroadcastPacketsReceived","unsignedLong","-","The total number of received packets, delivered by this layer to a higher layer, which were addressed to a broadcast address at this layer.","-",2,"SHOULD"]
["UnknownProtoPacketsReceived","unsignedInt","-","The total number of packets received via the interface which were discarded because of an unknown or unsupported protocol.","-",2,"SHOULD"]
["Device.MoCA.Interface.{i}.AssociatedDevice.{i}.","object","-","This table contains information about other MoCA devices currently associated with this MoCA interface.","-",2,"SHOULD",null,"\nNOTE: If this object is supported, then following parameters MUST be implemented."]
[]
[null,null,null,"At most one entry in this table can exist with a given value for MACAddress."]
["MACAddress","string­(17)","-","[MACAddress] The MAC address of the associated device's MoCA interface.","-",2,"MUST"]
["NodeID","unsignedInt","-","The Node ID of this remote device.","-",2,"MUST"]
[]
[null,null,null,"This parameter is based on mocaNodeIndex from [MOCA11-MIB]."]
["PreferredNC","boolean","-","Whether this remote device is a preferred Network Coordinator (NC).","-",2,"MUST"]
[]
[null,null,null,"This parameter is based on mocaNodePreferredNC from [MOCA11-MIB]."]
["HighestVersion","string­(64)","-","Identifies the highest MoCA version that this remote device supports.","-",2,"MAY"]
[]
[null,null,null,"This element MUST be in the form of dot-delimited integers, where each successive integer represents a more minor category of variation. For example, 1.0, where the components mean major.minor revision number. Possible patterns:"]
[]
[null,null,null,"\\d+(\\.\\d+)*"]
[]
[null,null,null,"This parameter is based on mocaNodeMocaVersion from [MOCA11-MIB]."]
["PHYTxRate","unsignedInt","-","The PHY transmit rate (in Mbps) to this remote device.","-",2,"SHOULD"]
[]
[null,null,null,"This parameter is based on mocaMeshTxRate from [MOCA11-MIB]."]
["PHYRxRate","unsignedInt","-","The PHY receive rate (in Mbps) from this remote device.","-",2,"SHOULD"]
["TxPowerControlReduction","unsignedInt","-","The reduction in transmitter level (in dB) due to power control.","-",2,"MAY"]
[]
[null,null,null,"This parameter is based on mocaNodeTxPowerReduction from [MOCA11-MIB]."]
["RxPowerLevel","unsignedInt","-","The power level (in dBm) received at the MoCA interface from this remote device.","-",2,"SHOULD"]
[]
[null,null,null,"This parameter is based on mocaNodeRxPower from [MOCA11-MIB]."]
["TxBcastRate","unsignedInt","-","The broadcast PHY transmit rate (in Mbps) from this remote device.","-",2,"SHOULD"]
[]
[null,null,null,"This parameter is based on mocaNodeTxGcdRate from [MOCA11-MIB]."]
["RxBcastPowerLevel","unsignedInt","-","The power level (in dBm) received at the MoCA interface from this remote device.","-",2,"MAY"]
[]
[null,null,null,"This parameter is based on mocaNodeRxGcdPower from [MOCA11-MIB]."]
["TxPackets","unsignedInt","-","The number of packets transmitted to this remote device (Note: Includes Broadcast, Multicast and Unicast packets).","-",2,"MUST"]
["RxPackets","unsignedInt","-","The number of packets received from this remote device (Note: Includes Broadcast, Multicast and Unicast packets).","-",2,"MUST"]
[]
[null,null,null,"This parameter is based on mocaNodeRxPackets from [MOCA11-MIB]."]
["RxErroredAndMissedPackets","unsignedInt","-","The number of errored and missed packets received from this remote device.","-",2,"MUST"]
[]
[null,null,null,"This parameter is based on mocaNodeRxDrops from [MOCA11-MIB]."]
["QAM256Capable","boolean","-","Whether this remote device supports the 256 QAM feature.","-",2,"MAY"]
[]
[null,null,null,"This parameter is based on mocaNodeQAM256Capable from [MOCA11-MIB]."]
["PacketAggregationCapability","unsignedInt­[0:10]","-","The packet aggregation capability supported by the remote device. Standard values are 0 (no support), 6 (6 packets) or 10 (10 packets).","-",2,"MAY"]
[]
[null,null,null,"This parameter is based on mocaNodePacketsAggrCapability from [MOCA11-MIB]."]
["RxSNR","unsignedInt","-","The signal to noise level (in dBm) received at this interface from this remote device.","-",2,"MUST"]
[]
[null,null,null,"This parameter is based on mocaNodeSNR from [MOCA11-MIB]."]
["Active","boolean","-","Whether or not this remote device is currently present in the MoCA network.","-",2,"MUST"]
[]
[null,null,null,"The ability to list inactive nodes is OPTIONAL. If the CPE includes inactive nodes in this table, Active MUST be set to false for each inactive node. The length of time an inactive node remains listed in this table is a local matter to the CPE."]
["Device.MoCA.Interface.{i}.X_RDKCENTRAL-COM_MeshTable.","object","-","MoCA Mesh PHY Rate Table for this interface. This table is based on mocaMeshTable from [MOCA11-MIB].","-",1,"MUST",null,"Comcast extension for MoCA MeshTable from [MOCA11-MIB]."]
[]
[null,null,null,"This table contains the unicast transmit PHY rate between all pair of nodes in the MoCA Network. Since MeshPHYTxRate is the transmit PHY rate from MeshTxNodeId to MeshRxNodeId, this table does not contain any entries with MeshTxNodeId equals MeshRxNodeId. In addition, a MoCA network can have less than 16 nodes, hence some values of MeshTxNodeId and MeshRxNodeId in the range of 0 to 15 may not exist."]
[]
[null,null,null,"Entries in this table cannot be created or deleted by the network management system. All entries are created or deleted by the device software."]
["MeshTxNodeId","unsignedInt","-","The node ID of the transmit MoCA node.","-",1,"MUST"]
[]
[null,null,null,"This parameter is based on mocaMeshTxNodeIndex from [MOCA11-MIB]."]
["MeshRxNodeId","unsignedInt","-","The node ID of the receive MoCA node.","-",1,"MUST"]
[]
[null,null,null,"This parameter is based on mocaMeshRxNodeIndex from [MOCA11-MIB]."]
["MeshPHYTxRate","unsignedInt","-","The PHY transmit rate (in Mbps) from the MoCA node identified by MeshTxNodeId to the MoCA node identified by MeshRxNodeId.","-",1,"MUST"]
[]
[null,null,null,"This parameter is based on mocaMeshTxRate from [MOCA11-MIB]."]
["Device.WiFi.","object","-","The WiFi object is based on the WiFi Alliance 802.11 specifications ([802.11-2007]). It defines interface objects (Radio and SSID), and application objects (AccessPoint and EndPoint).","-",2,"IN_FUTURE"]
["RadioNumberOfEntries","unsignedInt","-","The number of entries in the Radio table.","-",2,"IN_FUTURE"]
["SSIDNumberOfEntries","unsignedInt","-","The number of entries in the SSID table.","-",2,"IN_FUTURE"]
["EndPointNumberOfEntries","unsignedInt","-","The number of entries in the EndPoint table.","-",2,"IN_FUTURE"]
["Device.WiFi.Radio.{i}.","object","-","This object models an 802.11 wireless radio on a device (a stackable interface object as described in [Section 4.2/TR-181i2]).","-",2,"IN_FUTURE"]
[]
[null,null,null,"If the device can establish more than one connection simultaneously (e.g. a dual radio device), a separate Radio instance MUST be used for each physical radio of the device. See [Appendix III.1/TR-181i2] for additional information."]
[]
[null,null,null,"Note: A dual-band single-radio device (e.g. an 802.11a/b/g radio) can be configured to operate at 2.4 or 5 GHz frequency bands, but only a single frequency band is used to transmit/receive at a given time. Therefore, a single Radio instance is used even for a dual-band radio."]
[]
[null,null,null,"At most one entry in this table can exist with a given value for Alias, or with a given value for Name."]
["Enable","boolean","W","Enables or disables the radio.","-",2]
[]
[null,null,null,"This parameter is based on ifAdminStatus from [RFC2863]."]
["Status","string","-","The current operational state of the radio (see [Section 4.2.2/TR-181i2]). Enumeration of:","-",2]
[]
[null,null,null,"Up"]
[null,null,null,"Down"]
[null,null,null,"Unknown"]
[null,null,null,"Dormant"]
[null,null,null,"NotPresent"]
[null,null,null,"LowerLayerDown"]
[null,null,null,"Error (OPTIONAL)"]
[]
[null,null,null,"When Enable is false then Status SHOULD normally be Down (or NotPresent or Error if there is a fault condition on the interface)."]
[]
[null,null,null,"When Enable is changed to true then Status SHOULD change to Up if and only if the interface is able to transmit and receive network traffic; it SHOULD change to Dormant if and only if the interface is operable but is waiting for external actions before it can transmit and receive network traffic (and subsequently change to Up if still operable when the expected actions have completed); it SHOULD change to LowerLayerDown if and only if the interface is prevented from entering the Up state because one or more of the interfaces beneath it is down; it SHOULD remain in the Error state if there is an error or other fault condition detected on the interface; it SHOULD remain in the NotPresent state if the interface has missing (typically hardware) components; it SHOULD change to Unknown if the state of the interface can not be determined for some reason."]
[]
[null,null,null,"This parameter is based on ifOperStatus from [RFC2863]."]
["Alias","string­(64)","W","A non-volatile handle used to reference this instance. Alias provides a mechanism for an ACS to label this instance for future reference.","-",2]
[]
[null,null,null,"If the CPE supports the Alias-based Addressing feature as defined in [Section 3.6.1/TR-069a4] and described in [Appendix II/TR-069a4], the following mandatory constraints MUST be enforced:"]
[]
[null,null,null,"Its value MUST NOT be empty."]
[null,null,null,"Its value MUST start with a letter."]
[null,null,null,"If its instance object is created by the CPE, the initial value MUST start with a \"cpe-\" prefix."]
[null,null,null,"The CPE MUST NOT change the parameter value."]
[]
["Name","string­(64)","-","The textual name of the radio as assigned by the CPE.","-",2]
["LastChange","unsignedInt","-","The accumulated time in seconds since the radio entered its current operational state.","-",2]
["LowerLayers","string­(1024)","W","Comma-separated list (maximum length 1024) of strings. Each list item MUST be the path name of an interface object that is stacked immediately below this interface object. If the referenced object is deleted, the corresponding item MUST be removed from the list. See [Section 4.2.1/TR-181i2].","-",2]
[]
[null,null,null,"Note: Since Radio is a layer 1 interface, it is expected that LowerLayers will not be used."]
["Upstream","boolean","-","Indicates whether the interface points towards the Internet (true) or towards End Devices (false).","-",2]
[]
[null,null,null,"For example:"]
[]
[null,null,null,"For an Internet Gateway Device, Upstream will be true for all WAN interfaces and false for all LAN interfaces."]
[null,null,null,"For a standalone WiFi Access Point that is connected via Ethernet to an Internet Gateway Device, Upstream will be true for the Ethernet interface and false for the WiFi Radio interface."]
[null,null,null,"For an End Device, Upstream will be true for all interfaces."]
[]
["MaxBitRate","unsignedInt","-","The maximum PHY bit rate supported by this interface (expressed in Mbps).","-",2]
["SupportedFrequencyBands","string","-","Comma-separated list of strings. List items indicate the frequency bands at which the radio can operate. Each list item is an enumeration of:","-",2]
[]
[null,null,null,"2.4GHz"]
[null,null,null,"5GHz"]
[]
["OperatingFrequencyBand","string","W","The value MUST be a member of the list reported by the SupportedFrequencyBands parameter. Indicates the frequency band at which the radio is operating.","-",2]
[]
[null,null,null,"If the radio supports multiple bands, and OperatingFrequencyBand is changed, then all parameters whose value is not valid for the new frequency band (e.g. Channel) MUST be set to a valid value (according to some CPE vendor-specific behavior)."]
["SupportedStandards","string","-","Comma-separated list of strings. List items indicate which IEEE 802.11 standards this Radio instance can support simultaneously, in the frequency band specified by OperatingFrequencyBand. Each list item is an enumeration of:","-",2]
[]
[null,null,null,"a ([802.11a-1999])"]
[null,null,null,"b ([802.11b-1999])"]
[null,null,null,"g ([802.11g-2003])"]
[null,null,null,"n ([802.11n-2009])"]
[]
[null,null,null,"Each value indicates support for the indicated standard."]
[]
[null,null,null,"If OperatingFrequencyBand is set to 2.4GHz, only values b, g, n are allowed."]
[]
[null,null,null,"If OperatingFrequencyBand is set to 5GHz, only values a, n are allowed."]
["OperatingStandards","string","W","Comma-separated list of strings. Each list item MUST be a member of the list reported by the SupportedStandards parameter. List items indicate which IEEE 802.11 standard this Radio instance is configured for.","-",2]
[]
[null,null,null,"Each value indicates support for the indicated standard."]
[]
[null,null,null,"If OperatingFrequencyBand is set to 2.4GHz, only values b, g, n are allowed."]
[]
[null,null,null,"If OperatingFrequencyBand is set to 5GHz, only values a, n are allowed."]
[]
[null,null,null,"For example, a value of \"g,b\" (or \"b,g\" - order is not important) means that the 802.11g standard [802.11g-2003] is used with a backwards-compatible mode for 802.11b [802.11b-1999]. A value of \"g\" means that only the 802.11g standard can be used."]
["PossibleChannels","string­(1024)","-","Comma-separated list (maximum length 1024) of strings. List items represent possible radio channels for the wireless standard (a, b, g, n) and the regulatory domain.","-",2]
[]
[null,null,null,"Ranges in the form \"n-m\" are permitted."]
[]
[null,null,null,"For example, for 802.11b and North America, would be \"1-11\"."]
["ChannelsInUse","string­(1024)","-","Comma-separated list (maximum length 1024) of strings. List items represent channels that the radio determines to be currently in use (including any that it is using itself).","-",2]
[]
[null,null,null,"Ranges in the form \"n-m\" are permitted."]
["Channel","unsignedInt­[1:255]","W","The current radio channel used by the connection. To request automatic channel selection, set AutoChannelEnable to true.","-",2]
[]
[null,null,null,"Whenever AutoChannelEnable is true, the value of the Channel parameter MUST be the channel selected by the automatic channel selection procedure."]
[]
[null,null,null,"Note: Valid Channel values depend on the OperatingFrequencyBand and RegulatoryDomain values specified."]
["AutoChannelSupported","boolean","-","Indicates whether automatic channel selection is supported by this radio. If false, then AutoChannelEnable MUST be false.","-",2]
["AutoChannelEnable","boolean","W","Enable or disable automatic channel selection.","-",2]
[]
[null,null,null,"Set to false to disable the automatic channel selection procedure, in which case the currently selected channel remains selected."]
[]
[null,null,null,"Set to true to enable the automatic channel selection procedure. This procedure MUST automatically select the channel, and MAY also change it subsequently."]
[]
[null,null,null,"AutoChannelEnable MUST automatically change to false whenever the channel is manually selected, i.e. whenever the Channel parameter is written."]
[]
[null,null,null,"Whenever AutoChannelEnable is true, the value of the Channel parameter MUST be the channel selected by the automatic channel selection procedure."]
["AutoChannelRefreshPeriod","unsignedInt","W","The time period in seconds between two consecutive automatic channel selections. A value of 0 means that the automatic channel selection is done only at boot time.","-",2]
[]
[null,null,null,"This parameter is significant only if AutoChannelEnable is set to true."]
["OperatingChannelBandwidth","string","W","The channel bandwidth (applicable to 802.11n specifications only). Enumeration of:","-",2]
[]
[null,null,null,"20MHz"]
[null,null,null,"40MHz (wide mode)"]
[null,null,null,"Auto"]
[]
["ExtensionChannel","string","W","The secondary extension channel position, applicable when operating in wide channel mode (i.e. when OperatingChannelBandwidth is set to 40MHz or Auto). Enumeration of:","-",2]
[]
[null,null,null,"AboveControlChannel"]
[null,null,null,"BelowControlChannel"]
[null,null,null,"Auto"]
[]
["GuardInterval","string","W","The guard interval value between OFDM symbols (applicable to 802.11n specifications only). Enumeration of:","-",2]
[]
[null,null,null,"400nsec"]
[null,null,null,"800nsec"]
[null,null,null,"Auto"]
[]
["MCS","int­[-1:15, 16:31]","W","The Modulation Coding Scheme index (applicable to 802.11n specifications only). Values from 0 to 15 MUST be supported ([802.11n-2009]). A value of -1 indicates automatic selection of the MCS index.","-",2]
["TransmitPowerSupported","string­(64)","-","Comma-separated list (maximum length 64) of integers (value -1 to 100). List items represent supported transmit power levels as percentage of full power. For example, \"0,25,50,75,100\".","-",2]
[]
[null,null,null,"A -1 item indicates auto mode (automatic decision by CPE). Auto mode allows the Radio to adjust transmit power accordingly. For example, this can be useful for power-save modes such as EU-CoC, where the Radio can adjust power according to activity in the CPE."]
["TransmitPower","int­[-1:100]","W","Indicates the current transmit power level as a percentage of full power. The value MUST be one of the values reported by the TransmitPowerSupported parameter. A value of -1 indicates auto mode (automatic decision by CPE).","-",2]
["IEEE80211hSupported","boolean","-","Indicates whether IEEE 802.11h [802.11h-2003] functionality is supported by this radio. The value can be true only if the 802.11a or the 802.11n@5GHz standard is supported (i.e. SupportedFrequencyBands includes 5GHz and SupportedStandards includes a and/or n).","-",2]
["IEEE80211hEnabled","boolean","W","Indicates whether IEEE 802.11h functionality is enabled on this radio. The value can be true only if the 802.11a or the 802.11n@5GHz standard is supported and enabled (i.e. OperatingFrequencyBand is 5GHz and OperatingStandards includes a and/or n).","-",2]
["RegulatoryDomain","string­(3:3)","W","The 802.11d Regulatory Domain. First two octets are [ISO3166-1] two-character country code. The third octet is either \" \" (all environments), \"O\" (outside) or \"I\" (inside). Possible patterns:","-",2]
[]
[null,null,null,"[A-Z][A-Z][ OI]"]
[]
["Device.WiFi.Radio.{i}.Stats.","object","-","Throughput statistics for this interface.","-",2,"IN_FUTURE"]
[]
[null,null,null,"The CPE MUST reset the interface's Stats parameters (unless otherwise stated in individual object or parameter descriptions) either when the interface becomes operationally down due to a previous administrative down (i.e. the interface's Status parameter transitions to a down state after the interface is disabled) or when the interface becomes administratively up (i.e. the interface's Enable parameter transitions from false to true). Administrative and operational interface status is discussed in [Section 4.2.2/TR-181i2]."]
["BytesSent","unsignedLong","-","The total number of bytes transmitted out of the interface, including framing characters.","-",2]
["BytesReceived","unsignedLong","-","The total number of bytes received on the interface, including framing characters.","-",2]
["PacketsSent","unsignedLong","-","The total number of packets transmitted out of the interface.","-",2]
["PacketsReceived","unsignedLong","-","The total number of packets received on the interface.","-",2]
["ErrorsSent","unsignedInt","-","The total number of outbound packets that could not be transmitted because of errors.","-",2]
["ErrorsReceived","unsignedInt","-","The total number of inbound packets that contained errors preventing them from being delivered to a higher-layer protocol.","-",2]
["DiscardPacketsSent","unsignedInt","-","The total number of outbound packets which were chosen to be discarded even though no errors had been detected to prevent their being transmitted. One possible reason for discarding such a packet could be to free up buffer space.","-",2]
["DiscardPacketsReceived","unsignedInt","-","The total number of inbound packets which were chosen to be discarded even though no errors had been detected to prevent their being delivered. One possible reason for discarding such a packet could be to free up buffer space.","-",2]
["PLCPErrorCount","unsignedInt","-","The number of packets that were received with a detected Physical Layer Convergence Protocol (PLCP) header error.","-",2.7]
["FCSErrorCount","unsignedInt","-","The number of packets that were received with a detected FCS error. This parameter is based on dot11FCSErrorCount from [Annex C/802.11-2012].","-",2.7]
["InvalidMACCount","unsignedInt","-","The number of packets that were received with a detected invalid MAC header error.","-",2.7]
["PacketsOtherReceived","unsignedInt","-","The number of packets that were received, but which were destined for a MAC address that is not associated with this interface.","-",2.7]
["Device.WiFi.SSID.{i}.","object","W","WiFi SSID table (a stackable interface object as described in [Section 4.2/TR-181i2]), where table entries model the MAC layer. A WiFi SSID entry is typically stacked on top of a Radio object.","-",2,"IN_FUTURE"]
[]
[null,null,null,"WiFi SSID is also a multiplexing layer, i.e. more than one SSID can be stacked above a single Radio."]
[]
[null,null,null,"At most one entry in this table (regardless of whether or not it is enabled) can exist with a given value for Alias, or with a given value for Name. On creation of a new table entry, the CPE MUST choose initial values for Alias and Name such that the new entry does not conflict with any existing entries."]
[]
[null,null,null,"At most one enabled entry in this table can exist with a given value for SSID, or with a given value for BSSID."]
["Enable","boolean","W","Enables or disables the SSID entry.",false,2]
[]
[null,null,null,"This parameter is based on ifAdminStatus from [RFC2863]."]
["Status","string","-","The current operational state of the SSID entry (see [Section 4.2.2/TR-181i2]). Enumeration of:","\"Down\"",2]
[]
[null,null,null,"Up"]
[null,null,null,"Down"]
[null,null,null,"Unknown"]
[null,null,null,"Dormant"]
[null,null,null,"NotPresent"]
[null,null,null,"LowerLayerDown"]
[null,null,null,"Error (OPTIONAL)"]
[]
[null,null,null,"When Enable is false then Status SHOULD normally be Down (or NotPresent or Error if there is a fault condition on the interface)."]
[]
[null,null,null,"When Enable is changed to true then Status SHOULD change to Up if and only if the interface is able to transmit and receive network traffic; it SHOULD change to Dormant if and only if the interface is operable but is waiting for external actions before it can transmit and receive network traffic (and subsequently change to Up if still operable when the expected actions have completed); it SHOULD change to LowerLayerDown if and only if the interface is prevented from entering the Up state because one or more of the interfaces beneath it is down; it SHOULD remain in the Error state if there is an error or other fault condition detected on the interface; it SHOULD remain in the NotPresent state if the interface has missing (typically hardware) components; it SHOULD change to Unknown if the state of the interface can not be determined for some reason."]
[]
[null,null,null,"This parameter is based on ifOperStatus from [RFC2863]."]
["Alias","string­(64)","W","A non-volatile handle used to reference this instance. Alias provides a mechanism for an ACS to label this instance for future reference.","-",2]
[]
[null,null,null,"If the CPE supports the Alias-based Addressing feature as defined in [Section 3.6.1/TR-069a4] and described in [Appendix II/TR-069a4], the following mandatory constraints MUST be enforced:"]
[]
[null,null,null,"Its value MUST NOT be empty."]
[null,null,null,"Its value MUST start with a letter."]
[null,null,null,"If its instance object is created by the CPE, the initial value MUST start with a \"cpe-\" prefix."]
[null,null,null,"The CPE MUST NOT change the parameter value."]
[]
["Name","string­(64)","-","The textual name of the SSID entry as assigned by the CPE.","-",2]
["LastChange","unsignedInt","-","The accumulated time in seconds since the SSID entered its current operational state.","-",2]
["LowerLayers","string­(1024)","W","Comma-separated list (maximum length 1024) of strings. Each list item MUST be the path name of an interface object that is stacked immediately below this interface object. If the referenced object is deleted, the corresponding item MUST be removed from the list. See [Section 4.2.1/TR-181i2].","<Empty>",2]
["BSSID","string­(17)","-","[MACAddress] The Basic Service Set ID.","-",2]
[]
[null,null,null,"This is the MAC address of the access point, which can either be local (when this instance models an access point SSID) or remote (when this instance models an end point SSID)."]
["MACAddress","string­(17)","-","[MACAddress] The MAC address of this interface.","-",2]
[]
[null,null,null,"If this instance models an access point SSID, MACAddress is the same as MACAddress."]
[]
[null,null,null,"Note: This is not necessarily the same as the Ethernet header source or destination MAC address, which is associated with the IP interface and is modeled via the Ethernet.Link.{i}.MACAddress parameter."]
["SSID","string­(32)","W","The current service set identifier in use by the connection. The SSID is an identifier that is attached to packets sent over the wireless LAN that functions as an ID for joining a particular radio network (BSS).","-",2]
["Device.WiFi.SSID.{i}.Stats.","object","-","Throughput statistics for this interface.","-",2,"IN_FUTURE"]
[]
[null,null,null,"The CPE MUST reset the interface's Stats parameters (unless otherwise stated in individual object or parameter descriptions) either when the interface becomes operationally down due to a previous administrative down (i.e. the interface's Status parameter transitions to a down state after the interface is disabled) or when the interface becomes administratively up (i.e. the interface's Enable parameter transitions from false to true). Administrative and operational interface status is discussed in [Section 4.2.2/TR-181i2]."]
["BytesSent","unsignedLong","-","The total number of bytes transmitted out of the interface, including framing characters.","-",2]
["BytesReceived","unsignedLong","-","The total number of bytes received on the interface, including framing characters.","-",2]
["PacketsSent","unsignedLong","-","The total number of packets transmitted out of the interface.","-",2]
["PacketsReceived","unsignedLong","-","The total number of packets received on the interface.","-",2]
["ErrorsSent","unsignedInt","-","The total number of outbound packets that could not be transmitted because of errors.","-",2]
["RetransCount","unsignedInt","-","The total number of transmitted packets which were retransmissions. Two retransmissions of the same packet results in this counter incrementing by two.","-",2.7]
["FailedRetransCount","unsignedInt","-","The number of packets that were not transmitted successfully due to the number of retransmission attempts exceeding an 802.11 retry limit. This parameter is based on dot11FailedCount from [802.11-2012].","-",2.7]
["RetryCount","unsignedInt","-","The number of packets that were successfully transmitted after one or more retransmissions. This parameter is based on dot11RetryCount from [802.11-2012].","-",2.7]
["MultipleRetryCount","unsignedInt","-","The number of packets that were successfully transmitted after more than one retransmission. This parameter is based on dot11MultipleRetryCount from [802.11-2012].","-",2.7]
["ACKFailureCount","unsignedInt","-","The number of expected ACKs that were never received. This parameter is based on dot11ACKFailureCount from [802.11-2012].","-",2.7]
["AggregatedPacketCount","unsignedInt","-","The number of aggregated packets that were transmitted. This applies only to 802.11n and 802.11ac.","-",2.7]
["ErrorsReceived","unsignedInt","-","The total number of inbound packets that contained errors preventing them from being delivered to a higher-layer protocol.","-",2]
["UnicastPacketsSent","unsignedLong","-","The total number of packets requested for transmission which were not addressed to a multicast or broadcast address at this layer, including those that were discarded or not sent.","-",2]
["UnicastPacketsReceived","unsignedLong","-","The total number of received packets, delivered by this layer to a higher layer, which were not addressed to a multicast or broadcast address at this layer.","-",2]
["DiscardPacketsSent","unsignedInt","-","The total number of outbound packets which were chosen to be discarded even though no errors had been detected to prevent their being transmitted. One possible reason for discarding such a packet could be to free up buffer space.","-",2]
["DiscardPacketsReceived","unsignedInt","-","The total number of inbound packets which were chosen to be discarded even though no errors had been detected to prevent their being delivered. One possible reason for discarding such a packet could be to free up buffer space.","-",2]
["MulticastPacketsSent","unsignedLong","-","The total number of packets that higher-level protocols requested for transmission and which were addressed to a multicast address at this layer, including those that were discarded or not sent.","-",2]
["MulticastPacketsReceived","unsignedLong","-","The total number of received packets, delivered by this layer to a higher layer, which were addressed to a multicast address at this layer.","-",2]
["BroadcastPacketsSent","unsignedLong","-","The total number of packets that higher-level protocols requested for transmission and which were addressed to a broadcast address at this layer, including those that were discarded or not sent.","-",2]
["BroadcastPacketsReceived","unsignedLong","-","The total number of received packets, delivered by this layer to a higher layer, which were addressed to a broadcast address at this layer.","-",2]
["UnknownProtoPacketsReceived","unsignedInt","-","The total number of packets received via the interface which were discarded because of an unknown or unsupported protocol.","-",2]
["Device.WiFi.EndPoint.{i}.","object","W","This object models an 802.11 connection from the perspective of a wireless end point. Each EndPoint entry is associated with a particular SSID interface instance via the SSIDReference parameter, and an associated active Profile instance via the ProfileReference parameter. The active profile is responsible for specifying the actual SSID and security settings used by the end point.","-",2,"IN_FUTURE"]
[]
[null,null,null,"For enabled table entries, if SSIDReference or ProfileReference is not a valid reference then the table entry is inoperable and the CPE MUST set Status to Error_Misconfigured."]
[]
[null,null,null,"Note: The EndPoint table includes a unique key parameter that is a strong reference. If a strongly referenced object is deleted, the CPE will set the referencing parameter to an empty string. However, doing so under these circumstances might cause the updated EndPoint row to then violate the table's unique key constraint; if this occurs, the CPE MUST set Status to Error_Misconfigured and disable the offending EndPoint row."]
[]
[null,null,null,"At most one entry in this table (regardless of whether or not it is enabled) can exist with a given value for Alias. On creation of a new table entry, the CPE MUST choose an initial value for Alias such that the new entry does not conflict with any existing entries."]
[]
[null,null,null,"At most one enabled entry in this table can exist with a given value for SSIDReference."]
["Enable","boolean","W","Enables or disables this end point.",false,2]
["Status","string","-","Indicates the status of this end point. Enumeration of:","\"Disabled\"",2]
[]
[null,null,null,"Disabled"]
[null,null,null,"Enabled"]
[null,null,null,"Error_Misconfigured"]
[null,null,null,"Error (OPTIONAL)"]
[]
[null,null,null,"The Error_Misconfigured value indicates that a necessary configuration value is undefined or invalid."]
[]
[null,null,null,"The Error value MAY be used by the CPE to indicate a locally defined error condition."]
["Alias","string­(64)","W","A non-volatile handle used to reference this instance. Alias provides a mechanism for an ACS to label this instance for future reference.","-",2]
[]
[null,null,null,"If the CPE supports the Alias-based Addressing feature as defined in [Section 3.6.1/TR-069a4] and described in [Appendix II/TR-069a4], the following mandatory constraints MUST be enforced:"]
[]
[null,null,null,"Its value MUST NOT be empty."]
[null,null,null,"Its value MUST start with a letter."]
[null,null,null,"If its instance object is created by the CPE, the initial value MUST start with a \"cpe-\" prefix."]
[null,null,null,"The CPE MUST NOT change the parameter value."]
[]
["ProfileReference","string­(256)","W","The value MUST be the path name of a row in the Profile table. If the referenced object is deleted, the parameter value MUST be set to an empty string. This is the currently active profile, which specifies the SSID and security settings to be used by the end point.","<Empty>",2]
["SSIDReference","string­(256)","-","The value MUST be the path name of a row in the SSID table. If the referenced object is deleted, the parameter value MUST be set to an empty string. SSIDReference is determined based on the Profile.{i}.SSID within the associated ProfileReference) endpoint profile. SSIDReference MUST be an empty string if ProfileReference is an empty string (i.e. only when an active profile is assigned can the associated SSID interface be determined).","<Empty>",2]
["ProfileNumberOfEntries","unsignedInt","-","The number of entries in the Profile table.","-",2]
["Device.WiFi.EndPoint.{i}.Stats.","object","-","Throughput statistics for this end point.","-",2,"IN_FUTURE"]
["LastDataDownlinkRate","unsignedInt­[1000:600000]","-","The data transmit rate in kbps that was most recently used for transmission from the access point to the end point device.","-",2]
["LastDataUplinkRate","unsignedInt­[1000:600000]","-","The data transmit rate in kbps that was most recently used for transmission from the end point to the access point device.","-",2]
["SignalStrength","int­[-200:0]","-","An indicator of radio signal strength of the downlink from the access point to the end point, measured in dBm, as an average of the last 100 packets received from the device.","-",2]
["Retransmissions","unsignedInt­[0:100]","-","The number of packets that had to be re-transmitted, from the last 100 packets sent to the access point. Multiple re-transmissions of the same packet count as one.",0,2]
["Device.WiFi.EndPoint.{i}.Security.","object","-","This object contains security related parameters that apply to a WiFi end point [802.11-2007].","-",2,"IN_FUTURE"]
["ModesSupported","string","-","Comma-separated list of strings. Indicates which security modes this EndPoint instance is capable of supporting. Each list item is an enumeration of:","-",2]
[]
[null,null,null,"None"]
[null,null,null,"WEP-64"]
[null,null,null,"WEP-128"]
[null,null,null,"WPA-Personal"]
[null,null,null,"WPA2-Personal"]
[null,null,null,"WPA-WPA2-Personal"]
[null,null,null,"WPA-Enterprise"]
[null,null,null,"WPA2-Enterprise"]
[null,null,null,"WPA-WPA2-Enterprise"]
[]
["Device.WiFi.EndPoint.{i}.Profile.{i}.","object","W","EndPoint Profile table.","-",2,"IN_FUTURE"]
[]
[null,null,null,"At most one entry in this table (regardless of whether or not it is enabled) can exist with a given value for Alias. On creation of a new table entry, the CPE MUST choose an initial value for Alias such that the new entry does not conflict with any existing entries."]
[]
[null,null,null,"At most one enabled entry in this table can exist with all the same values for SSID, Location and Priority."]
["Enable","boolean","W","Enables or disables this Profile.",false,2]
[]
[null,null,null,"When there are multiple WiFi EndPoint Profiles, e.g. each instance supports a different SSID and/or different security configuration, this parameter can be used to control which of the instances are currently enabled."]
["Status","string","-","Indicates the status of this Profile. Enumeration of:","\"Disabled\"",2]
[]
[null,null,null,"Active"]
[null,null,null,"Available"]
[null,null,null,"Error (OPTIONAL)"]
[null,null,null,"Disabled"]
[]
[null,null,null,"The Active value is reserved for the instance that is actively connected. The Available value represents an instance that is not currently active, but is also not disabled or in error. The Error value MAY be used by the CPE to indicate a locally defined error condition."]
["Alias","string­(64)","W","A non-volatile handle used to reference this instance. Alias provides a mechanism for an ACS to label this instance for future reference.","-",2]
[]
[null,null,null,"If the CPE supports the Alias-based Addressing feature as defined in [Section 3.6.1/TR-069a4] and described in [Appendix II/TR-069a4], the following mandatory constraints MUST be enforced:"]
[]
[null,null,null,"Its value MUST NOT be empty."]
[null,null,null,"Its value MUST start with a letter."]
[null,null,null,"If its instance object is created by the CPE, the initial value MUST start with a \"cpe-\" prefix."]
[null,null,null,"The CPE MUST NOT change the parameter value."]
[]
["SSID","string­(32)","W","The profile identifier in use by the connection. The SSID is an identifier that is attached to packets sent over the wireless LAN that functions as an ID for joining a particular radio network (BSS).","-",2]
["Location","string","W","Location of the profile. This value serves as a reminder from the user, describing the location of the profile. For example: \"Home\", \"Office\", \"Neighbor House\", \"Airport\", etc. An empty string is also valid.","-",2]
["Priority","unsignedInt­[:255]","W","The profile Priority defines one of the criteria used by the End Point to automatically select the \"best\" AP when several APs with known profiles are simultaneously available for association.",0,2]
[]
[null,null,null,"In this situation, the End Point has to select the AP with the higher priority in its profile. If there are several APs with the same priority, providing different SSID or the same SSID, then the wireless end point has to select the APs according to other criteria like signal quality, SNR, etc."]
[]
[null,null,null,"0 is the highest priority."]
["Device.WiFi.EndPoint.{i}.Profile.{i}.Security.","object","-","This object contains security related parameters that apply to a WiFi End Point profile [802.11-2007].","-",2,"IN_FUTURE"]
["ModeEnabled","string","W","The value MUST be a member of the list reported by the Security.ModesSupported parameter. Indicates which security mode is enabled.","-",2]
["WEPKey","hexBinary­(5:5, 13:13)","W","A WEP key expressed as a hexadecimal string.","-",2]
[]
[null,null,null,"WEPKey is used only if ModeEnabled is set to WEP-64 or WEP-128."]
[]
[null,null,null,"A 5 byte WEPKey corresponds to security mode WEP-64 and a 13 byte WEPKey corresponds to security mode WEP-128."]
[]
[null,null,null,"When read, this parameter returns an empty string, regardless of the actual value."]
["PreSharedKey","hexBinary­(32)","W","A literal PreSharedKey (PSK) expressed as a hexadecimal string.","-",2]
[]
[null,null,null,"PreSharedKey is only used if ModeEnabled is set to WPA-Personal or WPA2-Personal or WPA-WPA2-Personal."]
[]
[null,null,null,"If KeyPassphrase is written, then PreSharedKey is immediately generated. The ACS SHOULD NOT set both the KeyPassphrase and the PreSharedKey directly (the result of doing this is undefined)."]
[]
[null,null,null,"When read, this parameter returns an empty string, regardless of the actual value."]
["KeyPassphrase","string­(63)","W","A passphrase from which the PreSharedKey is to be generated, for WPA-Personal or WPA2-Personal or WPA-WPA2-Personal security modes.","-",2]
[]
[null,null,null,"If KeyPassphrase is written, then PreSharedKey is immediately generated. The ACS SHOULD NOT set both the KeyPassphrase and the PreSharedKey directly (the result of doing this is undefined). The key is generated as specified by WPA, which uses PBKDF2 from PKCS #5: Password-based Cryptography Specification Version 2.0 [RFC2898]."]
[]
[null,null,null,"When read, this parameter returns an empty string, regardless of the actual value."]
["Device.WiFi.EndPoint.{i}.WPS.","object","-","This object contains parameters related to Wi-Fi Protected Setup [WPSv1.0] for this end point.","-",2,"IN_FUTURE"]
["Enable","boolean","W","Enables or disables WPS functionality for this end point.",true,2]
["ConfigMethodsSupported","string","-","Comma-separated list of strings. Indicates the WPS configuration methods supported by the device. Each list item is an enumeration of:","-",2]
[]
[null,null,null,"USBFlashDrive"]
[null,null,null,"Ethernet"]
[null,null,null,"ExternalNFCToken"]
[null,null,null,"IntegratedNFCToken"]
[null,null,null,"NFCInterface"]
[null,null,null,"PushButton"]
[null,null,null,"PIN"]
[]
[null,null,null,"This parameter corresponds directly to the \"Config Methods\" attribute of the WPS specification [WPSv1.0]."]
["ConfigMethodsEnabled","string","W","Comma-separated list of strings. Each list item MUST be a member of the list reported by the ConfigMethodsSupported parameter. Indicates the WPS configuration methods enabled on the device.","-",2]
["Device.IP.","object","-","IP object that contains the Interface, ActivePort, and Diagnostics objects.","-",2,"MUST"]
["IPv4Capable","boolean","-","Indicates whether the device is IPv4 capable.","-",2,"MUST"]
["IPv4Enable","boolean","W","Enables or disables the IPv4 stack, and so the use of IPv4 on the device. This affects only layer 3 and above.","-",2.2000000000000002,"MUST"]
[]
[null,null,null,"When false, IP interfaces that had been operationally up and passing IPv4 packets will now no longer be able to do so, and will be operationally down (unless also attached to an enabled IPv6 stack)."]
["IPv4Status","string","-","Indicates the status of the IPv4 stack. Enumeration of:","-",2.2000000000000002,"MUST"]
[]
[null,null,null,"Disabled"]
[null,null,null,"Enabled"]
[null,null,null,"Error (OPTIONAL)"]
[]
[null,null,null,"The Error value MAY be used by the CPE to indicate a locally defined error condition."]
["IPv6Capable","boolean","-","Indicates whether the device is IPv6 capable.","-",2.2000000000000002,"IN_FUTURE"]
[]
[null,null,null,"Note: If false, it is expected that IPv6-related parameters, enumeration values, etc will not be implemented by the device."]
["IPv6Enable","boolean","W","Enables or disables the IPv6 stack, and so the use of IPv6 on the device. This affects only layer 3 and above.","-",2.2000000000000002,"IN_FUTURE"]
[]
[null,null,null,"When false, IP interfaces that had been operationally up and passing IPv6 packets will now no longer be able to do so, and will be operationally down (unless also attached to an enabled IPv4 stack)."]
["IPv6Status","string","-","Indicates the status of the IPv6 stack. Enumeration of:","-",2.2000000000000002,"IN_FUTURE"]
[]
[null,null,null,"Disabled"]
[null,null,null,"Enabled"]
[null,null,null,"Error (OPTIONAL)"]
[]
[null,null,null,"The Error value MAY be used by the CPE to indicate a locally defined error condition."]
["ULAPrefix","string","W","[IPv6Prefix] The ULA /48 prefix [Section 3/RFC4193].","-",2.2000000000000002,"IN_FUTURE"]
["InterfaceNumberOfEntries","unsignedInt","-","The number of entries in the Interface table.","-",2,"MUST"]
["ActivePortNumberOfEntries","unsignedInt","-","The number of entries in the ActivePort table.","-",2,"MUST"]
["Device.IP.Interface.{i}.","object","W","IP interface table (a stackable interface object as described in [Section 4.2/TR-181i2]). This table models the layer 3 IP interface.","-",2,"MUST"]
[]
[null,null,null,"Each IP interface can be attached to the IPv4 and/or IPv6 stack. The interface's IP addresses and prefixes are listed in the IPv4Address, IPv6Address and IPv6Prefix tables."]
[]
[null,null,null,"Note that support for manipulating Loopback interfaces is OPTIONAL, so the implementation MAY choose not to create (or allow the ACS to create) Interface instances of type Loopback."]
[]
[null,null,null,"When the ACS administratively disables the interface, i.e. sets Enable to false, the interface's automatically-assigned IP addresses and prefixes MAY be retained. When the ACS administratively enables the interface, i.e. sets Enable to true, these IP addresses and prefixes MUST be refreshed. It's up to the implementation to decide exactly what this means: it SHOULD take all reasonable steps to refresh everything but if it is unable, for example, to refresh a prefix that still has a significant lifetime, it might well choose to retain rather than discard it."]
[]
[null,null,null,"At most one entry in this table (regardless of whether or not it is enabled) can exist with a given value for Alias, or with a given value for Name. On creation of a new table entry, the CPE MUST choose initial values for Alias and Name such that the new entry does not conflict with any existing entries."]
["Enable","boolean","W","Enables or disables the interface (regardless of IPv4Enable and IPv6Enable).",false,2,"MUST"]
[]
[null,null,null,"This parameter is based on ifAdminStatus from [RFC2863]."]
["IPv4Enable","boolean","W","If set to true, attaches this interface to the IPv4 stack. If set to false, detaches this interface from the IPv4 stack.","-",2.2000000000000002,"MUST"]
[]
[null,null,null,"Once detached from the IPv4 stack, the interface will now no longer be able to pass IPv4 packets, and will be operationally down (unless also attached to an enabled IPv6 stack)."]
[]
[null,null,null,"For an IPv4 capable device, if IPv4Enable is not present this interface SHOULD be permanently attached to the IPv4 stack."]
[]
[null,null,null,"Note that IPv4Enable is independent of Enable, and that to administratively enable an interface for IPv4 it is necessary for both Enable and IPv4Enable to be true."]
["IPv6Enable","boolean","W","If set to true, attaches this interface to the IPv6 stack. If set to false, detaches this interface from the IPv6 stack.","-",2.2000000000000002,"IN_FUTURE"]
[]
[null,null,null,"Once detached from the IPv6 stack, the interface will now no longer be able to pass IPv6 packets, and will be operationally down (unless also attached to an enabled IPv4 stack)."]
[]
[null,null,null,"For an IPv6 capable device, if IPv6Enable is not present this interface SHOULD be permanently attached to the IPv6 stack."]
[]
[null,null,null,"Note that IPv6Enable is independent of Enable, and that to administratively enable an interface for IPv6 it is necessary for both Enable and IPv6Enable to be true."]
["ULAEnable","boolean","W","Controls whether or not ULAs [RFC4193] are generated and used on this interface.",false,2.2000000000000002,"IN_FUTURE"]
["Status","string","-","The current operational state of the interface (see [Section 4.2.2/TR-181i2]). Enumeration of:","\"Down\"",2,"MUST"]
[]
[null,null,null,"Up"]
[null,null,null,"Down"]
[null,null,null,"Unknown"]
[null,null,null,"Dormant"]
[null,null,null,"NotPresent"]
[null,null,null,"LowerLayerDown"]
[null,null,null,"Error (OPTIONAL)"]
[]
[null,null,null,"When Enable is false then Status SHOULD normally be Down (or NotPresent or Error if there is a fault condition on the interface)."]
[]
[null,null,null,"When Enable is changed to true then Status SHOULD change to Up if and only if the interface is able to transmit and receive network traffic; it SHOULD change to Dormant if and only if the interface is operable but is waiting for external actions before it can transmit and receive network traffic (and subsequently change to Up if still operable when the expected actions have completed); it SHOULD change to LowerLayerDown if and only if the interface is prevented from entering the Up state because one or more of the interfaces beneath it is down; it SHOULD remain in the Error state if there is an error or other fault condition detected on the interface; it SHOULD remain in the NotPresent state if the interface has missing (typically hardware) components; it SHOULD change to Unknown if the state of the interface can not be determined for some reason."]
[]
[null,null,null,"This parameter is based on ifOperStatus from [RFC2863]."]
["Alias","string­(64)","W","A non-volatile handle used to reference this instance. Alias provides a mechanism for an ACS to label this instance for future reference.","-",2,"N/A"]
[]
[null,null,null,"If the CPE supports the Alias-based Addressing feature as defined in [Section 3.6.1/TR-069a4] and described in [Appendix II/TR-069a4], the following mandatory constraints MUST be enforced:"]
[]
[null,null,null,"Its value MUST NOT be empty."]
[null,null,null,"Its value MUST start with a letter."]
[null,null,null,"If its instance object is created by the CPE, the initial value MUST start with a \"cpe-\" prefix."]
[null,null,null,"The CPE MUST NOT change the parameter value."]
[]
["Name","string­(64)","-","The textual name of the interface as assigned by the CPE.","-",2,"SHOULD"]
["LastChange","unsignedInt","-","The accumulated time in seconds since the interface entered its current operational state.","-",2,"MUST"]
["LowerLayers","string­(1024)","W","Comma-separated list (maximum length 1024) of strings. Each list item MUST be the path name of an interface object that is stacked immediately below this interface object. If the referenced object is deleted, the corresponding item MUST be removed from the list. See [Section 4.2.1/TR-181i2].","<Empty>",2,"MUST"]
[]
[null,null,null,"LowerLayers MUST be an empty string and read-only when Type is Loopback, Tunnel, or Tunneled."]
["Router","string­(256)","W","The value MUST be the path name of a row in the Routing.Router table. If the referenced object is deleted, the parameter value MUST be set to an empty string. The Router instance that is associated with this IP Interface entry.","<Empty>",2,"N/A"]
["Reset","boolean","W","When set to true, the device MUST tear down the existing IP connection represented by this object and establish a new one.",false,2,"MUST"]
[]
[null,null,null,"The device MUST initiate the reset after completion of the current CWMP session. The device MAY delay resetting the connection in order to avoid interruption of a user service such as an ongoing voice call."]
[]
[null,null,null,"Reset on a disabled interface is a no-op (not an error)."]
[]
[null,null,null,"The value of this parameter is not part of the device configuration and is always false when read."]
["MaxMTUSize","unsignedInt­[64:65535]","W","The maximum transmission unit (MTU); the largest allowed size of an IP packet (including IP headers, but excluding lower layer headers such as Ethernet, PPP, or PPPoE headers) that is allowed to be transmitted by or through this device.","-",2,"MUST"]
["Type","string","-","IP interface type. Enumeration of:","\"Normal\"",2,"MUST"]
[]
[null,null,null,"Normal"]
[null,null,null,"Loopback"]
[null,null,null,"Tunnel"]
[null,null,null,"Tunneled"]
[]
[null,null,null,"For Loopback, Tunnel, and Tunneled IP interface objects, the LowerLayers parameter MUST be an empty string."]
["Loopback","boolean","W","When set to true, the IP interface becomes a loopback interface and the CPE MUST set Type to Loopback. In this case, the CPE MUST also set LowerLayers to an empty string and fail subsequent attempts at setting LowerLayers until the interface is no longer a loopback.",false,2,"MAY"]
[]
[null,null,null,"Support for manipulating loopback interfaces is OPTIONAL."]
["IPv4AddressNumberOfEntries","unsignedInt","-","The number of entries in the IPv4Address table.","-",2,"MUST"]
["IPv6AddressNumberOfEntries","unsignedInt","-","The number of entries in the IPv6Address table.","-",2.2000000000000002,"IN_FUTURE"]
["IPv6PrefixNumberOfEntries","unsignedInt","-","The number of entries in the IPv6Prefix table.","-",2.2000000000000002,"IN_FUTURE"]
["AutoIPEnable","boolean","W","If true, enables auto-IP on the interface [RFC3927]. This mechanism is only used with IPv4.",false,2,"SHOULD"]
[]
[null,null,null,"When auto-IP is enabled on an interface, an IPv4Address object will dynamically be created and configured with auto-IP parameter values. The exact conditions under which an auto-IP address is created (e.g. always when enabled or only in absence of dynamic IP addressing) is implementation specific."]
["Device.IP.Interface.{i}.IPv4Address.{i}.","object","W","IPv4 address table. Entries are auto-created and auto-deleted as IP addresses are added and deleted via DHCP, auto-IP, or IPCP. Static entries are created and configured by the ACS.","-",2,"MUST"]
[]
[null,null,null,"At most one entry in this table (regardless of whether or not it is enabled) can exist with a given value for Alias. On creation of a new table entry, the CPE MUST choose an initial value for Alias such that the new entry does not conflict with any existing entries."]
[]
[null,null,null,"At most one enabled entry in this table can exist with the same values for IPAddress and SubnetMask."]
["Enable","boolean","W","Enables or disables this IPv4 address.",false,2,"MUST"]
["Status","string","-","The status of this IPv4Address table entry. Enumeration of:","\"Disabled\"",2.2000000000000002,"MUST"]
[]
[null,null,null,"Disabled"]
[null,null,null,"Enabled"]
[null,null,null,"Error_Misconfigured"]
[null,null,null,"Error (OPTIONAL)"]
[]
[null,null,null,"The Error_Misconfigured value indicates that a necessary configuration value is undefined or invalid."]
[]
[null,null,null,"The Error value MAY be used by the CPE to indicate a locally defined error condition."]
["Alias","string­(64)","W","A non-volatile handle used to reference this instance. Alias provides a mechanism for an ACS to label this instance for future reference.","-",2,"N/A"]
[]
[null,null,null,"If the CPE supports the Alias-based Addressing feature as defined in [Section 3.6.1/TR-069a4] and described in [Appendix II/TR-069a4], the following mandatory constraints MUST be enforced:"]
[]
[null,null,null,"Its value MUST NOT be empty."]
[null,null,null,"Its value MUST start with a letter."]
[null,null,null,"If its instance object is created by the CPE, the initial value MUST start with a \"cpe-\" prefix."]
[null,null,null,"The CPE MUST NOT change the parameter value."]
[]
[null,null,null,"This parameter can only be modified if AddressingType is Static."]
["IPAddress","string­(15)","W","[IPv4Address] IPv4 address.","-",2,"MUST"]
[]
[null,null,null,"This parameter can only be modified if the AddressingType is Static."]
["SubnetMask","string­(15)","W","[IPv4Address] Subnet mask.","<Empty>",2,"MUST"]
[]
[null,null,null,"This parameter can only be modified if the AddressingType is Static."]
["AddressingType","string","-","Addressing method used to assign the IP address. Enumeration of:","\"Static\"",2,"MUST"]
[]
[null,null,null,"DHCP"]
[null,null,null,"AutoIP"]
[null,null,null,"IPCP"]
[null,null,null,"Static"]
[]
["Device.IP.Interface.{i}.IPv6Address.{i}.","object","W","This table contains the IP interface's IPv6 unicast addresses. There MUST be an entry for each such address, including anycast addresses.","-",2.2000000000000002,"IN_FUTURE"]
[]
[null,null,null,"There are several ways in which entries can be added to and deleted from this table, including:"]
[]
[null,null,null,"Automatically via SLAAC [RFC4862], which covers generation of link-local addresses (for all types of device) and global addresses (for non-router devices)."]
[null,null,null,"Automatically via DHCPv6 [RFC3315], which covers generation of any type of address (subject to the configured DHCP server policy)."]
[null,null,null,"Manually via a GUI or some other local management interface."]
[null,null,null,"Manually via factory default configuration."]
[null,null,null,"By the ACS."]
[]
[null,null,null,"This table MUST NOT include entries for the Subnet-Router anycast address [Section 2.6.1/RFC4291]. Such entries would be identical to others but with a zero interface identifier, and would add no value."]
[]
[null,null,null,"A loopback interface will always have address ::1 [Section 2.5.3/RFC4291] and MAY also have link-local address fe80::1."]
[]
[null,null,null,"This object is based on ipAddressTable from [RFC4293]."]
[]
[null,null,null,"At most one entry in this table (regardless of whether or not it is enabled) can exist with a given value for Alias. On creation of a new table entry, the CPE MUST choose an initial value for Alias such that the new entry does not conflict with any existing entries."]
[]
[null,null,null,"At most one enabled entry in this table can exist with a given value for IPAddress."]
["Enable","boolean","W","Enables or disables this IPv6Address entry.",false,2.2000000000000002,"IN_FUTURE"]
["Status","string","-","The status of this IPv6Address table entry. Enumeration of:","\"Disabled\"",2.2000000000000002,"IN_FUTURE"]
[]
[null,null,null,"Disabled"]
[null,null,null,"Enabled"]
[null,null,null,"Error_Misconfigured"]
[null,null,null,"Error (OPTIONAL)"]
[]
[null,null,null,"The Error_Misconfigured value indicates that a necessary configuration value is undefined or invalid."]
[]
[null,null,null,"The Error value MAY be used by the CPE to indicate a locally defined error condition."]
["IPAddressStatus","string","-","The status of IPAddress, indicating whether it can be used for communication. See also PreferredLifetime and ValidLifetime. Enumeration of:","\"Invalid\"",2.2000000000000002,"IN_FUTURE"]
[]
[null,null,null,"Preferred (Valid address that can appear as the destination or source address of a packet)"]
[null,null,null,"Deprecated (Valid but deprecated address that is not intended to be used as a source address)"]
[null,null,null,"Invalid (Invalid address that is not intended to appear as the destination or source address of a packet)"]
[null,null,null,"Inaccessible (Valid address that is not accessible because the interface to which it is assigned is not operational)"]
[null,null,null,"Unknown (Address status cannot be determined for some reason)"]
[null,null,null,"Tentative (The uniqueness of the address on the link is being verified)"]
[null,null,null,"Duplicate (Invalid address that has been determined to be non-unique on the link)"]
[null,null,null,"Optimistic (Valid address that is available for use, subject to restrictions, while its uniqueness on a link is being verified)"]
[]
[null,null,null,"This parameter is based on ipAddressStatus and ipAddressStatusTC from [RFC4293]."]
["Alias","string­(64)","W","A non-volatile handle used to reference this instance. Alias provides a mechanism for an ACS to label this instance for future reference.","-",2.2000000000000002,"N/A"]
[]
[null,null,null,"If the CPE supports the Alias-based Addressing feature as defined in [Section 3.6.1/TR-069a4] and described in [Appendix II/TR-069a4], the following mandatory constraints MUST be enforced:"]
[]
[null,null,null,"Its value MUST NOT be empty."]
[null,null,null,"Its value MUST start with a letter."]
[null,null,null,"If its instance object is created by the CPE, the initial value MUST start with a \"cpe-\" prefix."]
[null,null,null,"The CPE MUST NOT change the parameter value."]
[]
[null,null,null,"This parameter can only be modified if Origin is Static."]
["IPAddress","string","W","[IPv6Address] IPv6 address.","<Empty>",2.2000000000000002,"IN_FUTURE"]
[]
[null,null,null,"This parameter can only be modified if the Origin is Static."]
[]
[null,null,null,"This parameter is based on ipAddressAddr from [RFC4293]."]
["Origin","string","-","Mechanism via which the IP address was assigned. Enumeration of:","\"Static\"",2.2000000000000002,"IN_FUTURE"]
[]
[null,null,null,"AutoConfigured (Automatically generated. For example, a link-local address as specified by SLAAC [Section 5.3/RFC4862], a global address as specified by SLAAC [Section 5.5/RFC4862], or generated via CPE logic (e.g. from delegated prefix as specified by [RFC3633]), or from ULA /48 prefix as specified by [RFC4193])"]
[null,null,null,"DHCPv6 (Assigned by DHCPv6 [RFC3315])"]
[null,null,null,"WellKnown (Specified by a standards organization, e.g. the ::1 loopback address, which is defined in [RFC4291])"]
[null,null,null,"Static (For example, present in the factory default configuration (but not WellKnown), created by the ACS, or created by some other management entity (e.g. via a GUI))"]
[]
[null,null,null,"This parameter is based on ipOrigin from [RFC4293]."]
["Prefix","string","W","The value MUST be the path name of a row in the IPv6Prefix table. If the referenced object is deleted, the parameter value MUST be set to an empty string. IPv6 address prefix.","<Empty>",2.2000000000000002,"IN_FUTURE"]
[]
[null,null,null,"Some addresses, e.g. addresses assigned via the DHCPv6 IA_NA option, are not associated with a prefix, and some WellKnown prefixes might not be modeled. In both of these cases Prefix will be an empty string."]
[]
[null,null,null,"This parameter can only be modified if the Origin is Static."]
[]
[null,null,null,"This parameter is based on ipAddressPrefix from [RFC4293]."]
["PreferredLifetime","dateTime","W","The time at which this address will cease to be preferred (i.e. will become deprecated), or 0001-01-01T00:00:00Z if not known. For an infinite lifetime, the parameter value MUST be 9999-12-31T23:59:59Z.","9999-12-31T23:59:59Z",2.2000000000000002,"IN_FUTURE"]
[]
[null,null,null,"This parameter can only be modified if the Origin is Static."]
["ValidLifetime","dateTime","W","The time at which this address will cease to be valid (i.e. will become invalid), or 0001-01-01T00:00:00Z if unknown. For an infinite lifetime, the parameter value MUST be 9999-12-31T23:59:59Z.","9999-12-31T23:59:59Z",2.2000000000000002,"IN_FUTURE"]
[]
[null,null,null,"This parameter can only be modified if the Origin is Static."]
["Anycast","boolean","W","Indicates whether this is an anycast address [Section 2.6/RFC4291]. Anycast addresses are syntactically identical to unicast addresses and so need to be configured explicitly.",false,2.2000000000000002,"IN_FUTURE"]
[]
[null,null,null,"This parameter can only be modified if the Origin is Static."]
[]
[null,null,null,"This parameter is based on ipAddressType from [RFC4293]."]
["Device.IP.Interface.{i}.IPv6Prefix.{i}.","object","W","This table contains the interface's IPv6 prefixes. There MUST be an entry for each such prefix, not only for prefixes learned from router advertisements.","-",2.2000000000000002,"IN_FUTURE"]
[]
[null,null,null,"There are several ways in which entries can be added to and deleted from this table, including:"]
[]
[null,null,null,"Automatically via [RFC4861] Router Advertisements. See also RouterAdvertisement."]
[null,null,null,"Automatically via DHCPv6 [RFC3315] prefix delegation [RFC3633]. See also DHCPv6.Client."]
[null,null,null,"Automatically via internal CPE logic, e.g. creation of child prefixes derived from a parent prefix."]
[null,null,null,"Manually via a GUI or some other local management interface."]
[null,null,null,"Manually via factory default configuration."]
[null,null,null,"By the ACS."]
[]
[null,null,null,"The CPE MAY choose not to create IPv6Prefix entries for WellKnown prefixes or for the ULA /48 prefix [RFC4193]. If an IPv6Prefix entry exists for the ULA /48 prefix, it MUST be on a downstream interface (i.e. an interface for which the physical layer interface object has Upstream = false)."]
[]
[null,null,null,"This object is based on ipAddressPrefixTable from [RFC4293]."]
[]
[null,null,null,"At most one entry in this table (regardless of whether or not it is enabled) can exist with a given value for Alias. On creation of a new table entry, the CPE MUST choose an initial value for Alias such that the new entry does not conflict with any existing entries."]
[]
[null,null,null,"At most one enabled entry in this table can exist with a given value for Prefix."]
["Enable","boolean","W","Enables or disables this IPv6Prefix entry.",false,2.2000000000000002,"IN_FUTURE"]
["Status","string","-","The status of this IPv6Prefix table entry. Enumeration of:","\"Disabled\"",2.2000000000000002,"IN_FUTURE"]
[]
[null,null,null,"Disabled"]
[null,null,null,"Enabled"]
[null,null,null,"Error (OPTIONAL)"]
[]
[null,null,null,"The Error value MAY be used by the CPE to indicate a locally defined error condition."]
["PrefixStatus","string","-","The status of Prefix, indicating whether it can be used for communication. See also PreferredLifetime and ValidLifetime. Enumeration of:","\"Invalid\"",2.2000000000000002,"IN_FUTURE"]
[]
[null,null,null,"Preferred (Valid prefix)"]
[null,null,null,"Deprecated (Valid but deprecated prefix)"]
[null,null,null,"Invalid (Invalid prefix)"]
[null,null,null,"Inaccessible (Valid prefix that is not accessible because the interface to which it is assigned is not operational)"]
[null,null,null,"Unknown (Prefix status cannot be determined for some reason)"]
[]
[null,null,null,"This parameter is based on ipAddressStatus and ipAddressStatusTC from [RFC4293]."]
["Alias","string­(64)","W","A non-volatile handle used to reference this instance. Alias provides a mechanism for an ACS to label this instance for future reference.","-",2.2000000000000002,"N/A"]
[]
[null,null,null,"If the CPE supports the Alias-based Addressing feature as defined in [Section 3.6.1/TR-069a4] and described in [Appendix II/TR-069a4], the following mandatory constraints MUST be enforced:"]
[]
[null,null,null,"Its value MUST NOT be empty."]
[null,null,null,"Its value MUST start with a letter."]
[null,null,null,"If its instance object is created by the CPE, the initial value MUST start with a \"cpe-\" prefix."]
[null,null,null,"The CPE MUST NOT change the parameter value."]
[]
[null,null,null,"This parameter can only be modified if Origin is Static."]
["Prefix","string","W","[IPv6Prefix] IPv6 address prefix.","<Empty>",2.2000000000000002,"IN_FUTURE"]
[]
[null,null,null,"This parameter can only be modified if the Origin is Static."]
[]
[null,null,null,"This parameter is based on ipAddressPrefixPrefix from [RFC4293]."]
["Origin","string","-","Mechanism via which the prefix was assigned or most recently updated. Enumeration of:","\"Static\"",2.2000000000000002,"IN_FUTURE"]
[]
[null,null,null,"AutoConfigured (Generated via internal CPE logic (e.g. the ULA /48 prefix) or derived from an internal prefix that is not modeled in any IPv6Prefix table)"]
[null,null,null,"PrefixDelegation (Delegated via DHCPv6 [RFC3633] or some other protocol, e.g. IPv6rd [RFC5969]. Also see StaticType)"]
[null,null,null,"RouterAdvertisement (Discovered via router advertisement [RFC4861] Prefix Information Option)"]
[null,null,null,"WellKnown (Specified by a standards organization, e.g. fe80::/10 for link-local addresses, or ::1/128 for the loopback address, both of which are defined in [RFC4291])"]
[null,null,null,"Static (Created by the ACS, by some other management entity (e.g. via a GUI), or present in the factory default configuration (but not WellKnown). Unrelated to any shorter length prefix that might exist on the CPE. Also see StaticType. Can be used for RA (Prefix Information), DHCPv6 address assignment (IA_NA) or DHCPv6 prefix delegation (IA_PD))"]
[null,null,null,"Child (Derived from an associated AutoConfigured or PrefixDelegation parent prefix. Also see StaticType, ParentPrefix and ChildPrefixBits. Can be used for RA (Prefix Information), DHCPv6 address assignment (IA_NA) or DHCPv6 prefix delegation (IA_PD))"]
[]
[null,null,null,"Note that:"]
[]
[null,null,null,"PrefixDelegation and RouterAdvertisement prefixes can exist only on upstream interfaces (i.e. interfaces for which the physical layer interface object has Upstream = true),"]
[null,null,null,"AutoConfigured and WellKnown prefixes can exist on any interface, and"]
[null,null,null,"Static and Child prefixes can exist only on downstream interfaces (i.e. interfaces for which the physical layer interface object has Upstream = false)."]
[]
[null,null,null,"Also note that a Child prefix's ParentPrefix will always be an AutoConfigured, PrefixDelegation, or RouterAdvertisement prefix."]
[]
[null,null,null,"This parameter is based on ipAddressOrigin from [RFC4293]."]
["StaticType","string","W","Static prefix sub-type. For a Static prefix, this can be set to PrefixDelegation or Child, thereby creating an unconfigured prefix of the specified type that will be populated in preference to creating a new instance. This allows the ACS to pre-create \"prefix slots\" with known path names that can be referenced from elsewhere in the data model before they have been populated. Enumeration of:","\"Static\"",2.2000000000000002,"IN_FUTURE"]
[]
[null,null,null,"Static (Prefix is a \"normal\" Static prefix)"]
[null,null,null,"Inapplicable (Prefix is not Static, so this parameter does not apply)"]
[null,null,null,"PrefixDelegation (Prefix will be populated when a PrefixDelegation prefix needs to be created)"]
[null,null,null,"Child (Prefix will be populated when a Child prefix needs to be created. In this case, the ACS needs also to set ParentPrefix and might want to set ChildPrefixBits (if parent prefix is not set, or goes away, then the child prefix will become operationally disabled))"]
[]
[null,null,null,"This mechanism works as follows:"]
[]
[null,null,null,"When this parameter is set to PrefixDelegation or Child, the instance becomes a \"prefix slot\" of the specified type."]
[null,null,null,"Such an instance can be administratively enabled (Enable = true) but will remain operationally disabled (Status = Disabled) until it has been populated."]
[null,null,null,"When a new prefix of of type T is needed, the CPE will look for a matching unpopulated instance, i.e. an instance with (Origin,StaticType,Prefix) = (Static,T,\"\"). If the CPE finds at least one such instance it will choose one and populate it. If already administratively enabled it will immediately become operationally enabled. If the CPE finds no such instances, it will create and populate a new instance with (Origin,StaticType) = (T,T). If the CPE finds more than one such instance, the algorithm via which it chooses which instance to populate is implementation-specific."]
[null,null,null,"When a prefix that was populated via this mechanism becomes invalid, the CPE will reset Prefix to an empty string. This does not affect the value of the Enable parameter."]
[]
[null,null,null,"The prefix StaticType can only be modified if Origin is Static."]
["ParentPrefix","string","W","The value MUST be the path name of a row in the IP.Interface.{i}.IPv6Prefix table. If the referenced object is deleted, the parameter value MUST be set to an empty string. Indicates the parent prefix from which this prefix was derived. The parent prefix is relevant only for Child prefixes and for Static Child prefixes (both of which will always be on downstream interfaces), i.e. for Origin=Child and for (Origin,StaticType) = (Static,Child) prefixes.","<Empty>",2.2000000000000002,"IN_FUTURE"]
[]
[null,null,null,"This parameter can only be modified if Origin is Static (which makes sense only for a prefix whose StaticType is already or will be changed to Child)."]
["ChildPrefixBits","string","W","[IPv6Prefix] A prefix that specifies the length of Static Child prefixes and how they are derived from their ParentPrefix. It will be used if and only if it is not an empty string and is longer than the parent prefix (if it is not used, derivation of such prefixes is implementation-specific). Any bits to the right of the parent prefix are set to the bits in this prefix.","<Empty>",2.2000000000000002,"IN_FUTURE"]
[]
[null,null,null,"For example, for a parent prefix of fedc::/56, if this parameter had the value 123:4567:89ab:cdef::/64, the child /64 would be fedc:0:0:ef::/64. For a parent prefix of fedc::/60, the child /64 would be fedc:0:0:f::/64."]
[]
[null,null,null,"This parameter can only be modified if Origin is Static."]
["OnLink","boolean","W","On-link flag [Section 4.6.2/RFC4861] as received (in the RA) for RouterAdvertisement. Indicates whether this prefix can be used for on-link determination.",false,2.2000000000000002,"IN_FUTURE"]
[]
[null,null,null,"This parameter can only be modified if Origin is Static."]
[]
[null,null,null,"This parameter is based on ipAddressPrefixOnLinkFlag from [RFC4293]."]
["Autonomous","boolean","W","Autonomous address configuration flag [Section 4.6.2/RFC4861] as received (in the RA) for RouterAdvertisement. Indicates whether this prefix can be used for generating global addresses as specified by SLAAC [RFC4862].",false,2.2000000000000002,"IN_FUTURE"]
[]
[null,null,null,"This parameter can only be modified if Origin is Static."]
[]
[null,null,null,"This parameter is based on ipAddressPrefixAutonomousFlag from [RFC4293]."]
["PreferredLifetime","dateTime","W","This parameter is based on ipAddressPrefixAdvPreferredLifetime from [RFC4293]. The time at which this prefix will cease to be preferred (i.e. will become deprecated), or 0001-01-01T00:00:00Z if not known. For an infinite lifetime, the parameter value MUST be 9999-12-31T23:59:59Z.","9999-12-31T23:59:59Z",2.2000000000000002,"IN_FUTURE"]
[]
[null,null,null,"This parameter can only be modified if Origin is Static."]
["ValidLifetime","dateTime","W","This parameter is based on ipAddressPrefixAdvValidLifetime from [RFC4293]. The time at which this prefix will cease to be valid (i.e. will become invalid), or 0001-01-01T00:00:00Z if not known. For an infinite lifetime, the parameter value MUST be 9999-12-31T23:59:59Z.","9999-12-31T23:59:59Z",2.2000000000000002,"IN_FUTURE"]
[]
[null,null,null,"This parameter can only be modified if Origin is Static."]
["Device.IP.Interface.{i}.Stats.","object","-","Throughput statistics for this interface.","-",2,"MUST"]
[]
[null,null,null,"The CPE MUST reset the interface's Stats parameters (unless otherwise stated in individual object or parameter descriptions) either when the interface becomes operationally down due to a previous administrative down (i.e. the interface's Status parameter transitions to a down state after the interface is disabled) or when the interface becomes administratively up (i.e. the interface's Enable parameter transitions from false to true). Administrative and operational interface status is discussed in [Section 4.2.2/TR-181i2]."]
["BytesSent","unsignedLong","-","The total number of bytes transmitted out of the interface, including framing characters.","-",2,"MUST"]
["BytesReceived","unsignedLong","-","The total number of bytes received on the interface, including framing characters.","-",2,"MUST"]
["PacketsSent","unsignedLong","-","The total number of packets transmitted out of the interface.","-",2,"MUST"]
["PacketsReceived","unsignedLong","-","The total number of packets received on the interface.","-",2,"MUST"]
["ErrorsSent","unsignedInt","-","The total number of outbound packets that could not be transmitted because of errors.","-",2,"MUST"]
["ErrorsReceived","unsignedInt","-","The total number of inbound packets that contained errors preventing them from being delivered to a higher-layer protocol.","-",2,"MUST"]
["UnicastPacketsSent","unsignedLong","-","The total number of packets requested for transmission which were not addressed to a multicast or broadcast address at this layer, including those that were discarded or not sent.","-",2,"MUST"]
["UnicastPacketsReceived","unsignedLong","-","The total number of received packets, delivered by this layer to a higher layer, which were not addressed to a multicast or broadcast address at this layer.","-",2,"MUST"]
["DiscardPacketsSent","unsignedInt","-","The total number of outbound packets which were chosen to be discarded even though no errors had been detected to prevent their being transmitted. One possible reason for discarding such a packet could be to free up buffer space.","-",2,"MUST"]
["DiscardPacketsReceived","unsignedInt","-","The total number of inbound packets which were chosen to be discarded even though no errors had been detected to prevent their being delivered. One possible reason for discarding such a packet could be to free up buffer space.","-",2,"MUST"]
["MulticastPacketsSent","unsignedLong","-","The total number of packets that higher-level protocols requested for transmission and which were addressed to a multicast address at this layer, including those that were discarded or not sent.","-",2,"MUST"]
["MulticastPacketsReceived","unsignedLong","-","The total number of received packets, delivered by this layer to a higher layer, which were addressed to a multicast address at this layer.","-",2,"MUST"]
["BroadcastPacketsSent","unsignedLong","-","The total number of packets that higher-level protocols requested for transmission and which were addressed to a broadcast address at this layer, including those that were discarded or not sent.","-",2,"MUST"]
[]
[null,null,null,"Note that IPv6 does not define broadcast addresses, so IPv6 packets will never cause this counter to increment."]
["BroadcastPacketsReceived","unsignedLong","-","The total number of received packets, delivered by this layer to a higher layer, which were addressed to a broadcast address at this layer.","-",2,"MUST"]
[]
[null,null,null,"Note that IPv6 does not define broadcast addresses, so IPv6 packets will never cause this counter to increment."]
["UnknownProtoPacketsReceived","unsignedInt","-","The total number of packets received via the interface which were discarded because of an unknown or unsupported protocol.","-",2,"MUST"]
["Device.IP.ActivePort.{i}.","object","-","This table lists the ports on which TCP connections are listening or established.","-",2,"SHOULD"]
[]
[null,null,null,"At most one entry in this table can exist with all the same values for LocalIPAddress, LocalPort, RemoteIPAddress and RemotePort."]
["LocalIPAddress","string­(45)","-","[IPAddress] Connection local IP address.","-",2,"SHOULD"]
["LocalPort","unsignedInt­[0:65535]","-","Connection local port.","-",2,"SHOULD"]
["RemoteIPAddress","string­(45)","-","[IPAddress] The remote IP address of the source of inbound packets.","-",2,"SHOULD"]
[]
[null,null,null,"This will be an empty string for listening connections (only connections in ESTABLISHED state have remote addresses)."]
["RemotePort","unsignedInt­[0:65535]","-","The remote port of the source of inbound packets.","-",2,"SHOULD"]
[]
[null,null,null,"This will be 0 for listening connections (only connections in ESTABLISHED state have remote addresses)."]
["Status","string","-","Current operational status of the connection. Enumeration of:","-",2,"SHOULD"]
[]
[null,null,null,"LISTEN"]
[null,null,null,"ESTABLISHED"]
[]
["Device.IP.Diagnostics.","object","-","The IP Diagnostics object.","-",2,"SHOULD"]
["Device.IP.Diagnostics.IPPing.","object","-","This object provides access to an IP-layer ping test.","-",2,"SHOULD"]
["DiagnosticsState","string","W","Indicates availability of diagnostic data. Enumeration of:","-",2,"SHOULD"]
[]
[null,null,null,"None"]
[null,null,null,"Requested"]
[null,null,null,"Complete"]
[null,null,null,"Error_CannotResolveHostName"]
[null,null,null,"Error_Internal"]
[null,null,null,"Error_Other"]
[]
[null,null,null,"If the ACS sets the value of this parameter to Requested, the CPE MUST initiate the corresponding diagnostic test. When writing, the only allowed value is Requested. To ensure the use of the proper test parameters (the writable parameters in this object), the test parameters MUST be set either prior to or at the same time as (in the same SetParameterValues) setting the DiagnosticsState to Requested."]
[]
[null,null,null,"When requested, the CPE SHOULD wait until after completion of the communication session with the ACS before starting the diagnostic."]
[]
[null,null,null,"When the test is completed, the value of this parameter MUST be either Complete (if the test completed successfully), or one of the Error values listed above."]
[]
[null,null,null,"If the value of this parameter is anything other than Complete, the values of the results parameters for this test are indeterminate."]
[]
[null,null,null,"When the diagnostic initiated by the ACS is completed (successfully or not), the CPE MUST establish a new connection to the ACS to allow the ACS to view the results, indicating the Event code 8 DIAGNOSTICS COMPLETE in the Inform message."]
[]
[null,null,null,"After the diagnostic is complete, the value of all result parameters (all read-only parameters in this object) MUST be retained by the CPE until either this diagnostic is run again, or the CPE reboots. After a reboot, if the CPE has not retained the result parameters from the most recent test, it MUST set the value of this parameter to None."]
[]
[null,null,null,"Modifying any of the writable parameters in this object except for this one MUST result in the value of this parameter being set to None."]
[]
[null,null,null,"While the test is in progress, modifying any of the writable parameters in this object except for this one MUST result in the test being terminated and the value of this parameter being set to None."]
[]
[null,null,null,"While the test is in progress, setting this parameter to Requested (and possibly modifying other writable parameters in this object) MUST result in the test being terminated and then restarted using the current values of the test parameters."]
["Interface","string­(256)","W","The value MUST be the path name of a row in the IP.Interface table. The IP-layer interface over which the test is to be performed. This identifies the source IP address to use when performing the test. Example: Device.IP.Interface.1","-",2,"SHOULD"]
[]
[null,null,null,"If an empty string is specified, the CPE MUST use the interface as directed by its routing policy (Forwarding table entries) to determine the appropriate interface."]
["Host","string­(256)","W","Host name or address of the host to ping.","-",2,"SHOULD"]
[]
[null,null,null,"In the case where Host is specified by name, and the name resolves to more than one address, it is up to the device implementation to choose which address to use."]
["NumberOfRepetitions","unsignedInt­[1:]","W","Number of repetitions of the ping test to perform before reporting the results.","-",2,"SHOULD"]
["Timeout","unsignedInt­[1:]","W","Timeout in milliseconds for the ping test.","-",2,"SHOULD"]
["DataBlockSize","unsignedInt­[1:65535]","W","Size of the data block in bytes to be sent for each ping.","-",2,"SHOULD"]
["DSCP","unsignedInt­[0:63]","W","DiffServ codepoint to be used for the test packets. By default the CPE SHOULD set this value to zero.","-",2,"SHOULD"]
["SuccessCount","unsignedInt","-","Result parameter indicating the number of successful pings (those in which a successful response was received prior to the timeout) in the most recent ping test.","-",2,"SHOULD"]
["FailureCount","unsignedInt","-","Result parameter indicating the number of failed pings in the most recent ping test.","-",2,"SHOULD"]
["AverageResponseTime","unsignedInt","-","Result parameter indicating the average response time in milliseconds over all repetitions with successful responses of the most recent ping test. If there were no successful responses, this value MUST be zero.","-",2,"SHOULD"]
["MinimumResponseTime","unsignedInt","-","Result parameter indicating the minimum response time in milliseconds over all repetitions with successful responses of the most recent ping test. If there were no successful responses, this value MUST be zero.","-",2,"SHOULD"]
["MaximumResponseTime","unsignedInt","-","Result parameter indicating the maximum response time in milliseconds over all repetitions with successful responses of the most recent ping test. If there were no successful responses, this value MUST be zero.","-",2,"SHOULD"]
["Device.IP.Diagnostics.TraceRoute.","object","-","This object is defines access to an IP-layer trace-route test for the specified IP interface.","-",2,"SHOULD"]
["DiagnosticsState","string","W","Indicates availability of diagnostic data. Enumeration of:","-",2,"SHOULD"]
[]
[null,null,null,"None"]
[null,null,null,"Requested"]
[null,null,null,"Complete"]
[null,null,null,"Error_CannotResolveHostName"]
[null,null,null,"Error_MaxHopCountExceeded"]
[]
[null,null,null,"If the ACS sets the value of this parameter to Requested, the CPE MUST initiate the corresponding diagnostic test. When writing, the only allowed value is Requested. To ensure the use of the proper test parameters (the writable parameters in this object), the test parameters MUST be set either prior to or at the same time as (in the same SetParameterValues) setting the DiagnosticsState to Requested."]
[]
[null,null,null,"When requested, the CPE SHOULD wait until after completion of the communication session with the ACS before starting the diagnostic."]
[]
[null,null,null,"When the diagnostic initiated by the ACS is completed (successfully or not), the CPE MUST establish a new connection to the ACS to allow the ACS to view the results, indicating the Event code 8 DIAGNOSTICS COMPLETE in the Inform message."]
["Interface","string­(256)","W","The value MUST be the path name of a row in the IP.Interface table. The IP-layer interface over which the test is to be performed. This identifies the source IP address to use when performing the test.","-",2,"SHOULD"]
[]
[null,null,null,"Example: Device.IP.Interface.1"]
["Host","string­(256)","W","Host name or address of the host to find a route to.","-",2,"SHOULD"]
[]
[null,null,null,"In the case where Host is specified by name, and the name resolves to more than one address, it is up to the device implementation to choose which address to use."]
["NumberOfTries","unsignedInt­[1:3]","W","Number of tries per hop. Set prior to running Diagnostic. By default, the CPE SHOULD set this value to 3.","-",2,"SHOULD"]
["Timeout","unsignedInt­[1:]","W","Timeout in milliseconds for each hop of the trace route test. By default the CPE SHOULD set this value to 5000.","-",2,"SHOULD"]
["DataBlockSize","unsignedInt­[1:65535]","W","Size of the data block in bytes to be sent for each trace route. By default, the CPE SHOULD set this value to 38.","-",2,"SHOULD"]
["DSCP","unsignedInt­[0:63]","W","DiffServ codepoint to be used for the test packets. By default the CPE SHOULD set this value to 0.","-",2,"SHOULD"]
["MaxHopCount","unsignedInt­[1:64]","W","The maximum number of hop used in outgoing probe packets (max TTL). By default the CPE SHOULD set this value to 30.","-",2,"SHOULD"]
["ResponseTime","unsignedInt","-","Result parameter indicating the response time in milliseconds the most recent trace route test. If a route could not be determined, this value MUST be zero.","-",2,"SHOULD"]
["RouteHopsNumberOfEntries","unsignedInt","-","The number of entries in the RouteHops table.","-",2,"SHOULD"]
["Device.IP.Diagnostics.TraceRoute.RouteHops.{i}.","object","-","Contains the array of hop results returned. If a route could not be determined, this array will be empty","-",2,"SHOULD"]
["Host","string­(256)","-","Result parameter indicating the Host Name if DNS is able to resolve or IP Address of a hop along the discovered route.","-",2,"SHOULD"]
["HostAddress","string","-","If this parameter is not an empty string it will contain the last IP address of the host returned for this hop and the Host will contain the Host Name returned from the reverse DNS query.","-",2,"SHOULD"]
["ErrorCode","unsignedInt","-","Contains the error code returned for this hop. This code is directly from the ICMP CODE field.","-",2,"SHOULD"]
["RTTimes","string­(16)","-","Comma-separated list (maximum length 16) of unsigned integers. Each list item contains one or more round trip times in milliseconds (one for each repetition) for this hop.","-",2,"SHOULD"]
["Device.IP.Diagnostics.DownloadDiagnostics.","object","-","This object defines the diagnostics configuration for a HTTP and FTP DownloadDiagnostics Test.","-",2,"IN_FUTURE"]
[]
[null,null,null,"Files received in the DownloadDiagnostics do not require file storage on the CPE device."]
["DiagnosticsState","string","W","Indicate the availability of diagnostic data. Enumeration of:","-",2,"IN_FUTURE"]
[]
[null,null,null,"None"]
[null,null,null,"Requested"]
[null,null,null,"Completed"]
[null,null,null,"Error_InitConnectionFailed"]
[null,null,null,"Error_NoResponse"]
[null,null,null,"Error_TransferFailed"]
[null,null,null,"Error_PasswordRequestFailed"]
[null,null,null,"Error_LoginFailed"]
[null,null,null,"Error_NoTransferMode"]
[null,null,null,"Error_NoPASV"]
[null,null,null,"Error_IncorrectSize"]
[null,null,null,"Error_Timeout"]
[]
[null,null,null,"If the ACS sets the value of this parameter to Requested, the CPE MUST initiate the corresponding diagnostic test. When writing, the only allowed value is Requested. To ensure the use of the proper test parameters (the writable parameters in this object), the test parameters MUST be set either prior to or at the same time as (in the same SetParameterValues) setting the DiagnosticsState to Requested."]
[]
[null,null,null,"When requested, the CPE SHOULD wait until after completion of the communication session with the ACS before starting the diagnostic."]
[]
[null,null,null,"When the test is completed, the value of this parameter MUST be either Completed (if the test completed successfully), or one of the Error values listed above."]
[]
[null,null,null,"If the value of this parameter is anything other than Completed, the values of the results parameters for this test are indeterminate."]
[]
[null,null,null,"When the diagnostic initiated by the ACS is completed (successfully or not), the CPE MUST establish a new connection to the ACS to allow the ACS to view the results, indicating the Event code 8 DIAGNOSTICS COMPLETE in the Inform message."]
[]
[null,null,null,"After the diagnostic is complete, the value of all result parameters (all read-only parameters in this object) MUST be retained by the CPE until either this diagnostic is run again, or the CPE reboots. After a reboot, if the CPE has not retained the result parameters from the most recent test, it MUST set the value of this parameter to None."]
[]
[null,null,null,"Modifying any of the writable parameters in this object except for this one MUST result in the value of this parameter being set to None."]
[]
[null,null,null,"While the test is in progress, modifying any of the writable parameters in this object except for this one MUST result in the test being terminated and the value of this parameter being set to None."]
[]
[null,null,null,"While the test is in progress, setting this parameter to Requested (and possibly modifying other writable parameters in this object) MUST result in the test being terminated and then restarted using the current values of the test parameters."]
["Interface","string­(256)","W","The value MUST be the path name of the IP-layer interface over which the test is to be performed.","-",2,"IN_FUTURE"]
[]
[null,null,null,"The value of this parameter MUST be either a valid interface or an empty string. An attempt to set this parameter to a different value MUST be rejected as an invalid parameter value."]
[]
[null,null,null,"If an empty string is specified, the CPE MUST use the default routing interface."]
["DownloadURL","string­(256)","W","The URL, as defined in [RFC3986], for the CPE to perform the download on. This parameter MUST be in the form of a valid HTTP [RFC2616] or FTP [RFC959] URL.","-",2,"IN_FUTURE"]
[]
[null,null,null,"When using FTP transport, FTP binary transfer MUST be used."]
[null,null,null,"When using HTTP transport, persistent connections MUST be used and pipelining MUST NOT be used."]
[null,null,null,"When using HTTP transport the HTTP Authentication MUST NOT be used."]
[]
["DownloadTransports","string","-","Comma-separated list of strings. Supported DownloadDiagnostics transport protocols for a CPE device. Each list item is an enumeration of:","-",2,"IN_FUTURE"]
[]
[null,null,null,"HTTP"]
[null,null,null,"FTP (OPTIONAL)"]
[]
["DSCP","unsignedInt­[0:63]","W","The DiffServ code point for marking packets transmitted in the test.","-",2,"IN_FUTURE"]
[]
[null,null,null,"The default value SHOULD be zero."]
["EthernetPriority","unsignedInt­[0:7]","W","Ethernet priority code for marking packets transmitted in the test (if applicable).","-",2,"IN_FUTURE"]
[]
[null,null,null,"The default value SHOULD be zero."]
["ROMTime","dateTime","-","Request time in UTC, which MUST be specified to microsecond precision.","-",2,"IN_FUTURE"]
[]
[null,null,null,"For example: 2008-04-09T15:01:05.123456"]
[]
[null,null,null,"For HTTP this is the time at which the client sends the GET command."]
[null,null,null,"For FTP this is the time at which the client sends the RTRV command."]
[]
["BOMTime","dateTime","-","Begin of transmission time in UTC, which MUST be specified to microsecond precision","-",2,"IN_FUTURE"]
[]
[null,null,null,"For example: 2008-04-09T15:01:05.123456"]
[]
[null,null,null,"For HTTP this is the time at which the first data packet is received."]
[null,null,null,"For FTP this is the time at which the client receives the first data packet on the data connection."]
[]
["EOMTime","dateTime","-","End of transmission in UTC, which MUST be specified to microsecond precision.","-",2,"IN_FUTURE"]
[]
[null,null,null,"For example: 2008-04-09T15:01:05.123456"]
[]
[null,null,null,"For HTTP this is the time at which the last data packet is received."]
[null,null,null,"For FTP this is the time at which the client receives the last packet on the data connection."]
[]
["TestBytesReceived","unsignedInt","-","The test traffic received in bytes during the FTP/HTTP transaction including FTP/HTTP headers, between BOMTime and EOMTime,","-",2,"IN_FUTURE"]
["TotalBytesReceived","unsignedInt","-","The total number of bytes received on the Interface between BOMTime and EOMTime.","-",2,"IN_FUTURE"]
["TCPOpenRequestTime","dateTime","-","Request time in UTC, which MUST be specified to microsecond precision.","-",2,"IN_FUTURE"]
[]
[null,null,null,"For example: 2008-04-09T15:01:05.123456"]
[]
[null,null,null,"For HTTP this is the time at which the TCP socket open (SYN) was sent for the HTTP connection."]
[null,null,null,"For FTP this is the time at which the TCP socket open (SYN) was sent for the data connection."]
[]
[null,null,null,"Note: Interval of 1 microsecond SHOULD be supported."]
["TCPOpenResponseTime","dateTime","-","Response time in UTC, which MUST be specified to microsecond precision.","-",2,"IN_FUTURE"]
[]
[null,null,null,"For example: 2008-04-09T15:01:05.123456"]
[]
[null,null,null,"For HTTP this is the time at which the TCP ACK to the socket opening the HTTP connection was received."]
[null,null,null,"For FTP this is the time at which the TCP ACK to the socket opening the data connection was received."]
[]
[null,null,null,"Note: Interval of 1 microsecond SHOULD be supported."]
["Device.IP.Diagnostics.UploadDiagnostics.","object","-","This object defines the diagnostics configuration for a HTTP or FTP UploadDiagnostics test.","-",2,"IN_FUTURE"]
[]
[null,null,null,"Files sent by the UploadDiagnostics do not require file storage on the CPE device, and MAY be an arbitrary stream of bytes."]
["DiagnosticsState","string","W","Indicate the availability of diagnostic data. Enumeration of:","-",2,"IN_FUTURE"]
[]
[null,null,null,"None"]
[null,null,null,"Requested"]
[null,null,null,"Completed"]
[null,null,null,"Error_InitConnectionFailed"]
[null,null,null,"Error_NoResponse"]
[null,null,null,"Error_PasswordRequestFailed"]
[null,null,null,"Error_LoginFailed"]
[null,null,null,"Error_NoTransferMode"]
[null,null,null,"Error_NoPASV"]
[null,null,null,"Error_NoCWD"]
[null,null,null,"Error_NoSTOR"]
[null,null,null,"Error_NoTransferComplete"]
[]
[null,null,null,"If the ACS sets the value of this parameter to Requested, the CPE MUST initiate the corresponding diagnostic test. When writing, the only allowed value is Requested. To ensure the use of the proper test parameters (the writable parameters in this object), the test parameters MUST be set either prior to or at the same time as (in the same SetParameterValues) setting the DiagnosticsState to Requested."]
[]
[null,null,null,"When requested, the CPE SHOULD wait until after completion of the communication session with the ACS before starting the diagnostic."]
[]
[null,null,null,"When the test is completed, the value of this parameter MUST be either Completed (if the test completed successfully), or one of the Error values listed above."]
[]
[null,null,null,"If the value of this parameter is anything other than Completed, the values of the results parameters for this test are indeterminate."]
[]
[null,null,null,"When the diagnostic initiated by the ACS is completed (successfully or not), the CPE MUST establish a new connection to the ACS to allow the ACS to view the results, indicating the Event code 8 DIAGNOSTICS COMPLETE in the Inform message."]
[]
[null,null,null,"After the diagnostic is complete, the value of all result parameters (all read-only parameters in this object) MUST be retained by the CPE until either this diagnostic is run again, or the CPE reboots. After a reboot, if the CPE has not retained the result parameters from the most recent test, it MUST set the value of this parameter to None."]
[]
[null,null,null,"Modifying any of the writable parameters in this object except for this one MUST result in the value of this parameter being set to None."]
[]
[null,null,null,"While the test is in progress, modifying any of the writable parameters in this object except for this one MUST result in the test being terminated and the value of this parameter being set to None."]
[]
[null,null,null,"While the test is in progress, setting this parameter to Requested (and possibly modifying other writable parameters in this object) MUST result in the test being terminated and then restarted using the current values of the test parameters."]
["Interface","string­(256)","W","The value MUST be the path name of the IP-layer interface over which the test is to be performed.","-",2,"IN_FUTURE"]
[]
[null,null,null,"The value of this parameter MUST be either a valid interface or an empty string. An attempt to set this parameter to a different value MUST be rejected as an invalid parameter value."]
[]
[null,null,null,"If an empty string is specified, the CPE MUST use the default routing interface."]
["UploadURL","string­(256)","W","The URL, as defined in [RFC3986], for the CPE to Upload to. This parameter MUST be in the form of a valid HTTP [RFC2616] or FTP [RFC959] URL.","-",2,"IN_FUTURE"]
[]
[null,null,null,"When using FTP transport, FTP binary transfer MUST be used."]
[null,null,null,"When using HTTP transport, persistent connections MUST be used and pipelining MUST NOT be used."]
[null,null,null,"When using HTTP transport the HTTP Authentication MUST NOT be used."]
[]
["UploadTransports","string","-","Comma-separated list of strings. Supported UploadDiagnostics transport protocols for a CPE device. Each list item is an enumeration of:","-",2,"IN_FUTURE"]
[]
[null,null,null,"HTTP"]
[null,null,null,"FTP (OPTIONAL)"]
[]
["DSCP","unsignedInt­[0:63]","W","DiffServ code point for marking packets transmitted in the test.","-",2,"IN_FUTURE"]
[]
[null,null,null,"The default value SHOULD be zero."]
["EthernetPriority","unsignedInt­[0:7]","W","Ethernet priority code for marking packets transmitted in the test (if applicable).","-",2,"IN_FUTURE"]
[]
[null,null,null,"The default value SHOULD be zero."]
["TestFileLength","unsignedInt","W","The size of the file (in bytes) to be uploaded to the server.","-",2,"IN_FUTURE"]
[]
[null,null,null,"The CPE MUST insure the appropriate number of bytes are sent."]
["ROMTime","dateTime","-","Request time in UTC, which MUST be specified to microsecond precision.","-",2,"IN_FUTURE"]
[]
[null,null,null,"For example: 2008-04-09T15:01:05.123456"]
[]
[null,null,null,"For HTTP this is the time at which the client sends the PUT command"]
[null,null,null,"For FTP this is the time at which the STOR command is sent."]
[]
["BOMTime","dateTime","-","Begin of transmission time in UTC, which MUST be specified to microsecond precision.","-",2,"IN_FUTURE"]
[]
[null,null,null,"For example: 2008-04-09T15:01:05.123456"]
[]
[null,null,null,"For HTTP this is the time at which the first data packet is sent."]
[null,null,null,"For FTP this is the time at which the client receives the ready for transfer notification."]
[]
["EOMTime","dateTime","-","End of transmission in UTC, which MUST be specified to microsecond precision.","-",2,"IN_FUTURE"]
[]
[null,null,null,"For example: 2008-04-09T15:01:05.123456"]
[]
[null,null,null,"For HTTP this is the time when the HTTP successful response code is received."]
[null,null,null,"For FTP this is the time when the client receives a transfer complete."]
[]
["TotalBytesSent","unsignedInt","-","The total number of bytes sent on the Interface between BOMTime and EOMTime.","-",2,"IN_FUTURE"]
["TCPOpenRequestTime","dateTime","-","Request time in UTC, which MUST be specified to microsecond precision.","-",2,"IN_FUTURE"]
[]
[null,null,null,"For example: 2008-04-09T15:01:05.123456"]
[]
[null,null,null,"For HTTP this is the time at which the TCP socket open (SYN) was sent for the HTTP connection."]
[null,null,null,"For FTP this is the time at which the TCP socket open (SYN) was sent for the data connection"]
[]
[null,null,null,"Note: Interval of 1 microsecond SHOULD be supported."]
["TCPOpenResponseTime","dateTime","-","Response time in UTC, which MUST be specified to microsecond precision.","-",2,"IN_FUTURE"]
[]
[null,null,null,"For example: 2008-04-09T15:01:05.123456"]
[]
[null,null,null,"For HTTP this is the Time at which the TCP ACK to the socket opening the HTTP connection was received."]
[null,null,null,"For FTP this is the Time at which the TCP ACK to the socket opening the Data connection was received."]
[]
[null,null,null,"Note: Interval of 1 microsecond SHOULD be supported."]
["Device.DNS.Diagnostics.","object","-","The DNS Diagnostics object containing the NSLookupDiagnostics test.","-",2,"MAY"]
["Device.DNS.Diagnostics.NSLookupDiagnostics.","object","-","This object defines access to an IP-layer NS Lookup test for the specified IP interface.","-",2,"MAY",null,"\nNOTE: If this diagnostic object is supported, the complete object MUST be supported (all parameters and child objects below)"]
[]
[null,null,null,"When initiated, the NS Lookup test will contact DNSServer and look up HostName NumberOfRepetitions times."]
[]
[null,null,null,"There will be a Result instance for each time the device performs a DNS lookup, which is determined by the value of NumberOfRepetitions."]
[]
[null,null,null,"Any previous Result instances are removed when a new test is initiated."]
["DiagnosticsState","string","W","Indicates availability of diagnostic data. Enumeration of:","-",2,"MAY"]
[]
[null,null,null,"None"]
[null,null,null,"Requested"]
[null,null,null,"Complete"]
[null,null,null,"Error_DNSServerNotResolved (Unable to resolve DNSServer Name)"]
[null,null,null,"Error_Internal"]
[null,null,null,"Error_Other"]
[]
[null,null,null,"If the ACS sets the value of this parameter to Requested, the CPE MUST initiate the corresponding diagnostic test. When writing, the only allowed value is Requested. To ensure the use of the proper test parameters (the writable parameters in this object), the test parameters MUST be set either prior to or at the same time as (in the same SetParameterValues) setting the DiagnosticsState to Requested."]
[]
[null,null,null,"When requested, the CPE SHOULD wait until after completion of the communication session with the ACS before starting the diagnostic."]
[]
[null,null,null,"When the test is completed, the value of this parameter MUST be either Complete (if the test completed successfully), or one of the Error values listed above."]
[]
[null,null,null,"If the value of this parameter is anything other than Complete, the values of the results parameters for this test are indeterminate."]
[]
[null,null,null,"When the diagnostic initiated by the ACS is completed (successfully or not), the CPE MUST establish a new connection to the ACS to allow the ACS to view the results, indicating the Event code \"8 DIAGNOSTICS COMPLETE\" in the Inform message."]
[]
[null,null,null,"After the diagnostic is complete, the value of all result parameters (all read-only parameters in this object) MUST be retained by the CPE until either this diagnostic is run again, or the CPE reboots. After a reboot, if the CPE has not retained the result parameters from the most recent test, it MUST set the value of this parameter to None."]
[]
[null,null,null,"Modifying any of the writable parameters in this object except for this one MUST result in the value of this parameter being set to None."]
[]
[null,null,null,"While the test is in progress, modifying any of the writable parameters in this object except for this one MUST result in the test being terminated and the value of this parameter being set to None."]
[]
[null,null,null,"While the test is in progress, setting this parameter to Requested (and possibly modifying other writable parameters in this object) MUST result in the test being terminated and then restarted using the current values of the test parameters."]
["Interface","string­(256)","W","The value MUST be the path name of a table row. This parameter specifies the IP-layer interface over which the test is to be performed (i.e. the source IP address to use when performing the test).","-",2,"MAY"]
[]
[null,null,null,"If an empty string is specified, the CPE MUST use its routing policy (Forwarding table entries), if necessary, to determine the appropriate interface."]
["HostName","string­(256)","W","Specifies the Host Name that NS Lookup is to look for. The current domain name MUST be used unless the name is a fully qualified name.","-",2,"MAY"]
["DNSServer","string­(256)","W","Specifies the DNS Server name or IP address that NS Lookup is to use for the lookup. The name of this server will be resolved using the default DNS server unless an IP address is provided.","-",2,"MAY"]
[]
[null,null,null,"If an empty string is specified, the device's default DNS server will be used."]
["Timeout","unsignedInt","W","Timeout in milliseconds that indicates that a request has failed.","-",2,"MAY"]
["NumberOfRepetitions","unsignedInt","W","The number of times the device SHOULD repeat the execution of the NSLookup using the same input parameters. If the diagnostics test fails the CPE MAY terminate the test without completing the full number of repetitions.","-",2,"MAY"]
[]
[null,null,null,"Each repetition will use a Result instance to hold the NSLookup result data."]
["SuccessCount","unsignedInt","-","Number of successfully executed repetitions.","-",2,"MAY"]
["ResultNumberOfEntries","unsignedInt","-","The number of entries in the Result table.","-",2,"MAY"]
[]
[null,null,null,"Total number of Result entries from the most recent invocation of the test."]
["Device.DNS.Diagnostics.NSLookupDiagnostics.Result.{i}.","object","-","Results from the most recent invocation of the test, one instance per repetition.","-",2,"MAY"]
["Status","string","-","Result Parameter to represent whether the NS Lookup was successful or not.","-",2,"MAY"]
[]
[null,null,null,"Errors for individual Result instances do not get bubbled up to DiagnosticsState."]
[]
[null,null,null,"A failure on a specific attempt does not mean that the overall test failed, but a failure on all attempts means that DiagnosticsState SHOULD be Error_Other. Enumeration of:"]
[]
[null,null,null,"Success"]
[null,null,null,"Error_DNSServerNotAvailable"]
[null,null,null,"Error_HostNameNotResolved"]
[null,null,null,"Error_Timeout"]
[null,null,null,"Error_Other"]
[]
["AnswerType","string","-","Result parameter to represent whether the answer is Authoritative or not. Enumeration of:","-",2,"MAY"]
[]
[null,null,null,"None (Indicates that the NS Lookup failed to find the host)"]
[null,null,null,"Authoritative"]
[null,null,null,"NonAuthoritative"]
[]
["HostNameReturned","string­(256)","-","Result parameter to represent the fully qualified name for the Host Name in the calling parameter (e.g. HostName.DomainName); if no response was provided, then this parameter is an empty string.","-",2,"MAY"]
["IPAddresses","string­(45)","-","[IPAddress] Comma-separated list (up to 10 items) of IPAddresses. Indicates the IP Address results returned by the NS Lookup; if no response was provided, then this parameter is an empty string.","-",2,"MAY"]
["DNSServerIP","string­(45)","-","[IPAddress] Result parameter to represent the actual DNS Server IP address that the NS Lookup used.","-",2,"MAY"]
["ResponseTime","unsignedInt","-","Response time (for the first response packet) in milliseconds, or 0 if no response was received.","-",2,"MAY"]
["Device.UPnP.","object","-","This object contains all UPnP related objects and parameters including Device and Discovery related objects and parameters.","-",2,"MUST"]
["Device.UPnP.Device.","object","-","This object defines the UPnP devices and UPnP services that are implemented by the CPE.","-",2,"MAY"]
["Enable","boolean","W","Enables/Disables UPnP support.","-",2,"MAY"]
["UPnPMediaRenderer","boolean","W","Enables/Disables UPnP Media Renderer.","-",2,"MAY"]
["Device.UPnP.Device.Capabilities.","object","-","This object defines what UPnP capabilities this device has.","-",2,"MAY"]
["UPnPArchitecture","unsignedInt","-","Numeric value indicating the major version of the supported UPnP architecture.","-",2,"MAY"]
[]
[null,null,null,"If UPnP 1.1 is supported the value is 1. If UPnP 2.0 is supported the value is 2."]
[]
[null,null,null,"A value of 0 indicates no UPnP support."]
["UPnPArchitectureMinorVer","unsignedInt","-","Numeric value indicating the minor version of the supported UPnP architecture.","-",2,"MAY"]
[]
[null,null,null,"If UPnP 1.1 is supported the value is 1. If UPnP 2.0 is supported the value is 0."]
[]
[null,null,null,"If UPnPArchitecture is 0 then this parameter SHOULD be ignored."]
["UPnPMediaRenderer","unsignedInt","-","Numeric value indicating the supported revision for UPnP Media Renderer.","-",2,"MAY"]
[]
[null,null,null,"A value of 0 indicates no support."]
["Device.UPnP.Discovery.","object","-","UPnP [UPnP-DAv1] SSDP discovered root devices, embedded devices and embedded services.","-",2,"MUST"]
[]
[null,null,null,"The CPE MAY, but need not, retain some or all of the information in this object across reboots."]
["RootDeviceNumberOfEntries","unsignedInt","-","The number of entries in the RootDevice table.","-",2,"MUST"]
["DeviceNumberOfEntries","unsignedInt","-","The number of entries in the Device table.","-",2,"MUST"]
["ServiceNumberOfEntries","unsignedInt","-","The number of entries in the Service table.","-",2,"MUST"]
["Device.UPnP.Discovery.RootDevice.{i}.","object","-","UPnP root device table. This table contains an entry for each UPnP root device that has been discovered via SSDP.","-",2,"MUST"]
[]
[null,null,null,"At most one entry in this table can exist with a given value for UUID."]
["Status","string","-","The status of the UPnP root device. Enumeration of:","-",2,"MUST"]
[]
[null,null,null,"LeaseActive (Device is active and UPnP lease has not expired)"]
[null,null,null,"LeaseExpired (Device is inactive because UPnP lease has expired)"]
[null,null,null,"ByebyeReceived (Device is inactive because byebye message was received)"]
[]
[null,null,null,"The ability to list inactive UPnP root devices is OPTIONAL. The length of time an inactive device remains listed in this table is a local matter to the CPE."]
["UUID","string­(36)","-","This UPnP root device's UUID (Universally Unique IDentifier) [RFC4122], extracted from any of its USN (Unique Service Name) headers. This is a 36-byte string that uniquely identifies the device, the following is an example:","-",2,"MUST"]
[]
[null,null,null,"02c29d2a-dbfd-2d91-99c9-306d537e9856"]
[]
[null,null,null,"[0-9A-Fa-f]{8}-([0-9A-Fa-f]{4}-){3}[0-9A-Fa-f]{12}"]
[]
["USN","string­(256)","-","The value of the USN (Unique Service Name) header for this UPnP root device. Three discovery messages are sent for root devices, and this SHOULD be the value of the USN header of the following form:","-",2,"MUST"]
[]
[null,null,null,"uuid:device-UUID::urn:domain-name:device:deviceType:v"]
[]
[null,null,null,"SSDP is an unreliable protocol and it is possible that no discovery message containing the USN header of the above form was ever received. If so, one of the other two forms MAY be used:"]
[]
[null,null,null,"uuid:device-UUID::upnp:rootdevice"]
[null,null,null,"uuid:device-UUID (for root device UUID)"]
[]
["LeaseTime","unsignedInt","-","The UPnP root device lease time in seconds, extracted from the CACHE-CONTROL header.","-",2,"MUST"]
["Location","string­(256)","-","The value of the LOCATION header for this UPnP root device, which is the URL of the root device's DDD (Device Description Document).","-",2,"SHOULD"]
["Server","string­(256)","-","The value of the SERVER header for this UPnP root device, which is a string of the following form:","-",2,"MUST"]
[]
[null,null,null,"OS/version UPnP/udaversion product/version"]
[]
[null,null,null,"where UPnP is a literal string, udaversion is the version of the UPnP Device Architecture."]
["LastUpdate","dateTime","-","The date and time at which the last advertisement from this RootDevice was received.","-",2.6,"MUST"]
["Device.UPnP.Discovery.Device.{i}.","object","-","UPnP embedded device table. This table contains an entry for each UPnP embedded device that has been discovered via SSDP.","-",2,"MUST"]
[]
[null,null,null,"At most one entry in this table can exist with a given value for UUID."]
["Status","string","-","The status of the UPnP embedded device. Enumeration of:","-",2,"MUST"]
[]
[null,null,null,"LeaseActive (Device is active and UPnP lease has not expired)"]
[null,null,null,"LeaseExpired (Device is inactive because UPnP lease has expired)"]
[null,null,null,"ByebyeReceived (Device is inactive because byebye message was received)"]
[]
[null,null,null,"The ability to list inactive UPnP embedded devices is OPTIONAL. The length of time an inactive device remains listed in this table is a local matter to the CPE."]
["UUID","string­(36)","-","This UPnP embedded device's UUID (Universally Unique IDentifier) [RFC4122], extracted from any of its USN (Unique Service Name) headers. This is a 36-byte string that uniquely identifies the device, the following is an example:","-",2,"MUST"]
[]
[null,null,null,"02c29d2a-dbfd-2d91-99c9-306d537e9856"]
[]
[null,null,null,"[0-9A-Fa-f]{8}-([0-9A-Fa-f]{4}-){3}[0-9A-Fa-f]{12}"]
[]
["USN","string­(256)","-","The value of the USN (Unique Service Name) header for this UPnP embedded device. Two discovery messages are sent for embedded devices, and this SHOULD be the value of the USN header of the following form:","-",2,"MUST"]
[]
[null,null,null,"uuid:device-UUID::urn:domain-name:device:deviceType:v"]
[]
[null,null,null,"SSDP is an unreliable protocol and it is possible that no discovery message containing the USN header of the above form was ever received. If so, the other form MAY be used:"]
[]
[null,null,null,"uuid:device-UUID"]
[]
["LeaseTime","unsignedInt","-","The UPnP embedded device lease time in seconds, extracted from the CACHE-CONTROL header.","-",2,"MUST"]
["Location","string­(256)","-","The value of the LOCATION header for this UPnP embedded device, which is the URL of the root device's DDD (Device Description Document).","-",2,"SHOULD"]
["Server","string­(256)","-","The value of the SERVER header for this UPnP embedded device, which is a string of the following form:","-",2,"MUST"]
[]
[null,null,null,"OS/version UPnP/udaversion product/version"]
[]
[null,null,null,"where UPnP is a literal string, udaversion is the version of the UPnP Device Architecture."]
["LastUpdate","dateTime","-","The date and time at which the last advertisement from this Device was received.","-",2.6,"MUST"]
["Device.UPnP.Discovery.Service.{i}.","object","-","UPnP embedded service table. This table contains an entry for each UPnP embedded service that has been discovered via SSDP.","-",2,"MUST"]
[]
[null,null,null,"At most one entry in this table can exist with a given value for USN."]
["Status","string","-","The status of the UPnP embedded service. Enumeration of:","-",2,"MUST"]
[]
[null,null,null,"LeaseActive (Service is active and UPnP lease has not expired)"]
[null,null,null,"LeaseExpired (Service is inactive because UPnP lease has expired)"]
[null,null,null,"ByebyeReceived (Service is inactive because byebye message was received)"]
[]
[null,null,null,"The ability to list inactive UPnP embedded services is OPTIONAL. The length of time an inactive service remains listed in this table is a local matter to the CPE."]
["USN","string­(256)","-","The value of the USN (Unique Service Name) header for this UPnP embedded service. This is of the following form:","-",2,"MUST"]
[]
[null,null,null,"uuid:device-UUID::urn:domain-name:service:serviceType:v"]
[]
["LeaseTime","unsignedInt","-","The UPnP embedded service lease time in seconds, extracted from the CACHE-CONTROL header.","-",2,"MUST"]
["Location","string­(256)","-","The value of the LOCATION header for this UPnP embedded service, which is the URL of the root device's DDD (Device Description Document).","-",2,"SHOULD"]
["Server","string­(256)","-","The value of the SERVER header for this UPnP embedded service, which is a string of the following form:","-",2,"MUST"]
[]
[null,null,null,"OS/version UPnP/udaversion product/version"]
[]
[null,null,null,"where UPnP is a literal string, udaversion is the version of the UPnP Device Architecture."]
["LastUpdate","dateTime","-","The date and time at which the last advertisement from this Service was received.","-",2.6,"MUST"]
["ParentDevice","string­(256)","-","The value MUST be the path name of the RootDevice or Device table entries that embeds this Service. If the referenced object is deleted, the parameter value MUST be set to an empty string. This parameter is populated by extracting the \"device-UUID\" from the service's USN and matching the value against the root device or embedded device UUID value.","-",2.6,"MUST"]
["Device.UPnP.Description.","object","-","This object contains information from the Description Document discovered from the UPnP Devices and Services.","-",2.6,"SHOULD"]
["DeviceInstanceNumberOfEntries","unsignedInt","-","The number of entries in the DeviceInstance table.","-",2.6,"SHOULD"]
["ServiceInstanceNumberOfEntries","unsignedInt","-","The number of entries in the ServiceInstance table.","-",2.6,"SHOULD"]
["Device.UPnP.Description.DeviceInstance.{i}.","object","-","This table contains the information from Device Description Document retrieved for a discovered UPnP root or embedded device.","-",2.6,"SHOULD"]
[]
[null,null,null,"At most one entry in this table can exist with a given value for UDN."]
["UDN","string­(36:36)","-","[UUID] Unique Device Name of this device represented as a UUID for the device.","-",2.6,"SHOULD"]
[]
[null,null,null,"This value is extracted from the UDN element in the Device Description Document with the leading uuid: removed."]
["ParentDevice","string­(256)","-","The value MUST be the path name of a DeviceInstance table entry (if this is an embedded device) or an empty string (if this is a root device). If the referenced object is deleted, the parameter value MUST be set to an empty string.","-",2.6,"SHOULD"]
["DiscoveryDevice","string­(256)","-","The value MUST be the path name of a Discovery.RootDevice table entry (if this is a root device) or a Discovery.Device table entry (if this is an embedded device). If the referenced object is deleted, the parameter value MUST be set to an empty string.","-",2.6,"SHOULD"]
[]
[null,null,null,"This DiscoveryDevice value can be an empty string because the referenced object has been deleted or the CPE was unable to retrieve the Description Document due to some out-of-band error. The determination to delete this DeviceInstance or use an empty string is implementation specific."]
["DeviceType","string­(256)","-","The value of the UPnP deviceType element in the Device Description Document for this DeviceInstance, or an empty string if this value is not provided by the device.","-",2.6,"SHOULD"]
["FriendlyName","string­(128)","-","The value of the UPnP friendlyName element in the Device Description Document for this DeviceInstance, or an empty string if this value is not provided by the device.","-",2.6,"SHOULD"]
["Manufacturer","string­(128)","-","The value of the UPnP manufacturer element in the Device Description Document for this DeviceInstance, or an empty string if this value is not provided by the device.","-",2.6,"SHOULD"]
["ManufacturerURL","string­(256)","-","The value of the UPnP manufacturerURL element in the Device Description Document for this DeviceInstance, or an empty string if this value is not provided by the device.","-",2.6,"SHOULD"]
["ModelDescription","string­(256)","-","The value of the UPnP modelDescription element in the Device Description Document for this DeviceInstance, or an empty string if this value is not provided by the device.","-",2.6,"SHOULD"]
["ModelName","string­(64)","-","The value of the UPnP modelName element in the Device Description Document for this DeviceInstance, or an empty string if this value is not provided by the device.","-",2.6,"SHOULD"]
["ModelNumber","string­(64)","-","The value of the UPnP modelNumber element in the Device Description Document for this DeviceInstance, or an empty string if this value is not provided by the device.","-",2.6,"SHOULD"]
["ModelURL","string­(256)","-","The value of the UPnP modelURL element in the Device Description Document for this DeviceInstance, or an empty string if this value is not provided by the device.","-",2.6,"SHOULD"]
["SerialNumber","string­(128)","-","The value of the UPnP serialNumber element in the Device Description Document for this DeviceInstance, or an empty string if this value is not provided by the device.","-",2.6,"SHOULD"]
["UPC","string­(12)","-","The value of the UPnP UPC element in the Device Description Document for this DeviceInstance, or an empty string if this value is not provided by the device.","-",2.6,"SHOULD"]
["PresentationURL","string­(256)","-","The value of the UPnP presentationURL element in the Device Description Document for this DeviceInstance and MUST be an absolute URL.","-",2.6,"SHOULD"]
[]
[null,null,null,"The way to obtain an absolute URL from the presentationURL element is specified in [UPnP-DAv1] and [UPnP-DAv11]."]
[]
[null,null,null,"If the presentationURL is not provided by the device then this value MUST be an empty string."]
["Device.UPnP.Description.ServiceInstance.{i}.","object","-","This table contains the information from Device Description Document retrieved for a discovered UPnP service.","-",2.6,"SHOULD"]
[]
[null,null,null,"At most one entry in this table can exist with the same values for ParentDevice and ServiceId."]
["ParentDevice","string­(256)","-","The value MUST be the path name of a DeviceInstance table entry. If the referenced object is deleted, the parameter value MUST be set to an empty string.","-",2.6,"SHOULD"]
["ServiceId","string­(256)","-","The value of the UPnP serviceId element in the Device Description Document for this ServiceInstance, or an empty string if this value is not provided by the service.","-",2.6,"SHOULD"]
[]
[null,null,null,"If the UPnP serviceId is not provided by the UPnP service, this ServiceInstance MUST be deleted."]
["ServiceDiscovery","string­(256)","-","The value MUST be the path name of a Discovery.Service table entry. If the referenced object is deleted, the parameter value MUST be set to an empty string.","-",2.6,"SHOULD"]
[]
[null,null,null,"This ServiceDiscovery value can be an empty string because the referenced object has been deleted or the CPE was unable to retrieve the Description Document due to some out-of-band error. The determination to delete this ServiceInstance or use an empty string is implementation specific."]
["ServiceType","string­(256)","-","The value of the UPnP serviceType element in the Device Description Document for this ServiceInstance, or an empty string if this value is not provided by the service.","-",2.6,"SHOULD"]
["SCPDURL","string","-","The value of the UPnP SCPDURL element in the Device Description Document for this ServiceInstance and MUST be an absolute URL.","-",2.6,"SHOULD"]
[]
[null,null,null,"The way to obtain an absolute URL from the SCPDURL element is specified in [UPnP-DAv1] and [UPnP-DAv11]."]
[]
[null,null,null,"If the SCPDURL is not provided by the device then this value MUST be an empty string."]
["ControlURL","string","-","The value of the UPnP controlURL element in the Device Description Document for this ServiceInstance and MUST be an absolute URL.","-",2.6,"SHOULD"]
[]
[null,null,null,"The way to obtain an absolute URL from the controlURL element is specified in [UPnP-DAv1] and [UPnP-DAv11]."]
[]
[null,null,null,"If the controlURL is not provided by the device then this value MUST be an empty string"]
["EventSubURL","string","-","The value of the UPnP eventSubURL element in the Device Description Document for this ServiceInstance and MUST be an absolute URL.","-",2.6,"SHOULD"]
[]
[null,null,null,"The way to obtain an absolute URL from the eventSubURLL element is specified in [UPnP-DAv1] and [UPnP-DAv11]."]
[]
[null,null,null,"If the eventSubURL is not provided by the device then this value MUST be an empty string"]
["Device.SelfTestDiagnostics.","object","-","This diagnostics test is vendor-specific and MAY include testing hardware, software, and/or firmware.","-",2,"SHOULD"]
["DiagnosticsState","string","W","Indicates availability of diagnostic data. Enumeration of:","-",2,"SHOULD"]
[]
[null,null,null,"None"]
[null,null,null,"Requested"]
[null,null,null,"Complete"]
[null,null,null,"Error_Internal"]
[null,null,null,"Error_Other"]
[]
[null,null,null,"If the ACS sets the value of this parameter to Requested, the CPE MUST initiate the corresponding diagnostic test. When writing, the only allowed value is Requested. To ensure the use of the proper test parameters (the writable parameters in this object), the test parameters MUST be set either prior to or at the same time as (in the same SetParameterValues) setting the DiagnosticsState to Requested."]
[]
[null,null,null,"When requested, the CPE SHOULD wait until after completion of the communication session with the ACS before starting the diagnostic."]
[]
[null,null,null,"When the test is completed, the value of this parameter MUST be either Complete (if the test completed successfully), or one of the Error values listed above."]
[]
[null,null,null,"If the value of this parameter is anything other than Complete, the values of the results parameters for this test are indeterminate."]
[]
[null,null,null,"When the diagnostic initiated by the ACS is completed (successfully or not), the CPE MUST establish a new connection to the ACS to allow the ACS to view the results, indicating the Event code \"8 DIAGNOSTICS COMPLETE\" in the Inform message."]
[]
[null,null,null,"After the diagnostic is complete, the value of all result parameters (all read-only parameters in this object) MUST be retained by the CPE until either this diagnostic is run again, or the CPE reboots. After a reboot, if the CPE has not retained the result parameters from the most recent test, it MUST set the value of this parameter to None."]
[]
[null,null,null,"Modifying any of the writable parameters in this object except for this one MUST result in the value of this parameter being set to None."]
[]
[null,null,null,"While the test is in progress, modifying any of the writable parameters in this object except for this one MUST result in the test being terminated and the value of this parameter being set to None."]
[]
[null,null,null,"While the test is in progress, setting this parameter to Requested (and possibly modifying other writable parameters in this object) MUST result in the test being terminated and then restarted using the current values of the test parameters."]
["Results","string­(1024)","-","Results of self-test (vendor specific).","-",2,"SHOULD"]
["Device.XMPP.","object","-","The XMPP represents the XMPP capabilities of the device as described in [Appendix III/TR-069a5].","-",2.7,"MUST"]
["ConnectionNumberOfEntries","unsignedInt","-","The number of entries in the Connection table.","-",2.7,"MUST"]
["Device.XMPP.Connection.{i}.","object","W","The Connection represents a XMPP connection between the device and a server. The Username, Domain and Resource comprise the full identity (JabberID) of this Connection for this device.","-",2.7,"MUST"]
[]
[null,null,null,"At most one entry in this table (regardless of whether or not it is enabled) can exist with a given value for Alias. On creation of a new table entry, the CPE MUST choose an initial value for Alias such that the new entry does not conflict with any existing entries."]
[]
[null,null,null,"At most one enabled entry in this table can exist with all the same values for Username, Domain and Resource."]
["Enable","boolean","W","Enables or disables this Connection.",false,2.7,"MUST"]
[]
[null,null,null,"This parameter is based on ifAdminStatus from [RFC2863]."]
["Alias","string­(64)","W","A non-volatile handle used to reference this instance. Alias provides a mechanism for an ACS to label this instance for future reference.","-",2.7,"N/A"]
[]
[null,null,null,"If the CPE supports the Alias-based Addressing feature as defined in [Section 3.6.1/TR-069a4] and described in [Appendix II/TR-069a4], the following mandatory constraints MUST be enforced:"]
[]
[null,null,null,"Its value MUST NOT be empty."]
[null,null,null,"Its value MUST start with a letter."]
[null,null,null,"If its value is not assigned by the ACS, it MUST start with a \"cpe-\" prefix."]
[null,null,null,"The CPE MUST NOT change the parameter value."]
[]
["Username","string­(256)","W","The proposed local-part of the Jabber ID of this Connection, and the value to be used to authenticate this Connection when making a connection to the Server using the procedure outlined in [Section 6/RFC6120].","-",2.7,"MUST"]
["Password","string­(256)","W","Password used to authenticate this Connection when making a connection to the Server using the procedure outlined in [Section 6/RFC6120].","-",2.7,"MUST"]
[]
[null,null,null,"Note that on a factory reset of the CPE, the value of this parameter might be reset to its factory value. If an ACS modifies the value of this parameter, it SHOULD be prepared to accommodate the situation that the original value is restored as the result of a factory reset."]
[]
[null,null,null,"When read, this parameter returns an empty string, regardless of the actual value."]
["Domain","string­(64)","W","The proposed domain-part of the Jabber ID of this Connection.","-",2.7,"MUST"]
["Resource","string­(64)","W","The proposed resource-part of the Jabber ID of this Connection.","-",2.7,"MUST"]
["JabberID","string","-","The complete Jabber ID as determined by the first-hop XMPP server at time of connection establishment. This Jabber ID will usually be the standard concatentation of the local-part (Username), domain-part (Domain), and resource-part (Resource) as defined in [Section 2.1/RFC6120] (local-part@domain-part/resource-part), but since the Jabber ID is owned by the first-hop XMPP Server there are cases where the value will be different.","-",2.7,"MUST"]
["Status","string","-","The current operational state of this Connection (see [Section 4.2.2/TR-181i2]). Enumeration of:","-",2.7,"MUST"]
[]
[null,null,null,"Enabled"]
[null,null,null,"Disabled"]
[null,null,null,"Unknown"]
[null,null,null,"Dormant"]
[null,null,null,"Connecting"]
[null,null,null,"ServerNotPresent"]
[null,null,null,"Error_Misconfigured"]
[null,null,null,"Error_AuthenticationFailure"]
[null,null,null,"Error (OPTIONAL)"]
[]
[null,null,null,"When Enable is false then Status SHOULD normally be Disabled or Error if there is a fault condition on the interface)."]
[]
[null,null,null,"When Enable is changed to true then Status SHOULD change to Enabled if and only if the interface is able to transmit and receive PDUs; it SHOULD change to Dormant if and only if the interface is operable but is waiting for external actions before it can transmit and receive network traffic (and subsequently change to Enabled if still operable when the expected actions have completed); it SHOULD change to Unknown if the state of the interface can not be determined for some reason."]
["LastChangeDate","dateTime","-","The date and time at which this Connection entered into its current operational state.","-",2.7,"MUST"]
["ServerConnectAlgorithm","string","W","The algorithm the Connection uses when connecting with the associated lists of servers. Enumeration of:","\"DNS-SRV\"",2.7,"MUST"]
[]
[null,null,null,"DNS-SRV (Use the connection algorithm as specified in [Section 3.2/RFC6120] where the value of the Domain parameter is used to look up the server address and port to use)"]
[null,null,null,"ServerTable (Use the instances of the Server table based on the values of the Server.{i}.Priority and Server.{i}.Weight parameters as the basis for reconnect. Instances must be reachable and reachable instances with the lowest value MUST be preferred)"]
[]
["KeepAliveInterval","long­[-1:]","W","The number of seconds that keep alive events as specified in [Section 4.6.1/RFC6120] are sent by this Connection.",-1,2.7,"MUST"]
[]
[null,null,null,"A value of 0 disables the keep alive functionality. A value of -1 indicates that the keep alive interval is a vendor specific implementation."]
[]
[null,null,null,"[Section 4.6.4/RFC6120] recommends not checking more frequently than every 5 minutes (or 300 seconds)."]
["ServerConnectAttempts","unsignedInt","W","The number of times that this Connection attempts to connect to a given IP address before moving on to the current server's next IP address, or to the next server if the current server has no more IP addresses.",16,2.7,"MUST"]
[]
[null,null,null,"If ServerConnectAttempts, ServerRetryInitialInterval, ServerRetryIntervalMultiplier and ServerRetryMaxInterval all have their default values, the maximum reconnection wait intervals, in minutes, will be {1, 2, 4, 8, 16, 32, 64, 128, 256, 512, 512, 512, 512, 512, 512}. After the initial attempt there are 15 further attempts, making a total of 16. The maximum reconnection wait interval is reached on the 10th retry, i.e. the 11th attempt."]
[]
[null,null,null,"NOTE: If this Connection fails to connect to any of the servers' IP addresses, fallback behavior SHOULD be as specified in [Section 3.2/RFC6120]."]
[]
[null,null,null,"NOTE: If the value of this parameter is 0, server connection and reconnection behavior is implementation-dependent."]
["ServerRetryInitialInterval","unsignedInt­[1:65535]","W","The maximum first reconnection wait interval, in seconds, as specified in [Annex K XMPP Connection Request/TR-069a5].",60,2.7,"MUST"]
[]
[null,null,null,"The Device MUST use a random value between 0 and ServerRetryInitialInterval as the first reconnection wait interval."]
[]
[null,null,null,"NOTE: If the value of the ServerConnectAttempts parameter is 0, the value of this parameter is ignored."]
["ServerRetryIntervalMultiplier","unsignedInt­[1000:65535]","W","The reconnection interval multiplier as specified in [Annex K XMPP Connection Request/TR-069a5]. This value is expressed in units of 0.001. Hence the values of the multiplier range between 1.000 and 65.535.",2000,2.7,"MUST"]
[]
[null,null,null,"For the nth reconnection wait interval, the Device MUST use a random value, in seconds, between 0 and ServerRetryInitialInterval * (ServerRetryIntervalMultiplier / 1000) ** (n - 1)."]
[]
[null,null,null,"NOTE: If the value of the ServerConnectAttempts parameter is 0, the value of this parameter is ignored."]
["ServerRetryMaxInterval","unsignedInt­[1:]","W","The maximum reconnection wait interval, in seconds.",30720,2.7,"MUST"]
[]
[null,null,null,"If the nth reconnection wait interval calculated from ServerRetryInitialInterval and ServerRetryIntervalMultiplier exceeds the value of this parameter, then the Device MUST use the value of this parameter as the next reconnection wait interval."]
[]
[null,null,null,"NOTE: If the value of the ServerConnectAttempts parameter is 0, the value of this parameter is ignored."]
["UseTLS","boolean","W","This parameter allows an ACS to configure whether or not this XMPP Connection is required to use TLS independent of whether or not the XMPP Server that is being connected to is configured for TLS \"mandatory-to-negotiate\".",false,2.7,"MUST"]
[]
[null,null,null,"If the value of UseTLS is true then the CPE will initiate TLS negotiation if not required to by the XMPP Server."]
[]
[null,null,null,"If the value of UseTLS is false then the CPE will not initiate TLS negotiation if not required to by the XMPP Server."]
["TLSEstablished","boolean","-","This parameter represents the TLS state of this XMPP Connection.","-",2.7,"MUST"]
[]
[null,null,null,"If this XMPP Connection is established and is secured by TLS then the value of this parameter is true."]
[]
[null,null,null,"If this XMPP Connection is either not established or established but not secured by TLS then the value of this parameter is false."]
["ServerNumberOfEntries","unsignedInt","-","The number of entries in the Server table.","-",2.7,"MUST"]
["Device.XMPP.Connection.{i}.Server.{i}.","object","W","The Server represents an XMPP server to be used for a Connection.","-",2.7,"MUST"]
[]
[null,null,null,"This table is only relevant when Connection.{i}.ServerConnectAlgorithm is set to ServerTable. If Connection.{i}.ServerConnectAlgorithm is set to DNS-SRV then any instances of this table are ignored by this Connection."]
[]
[null,null,null,"At most one entry in this table (regardless of whether or not it is enabled) can exist with a given value for Alias. On creation of a new table entry, the CPE MUST choose an initial value for Alias such that the new entry does not conflict with any existing entries."]
[]
[null,null,null,"At most one enabled entry in this table can exist with the same values for ServerAddress and Port."]
["Enable","boolean","W","Enables or disables this Server.",false,2.7,"MUST"]
[]
[null,null,null,"This parameter is based on ifAdminStatus from [RFC2863]."]
["Alias","string­(64)","W","A non-volatile handle used to reference this instance. Alias provides a mechanism for an ACS to label this instance for future reference.","-",2.7,"N/A"]
[]
[null,null,null,"If the CPE supports the Alias-based Addressing feature as defined in [Section 3.6.1/TR-069a4] and described in [Appendix II/TR-069a4], the following mandatory constraints MUST be enforced:"]
[]
[null,null,null,"Its value MUST NOT be empty."]
[null,null,null,"Its value MUST start with a letter."]
[null,null,null,"If its value is not assigned by the ACS, it MUST start with a \"cpe-\" prefix."]
[null,null,null,"The CPE MUST NOT change the parameter value."]
[]
["Priority","unsignedInt­[0:65535]","W","The priority of this Server that is used by the Connection when determining the Server to connect. The Connection MUST contact the Server with the lowest-numbered priority that the Connection can reach as defined in [RFC2782]. The selection of Servers with the same Priority value utilizes the Weight parameter to determine which Server is selected by the Connection.","-",2.7,"MUST"]
["Weight","long­[-1:65535]","W","This parameter specifies a relative weight for entries with the same Priority. The mechanism is defined in [RFC2782]. A value of -1 indicates that the implementation of this parameter is specific to the Vendor.","-",2.7,"MUST"]
["ServerAddress","string­(256)","W","Fully Qualified Domain Name (FQDN) or IP address of the XMPP server for this Connection.","-",2.7,"MUST"]
[]
[null,null,null,"If the value of this Parameter is a FQDN that resolves to multiple addresses then each address SHOULD be attemtped (in an implemnetation-specific order) until a connection can be made or all addresses are exhausted, in which case the next Server instance (based on Priority and Weight) SHOULD be used."]
["Port","unsignedInt­[0:65535]","W","Port number of the XMPP server for this Connection.",5222,2.7,"MUST"]
["Device.XMPP.Connection.{i}.Stats.","object","-","XMPP Connection statistics information for this resource.","-",2.7,"MUST"]
["ReceivedMessages","unsignedInt","-","The number of XMPP stanzas (iq, presence, or message) that have been received on this Connection.",0,2.7,"MUST"]
["TransmittedMessages","unsignedInt","-","The number of XMPP stanzas (iq, presence, or message) that have been transmitted by this Connection.",0,2.7,"MUST"]
["ReceivedErrorMessages","unsignedInt","-","The number of XMPP stanzas (iq, presence, or message) that have been received on this Connection where the type attribute had a value of \"error\".",0,2.7,"MUST"]
["TransmittedErrorMessages","unsignedInt","-","The number of XMPP stanzas (iq, presence, or message) that have been transmitted by this Connection where the type attribute had a value of \"error\".",0,2.7,"MUST"]
[]
[]
["# of Parameters",{"$f":"COUNTA(G3:G2242)","v":547}]
["# of \"MUST\" Parameters",{"$f":"COUNTIF(G3:G2242,\"MUST\")","v":275}]
["# of \"MUST\" Parameters with cond.",{"$f":"COUNTIF(G3:G2242,\"MUST*\")-B2245","v":0}]
["# of \"SHOULD\" Parameters",{"$f":"COUNTIF(G3:G2242,\"SHOULD\")","v":117}]
["# of \"MAY\" Parameters",{"$f":"COUNTIF(G3:G22132,\"MAY\")","v":63}]
["# of \"If Applicable\" Parameters",{"$f":"COUNTIF(G3:G2242,\"If Applicable\")","v":1}]
["# of \"IN_FUTURE\" Parameters",{"$f":"COUNTIF(G3:G2242,\"IN_FUTURE\")","v":73}]
["# of \"N/A\" Parameters",{"$f":"COUNTIF(G3:G2242,\"N/A\")","v":18}]
["# of \"UNKNOWN\" Parameters",{"$f":"COUNTIF(G3:G2242,\"UNKNOWN\")","v":0}]

{"sheet":"TR-135 STB","index":2,"n_rows":339,"n_cols":9,"rows_kept":339,"cut":false,"hidden":false,"merged":[[323,7,325,7],[323,8,325,8],[323,0,325,0],[323,1,325,1],[323,2,325,2],[323,4,325,4],[323,5,325,5],[323,6,325,6],[304,7,308,7],[304,8,308,8],[310,0,316,0],[310,1,316,1],[310,2,316,2],[310,4,316,4],[310,5,316,5],[310,6,316,6],[310,7,316,7],[310,8,316,8],[304,0,308,0],[304,1,308,1],[304,2,308,2],[304,4,308,4],[304,5,308,5],[304,6,308,6],[285,7,293,7],[285,8,293,8],[295,0,303,0],[295,1,303,1],[295,2,303,2],[295,4,303,4],[295,5,303,5],[295,6,303,6],[295,7,303,7],[295,8,303,8],[285,0,293,0],[285,1,293,1],[285,2,293,2],[285,4,293,4],[285,5,293,5],[285,6,293,6],[274,7,276,7],[274,8,276,8],[278,0,284,0],[278,1,284,1],[278,2,284,2],[278,4,284,4],[278,5,284,5],[278,6,284,6],[278,7,284,7],[278,8,284,8],[274,0,276,0],[274,1,276,1],[274,2,276,2],[274,4,276,4],[274,5,276,5],[274,6,276,6],[268,7,270,7],[268,8,270,8],[271,0,273,0],[271,1,273,1],[271,2,273,2],[271,4,273,4],[271,5,273,5],[271,6,273,6],[271,7,273,7],[271,8,273,8],[268,0,270,0],[268,1,270,1],[268,2,270,2],[268,4,270,4],[268,5,270,5],[268,6,270,6],[245,7,264,7],[245,8,264,8],[265,0,267,0],[265,1,267,1],[265,2,267,2],[265,4,267,4],[265,5,267,5],[265,6,267,6],[265,7,267,7],[265,8,267,8],[245,0,264,0],[245,1,264,1],[245,2,264,2],[245,4,264,4],[245,5,264,5],[245,6,264,6],[234,7,240,7],[234,8,240,8],[242,0,244,0],[242,1,244,1],[242,2,244,2],[242,4,244,4],[242,5,244,5],[242,6,244,6],[242,7,244,7],[242,8,244,8],[234,0,240,0],[234,1,240,1],[234,2,240,2],[234,4,240,4],[234,5,240,5],[234,6,240,6],[217,7,224,7],[217,8,224,8],[225,0,233,0],[225,1,233,1],[225,2,233,2],[225,4,233,4],[225,5,233,5],[225,6,233,6],[225,7,233,7],[225,8,233,8],[217,0,224,0],[217,1,224,1],[217,2,224,2],[217,4,224,4],[217,5,224,5],[217,6,224,6],[208,7,210,7],[208,8,210,8],[213,0,215,0],[213,1,215,1],[213,2,215,2],[213,4,215,4],[213,5,215,5],[213,6,215,6],[213,7,215,7],[213,8,215,8],[208,0,210,0],[208,1,210,1],[208,2,210,2],[208,4,210,4],[208,5,210,5],[208,6,210,6],[191,7,197,7],[191,8,197,8],[198,0,206,0],[198,1,206,1],[198,2,206,2],[198,4,206,4],[198,5,206,5],[198,6,206,6],[198,7,206,7],[198,8,206,8],[191,0,197,0],[191,1,197,1],[191,2,197,2],[191,4,197,4],[191,5,197,5],[191,6,197,6],[178,7,185,7],[178,8,185,8],[187,0,189,0],[187,1,189,1],[187,2,189,2],[187,4,189,4],[187,5,189,5],[187,6,189,6],[187,7,189,7],[187,8,189,8],[178,0,185,0],[178,1,185,1],[178,2,185,2],[178,4,185,4],[178,5,185,5],[178,6,185,6],[158,7,165,7],[158,8,165,8],[169,0,176,0],[169,1,176,1],[169,2,176,2],[169,4,176,4],[169,5,176,5],[169,6,176,6],[169,7,176,7],[169,8,176,8],[158,0,165,0],[158,1,165,1],[158,2,165,2],[158,4,165,4],[158,5,165,5],[158,6,165,6],[150,7,152,7],[150,8,152,8],[153,0,155,0],[153,1,155,1],[153,2,155,2],[153,4,155,4],[153,5,155,5],[153,6,155,6],[153,7,155,7],[153,8,155,8],[150,0,152,0],[150,1,152,1],[150,2,152,2],[150,4,152,4],[150,5,152,5],[150,6,152,6],[132,7,139,7],[132,8,139,8],[140,0,148,0],[140,1,148,1],[140,2,148,2],[140,4,148,4],[140,5,148,5],[140,6,148,6],[140,7,148,7],[140,8,148,8],[132,0,139,0],[132,1,139,1],[132,2,139,2],[132,4,139,4],[132,5,139,5],[132,6,139,6],[123,7,127,7],[123,8,127,8],[128,0,130,0],[128,1,130,1],[128,2,130,2],[128,4,130,4],[128,5,130,5],[128,6,130,6],[128,7,130,7],[128,8,130,8],[123,0,127,0],[123,1,127,1],[123,2,127,2],[123,4,127,4],[123,5,127,5],[123,6,127,6],[105,7,112,7],[105,8,112,8],[113,0,121,0],[113,1,121,1],[113,2,121,2],[113,4,121,4],[113,5,121,5],[113,6,121,6],[113,7,121,7],[113,8,121,8],[105,0,112,0],[105,1,112,1],[105,2,112,2],[105,4,112,4],[105,5,112,5],[105,6,112,6],[48,7,91,7],[48,8,91,8],[100,0,102,0],[100,1,102,1],[100,2,102,2],[100,4,102,4],[100,5,102,5],[100,6,102,6],[100,7,102,7],[100,8,102,8],[48,0,91,0],[48,1,91,1],[48,2,91,2],[48,4,91,4],[48,5,91,5],[48,6,91,6],[32,0,43,0],[32,1,43,1],[32,2,43,2],[32,4,43,4],[32,5,43,5],[32,6,43,6],[32,7,43,7],[32,8,43,8],[20,0,30,0],[20,1,30,1],[20,2,30,2],[20,4,30,4],[20,5,30,5],[20,6,30,6],[9,0,17,0],[9,1,17,1],[9,2,17,2],[9,4,17,4],[9,5,17,5],[9,6,17,6],[9,7,17,7],[9,8,17,8],[20,7,30,7],[20,8,30,8],[1,0,1,6],[5,0,7,0],[5,1,7,1],[5,2,7,2],[5,4,7,4],[5,5,7,5],[5,6,7,6],[5,7,7,7],[5,8,7,8]]}
["Name","Type","Write","Description","Object Default","Version","Requirement","Impl?\nY/N","Example Data / Comments"]
["TR-135 A2 (STBService:1.2) DataModel Definitions for STB Service"]
["Device.","object","-","The top-level object for a Device.","-",2,"MUST"]
["Device.Services.","object","-","This object contains general services information.","-",2,"MUST"]
["STBServiceNumberOfEntries","unsignedInt","-","Number of entries in the STBService table.","-",1,"MUST"]
["STBService.{i}.","object","-","The top-level object for an STB CPE.","-",1,"MUST"]
[]
[null,null,null,"At most one entry in this table can exist with a given value for Alias."]
["Enable","boolean","W","Enables or disables this STBService instance.","-",1,"MUST"]
["Alias","string­(64)","W","A non-volatile handle used to reference this instance. Alias provides a mechanism for an ACS to label this instance for future reference.","-",1.2,"N/A"]
[]
[null,null,null,"If the CPE supports the Alias-based Addressing feature as defined in [Section 3.6.1/TR-069a4] and described in [Appendix II/TR-069a4], the following mandatory constraints MUST be enforced:"]
[]
[null,null,null,"Its value MUST NOT be empty."]
[null,null,null,"Its value MUST start with a letter."]
[null,null,null,"If its instance object is created by the CPE, the initial value MUST start with a \"cpe-\" prefix."]
[null,null,null,"The CPE MUST NOT change the parameter value."]
[]
["STBService.{i}.Capabilities.","object","-","The overall capabilities of the STB CPE. This is a constant read-only object, meaning that only a firmware update will cause these values to be altered.","-",1,"MUST"]
["STBService.{i}.Capabilities.AudioOutput.","object","-","Audio output capabilities. The audio output stage may include selecting output formats, selecting output connectors, and copy protection.","-",1,"MUST"]
["AudioFormats","string","-","Comma-separated list of strings. Supported audio output formats. Each list item is an enumeration of:","-",1,"MUST"]
[]
[null,null,null,"ANALOG-MONO"]
[null,null,null,"ANALOG-2-CHANNELS"]
[null,null,null,"ANALOG-5.1-CHANNELS"]
[null,null,null,"DIGITAL-OPTICAL-SP/DIF"]
[null,null,null,"DIGITAL-COAXIAL-SP/DIF"]
[null,null,null,"HDMI"]
[null,null,null,"RF (modulated analog signals on coax)"]
[]
[null,null,null,"Note that these refer to supported output formats and not to physical connectors."]
["STBService.{i}.Capabilities.VideoOutput.","object","-","Video output capabilities. The video output stage may include selecting output formats, selecting output connectors, and copy protection.","-",1,"MUST"]
["VideoFormats","string","-","Comma-separated list of strings. Supported video output formats. Each list item is an enumeration of:","-",1,"MUST"]
[]
[null,null,null,"CVBS"]
[null,null,null,"S-Video (same as Y/C)"]
[null,null,null,"YPrPb"]
[null,null,null,"RGsB (RGB with Sync on Green)"]
[null,null,null,"RGB (RGB with external Sync)"]
[null,null,null,"HDMI"]
[null,null,null,"DVI"]
[null,null,null,"RF (modulated analog signals on coax)"]
[]
[null,null,null,"Note that these refer to supported output formats and not to physical connectors."]
["Macrovision","string­(32)","-","Supported version of Macrovision digital content protection standard.","-",1,"MAY"]
["HDCP","string­(32)","-","Supported version of HDCP digital content protection standard.","-",1,"MUST"]
["DisplayFormats","string","-","Comma-separated list of strings. Each entry is a supported display format and MUST be in the form of “x:y”, such as for example “4:3, 16:9, 14:9\".","-",1.1000000000000001,"MUST"]
["STBService.{i}.Capabilities.HDMI.","object","-","This object describes the characteristics of the HDMI interface, if any.","-",1.1000000000000001,"MUST"]
["SupportedResolutions","string","-","Comma-separated list of strings. Video resolutions supported for the HDMI video output. Each list item is an enumeration of:","-",1.1000000000000001,"MUST"]
[]
[null,null,null,"640x480p/60Hz"]
[null,null,null,"1280x720p/60Hz"]
[null,null,null,"1920x1080i/60Hz"]
[null,null,null,"720x480p/60Hz"]
[null,null,null,"720(1440)x480i/60Hz"]
[null,null,null,"1280x720p/50Hz"]
[null,null,null,"1920x1080i/50Hz"]
[null,null,null,"720x576p/50Hz"]
[null,null,null,"720(1440)x240p/60Hz"]
[null,null,null,"2880x480i/60Hz"]
[null,null,null,"2880x240p/60Hz"]
[null,null,null,"1440x480p/60Hz"]
[null,null,null,"1920x1080p/60Hz"]
[null,null,null,"720(1440)x288p/50Hz"]
[null,null,null,"2880x576i/50Hz"]
[null,null,null,"2880x288p/50Hz"]
[null,null,null,"1440x576p/50Hz"]
[null,null,null,"1920x1080p/50Hz"]
[null,null,null,"1920x1080p/24Hz"]
[null,null,null,"1920x1080p/25Hz"]
[null,null,null,"1920x1080p/30Hz"]
[null,null,null,"2880x480p/60Hz"]
[null,null,null,"2880x576p/50Hz"]
[null,null,null,"1920x1080i (1250 total)/50Hz"]
[null,null,null,"720(1440)x480i/120Hz"]
[null,null,null,"720x480p/120Hz"]
[null,null,null,"1920x1080i/120Hz"]
[null,null,null,"1280x720p/120Hz"]
[null,null,null,"720(1440)x480i/240Hz"]
[null,null,null,"720x480p/240Hz"]
[null,null,null,"720(1440)x576i/100Hz"]
[null,null,null,"720x576p/100Hz"]
[null,null,null,"1920x1080i/100Hz"]
[null,null,null,"1280x720p/100Hz"]
[null,null,null,"720(1440)x576i/200Hz"]
[null,null,null,"720x576p/200Hz"]
[null,null,null,"1280x720p/24Hz"]
[null,null,null,"1280x720p/25Hz"]
[null,null,null,"1280x720p/30Hz"]
[null,null,null,"1920x1080p/120Hz"]
[null,null,null,"1920x1080p/100Hz"]
[]
["CECSupport","boolean","-","Indicates whether the STB is supporting HDMI-CEC features as described in [HDMI].","-",1.1000000000000001,"MUST"]
["HDMI3D","boolean","-","Indicates whether the STB is supporting the 3D video formats mandated by [HDMI].","-",1.1000000000000001,"MUST"]
["STBService.{i}.Components.","object","-","Details of STB logical or physical internal components. Unlike the Capabilities object, which is read-only and which doesn't describe individual instances, this object contains some writeable parameters.","-",1,"MUST"]
["VideoDecoderNumberOfEntries","unsignedInt","-","The number of entries in the VideoDecoder table.","-",1,"MUST"]
["AudioOutputNumberOfEntries","unsignedInt","-","The number of entries in the AudioOutput table.","-",1,"MUST"]
["VideoOutputNumberOfEntries","unsignedInt","-","The number of entries in the VideoOutput table.","-",1,"MUST"]
["HDMINumberOfEntries","unsignedInt","-","The number of entries in the HDMI table.","-",1.1000000000000001,"MUST"]
["SPDIFNumberOfEntries","unsignedInt","-","The number of entries in the SPDIF table.","-",1.1000000000000001,"MUST"]
["STBService.{i}.Components.VideoDecoder.{i}.","object","-","Video decoder instance table. It contains data representing the current status of the video decoder.","-",1,"MUST"]
[]
[null,null,null,"At most one entry in this table can exist with a given value for Name, or with a given value for Alias."]
["Enable","boolean","W","Enables or disables this video decoder.","-",1,"SHOULD"]
["X_RDKCENTRAL-COM_Standby","boolean","W","If set to true, puts the decoder in Standby mode.\nIf set to false, puts the decoder in PowerON mode.","-",1,"MUST",null,"This is same as dsSetHostPowerMode() API with PowerMode being set to dsPOWER_STANDBY."]
["Status","string","-","The status of this video decoder. Enumeration of:","-",1,"MUST",null,"This should be linked to dsGetHostPowerMode() API as well to notify on Standby mode."]
[]
[null,null,null,"Disabled"]
[null,null,null,"Enabled"]
[null,null,null,"X_RDKCENTRAL-COM Standby (ie. Enabled & Standby)"]
[null,null,null,"Error (OPTIONAL)"]
[]
[null,null,null,"The Error value MAY be used by the CPE to indicate a locally defined error condition."]
["Alias","string­(64)","W","A non-volatile handle used to reference this instance. Alias provides a mechanism for an ACS to label this instance for future reference.","-",1.2,"N/A"]
[]
[null,null,null,"If the CPE supports the Alias-based Addressing feature as defined in [Section 3.6.1/TR-069a4] and described in [Appendix II/TR-069a4], the following mandatory constraints MUST be enforced:"]
[]
[null,null,null,"Its value MUST NOT be empty."]
[null,null,null,"Its value MUST start with a letter."]
[null,null,null,"If its instance object is created by the CPE, the initial value MUST start with a \"cpe-\" prefix."]
[null,null,null,"The CPE MUST NOT change the parameter value."]
[]
["Name","string­(256)","-","Human-readable name associated with this video decoder.","-",1,"MUST",null,"Name MUST be given to an instance to identify which interface this VideoDecoder is related to. Possible values are:\nVideoDecoder_HDMI_OUT\nVideoDecoder_RF"]
["ContentAspectRatio","string","-","Indicates the native aspect ratio of the content available at this decoder. Enumeration of:","-",1,"MUST",null,"This should be linked to dsGetDisplayAspectRatio() & dsSetDisplayAspectRatio() APIs."]
[]
[null,null,null,"04:03:00"]
[null,null,null,"16:09:00"]
[]
["STBService.{i}.Components.AudioOutput.{i}.","object","-","Audio output instance table.","-",1,"MUST"]
[]
[null,null,null,"At most one entry in this table can exist with a given value for Name, or with a given value for Alias."]
["Enable","boolean","W","Enables or disables this audio output.","-",1,"MUST",null,"This should behave like a \"mute\" function. It can be linked to dsIsAudioMute() & dsSetAudioMute() APIs."]
["Status","string","-","The status of this audio output. Enumeration of:","-",1,"MUST",null,"Muted can be used if the AudioOutput for this port is Enabled but subscriber has muted it."]
[]
[null,null,null,"Disabled"]
[null,null,null,"Enabled"]
[null,null,null,"Muted (i.e. Enabled and Muted)"]
[null,null,null,"Error (OPTIONAL)"]
[]
[null,null,null,"The Error value MAY be used by the CPE to indicate a locally defined error condition."]
["Alias","string­(64)","W","A non-volatile handle used to reference this instance. Alias provides a mechanism for an ACS to label this instance for future reference.","-",1.2,"N/A"]
[]
[null,null,null,"If the CPE supports the Alias-based Addressing feature as defined in [Section 3.6.1/TR-069a4] and described in [Appendix II/TR-069a4], the following mandatory constraints MUST be enforced:"]
[]
[null,null,null,"Its value MUST NOT be empty."]
[null,null,null,"Its value MUST start with a letter."]
[null,null,null,"If its instance object is created by the CPE, the initial value MUST start with a \"cpe-\" prefix."]
[null,null,null,"The CPE MUST NOT change the parameter value."]
[]
["Name","string­(256)","-","Human-readable name associated with this audio output.","-",1,"MUST",null,"Name MUST be given to an instance to identify which interface this AudioOutput is related to. Possible values are:\nAudioOutput_HDMI_OUT\nAudioOutput_SPDIF_1"]
["AudioFormat","string","-","The value MUST be a member of the list reported by the Capabilities.AudioOutput.AudioFormats parameter, or else be an empty string. Currently active audio output format, or an empty string if no audio output format is currently active.","-",1,"MUST"]
[]
[null,null,null,"Note that this parameter refers to output formats and not to physical connectors."]
["AudioLevel","unsignedInt­[0:100]","W","The audio level on this audio output in % (0 is quietest and 100 is loudest). This setting is independent of the mute status.","-",1,"MUST",null,"This should be linked to dsGetAudioLevel() & dsSetAudioLevel() APIs."]
[]
[null,null,null,"For some audio formats, the audio level is not meaningful, in which case this parameter SHOULD have a fixed value of 0."]
["X_RDKCENTRAL-COM_AudioOptimalLevel","string","-","Optimal audio level for the given audio port. It is linked to dsGetAudioOptimalLevel() APIs.","-",1,"MUST"]
["CancelMute","boolean","W","When set to true, cancels this audio output's mute status. Setting it to false has no effect. The value is not saved in device state and is always false when read.","-",1,"MUST",null,"This will have effect if set to true and AudioOutput status is Muted."]
["X_RDKCENTRAL-COM_AudioCompression","int","W","Audio compression technique used within the given audio port. Enumeration of:","-",1,"MUST"]
[]
[null,null,null,"None"]
[null,null,null,"Light"]
[null,null,null,"Medium"]
[null,null,null,"Heavy"]
[]
[null,null,null,"It is linked to dsGetAudioCompression() & dsSetAudioCompression() APIs."]
["X_RDKCENTRAL-COM_MinAudioDB","string","-","Minimum DB that can be supported on a given audio port. It is linked to dsGetAudioMinDB() API.","-",1,"MUST"]
["X_RDKCENTRAL-COM_MaxAudioDB","string","-","Maximum DB that can be supported on a given audio port. It is linked to dsGetAudioMaxDB() API.","-",1,"MUST"]
["X_RDKCENTRAL-COM_AudioDB","string","W","Current audio decibel (DB) level for the given audio port. It is linked to dsGetAudioDB() & dsSetAudioDB() APIs.","-",1,"MUST"]
["X_RDKCENTRAL-COM_AudioEncoding","string","W","Type of encoding used in a given audio port. Enumeration of:","-",1,"MUST"]
[]
[null,null,null,"None"]
[null,null,null,"Display"]
[null,null,null,"PCM"]
[null,null,null,"AC3"]
[]
[null,null,null,"It is linked to dsGetAudioEncoding() & dsSetAudioEncoding() API."]
["X_RDKCENTRAL-COM_AudioGain","string","W","The audio gain for a given audio port. It is linked to dsGetAudioGain() & dsSetAudioGain() APIs.","-",1,"MUST"]
["X_RDKCENTRAL-COM_AudioStereoMode","string","W","Stereo mode used in a given audio port. Enumeration of:","-",1,"MUST"]
[]
[null,null,null,"Unknown"]
[null,null,null,"Mono"]
[null,null,null,"Stereo"]
[null,null,null,"Surround"]
[]
[null,null,null,"It is linked to dsGetStereoMode() & dsSetStereoMode() API."]
["X_RDKCENTRAL-COM_AudioLoopThru","boolean","W","Sets or informs about audio being configured for loopthru for the given audio port.","-",1,"MUST"]
["STBService.{i}.Components.SPDIF.{i}.","object","-","S/PDIF output instance table configuration. This object, if present, is connected to the audio ouput instance currently delivering S/PDIF audio format as described in [SPDIF].","-",1.1000000000000001,"MUST"]
[]
[null,null,null,"At most one entry in this table can exist with a given value for Name, or with a given value for Alias."]
["Enable","boolean","W","Enables or disables the S/PDIF output.","-",1.1000000000000001,"MUST"]
["Status","string","-","The status of this S/PDIF output. Enumeration of:","-",1.1000000000000001,"MUST"]
[]
[null,null,null,"Disabled"]
[null,null,null,"Enabled"]
[null,null,null,"Error (OPTIONAL)"]
[]
[null,null,null,"The Error value MAY be used by the CPE to indicate a locally defined error condition."]
["Alias","string­(64)","W","A non-volatile handle used to reference this instance. Alias provides a mechanism for an ACS to label this instance for future reference.","-",1.2,"N/A"]
[]
[null,null,null,"If the CPE supports the Alias-based Addressing feature as defined in [Section 3.6.1/TR-069a4] and described in [Appendix II/TR-069a4], the following mandatory constraints MUST be enforced:"]
[]
[null,null,null,"Its value MUST NOT be empty."]
[null,null,null,"Its value MUST start with a letter."]
[null,null,null,"If its instance object is created by the CPE, the initial value MUST start with a \"cpe-\" prefix."]
[null,null,null,"The CPE MUST NOT change the parameter value."]
[]
["Name","string­(256)","-","Human-readable name associated with this output.","-",1.1000000000000001,"MUST",null,"Name MUST be given to an instance to identify a physical port on the box of this type. Same name can be used to name Audio/Video Output/Decoder instances. Possible values are SPDIF_1, SPDIF_2 etc."]
["ForcePCM","boolean","W","When set to true, forces the audio format over S/PDIF to be in PCM mode.","-",1.1000000000000001,"SHOULD"]
[]
[null,null,null,"When set to false, let the compressed audio format be carried over S/PDIF (passthrough)."]
["Passthrough","boolean","-","When in Passthrough mode, the STB sends the audio stream over S/PDIF without decoding it.","-",1.1000000000000001,"SHOULD"]
["AudioDelay","unsignedInt","-","Audio delay value, in milliseconds, currently being applied to the audio stream on the S/PDIF interface. The audio delay is entered by the user via his local UI, when necessary for correcting the lipsync.","-",1.1000000000000001,"SHOULD"]
["STBService.{i}.Components.VideoOutput.{i}.","object","-","Video output instance table.","-",1,"MUST"]
[]
[null,null,null,"At most one entry in this table can exist with a given value for Name, or with a given value for Alias."]
["Enable","boolean","W","Enables or disables this video output.","-",1,"MUST",null,"This is similar to dsEnableVideoPort() & dsIsVideoPortEnabled() APIs."]
["Status","string","-","The status of this video output. Enumeration of:","-",1,"MUST"]
[]
[null,null,null,"Disabled"]
[null,null,null,"Enabled"]
[null,null,null,"ColorbarEnabled"]
[null,null,null,"Error (OPTIONAL)"]
[]
[null,null,null,"The Error value MAY be used by the CPE to indicate a locally defined error condition."]
["Alias","string­(64)","W","A non-volatile handle used to reference this instance. Alias provides a mechanism for an ACS to label this instance for future reference.","-",1.2,"N/A"]
[]
[null,null,null,"If the CPE supports the Alias-based Addressing feature as defined in [Section 3.6.1/TR-069a4] and described in [Appendix II/TR-069a4], the following mandatory constraints MUST be enforced:"]
[]
[null,null,null,"Its value MUST NOT be empty."]
[null,null,null,"Its value MUST start with a letter."]
[null,null,null,"If its instance object is created by the CPE, the initial value MUST start with a \"cpe-\" prefix."]
[null,null,null,"The CPE MUST NOT change the parameter value."]
[]
["ColorbarEnable","boolean","W","Enables or disables the color bar display.","-",1.1000000000000001,"MAY"]
[]
[null,null,null,"When set to true, the CPE MUST suspend the running service currently using the video output (e.g. IPTV broadcast reception) and MUST display the color bar."]
[]
[null,null,null,"When set to false, the CPE MUST resume the previousely running service."]
[]
[null,null,null,"This parameter MUST be always initialized with the value false on STB boot."]
["Name","string­(256)","-","Human-readable name associated with this Video output.","-",1,"MUST",null,"Name MUST be given to an instance to identify which interface this AudioOutput is related to. Possible values are:\nVideoOutput_HDMI_OUT\nVideoOutput_RF"]
["VideoFormat","string","W","The value MUST be a member of the list reported by the Capabilities.VideoOutput.VideoFormats parameter, or else be an empty string. Currently active video output format, or an empty string if no video output format is currently active.","-",1,"MUST"]
[]
[null,null,null,"Note that this parameter refers to output formats and not to physical connectors."]
["AspectRatioBehaviour","string","W","Indicates the aspect ratio behaviour for display on monitors with an aspect ratio different from that of the content, which is specified in Components.VideoDecoder.{i}.ContentAspectRatio. Enumeration of:","-",1,"MUST",null,"This is similar to dsGetDFC() & dsSetDFC() APIs. Enumeration has been modified to account for all possible values from the API structure."]
[]
[null,null,null,"X_RDKCENTRAL-COM Unknown"]
[null,null,null,"None"]
[null,null,null,"X_RDKCENTRAL-COM Full"]
[null,null,null,"Letterbox (DEPRECATED and replaced by following values)"]
[null,null,null,"16:9 Letterbox"]
[null,null,null,"14:9 Letterbox"]
[null,null,null,"CenterCutOut"]
[null,null,null,"X_RDKCENTRAL-COM PAN SCAN"]
[null,null,null,"X_RDKCENTRAL-COM 2.21:1 Letterbox on 4:3"]
[null,null,null,"X_RDKCENTRAL-COM 2.21:1 Letterbox on 16:9"]
[null,null,null,"X_RDKCENTRAL-COM Platform"]
[null,null,null,"X_RDKCENTRAL-COM 16:9 Zoom"]
[null,null,null,"X_RDKCENTRAL-COM 4:3 Pillarbox"]
[null,null,null,"X_RDKCENTRAL-COM 4:3 Wide"]
[null,null,null,"Combined (DEPRECATED and replaced by following values)"]
[null,null,null,"Combined 16:9 Letterbox and CenterCutOut"]
[null,null,null,"Combined 14:9 Letterbox and CenterCutOut"]
[]
["DisplayFormat","string","W","The value MUST be a member of the list reported by the Capabilities.VideoOutput.DisplayFormats parameter, or else be an empty string. Display format being connected to this VideoOutput.","-",1.1000000000000001,"MUST"]
[]
[null,null,null,"This parameter is used by the STB to determine whether an aspect ratio conversion is required."]
["Macrovision","boolean","-","Indicates whether Macrovision analog protection is being used on this video output.","-",1,"MAY"]
[]
[null,null,null,"The Macrovision version supported is indicated in Capabilities.VideoOutput.Macrovision."]
["HDCP","boolean","-","Indicates whether HDCP is being used on this video output.","-",1,"MUST"]
[]
[null,null,null,"The HDCP version supported is indicated in Capabilities.VideoOutput.HDCP."]
["STBService.{i}.Components.HDMI.{i}.","object","-","HDMI instance table. This object allows configuration of the STB’s HDMI output.","-",1.1000000000000001,"MUST",null,"It is expected that HDMI OUT port will always be the first instance and IN port be the second."]
[]
[null,null,null,"At most one entry in this table can exist with a given value for Name, or with a given value for Alias."]
["Enable","boolean","W","Enables or disables the HDMI output.","-",1.1000000000000001,"MUST"]
["Status","string","-","The status of HDMI output. Enumeration of:","-",1.1000000000000001,"MUST"]
[]
[null,null,null,"Disabled"]
[null,null,null,"Enabled"]
[null,null,null,"Error (OPTIONAL)"]
[]
[null,null,null,"The Error value MAY be used by the CPE to indicate a locally defined error condition."]
["Alias","string­(64)","W","A non-volatile handle used to reference this instance. Alias provides a mechanism for an ACS to label this instance for future reference.","-",1.2,"N/A"]
[]
[null,null,null,"If the CPE supports the Alias-based Addressing feature as defined in [Section 3.6.1/TR-069a4] and described in [Appendix II/TR-069a4], the following mandatory constraints MUST be enforced:"]
[]
[null,null,null,"Its value MUST NOT be empty."]
[null,null,null,"Its value MUST start with a letter."]
[null,null,null,"If its instance object is created by the CPE, the initial value MUST start with a \"cpe-\" prefix."]
[null,null,null,"The CPE MUST NOT change the parameter value."]
[]
["Name","string­(256)","-","Human-readable name associated with this output.","-",1.1000000000000001,"MUST",null,"Name MUST be given to an instance to identify a physical port on the box of this type. Same name can be used to name Audio/Video Output/Decoder instances. Possible values are HDMI_IN, HDMI_OUT etc."]
["ResolutionMode","string","W","The resolution mode of the HDMI output.","-",1.1000000000000001,"MUST"]
[]
[null,null,null,"In Auto mode, the resolution is automatically set at the best format via HDMI protocols."]
[]
[null,null,null,"In Manual mode, the resolution to be applied to the HDMI output is given by the ResolutionValue parameter. Enumeration of:"]
[]
[null,null,null,"Auto"]
[null,null,null,"Manual"]
[]
["ResolutionValue","string","W","The value MUST be a member of the list reported by the Capabilities.HDMI.SupportedResolutions parameter, or else be an empty string. When ResolutionMode is set to Manual mode, a write action configures the resolution to be applied to the HDMI output,","-",1.1000000000000001,"MUST"]
[]
[null,null,null,"When ResolutionMode is set to Auto, a write action as no effect."]
[]
[null,null,null,"A read action provides the current resolution of the HDMI output."]
["STBService.{i}.Components.HDMI.{i}.DisplayDevice.","object","-","HDMI connected display device configuration. This object provides parameters from the HDMI connected device if any.","-",1.1000000000000001,"MUST"]
["Status","string","-","The status of the connected HDMI Display device. Enumeration of:","-",1.1000000000000001,"MUST"]
[]
[null,null,null,"Present"]
[null,null,null,"None"]
[null,null,null,"Error (OPTIONAL)"]
[]
[null,null,null,"The Error value MAY be used by the CPE to indicate a locally defined error condition."]
["Name","string­(256)","-","Human-readable name associated with this display device.","-",1.1000000000000001,"MAY"]
["EEDID","hexBinary­(256)","-","Enhanced Extended Display Information Data (E-EDID) retrieved from the connected HDMI device.","-",1.1000000000000001,"MUST",null,"This is similar to dsGetEDID() API except that it is the complete hex EEDID information."]
["X_RDKCENTRAL-COM_EDID","string","-","Get the EDID information of the connected HDMI display.","-",1,"MUST",null,"This is same as dsGetEDID() API except that the API returns a structure of productCode, serialNumber, manufactureYear & manufactureWeek. These fields MUST be '-' seperated.\nE.g. XYZ-123-2012-45"]
["SupportedResolutions","string","-","Comma-separated list of strings. Each entry is a supported resolution of the connected HDMI device and MUST be one element of Capabilities.HDMI.SupportedResolutions.","-",1.1000000000000001,"MUST"]
["PreferredResolution","string","-","The value MUST be a member of the list reported by the Capabilities.HDMI.SupportedResolutions parameter. Preferred connected HDMI device resolution format.","-",1.1000000000000001,"MUST"]
["VideoLatency","unsignedInt","-","Video latency, in milliseconds, being applied in the connected HDMI device. This parameter is extracted from the E-EDID and can be used to compensate the video latency to preserve lipsync.","-",1.1000000000000001,"MUST"]
["CECSupport","boolean","-","When set to true, indicates the connected HDMI device is supporting HDMI-CEC features.","-",1.1000000000000001,"MUST"]
[]
[null,null,null,"When set to false, indicates the connected HDMI device does not support HDMI CEC."]
["AutoLipSyncSupport","boolean","-","When set to true, indicates the connected display device supports auto lip synchronization. This mode consists in communicating over HDMI, the delay to be applied by the STB to the audio in order to preserve the lip sync.","-",1.1000000000000001,"MUST"]
["HDMI3DPresent","boolean","-","When set to true, indicates the connected display device supports the 3D video formats mandated by [HDMI].","-",1.1000000000000001,"MUST"]
[]
[]
["# of Parameters",{"$f":"COUNTA(G3:G328)","v":85}]
["# of \"MUST\" Parameters",{"$f":"COUNTIF(G3:G328,\"MUST\")","v":71}]
["# of \"MUST\" Parameters with cond.",{"$f":"COUNTIF(G3:G328,\"MUST*\")-B332","v":0}]
["# of \"SHOULD\" Parameters",{"$f":"COUNTIF(G3:G328,\"SHOULD\")","v":4}]
["# of \"MAY\" Parameters",{"$f":"COUNTIF(G3:G328,\"MAY\")","v":4}]
["# of \"If Applicable\" Parameters",{"$f":"COUNTIF(G3:G328,\"If Applicable\")","v":0}]
["# of \"IN_FUTURE\" Parameters",{"$f":"COUNTIF(G3:G328,\"IN_FUTURE\")","v":0}]
["# of \"N/A\" Parameters",{"$f":"COUNTIF(G3:G328,\"N/A\")","v":6}]
["# of \"UNKNOWN\" Parameters",{"$f":"COUNTIF(G3:G328,\"UNKNOWN\")","v":0}]

{"sheet":"RDK Custom DM","index":3,"n_rows":127,"n_cols":9,"rows_kept":127,"cut":false,"hidden":false,"merged":[[86,7,92,7],[86,8,92,8],[93,0,101,0],[93,1,101,1],[93,2,101,2],[93,4,101,4],[93,5,101,5],[93,6,101,6],[93,7,101,7],[93,8,101,8],[86,0,92,0],[86,1,92,1],[86,2,92,2],[86,4,92,4],[86,5,92,5],[86,6,92,6],[60,7,62,7],[60,8,62,8],[63,0,71,0],[63,1,71,1],[63,2,71,2],[63,4,71,4],[63,5,71,5],[63,6,71,6],[63,7,71,7],[63,8,71,8],[60,0,62,0],[60,1,62,1],[60,2,62,2],[60,4,62,4],[60,5,62,5],[60,6,62,6],[41,7,43,7],[41,8,43,8],[46,0,52,0],[46,1,52,1],[46,2,52,2],[46,4,52,4],[46,5,52,5],[46,6,52,6],[46,7,52,7],[46,8,52,8],[41,0,43,0],[41,1,43,1],[41,2,43,2],[41,4,43,4],[41,5,43,5],[41,6,43,6],[24,7,29,7],[24,8,29,8],[31,0,40,0],[31,1,40,1],[31,2,40,2],[31,4,40,4],[31,5,40,5],[31,6,40,6],[31,7,40,7],[31,8,40,8],[24,0,29,0],[24,1,29,1],[24,2,29,2],[24,4,29,4],[24,5,29,5],[24,6,29,6],[5,7,12,7],[5,8,12,8],[13,0,18,0],[13,1,18,1],[13,2,18,2],[13,4,18,4],[13,5,18,5],[13,6,18,6],[13,7,18,7],[13,8,18,8],[1,0,1,6],[5,0,12,0],[5,1,12,1],[5,2,12,2],[5,4,12,4],[5,5,12,5],[5,6,12,6]]}
["Name","Type","Write","Description","Object Default","Version","Requirement","Impl?\nY/N","Example Data / Comments"]
["RDK Custom DataModel Objects"]
["Device.","object","-","The top-level object for a Device.","-",2,"MUST"]
["Device.DeviceInfo.","object","-","This object contains general device information.","-",2,"MUST"]
["Device.DeviceInfo.X_RDKCENTRAL-COM.","object","-","This object contains information parameters defined by RDK developers.","-",2,"MUST"]
["Reset","string","W","Setting this parameter results in the reset being performed on the device. The level of reset performed is defined by the value that is written into this parameter. Enumeration of:","-",1,"MUST"]
[]
[null,null,null,"Cold  (Erases PCI/PDRI and Forces the box to the B-DRI)"]
[null,null,null,"Factory  (Erases PCI and Forces the box to the P-DRI)"]
[null,null,null,"Warehouse  (Erases Personalization and Data Stores)"]
[null,null,null,"Customer  (Erases Personaliztion only)"]
[]
[null,null,null,"When read, this parameter returns an empty string."]
["RunningImageType","string","-","Informs about the image type which the device is running on currently. Enumeration of:","-",1,"MUST"]
[]
[null,null,null,"PCI"]
[null,null,null,"PDRI"]
[null,null,null,"BDRI"]
[]
["FirmwareFilename","string","-","Filename of the firmware currently running on the device.","-",1,"MUST"]
["PDRI_FirmwareFilename","string","-","Filename of the firmware in P-DRI Memory Bank.","-",1,"MUST"]
["BDRI_FirmwareFilename","string","-","Filename of the firmware in B-DRI Memory Bank.","-",1,"MUST"]
["PCI1_FirmwareFilename","string","-","Filename of the firmware in PCI-1 Memory Bank.","-",1,"MUST"]
["PCI2_FirmwareFilename","string","-","Filename of the firmware in PCI-2 Memory Bank.","-",1,"MUST"]
["PowerStatus","string","-","Power status of the device based on the front panel power LED. Enumeration of:","-",1,"MUST"]
[]
[null,null,null,"PowerON"]
[null,null,null,"Standby"]
[null,null,null,"PowerOFF (Default)"]
[]
["FirmwareToDownload","string","-","Filename of the firmware that the device was requested to download most recently.","-",1,"MUST"]
["FirmwareDownloadStatus","string","-","Download status of the firmware file when the download is initiated via TR-069 ACS or any other mechanism defined by the service provider. Enumeration of:","-",1,"MUST"]
[]
[null,null,null,"Idle (Default)"]
[null,null,null,"Initiated"]
[null,null,null,"InProgress"]
[null,null,null,"Completed"]
[null,null,null,"Successful"]
[null,null,null,"Error"]
[]
[null,null,null,"Difference between Completed and Successful is that Completed only means that the file has been downloaded whereas Successful means that the file has been downloaded and verified (Signature, written to flash etc.)."]
["STBService.{i}.","object","-","The top-level object for an STB CPE.","-",1,"MUST"]
[]
[null,null,null,"At most one entry in this table can exist with a given value for Alias."]
["STBService.{i}.Components.X_RDKCENTRAL-COM_RF4CE.","object","-","This object provides information about RF4CE (ZigBee) Interface and paired remotes.","-",1,"MUST"]
["Enable","boolean","W","Enables or disables the RF4CE interface on the device.","true ",1,"MUST",null,"true "]
["Status","string","-","Indicates the status of the RF4CE interface on the device. Enumeration of:","-",1,"MUST",null,"Up"]
[]
[null,null,null,"Up"]
[null,null,null,"Down"]
[null,null,null,"Error (OPTIONAL)"]
[]
[null,null,null,"The Error value MAY be used by the CPE to indicate a locally defined error condition."]
["VersionInfo","string","-","Interface VersionInfo.","-",1,"MUST"]
["MACAddress","string(17)","-","The 8 byte (16 hex digits) MAC Address of the interface","-",1,"MUST"]
["NetworkAddress","string(5)","-","The 2 byte (4 hes digits) 802.15.4 PAN network address (short address - Node Id)","-",1,"MUST",null,3220]
["PANID","string(5)","-","The 2 byte (4 hex digits) 802.15.4 PAN network id","-",1,"MUST",null,"001d"]
["ActiveChannel","string","-","Active channel information (1 byte Number, 1 byte Pollution - total 2 bytes or 4 hex digits) for RF4CE interface","-",1,"MUST"]
["BackupChannel","string","-","Backup channel information (1 byte Number, 1 byte Pollution - total 2 bytes or 4 hex digits) for RF4CE interface","-",1,"MUST"]
["PairedRemotesNumberOfEntries","unsignedInt","-","The number of entries in the PairedRemote table","-",1,"MUST",null,2]
["STBService.{i}.Components.X_RDKCENTRAL-COM_RF4CE.Remote.{i}.","object","-","Paired Remote instance table. This object provides information about the paired remotes.","-",1,"MUST"]
[]
[null,null,null,"At most one entry in this table can exist with a given value for Name, or with a given value for Alias."]
["Alias","string­(64)","W","A non-volatile handle used to reference this instance. Alias provides a mechanism for an ACS to label this instance for future reference.","-",1,"N/A"]
[]
[null,null,null,"If the CPE supports the Alias-based Addressing feature as defined in [Section 3.6.1/TR-069a4] and described in [Appendix II/TR-069a4], the following mandatory constraints MUST be enforced:"]
[]
[null,null,null,"Its value MUST NOT be empty."]
[null,null,null,"Its value MUST start with a letter."]
[null,null,null,"If its instance object is created by the CPE, the initial value MUST start with a \"cpe-\" prefix."]
[null,null,null,"The CPE MUST NOT change the parameter value."]
[]
["Name","string­(256)","-","Human-readable name associated with this entry","-",1,"MAY"]
["MACAddress","string(17)","-","The 8 byte (16 hex digits) MAC Address of the Remote Control ZigBee interface","-",1,"MUST",null,"155f00000ec587"]
["NetworkAddress","string(5)","-","The 2 byte (4 hex digits) 802.15.4 PAN network address (short address - Node Id)","-",1,"MUST",null,3229]
["VersionInfoSW","string","-","Software VersionInfo of the Remote Control","-",1,"MUST",null,"1.4.6.1"]
["VersionInfoHW","string","-","Hardware VersionInfo of the Remote Control","-",1,"MUST",null,"2.0.1.1222"]
["SignalStrength","unsignedInt","-","Signal strength in dBm","-",1,"MUST",null,128]
["LinkQuality","unsignedInt","-","Link quality","-",1,"MUST",null,0]
["BatteryLevelLoaded","unsignedInt","-","Remote Control's battery level when loaded","-",1,"MUST",null,177]
["BatteryLevelUnloaded","unsignedInt","-","Remote Control's battery level when unloaded","-",1,"MUST",null,189]
["STBService.{i}.Components.X_RDKCENTRAL-COM_RF4CE.Remote.{i}.Stats","object","-","Remote Control statistics.","-",1,"MUST"]
["IRPackets","unsignedInt","-","IR Packets sent by the RC","-",1,"MUST"]
["RFPackets","unsignedInt","-","RF Packets sent by the RC","-",1,"MUST"]
["STBService.{i}.Components.X_RDKCENTRAL-COM_SDCard.","object","-","SDCard object. This object provides information about the SD Card Interface.","-",1,"MUST"]
["FormatNow","boolean","W","Command to re-format card. Setting this parameter to true will cause the CPE to format the inserted SD Card. The parameter will be set to false by the device once the formatting of the SD card has been initiated.","-",1,"MUST"]
["Status","string","-","The status of the connected SD Card. Enumeration of:","-",1,"MUST",null,"None"]
[]
[null,null,null,"Present"]
[null,null,null,"None"]
[null,null,null,"Error (OPTIONAL)"]
[]
[null,null,null,"The Error value MAY be used by the CPE to indicate a locally defined error condition."]
["Type","string","-","The type of the connected SD Card. Enumeration of:","-",1,"MUST",null,"SDHC"]
[]
[null,null,null,"UNKNOWN"]
[null,null,null,"SDSC"]
[null,null,null,"SDHC"]
[null,null,null,"SDXC"]
[null,null,null,"SDIO"]
[]
[null,null,null,"The UNKNOWN value MAY be used by the CPE to indicate that the type of the SD Card could not be determined."]
["Manufacturer","hexBinary","-","Manufacturer of SD Flash card (1 byte MID field in CID register)","-",1,"MUST"]
["Model","string","-","Model of SD Flash card (5 character PNM field in CID register)","-",1,"MUST"]
["LotID","string","-","Manufacturing lot ID","-",1,"MUST"]
["SerialNumber","Int","-","Unique serial number of SD Flash card (32 bit PSN field in CID register)","-",1,"MUST"]
["Capacity","unsignedInt","-","SD Card memory size in MB","-",1,"MUST",null,2048]
["ReadOnly","boolean","-","True if user has switched SD Card to read only mode. False oterwise.","-",1,"MUST",null,"false "]
["TSBQualified","boolean","-","True if card is approved for Comcast TSB use.  For Xi3v1, this will be based on the expected signature. False otherwise.","-",1,"MUST",null,"true "]
["LifeElapsed","unsignedInt[0:100]","-","A value from 0 to 100. It may increment in 10% or lower increments (e.g. 5% or 1%) depending on Card+Host capabilities. Refer CMD56.","-",1,"MUST",null,75]
["TimeUsed","unsignedInt","-","Aggregate usage in hours","-",1,"MUST",null,15]
["WriteFailed","boolean","-","true if the card is no longer writable due to hard failure","-",1,"MUST",null,"false "]
["CardFailed","boolean","-","true if the card is no longer readable/writable which could be due to Card/Host interface failure","-",1,"MUST",null,"false "]
["BadBlocks","unsignedInt","-","Number of Bad Blocks on the SD Card","-",1,"MUST"]
["TotalBlocks","unsignedInt","-","Total number of Blocks on the SD Card","-",1,"MUST"]
[]
[]
[]
["# of Parameters",{"$f":"COUNTA(G3:G84)","v":38}]
["# of \"MUST\" Parameters",{"$f":"COUNTIF(G3:G84,\"MUST\")","v":36}]
["# of \"MUST\" Parameters with cond.",{"$f":"COUNTIF(G3:G84,\"MUST*\")-B120","v":0}]
["# of \"SHOULD\" Parameters",{"$f":"COUNTIF(G3:G84,\"SHOULD\")","v":0}]
["# of \"MAY\" Parameters",{"$f":"COUNTIF(G3:G84,\"MAY\")","v":1}]
["# of \"If Applicable\" Parameters",{"$f":"COUNTIF(G3:G84,\"If Applicable\")","v":0}]
["# of \"IN_FUTURE\" Parameters",{"$f":"COUNTIF(G3:G84,\"IN_FUTURE\")","v":0}]
["# of \"N/A\" Parameters",{"$f":"COUNTIF(G3:G84,\"N/A\")","v":1}]
["# of \"UNKNOWN\" Parameters",{"$f":"COUNTIF(G3:G84,\"UNKNOWN\")","v":0}]

{"sheet":"Merged","index":4,"n_rows":780,"n_cols":6,"rows_kept":780,"cut":false,"hidden":false,"merged":[]}
["Item Name","Source Sheet","Source Row","Status","Requested","Description"]
["Device","TR-181i2.7",3,null,null,"The top-level object for a Device."]
["Device.DeviceInfo","TR-181i2.7",9,null,null,"This object contains general device information."]
["Device.DeviceInfo.AdditionalHardwareVersion","TR-181i2.7",30,null,null,"Comma-separated list (maximum length 64) of strings. Each entry is an additional version. Represents any additional hardware version information the vendor might wish to supply."]
["Device.DeviceInfo.AdditionalSoftwareVersion","TR-181i2.7",31,null,null,"Comma-separated list (maximum length 64) of strings. Each entry is an additional version. Represents any additional software version information the vendor might wish to supply."]
["Device.DeviceInfo.Description","TR-181i2.7",19,"y",null,"A full description of the CPE device (human readable string)."]
["Device.DeviceInfo.FirstUseDate","TR-181i2.7",34,"y",null,"Date and time in UTC that the CPE first both successfully established an IP-layer network connection and acquired an absolute time reference using NTP or equivalent over that network connection. The CPE MAY reset this date after a factory reset.\nIf NTP or equivalent is not available, this parameter, if present, SHOULD be set to the Unknown Time value."]
["Device.DeviceInfo.HardwareVersion","TR-181i2.7",26,"y",null,"A string identifying the particular CPE model and version."]
["Device.DeviceInfo.Manufacturer","TR-181i2.7",10,"y",null,"The manufacturer of the CPE (human readable string)."]
["Device.DeviceInfo.ManufacturerOUI","TR-181i2.7",11,"y",null,"Organizationally unique identifier of the device manufacturer. Represented as a six hexadecimal-digit value using all upper-case letters and including any leading zeros. Possible patterns:\n[0-9A-F]{6}\nThe value MUST be a valid OUI as defined in [OUI].\nThis value MUST remain fixed over the lifetime of the device, including across firmware updates. Any change would indicate that it's a new device and would therefore require a BOOTSTRAP Inform."]
["Device.DeviceInfo.MemoryStatus","TR-181i2.7",112,"y",null,"Status of the device's volatile physical memory."]
["Device.DeviceInfo.MemoryStatus.Free","TR-181i2.7",114,"y",null,"The free physical RAM, in kilobytes, currently available on the device."]
["Device.DeviceInfo.MemoryStatus.Total","TR-181i2.7",113,"y",null,"The total physical RAM, in kilobytes, installed on the device."]
["Device.DeviceInfo.ModelName","TR-181i2.7",18,"y",null,"Model name of the CPE (human readable string)."]
["Device.DeviceInfo.ProcessorNumberOfEntries","TR-181i2.7",39,"y",null,"The number of entries in the Processor table."]
["Device.DeviceInfo.ProcessStatus","TR-181i2.7",115,"y",null,"Status of the processes on the device."]
["Device.DeviceInfo.ProcessStatus.CPUUsage","TR-181i2.7",116,"y",null,"The total amount of the CPU, in percent, rounded up to the nearest whole percent. In the case that multiple CPU are present, this value represents the average of all CPU."]
["Device.DeviceInfo.ProcessStatus.Process.{i}","TR-181i2.7",120,"y",null,"List of all processes running on the device.\nAt most one entry in this table can exist with a given value for PID."]
["Device.DeviceInfo.ProcessStatus.Process.{i}.Command","TR-181i2.7",124,"y",null,"The name of the command that has caused the process to exist."]
["Device.DeviceInfo.ProcessStatus.Process.{i}.CPUTime","TR-181i2.7",127,"y",null,"The amount of time in milliseconds that the process has spent taking up CPU time since the process was started."]
["Device.DeviceInfo.ProcessStatus.Process.{i}.PID","TR-181i2.7",123,"y",null,"The Process Identifier."]
["Device.DeviceInfo.ProcessStatus.Process.{i}.Priority","TR-181i2.7",126,"y",null,"The priority of the process where 0 is highest."]
["Device.DeviceInfo.ProcessStatus.Process.{i}.Size","TR-181i2.7",125,"y",null,"The size in kilobytes of the memory occupied by the process."]
["Device.DeviceInfo.ProcessStatus.Process.{i}.State","TR-181i2.7",128,"y",null,"The current state that the process is in. Enumeration of:\nRunning\nSleeping\nStopped\nIdle (OPTIONAL)\nUninterruptible (OPTIONAL)\nZombie (OPTIONAL)"]
["Device.DeviceInfo.ProcessStatus.ProcessNumberOfEntries","TR-181i2.7",117,"y",null,"The number of entries in the Process table.\nSince a Process can come and go very quickly, the CPE SHOULD place a locally specified limit on the frequency at which it will notify the ACS of value changes, as described in [Section 3.2.1/TR-069a2]."]
["Device.DeviceInfo.ProductClass","TR-181i2.7",20,"y",null,"Identifier of the class of product for which the serial number applies. That is, for a given manufacturer, this parameter is used to identify the product or class of product over which the SerialNumber parameter is unique.\nThis value MUST remain fixed over the lifetime of the device, including across firmware updates. Any change would indicate that it's a new device and would therefore require a BOOTSTRAP Inform."]
["Device.DeviceInfo.ProvisioningCode","TR-181i2.7",32,"y",null,"Identifier of the primary service provider and other provisioning information, which MAY be used by the ACS to determine service provider-specific customization and provisioning parameters."]
["Device.DeviceInfo.SerialNumber","TR-181i2.7",23,"y",null,"Identifier of the particular device that is unique for the indicated class of product and manufacturer.\nThis value MUST remain fixed over the lifetime of the device, including across firmware updates. Any change would indicate that it's a new device and would therefore require a BOOTSTRAP Inform."]
["Device.DeviceInfo.SoftwareVersion","TR-181i2.7",27,"y",null,"A string identifying the software version currently installed in the CPE (i.e. version of the overall CPE firmware).\nTo allow version comparisons, this element SHOULD be in the form of dot-delimited integers, where each successive integer represents a more minor category of variation. For example, 3.0.21 where the components mean: Major.Minor.Build."]
["Device.DeviceInfo.SupportedDataModel.{i}","TR-181i2.7",71,"y",null,"This table contains details of the device's Current Supported Data Model.\nThe table MUST describe the device's entire Supported Data Model. Therefore, if a device's Supported Data Model changes at run-time, entries will need to be added or removed as appropriate.\nEach table entry MUST refer to only a single Root Object or Service Object. The device MAY choose to use more than one table entry for a given Root Object or Service Object.\nConsidering that every device has some form of a data model, this table MUST NOT be empty.\nAt most one entry in this table can exist with a given value for URL, or with a given value for Alias."]
["Device.DeviceInfo.SupportedDataModel.{i}.Alias","TR-181i2.7",80,"y",null,"A non-volatile handle used to reference this instance. Alias provides a mechanism for an ACS to label this instance for future reference.\nIf the CPE supports the Alias-based Addressing feature as defined in [Section 3.6.1/TR-069a4] and described in [Appendix II/TR-069a4], the following mandatory constraints MUST be enforced:\nIts value MUST NOT be empty.\nIts value MUST start with a letter.\nIf its instance object is created by the CPE, the initial value MUST start with a \"cpe-\" prefix.\nThe CPE MUST NOT change the parameter value."]
["Device.DeviceInfo.SupportedDataModel.{i}.Features","TR-181i2.7",103,"y",null,"Comma-separated list of strings. This parameter MUST list exactly the features that are defined using the top-level feature element in the DT Instance referenced by URL.\nFor example, if the DT instance specified the following:\n<feature name=\"DNSServer\"/>\n<feature name=\"Router\"/>\n<feature name=\"X_MyDeviceFeature\"/>\nthen the value of this parameter might be DNSServer,Router,X_MyDeviceFeature. The order in which the features are listed is not significant."]
["Device.DeviceInfo.SupportedDataModel.{i}.URL","TR-181i2.7",89,"y",null,"URL ([RFC3986]) that describes some or all of the device's Current Supported Data Model.\nThe URL MUST reference an XML file which describes the appropriate part of the Supported Data Model.\nThe referenced XML file MUST be compliant with the DT (Device Type) Schema that is described in [Annex B/TR-106a3], including any additional normative requirements referenced within the Schema.\nThe XML file referenced by this URL MUST NOT change while the CPE is running, and SHOULD NOT change across a CPE reboot. Note that, if the same XML file is to be used for multiple CPE, this strongly suggests that the XML file referenced by this URL should never change.\nThe URL MAY permit the XML file to be accessed at run-time, in which case, the XML file MAY be located within the CPE.\nBehavior in the event of an invalid URL, failure to access the referenced XML file, or an invalid XML file, is implementation-dependent."]
["Device.DeviceInfo.SupportedDataModel.{i}.URN","TR-181i2.7",100,"y",null,"URN ([RFC3986]) that is the value of the spec attribute in the DM (data model) Instance that defines the Root Object or Service Object referenced by this table entry.\nFor example, if this table entry references a DT Instance that refers to the Device:1.3 Root Object, the value of this parameter would be urn:broadband-forum-org:tr-157-1-0-0, because TR-157 defines Device:1.3. If the DT Instance instead referred to a vendor-specific Root Object, e.g. X_EXAMPLE_Device:1.0 (derived from Device:1.3), the value of this parameter would be something like urn:example-com:device-1-0-0."]
["Device.DeviceInfo.SupportedDataModelNumberOfEntries","TR-181i2.7",38,"y",null,"The number of entries in the SupportedDataModel table."]
["Device.DeviceInfo.TemperatureStatus","TR-181i2.7",137,null,null,"Status of the temperature of the device."]
["Device.DeviceInfo.TemperatureStatus.TemperatureSensor.{i}","TR-181i2.7",139,null,null,"This object represents information that the device has obtained via sampling an internal temperature sensor.\nAt most one entry in this table can exist with a given value for Name, or with a given value for Alias."]
["Device.DeviceInfo.TemperatureStatus.TemperatureSensor.{i}.HighAlarmTime","TR-181i2.7",160,null,null,"Initial time at which this temperature sensor's HighAlarmValue was encountered.\nThis value is only set the first time the alarm is seen and not changed until the next reset.\nThe Unknown Time value, as defined in [TR-106a2], indicates that an alarm has not been encountered since the last reset."]
["Device.DeviceInfo.TemperatureStatus.TemperatureSensor.{i}.HighAlarmValue","TR-181i2.7",155,null,null,"This temperature sensor's high alarm value in degrees celsius.\nA value of -274 (which is below absolute zero) indicates a non configured value.\nA change to this value will cause HighAlarmTime to be reset."]
["Device.DeviceInfo.TemperatureStatus.TemperatureSensor.{i}.LastUpdate","TR-181i2.7",146,null,null,"The time at which this temperature sensor's last good reading was obtained.\nThe Unknown Time value, as defined in [TR-106a2], indicates a good reading has not been obtained since last reset."]
["Device.DeviceInfo.TemperatureStatus.TemperatureSensor.{i}.MaxTime","TR-181i2.7",152,null,null,"The time at which this temperature sensor's highest value was read.\nThe Unknown Time value, as defined in [TR-106a2], indicates a good reading has not been obtained since last reset."]
["Device.DeviceInfo.TemperatureStatus.TemperatureSensor.{i}.MaxValue","TR-181i2.7",149,null,null,"This temperature sensor's highest value reading in degrees celsius since last reset.\nA value of -274 (which is below absolute zero) indicates a good reading has not been obtained since last reset."]
["Device.DeviceInfo.TemperatureStatus.TemperatureSensor.{i}.Name","TR-181i2.7",142,null,null,"Name of this temperature sensor. This text MUST be sufficient to distinguish this temperature sensor from other temperature sensors."]
["Device.DeviceInfo.TemperatureStatus.TemperatureSensor.{i}.PollingInterval","TR-181i2.7",165,null,null,"The interval, measured in seconds, in which the device polls this TemperatureSensor.\nIf the value is 0 then the device selects its own polling interval.\nIf the value is greater than 0 then the device MUST use this value as the polling interval."]
["Device.DeviceInfo.TemperatureStatus.TemperatureSensor.{i}.Value","TR-181i2.7",143,null,null,"This temperature sensor's last good reading in degrees celsius.\nA value of -274 (which is below absolute zero) indicates a good reading has not been obtained since last reset."]
["Device.DeviceInfo.TemperatureStatus.TemperatureSensorNumberOfEntries","TR-181i2.7",138,null,null,"The number of entries in the TemperatureSensor table."]
["Device.DeviceInfo.UpTime","TR-181i2.7",33,"y",null,"Time in seconds since the CPE was last restarted."]
["Device.DeviceInfo.VendorConfigFile.{i}","TR-181i2.7",41,"y",null,"Every instance of this object is a Vendor Configuration File, and contains parameters associated with the Vendor Configuration File.\nThis table of Vendor Configuration Files is for information only and does not allow the ACS to operate on these files in any way.\nWhenever the CPE successfully downloads a configuration file as a result of the Download RPC with the FileType argument of 3 Vendor Configuration File, the CPE MUST update this table.\nAt most one entry in this table can exist with a given value for Alias, or with a given value for Name."]
["Device.DeviceInfo.VendorConfigFile.{i}.Alias","TR-181i2.7",48,"y",null,"A non-volatile handle used to reference this instance. Alias provides a mechanism for an ACS to label this instance for future reference.\nIf the CPE supports the Alias-based Addressing feature as defined in [Section 3.6.1/TR-069a4] and described in [Appendix II/TR-069a4], the following mandatory constraints MUST be enforced:\nIts value MUST NOT be empty.\nIts value MUST start with a letter.\nIf its instance object is created by the CPE, the initial value MUST start with a \"cpe-\" prefix.\nThe CPE MUST NOT change the parameter value."]
["Device.DeviceInfo.VendorConfigFile.{i}.Date","TR-181i2.7",69,"y",null,"Date and time when the content of the current version of this vendor configuration file was first applied by the CPE."]
["Device.DeviceInfo.VendorConfigFile.{i}.Description","TR-181i2.7",70,"y",null,"A description of the vendor configuration file (human-readable string)."]
["Device.DeviceInfo.VendorConfigFile.{i}.Name","TR-181i2.7",57,"y",null,"Name of the vendor configuration file.\nIf the CPE is able to obtain the name of the configuration file from the file itself, then the value of this parameter MUST be set to that name.\nOtherwise, if the CPE can extract the file name from the URL used to download the configuration file, then the value of this parameter MUST be set to that name.\nOtherwise, the value of this parameter MUST be set to the value of the TargetFileName argument of the Download RPC used to download this configuration file."]
["Device.DeviceInfo.VendorConfigFile.{i}.Version","TR-181i2.7",64,"y",null,"A string identifying the configuration file version currently used in the CPE.\nIf the CPE is able to obtain the version of the configuration file from the file itself, then the value of this parameter MUST be set to the obtained value.\nOtherwise, the value of this parameter MUST be an empty string."]
["Device.DeviceInfo.VendorConfigFileNumberOfEntries","TR-181i2.7",37,"y",null,"The number of entries in the VendorConfigFile table."]
["Device.DeviceInfo.VendorLogFile.{i}","TR-181i2.7",170,null,null,"Each table entry represents a Vendor Log File.\nThis table of log files is informational only and does not allow the ACS to operate on these files in any way.\nAt most one entry in this table can exist with a given value for Alias, or with a given value for Name."]
["Device.DeviceInfo.VendorLogFile.{i}.Alias","TR-181i2.7",175,null,null,"A non-volatile handle used to reference this instance. Alias provides a mechanism for an ACS to label this instance for future reference.\nIf the CPE supports the Alias-based Addressing feature as defined in [Section 3.6.1/TR-069a4] and described in [Appendix II/TR-069a4], the following mandatory constraints MUST be enforced:\nIts value MUST NOT be empty.\nIts value MUST start with a letter.\nIf its instance object is created by the CPE, the initial value MUST start with a \"cpe-\" prefix.\nThe CPE MUST NOT change the parameter value."]
["Device.DeviceInfo.VendorLogFile.{i}.MaximumSize","TR-181i2.7",187,null,null,"The maximum size of the log file in bytes. If the device doesn’t know the maximum file size then MaximumSize will be 0."]
["Device.DeviceInfo.VendorLogFile.{i}.Name","TR-181i2.7",184,null,null,"Name of the log file.\nTypically this will be the full file system path, but provided that it is guaranteed to be unique across current and future log files, it MAY be a shorter name derived from the file system path, or be derived via another mechanism."]
["Device.DeviceInfo.VendorLogFile.{i}.Persistent","TR-181i2.7",188,null,null,"When true, the log file contents are preserved across a device reboot.\nWhen false, the log file contents will be purged when the device is rebooted."]
["Device.DeviceInfo.VendorLogFileNumberOfEntries","TR-181i2.7",40,"y",null,"The number of entries in the VendorLogFile table."]
["Device.DeviceInfo.X_RDKCENTRAL-COM","RDK Custom DM",5,null,null,"This object contains information parameters defined by RDK developers."]
["Device.DeviceInfo.X_RDKCENTRAL-COM.BDRI_FirmwareFilename","RDK Custom DM",22,null,null,"Filename of the firmware in B-DRI Memory Bank."]
["Device.DeviceInfo.X_RDKCENTRAL-COM.FirmwareDownloadStatus","RDK Custom DM",32,null,null,"Download status of the firmware file when the download is initiated via TR-069 ACS or any other mechanism defined by the service provider. Enumeration of:\nIdle (Default)\nInitiated\nInProgress\nCompleted\nSuccessful\nError\nDifference between Completed and Successful is that Completed only means that the file has been downloaded whereas Successful means that the file has been downloaded and verified (Signature, written to flash etc.)."]
["Device.DeviceInfo.X_RDKCENTRAL-COM.FirmwareFilename","RDK Custom DM",20,null,null,"Filename of the firmware currently running on the device."]
["Device.DeviceInfo.X_RDKCENTRAL-COM.FirmwareToDownload","RDK Custom DM",31,null,null,"Filename of the firmware that the device was requested to download most recently."]
["Device.DeviceInfo.X_RDKCENTRAL-COM.PCI1_FirmwareFilename","RDK Custom DM",23,null,null,"Filename of the firmware in PCI-1 Memory Bank."]
["Device.DeviceInfo.X_RDKCENTRAL-COM.PCI2_FirmwareFilename","RDK Custom DM",24,null,null,"Filename of the firmware in PCI-2 Memory Bank."]
["Device.DeviceInfo.X_RDKCENTRAL-COM.PDRI_FirmwareFilename","RDK Custom DM",21,null,null,"Filename of the firmware in P-DRI Memory Bank."]
["Device.DeviceInfo.X_RDKCENTRAL-COM.PowerStatus","RDK Custom DM",25,null,null,"Power status of the device based on the front panel power LED. Enumeration of:\nPowerON\nStandby\nPowerOFF (Default)"]
["Device.DeviceInfo.X_RDKCENTRAL-COM.Reset","RDK Custom DM",6,null,null,"Setting this parameter results in the reset being performed on the device. The level of reset performed is defined by the value that is written into this parameter. Enumeration of:\nCold  (Erases PCI/PDRI and Forces the box to the B-DRI)\nFactory  (Erases PCI and Forces the box to the P-DRI)\nWarehouse  (Erases Personalization and Data Stores)\nCustomer  (Erases Personaliztion only)\nWhen read, this parameter returns an empty string."]
["Device.DeviceInfo.X_RDKCENTRAL-COM.RunningImageType","RDK Custom DM",14,null,null,"Informs about the image type which the device is running on currently. Enumeration of:\nPCI\nPDRI\nBDRI"]
["Device.DNS.Diagnostics","TR-181i2.7",1860,null,null,"The DNS Diagnostics object containing the NSLookupDiagnostics test."]
["Device.DNS.Diagnostics.NSLookupDiagnostics","TR-181i2.7",1861,null,null,"This object defines access to an IP-layer NS Lookup test for the specified IP interface.\nWhen initiated, the NS Lookup test will contact DNSServer and look up HostName NumberOfRepetitions times.\nThere will be a Result instance for each time the device performs a DNS lookup, which is determined by the value of NumberOfRepetitions.\nAny previous Result instances are removed when a new test is initiated."]
["Device.DNS.Diagnostics.NSLookupDiagnostics.DiagnosticsState","TR-181i2.7",1868,null,null,"Indicates availability of diagnostic data. Enumeration of:\nNone\nRequested\nComplete\nError_DNSServerNotResolved (Unable to resolve DNSServer Name)\nError_Internal\nError_Other\nIf the ACS sets the value of this parameter to Requested, the CPE MUST initiate the corresponding diagnostic test. When writing, the only allowed value is Requested. To ensure the use of the proper test parameters (the writable parameters in this object), the test parameters MUST be set either prior to or at the same time as (in the same SetParameterValues) setting the DiagnosticsState to Requested.\nWhen requested, the CPE SHOULD wait until after completion of the communication session with the ACS before starting the diagnostic.\nWhen the test is completed, the value of this parameter MUST be either Complete (if the test completed successfully), or one of the Error values listed above.\nIf the value of this parameter is anything other than Complete, the values of the results parameters for this test are indeterminate.\nWhen the diagnostic initiated by the ACS is completed (successfully or not), the CPE MUST establish a new connection to the ACS to allow the ACS to view the results, indicating the Event code \"8 DIAGNOSTICS COMPLETE\" in the Inform message.\nAfter the diagnostic is complete, the value of all result parameters (all read-only parameters in this object) MUST be retained by the CPE until either this diagnostic is run again, or the CPE reboots. After a reboot, if the CPE has not retained the result parameters from the most recent test, it MUST set the value of this parameter to None.\nModifying any of the writable parameters in this object except for this one MUST result in the value of this parameter being set to None.\nWhile the test is in progress, modifying any of the writable parameters in this object except for this one MUST result in the test being terminated and the value of this parameter being set to None.\nWhile the test is in progress, setting this parameter to Requested (and possibly modifying other writable parameters in this object) MUST result in the test being terminated and then restarted using the current values of the test parameters."]
["Device.DNS.Diagnostics.NSLookupDiagnostics.DNSServer","TR-181i2.7",1898,null,null,"Specifies the DNS Server name or IP address that NS Lookup is to use for the lookup. The name of this server will be resolved using the default DNS server unless an IP address is provided.\nIf an empty string is specified, the device's default DNS server will be used."]
["Device.DNS.Diagnostics.NSLookupDiagnostics.HostName","TR-181i2.7",1897,null,null,"Specifies the Host Name that NS Lookup is to look for. The current domain name MUST be used unless the name is a fully qualified name."]
["Device.DNS.Diagnostics.NSLookupDiagnostics.Interface","TR-181i2.7",1894,null,null,"The value MUST be the path name of a table row. This parameter specifies the IP-layer interface over which the test is to be performed (i.e. the source IP address to use when performing the test).\nIf an empty string is specified, the CPE MUST use its routing policy (Forwarding table entries), if necessary, to determine the appropriate interface."]
["Device.DNS.Diagnostics.NSLookupDiagnostics.NumberOfRepetitions","TR-181i2.7",1902,null,null,"The number of times the device SHOULD repeat the execution of the NSLookup using the same input parameters. If the diagnostics test fails the CPE MAY terminate the test without completing the full number of repetitions.\nEach repetition will use a Result instance to hold the NSLookup result data."]
["Device.DNS.Diagnostics.NSLookupDiagnostics.Result.{i}","TR-181i2.7",1909,null,null,"Results from the most recent invocation of the test, one instance per repetition."]
["Device.DNS.Diagnostics.NSLookupDiagnostics.Result.{i}.AnswerType","TR-181i2.7",1922,null,null,"Result parameter to represent whether the answer is Authoritative or not. Enumeration of:\nNone (Indicates that the NS Lookup failed to find the host)\nAuthoritative\nNonAuthoritative"]
["Device.DNS.Diagnostics.NSLookupDiagnostics.Result.{i}.DNSServerIP","TR-181i2.7",1930,null,null,"[IPAddress] Result parameter to represent the actual DNS Server IP address that the NS Lookup used."]
["Device.DNS.Diagnostics.NSLookupDiagnostics.Result.{i}.HostNameReturned","TR-181i2.7",1928,null,null,"Result parameter to represent the fully qualified name for the Host Name in the calling parameter (e.g. HostName.DomainName); if no response was provided, then this parameter is an empty string."]
["Device.DNS.Diagnostics.NSLookupDiagnostics.Result.{i}.IPAddresses","TR-181i2.7",1929,null,null,"[IPAddress] Comma-separated list (up to 10 items) of IPAddresses. Indicates the IP Address results returned by the NS Lookup; if no response was provided, then this parameter is an empty string."]
["Device.DNS.Diagnostics.NSLookupDiagnostics.Result.{i}.ResponseTime","TR-181i2.7",1931,null,null,"Response time (for the first response packet) in milliseconds, or 0 if no response was received."]
["Device.DNS.Diagnostics.NSLookupDiagnostics.Result.{i}.Status","TR-181i2.7",1910,null,null,"Result Parameter to represent whether the NS Lookup was successful or not.\nErrors for individual Result instances do not get bubbled up to DiagnosticsState.\nA failure on a specific attempt does not mean that the overall test failed, but a failure on all attempts means that DiagnosticsState SHOULD be Error_Other. Enumeration of:\nSuccess\nError_DNSServerNotAvailable\nError_HostNameNotResolved\nError_Timeout\nError_Other"]
["Device.DNS.Diagnostics.NSLookupDiagnostics.ResultNumberOfEntries","TR-181i2.7",1906,null,null,"The number of entries in the Result table.\nTotal number of Result entries from the most recent invocation of the test."]
["Device.DNS.Diagnostics.NSLookupDiagnostics.SuccessCount","TR-181i2.7",1905,null,null,"Number of successfully executed repetitions."]
["Device.DNS.Diagnostics.NSLookupDiagnostics.Timeout","TR-181i2.7",1901,null,null,"Timeout in milliseconds that indicates that a request has failed."]
["Device.Ethernet","TR-181i2.7",415,"y",null,"Ethernet object. This object models several Ethernet interface objects, each representing a different stack layer, including: Interface, Link, and VLANTermination. Interface is media-specific and models a port, the PHY layer, and the MAC layer. Link is media-independent and models the Logical Link Control (LLC) layer. A VLANTermination, when present, is expected to be stacked on top of Link objects to receive and send frames with a configured VLANID."]
["Device.Ethernet.Interface.{i}","TR-181i2.7",418,"y",null,"Ethernet interface table (a stackable interface object as described in [Section 4.2/TR-181i2]). This table models physical Ethernet ports, but in terms of the interface stack it also models the PHY and MAC level Ethernet interface.\nAt most one entry in this table can exist with a given value for Alias, or with a given value for Name."]
["Device.Ethernet.Interface.{i}.Alias","TR-181i2.7",439,"y",null,"A non-volatile handle used to reference this instance. Alias provides a mechanism for an ACS to label this instance for future reference.\nIf the CPE supports the Alias-based Addressing feature as defined in [Section 3.6.1/TR-069a4] and described in [Appendix II/TR-069a4], the following mandatory constraints MUST be enforced:\nIts value MUST NOT be empty.\nIts value MUST start with a letter.\nIf its instance object is created by the CPE, the initial value MUST start with a \"cpe-\" prefix.\nThe CPE MUST NOT change the parameter value."]
["Device.Ethernet.Interface.{i}.DuplexMode","TR-181i2.7",467,"y",null,"The duplex mode available to this connection. Enumeration of:\nHalf\nFull\nAuto"]
["Device.Ethernet.Interface.{i}.Enable","TR-181i2.7",421,"y",null,"Enables or disables the interface.\nThis parameter is based on ifAdminStatus from [RFC2863]."]
["Device.Ethernet.Interface.{i}.LastChange","TR-181i2.7",449,"y",null,"The accumulated time in seconds since the interface entered its current operational state."]
["Device.Ethernet.Interface.{i}.LowerLayers","TR-181i2.7",450,"y",null,"Comma-separated list (maximum length 1024) of strings. Each list item MUST be the path name of an interface object that is stacked immediately below this interface object. If the referenced object is deleted, the corresponding item MUST be removed from the list. See [Section 4.2.1/TR-181i2].\nNote: Since Interface is a layer 1 interface, it is expected that LowerLayers will not be used."]
["Device.Ethernet.Interface.{i}.MACAddress","TR-181i2.7",461,"y",null,"[MACAddress] The MAC Address of the interface.\nNote: This is not necessarily the same as the Ethernet header source or destination MAC address, which is associated with the IP interface and is modeled via the Ethernet.Link.{i}.MACAddress parameter."]
["Device.Ethernet.Interface.{i}.MaxBitRate","TR-181i2.7",464,"y",null,"The maximum upstream and downstream PHY bit rate supported by this interface (expressed in Mbps).\nA value of -1 indicates automatic selection of the maximum bit rate."]
["Device.Ethernet.Interface.{i}.Name","TR-181i2.7",448,"y",null,"The textual name of the interface as assigned by the CPE."]
["Device.Ethernet.Interface.{i}.Stats","TR-181i2.7",473,"y",null,"Throughput statistics for this interface.\nThe CPE MUST reset the interface's Stats parameters (unless otherwise stated in individual object or parameter descriptions) either when the interface becomes operationally down due to a previous administrative down (i.e. the interface's Status parameter transitions to a down state after the interface is disabled) or when the interface becomes administratively up (i.e. the interface's Enable parameter transitions from false to true). Administrative and operational interface status is discussed in [Section 4.2.2/TR-181i2]."]
["Device.Ethernet.Interface.{i}.Stats.BroadcastPacketsReceived","TR-181i2.7",489,"y",null,"The total number of received packets, delivered by this layer to a higher layer, which were addressed to a broadcast address at this layer."]
["Device.Ethernet.Interface.{i}.Stats.BroadcastPacketsSent","TR-181i2.7",488,"y",null,"The total number of packets that higher-level protocols requested for transmission and which were addressed to a broadcast address at this layer, including those that were discarded or not sent."]
["Device.Ethernet.Interface.{i}.Stats.BytesReceived","TR-181i2.7",477,"y",null,"The total number of bytes received on the interface, including framing characters."]
["Device.Ethernet.Interface.{i}.Stats.BytesSent","TR-181i2.7",476,"y",null,"The total number of bytes transmitted out of the interface, including framing characters."]
["Device.Ethernet.Interface.{i}.Stats.DiscardPacketsReceived","TR-181i2.7",485,"y",null,"The total number of inbound packets which were chosen to be discarded even though no errors had been detected to prevent their being delivered. One possible reason for discarding such a packet could be to free up buffer space."]
["Device.Ethernet.Interface.{i}.Stats.DiscardPacketsSent","TR-181i2.7",484,"y",null,"The total number of outbound packets which were chosen to be discarded even though no errors had been detected to prevent their being transmitted. One possible reason for discarding such a packet could be to free up buffer space."]
["Device.Ethernet.Interface.{i}.Stats.ErrorsReceived","TR-181i2.7",481,"y",null,"The total number of inbound packets that contained errors preventing them from being delivered to a higher-layer protocol."]
["Device.Ethernet.Interface.{i}.Stats.ErrorsSent","TR-181i2.7",480,"y",null,"The total number of outbound packets that could not be transmitted because of errors."]
["Device.Ethernet.Interface.{i}.Stats.MulticastPacketsReceived","TR-181i2.7",487,"y",null,"The total number of received packets, delivered by this layer to a higher layer, which were addressed to a multicast address at this layer."]
["Device.Ethernet.Interface.{i}.Stats.MulticastPacketsSent","TR-181i2.7",486,"y",null,"The total number of packets that higher-level protocols requested for transmission and which were addressed to a multicast address at this layer, including those that were discarded or not sent."]
["Device.Ethernet.Interface.{i}.Stats.PacketsReceived","TR-181i2.7",479,"y",null,"The total number of packets received on the interface."]
["Device.Ethernet.Interface.{i}.Stats.PacketsSent","TR-181i2.7",478,"y",null,"The total number of packets transmitted out of the interface."]
["Device.Ethernet.Interface.{i}.Stats.UnicastPacketsReceived","TR-181i2.7",483,"y",null,"The total number of received packets, delivered by this layer to a higher layer, which were not addressed to a multicast or broadcast address at this layer."]
["Device.Ethernet.Interface.{i}.Stats.UnicastPacketsSent","TR-181i2.7",482,"y",null,"The total number of packets requested for transmission which were not addressed to a multicast or broadcast address at this layer, including those that were discarded or not sent."]
["Device.Ethernet.Interface.{i}.Stats.UnknownProtoPacketsReceived","TR-181i2.7",490,"y",null,"The total number of packets received via the interface which were discarded because of an unknown or unsupported protocol."]
["Device.Ethernet.Interface.{i}.Status","TR-181i2.7",424,"y",null,"The current operational state of the interface (see [Section 4.2.2/TR-181i2]). Enumeration of:\nUp\nDown\nUnknown\nDormant\nNotPresent\nLowerLayerDown\nError (OPTIONAL)\nWhen Enable is false then Status SHOULD normally be Down (or NotPresent or Error if there is a fault condition on the interface).\nWhen Enable is changed to true then Status SHOULD change to Up if and only if the interface is able to transmit and receive network traffic; it SHOULD change to Dormant if and only if the interface is operable but is waiting for external actions before it can transmit and receive network traffic (and subsequently change to Up if still operable when the expected actions have completed); it SHOULD change to LowerLayerDown if and only if the interface is prevented from entering the Up state because one or more of the interfaces beneath it is down; it SHOULD remain in the Error state if there is an error or other fault condition detected on the interface; it SHOULD remain in the NotPresent state if the interface has missing (typically hardware) components; it SHOULD change to Unknown if the state of the interface can not be determined for some reason.\nThis parameter is based on ifOperStatus from [RFC2863]."]
["Device.Ethernet.Interface.{i}.Upstream","TR-181i2.7",453,"y",null,"Indicates whether the interface points towards the Internet (true) or towards End Devices (false).\nFor example:\nFor an Internet Gateway Device, Upstream will be true for all WAN interfaces and false for all LAN interfaces.\nFor a standalone WiFi Access Point that is connected via Ethernet to an Internet Gateway Device, Upstream will be true for the Ethernet interface and false for the WiFi Radio interface.\nFor an End Device, Upstream will be true for all interfaces."]
["Device.Ethernet.InterfaceNumberOfEntries","TR-181i2.7",416,"y",null,"The number of entries in the Interface table."]
["Device.Ethernet.Link.{i}","TR-181i2.7",491,null,null,"Ethernet link layer table (a stackable interface object as described in [Section 4.2/TR-181i2]). Table entries model the Logical Link Control (LLC) layer. It is expected that an Ethernet Link interface can be stacked above any lower-layer interface object capable of carrying Ethernet frames.\nAt most one entry in this table (regardless of whether or not it is enabled) can exist with a given value for Alias, or with a given value for Name. On creation of a new table entry, the CPE MUST choose initial values for Alias and Name such that the new entry does not conflict with any existing entries.\nAt most one enabled entry in this table can exist with a given value for MACAddress."]
["Device.Ethernet.Link.{i}.Alias","TR-181i2.7",514,null,null,"A non-volatile handle used to reference this instance. Alias provides a mechanism for an ACS to label this instance for future reference.\nIf the CPE supports the Alias-based Addressing feature as defined in [Section 3.6.1/TR-069a4] and described in [Appendix II/TR-069a4], the following mandatory constraints MUST be enforced:\nIts value MUST NOT be empty.\nIts value MUST start with a letter.\nIf its instance object is created by the CPE, the initial value MUST start with a \"cpe-\" prefix.\nThe CPE MUST NOT change the parameter value."]
["Device.Ethernet.Link.{i}.Enable","TR-181i2.7",496,null,null,"Enables or disables the link.\nThis parameter is based on ifAdminStatus from [RFC2863]."]
["Device.Ethernet.Link.{i}.LastChange","TR-181i2.7",524,null,null,"The accumulated time in seconds since the link entered its current operational state."]
["Device.Ethernet.Link.{i}.LowerLayers","TR-181i2.7",525,null,null,"Comma-separated list (maximum length 1024) of strings. Each list item MUST be the path name of an interface object that is stacked immediately below this interface object. If the referenced object is deleted, the corresponding item MUST be removed from the list. See [Section 4.2.1/TR-181i2]."]
["Device.Ethernet.Link.{i}.MACAddress","TR-181i2.7",526,null,null,"[MACAddress] The MAC address used for packets sent via this interface. Provides the source MAC address for outgoing traffic and the destination MAC address for incoming traffic."]
["Device.Ethernet.Link.{i}.Name","TR-181i2.7",523,null,null,"The textual name of the link as assigned by the CPE."]
["Device.Ethernet.Link.{i}.PriorityTagging","TR-181i2.7",527,null,null,"Enables or disables priority tagging on this Ethernet Link.\nWhen true, egress frames leaving this interface will be priority tagged with the frame's associated priority value, which will either be derived directly from the ingress frame or else set via QoS.Classification.{i}.EthernetPriorityMark.\nWhen false, egress frames leaving this interface will be untagged.\nThe parameter does not affect reception of ingress frames."]
["Device.Ethernet.Link.{i}.Stats","TR-181i2.7",534,null,null,"Throughput statistics for this interface.\nThe CPE MUST reset the interface's Stats parameters (unless otherwise stated in individual object or parameter descriptions) either when the interface becomes operationally down due to a previous administrative down (i.e. the interface's Status parameter transitions to a down state after the interface is disabled) or when the interface becomes administratively up (i.e. the interface's Enable parameter transitions from false to true). Administrative and operational interface status is discussed in [Section 4.2.2/TR-181i2]."]
["Device.Ethernet.Link.{i}.Stats.BroadcastPacketsReceived","TR-181i2.7",550,null,null,"The total number of received packets, delivered by this layer to a higher layer, which were addressed to a broadcast address at this layer."]
["Device.Ethernet.Link.{i}.Stats.BroadcastPacketsSent","TR-181i2.7",549,null,null,"The total number of packets that higher-level protocols requested for transmission and which were addressed to a broadcast address at this layer, including those that were discarded or not sent."]
["Device.Ethernet.Link.{i}.Stats.BytesReceived","TR-181i2.7",538,null,null,"The total number of bytes received on the interface, including framing characters."]
["Device.Ethernet.Link.{i}.Stats.BytesSent","TR-181i2.7",537,null,null,"The total number of bytes transmitted out of the interface, including framing characters."]
["Device.Ethernet.Link.{i}.Stats.DiscardPacketsReceived","TR-181i2.7",546,null,null,"The total number of inbound packets which were chosen to be discarded even though no errors had been detected to prevent their being delivered. One possible reason for discarding such a packet could be to free up buffer space."]
["Device.Ethernet.Link.{i}.Stats.DiscardPacketsSent","TR-181i2.7",545,null,null,"The total number of outbound packets which were chosen to be discarded even though no errors had been detected to prevent their being transmitted. One possible reason for discarding such a packet could be to free up buffer space."]
["Device.Ethernet.Link.{i}.Stats.ErrorsReceived","TR-181i2.7",542,null,null,"The total number of inbound packets that contained errors preventing them from being delivered to a higher-layer protocol."]
["Device.Ethernet.Link.{i}.Stats.ErrorsSent","TR-181i2.7",541,null,null,"The total number of outbound packets that could not be transmitted because of errors."]
["Device.Ethernet.Link.{i}.Stats.MulticastPacketsReceived","TR-181i2.7",548,null,null,"The total number of received packets, delivered by this layer to a higher layer, which were addressed to a multicast address at this layer."]
["Device.Ethernet.Link.{i}.Stats.MulticastPacketsSent","TR-181i2.7",547,null,null,"The total number of packets that higher-level protocols requested for transmission and which were addressed to a multicast address at this layer, including those that were discarded or not sent."]
["Device.Ethernet.Link.{i}.Stats.PacketsReceived","TR-181i2.7",540,null,null,"The total number of packets received on the interface."]
["Device.Ethernet.Link.{i}.Stats.PacketsSent","TR-181i2.7",539,null,null,"The total number of packets transmitted out of the interface."]
["Device.Ethernet.Link.{i}.Stats.UnicastPacketsReceived","TR-181i2.7",544,null,null,"The total number of received packets, delivered by this layer to a higher layer, which were not addressed to a multicast or broadcast address at this layer."]
["Device.Ethernet.Link.{i}.Stats.UnicastPacketsSent","TR-181i2.7",543,null,null,"The total number of packets requested for transmission which were not addressed to a multicast or broadcast address at this layer, including those that were discarded or not sent."]
["Device.Ethernet.Link.{i}.Stats.UnknownProtoPacketsReceived","TR-181i2.7",551,null,null,"The total number of packets received via the interface which were discarded because of an unknown or unsupported protocol."]
["Device.Ethernet.Link.{i}.Status","TR-181i2.7",499,null,null,"The current operational state of the link (see [Section 4.2.2/TR-181i2]). Enumeration of:\nUp\nDown\nUnknown\nDormant\nNotPresent\nLowerLayerDown\nError (OPTIONAL)\nWhen Enable is false then Status SHOULD normally be Down (or NotPresent or Error if there is a fault condition on the interface).\nWhen Enable is changed to true then Status SHOULD change to Up if and only if the interface is able to transmit and receive network traffic; it SHOULD change to Dormant if and only if the interface is operable but is waiting for external actions before it can transmit and receive network traffic (and subsequently change to Up if still operable when the expected actions have completed); it SHOULD change to LowerLayerDown if and only if the interface is prevented from entering the Up state because one or more of the interfaces beneath it is down; it SHOULD remain in the Error state if there is an error or other fault condition detected on the interface; it SHOULD remain in the NotPresent state if the interface has missing (typically hardware) components; it SHOULD change to Unknown if the state of the interface can not be determined for some reason.\nThis parameter is based on ifOperStatus from [RFC2863]."]
["Device.Ethernet.LinkNumberOfEntries","TR-181i2.7",417,"y",null,"The number of entries in the Link table."]
["Device.GatewayInfo","TR-181i2.7",355,null,null,"This object contains information associated with a connected Internet Gateway Device."]
["Device.GatewayInfo.ManufacturerOUI","TR-181i2.7",356,null,null,"Organizationally unique identifier of the associated Internet Gateway Device. Possible patterns:\n<Empty> (an empty string)\n[0-9A-F]{6}\nAn empty string indicates that there is no associated Internet Gateway Device that has been detected."]
["Device.GatewayInfo.ProductClass","TR-181i2.7",362,null,null,"Identifier of the product class of the associated Internet Gateway Device. An empty string indicates either that there is no associated Internet Gateway Device that has been detected, or the Internet Gateway Device does not support the use of the product-class parameter."]
["Device.GatewayInfo.SerialNumber","TR-181i2.7",363,null,null,"Serial number of the associated Internet Gateway Device. An empty string indicates that there is no associated Internet Gateway Device that has been detected."]
["Device.InterfaceStack.{i}","TR-181i2.7",391,null,null,"This table contains information about the relationships between the multiple layers of interface objects ([Section 4.3/TR-181i2]). In particular, it contains information on which interfaces run on top of which other interfaces.\nThis table is auto-generated by the CPE based on the LowerLayers parameters on individual interface objects.\nEach table row represents a \"link\" between two interface objects, a higher-layer interface object (referenced by HigherLayer) and a lower-layer interface object (referenced by LowerLayer). Consequently, if a referenced interface object is deleted, the CPE MUST delete the corresponding InterfaceStack row(s) that had referenced it.\nAt most one entry in this table can exist with the same values for HigherLayer and LowerLayer, or with a given value for Alias."]
["Device.InterfaceStack.{i}.Alias","TR-181i2.7",398,null,null,"A non-volatile handle used to reference this instance. Alias provides a mechanism for an ACS to label this instance for future reference.\nIf the CPE supports the Alias-based Addressing feature as defined in [Section 3.6.1/TR-069a4] and described in [Appendix II/TR-069a4], the following mandatory constraints MUST be enforced:\nIts value MUST NOT be empty.\nIts value MUST start with a letter.\nIf its instance object is created by the CPE, the initial value MUST start with a \"cpe-\" prefix.\nThe CPE MUST NOT change the parameter value."]
["Device.InterfaceStack.{i}.HigherAlias","TR-181i2.7",413,null,null,"The value of the Alias parameter for the interface object referenced by HigherLayer."]
["Device.InterfaceStack.{i}.HigherLayer","TR-181i2.7",407,null,null,"A reference to the interface object corresponding to the higher layer of the relationship, i.e. the interface which runs on top of the interface identified by the corresponding instance of LowerLayer.\nWhen the referenced higher layer interface is deleted, the CPE MUST delete the table row."]
["Device.InterfaceStack.{i}.LowerAlias","TR-181i2.7",414,null,null,"The value of the Alias parameter for the interface object referenced by LowerLayer."]
["Device.InterfaceStack.{i}.LowerLayer","TR-181i2.7",410,null,null,"A reference to the interface object corresponding to the lower layer of the relationship, i.e. the interface which runs below the interface identified by the corresponding instance of HigherLayer.\nWhen the referenced lower layer interface is deleted, the CPE MUST delete the table row."]
["Device.InterfaceStackNumberOfEntries","TR-181i2.7",8,null,null,"The number of entries in the InterfaceStack table."]
["Device.IP","TR-181i2.7",1214,null,null,"IP object that contains the Interface, ActivePort, and Diagnostics objects."]
["Device.IP.ActivePort.{i}","TR-181i2.7",1575,"y",null,"This table lists the ports on which TCP connections are listening or established.\nAt most one entry in this table can exist with all the same values for LocalIPAddress, LocalPort, RemoteIPAddress and RemotePort."]
["Device.IP.ActivePort.{i}.LocalIPAddress","TR-181i2.7",1578,"y",null,"[IPAddress] Connection local IP address."]
["Device.IP.ActivePort.{i}.LocalPort","TR-181i2.7",1579,"y",null,"Connection local port."]
["Device.IP.ActivePort.{i}.RemoteIPAddress","TR-181i2.7",1580,"y",null,"[IPAddress] The remote IP address of the source of inbound packets.\nThis will be an empty string for listening connections (only connections in ESTABLISHED state have remote addresses)."]
["Device.IP.ActivePort.{i}.RemotePort","TR-181i2.7",1583,"y",null,"The remote port of the source of inbound packets.\nThis will be 0 for listening connections (only connections in ESTABLISHED state have remote addresses)."]
["Device.IP.ActivePort.{i}.Status","TR-181i2.7",1586,"y",null,"Current operational status of the connection. Enumeration of:\nLISTEN\nESTABLISHED"]
["Device.IP.ActivePortNumberOfEntries","TR-181i2.7",1241,"y",null,"The number of entries in the ActivePort table."]
["Device.IP.Diagnostics","TR-181i2.7",1591,null,null,"The IP Diagnostics object."]
["Device.IP.Diagnostics.DownloadDiagnostics","TR-181i2.7",1666,null,null,"This object defines the diagnostics configuration for a HTTP and FTP DownloadDiagnostics Test.\nFiles received in the DownloadDiagnostics do not require file storage on the CPE device."]
["Device.IP.Diagnostics.DownloadDiagnostics.BOMTime","TR-181i2.7",1730,null,null,"Begin of transmission time in UTC, which MUST be specified to microsecond precision\nFor example: 2008-04-09T15:01:05.123456\nFor HTTP this is the time at which the first data packet is received.\nFor FTP this is the time at which the client receives the first data packet on the data connection."]
["Device.IP.Diagnostics.DownloadDiagnostics.DiagnosticsState","TR-181i2.7",1669,null,null,"Indicate the availability of diagnostic data. Enumeration of:\nNone\nRequested\nCompleted\nError_InitConnectionFailed\nError_NoResponse\nError_TransferFailed\nError_PasswordRequestFailed\nError_LoginFailed\nError_NoTransferMode\nError_NoPASV\nError_IncorrectSize\nError_Timeout\nIf the ACS sets the value of this parameter to Requested, the CPE MUST initiate the corresponding diagnostic test. When writing, the only allowed value is Requested. To ensure the use of the proper test parameters (the writable parameters in this object), the test parameters MUST be set either prior to or at the same time as (in the same SetParameterValues) setting the DiagnosticsState to Requested.\nWhen requested, the CPE SHOULD wait until after completion of the communication session with the ACS before starting the diagnostic.\nWhen the test is completed, the value of this parameter MUST be either Completed (if the test completed successfully), or one of the Error values listed above.\nIf the value of this parameter is anything other than Completed, the values of the results parameters for this test are indeterminate.\nWhen the diagnostic initiated by the ACS is completed (successfully or not), the CPE MUST establish a new connection to the ACS to allow the ACS to view the results, indicating the Event code 8 DIAGNOSTICS COMPLETE in the Inform message.\nAfter the diagnostic is complete, the value of all result parameters (all read-only parameters in this object) MUST be retained by the CPE until either this diagnostic is run again, or the CPE reboots. After a reboot, if the CPE has not retained the result parameters from the most recent test, it MUST set the value of this parameter to None.\nModifying any of the writable parameters in this object except for this one MUST result in the value of this parameter being set to None.\nWhile the test is in progress, modifying any of the writable parameters in this object except for this one MUST result in the test being terminated and the value of this parameter being set to None.\nWhile the test is in progress, setting this parameter to Requested (and possibly modifying other writable parameters in this object) MUST result in the test being terminated and then restarted using the current values of the test parameters."]
["Device.IP.Diagnostics.DownloadDiagnostics.DownloadTransports","TR-181i2.7",1712,null,null,"Comma-separated list of strings. Supported DownloadDiagnostics transport protocols for a CPE device. Each list item is an enumeration of:\nHTTP\nFTP (OPTIONAL)"]
["Device.IP.Diagnostics.DownloadDiagnostics.DownloadURL","TR-181i2.7",1706,null,null,"The URL, as defined in [RFC3986], for the CPE to perform the download on. This parameter MUST be in the form of a valid HTTP [RFC2616] or FTP [RFC959] URL.\nWhen using FTP transport, FTP binary transfer MUST be used.\nWhen using HTTP transport, persistent connections MUST be used and pipelining MUST NOT be used.\nWhen using HTTP transport the HTTP Authentication MUST NOT be used."]
["Device.IP.Diagnostics.DownloadDiagnostics.DSCP","TR-181i2.7",1717,null,null,"The DiffServ code point for marking packets transmitted in the test.\nThe default value SHOULD be zero."]
["Device.IP.Diagnostics.DownloadDiagnostics.EOMTime","TR-181i2.7",1737,null,null,"End of transmission in UTC, which MUST be specified to microsecond precision.\nFor example: 2008-04-09T15:01:05.123456\nFor HTTP this is the time at which the last data packet is received.\nFor FTP this is the time at which the client receives the last packet on the data connection."]
["Device.IP.Diagnostics.DownloadDiagnostics.EthernetPriority","TR-181i2.7",1720,null,null,"Ethernet priority code for marking packets transmitted in the test (if applicable).\nThe default value SHOULD be zero."]
["Device.IP.Diagnostics.DownloadDiagnostics.Interface","TR-181i2.7",1701,null,null,"The value MUST be the path name of the IP-layer interface over which the test is to be performed.\nThe value of this parameter MUST be either a valid interface or an empty string. An attempt to set this parameter to a different value MUST be rejected as an invalid parameter value.\nIf an empty string is specified, the CPE MUST use the default routing interface."]
["Device.IP.Diagnostics.DownloadDiagnostics.ROMTime","TR-181i2.7",1723,null,null,"Request time in UTC, which MUST be specified to microsecond precision.\nFor example: 2008-04-09T15:01:05.123456\nFor HTTP this is the time at which the client sends the GET command.\nFor FTP this is the time at which the client sends the RTRV command."]
["Device.IP.Diagnostics.DownloadDiagnostics.TCPOpenRequestTime","TR-181i2.7",1746,null,null,"Request time in UTC, which MUST be specified to microsecond precision.\nFor example: 2008-04-09T15:01:05.123456\nFor HTTP this is the time at which the TCP socket open (SYN) was sent for the HTTP connection.\nFor FTP this is the time at which the TCP socket open (SYN) was sent for the data connection.\nNote: Interval of 1 microsecond SHOULD be supported."]
["Device.IP.Diagnostics.DownloadDiagnostics.TCPOpenResponseTime","TR-181i2.7",1754,null,null,"Response time in UTC, which MUST be specified to microsecond precision.\nFor example: 2008-04-09T15:01:05.123456\nFor HTTP this is the time at which the TCP ACK to the socket opening the HTTP connection was received.\nFor FTP this is the time at which the TCP ACK to the socket opening the data connection was received.\nNote: Interval of 1 microsecond SHOULD be supported."]
["Device.IP.Diagnostics.DownloadDiagnostics.TestBytesReceived","TR-181i2.7",1744,null,null,"The test traffic received in bytes during the FTP/HTTP transaction including FTP/HTTP headers, between BOMTime and EOMTime,"]
["Device.IP.Diagnostics.DownloadDiagnostics.TotalBytesReceived","TR-181i2.7",1745,null,null,"The total number of bytes received on the Interface between BOMTime and EOMTime."]
["Device.IP.Diagnostics.IPPing","TR-181i2.7",1592,"y",null,"This object provides access to an IP-layer ping test."]
["Device.IP.Diagnostics.IPPing.AverageResponseTime","TR-181i2.7",1631,"y",null,"Result parameter indicating the average response time in milliseconds over all repetitions with successful responses of the most recent ping test. If there were no successful responses, this value MUST be zero."]
["Device.IP.Diagnostics.IPPing.DataBlockSize","TR-181i2.7",1627,"y",null,"Size of the data block in bytes to be sent for each ping."]
["Device.IP.Diagnostics.IPPing.DiagnosticsState","TR-181i2.7",1593,"y",null,"Indicates availability of diagnostic data. Enumeration of:\nNone\nRequested\nComplete\nError_CannotResolveHostName\nError_Internal\nError_Other\nIf the ACS sets the value of this parameter to Requested, the CPE MUST initiate the corresponding diagnostic test. When writing, the only allowed value is Requested. To ensure the use of the proper test parameters (the writable parameters in this object), the test parameters MUST be set either prior to or at the same time as (in the same SetParameterValues) setting the DiagnosticsState to Requested.\nWhen requested, the CPE SHOULD wait until after completion of the communication session with the ACS before starting the diagnostic.\nWhen the test is completed, the value of this parameter MUST be either Complete (if the test completed successfully), or one of the Error values listed above.\nIf the value of this parameter is anything other than Complete, the values of the results parameters for this test are indeterminate.\nWhen the diagnostic initiated by the ACS is completed (successfully or not), the CPE MUST establish a new connection to the ACS to allow the ACS to view the results, indicating the Event code 8 DIAGNOSTICS COMPLETE in the Inform message.\nAfter the diagnostic is complete, the value of all result parameters (all read-only parameters in this object) MUST be retained by the CPE until either this diagnostic is run again, or the CPE reboots. After a reboot, if the CPE has not retained the result parameters from the most recent test, it MUST set the value of this parameter to None.\nModifying any of the writable parameters in this object except for this one MUST result in the value of this parameter being set to None.\nWhile the test is in progress, modifying any of the writable parameters in this object except for this one MUST result in the test being terminated and the value of this parameter being set to None.\nWhile the test is in progress, setting this parameter to Requested (and possibly modifying other writable parameters in this object) MUST result in the test being terminated and then restarted using the current values of the test parameters."]
["Device.IP.Diagnostics.IPPing.DSCP","TR-181i2.7",1628,"y",null,"DiffServ codepoint to be used for the test packets. By default the CPE SHOULD set this value to zero."]
["Device.IP.Diagnostics.IPPing.FailureCount","TR-181i2.7",1630,"y",null,"Result parameter indicating the number of failed pings in the most recent ping test."]
["Device.IP.Diagnostics.IPPing.Host","TR-181i2.7",1622,"y",null,"Host name or address of the host to ping.\nIn the case where Host is specified by name, and the name resolves to more than one address, it is up to the device implementation to choose which address to use."]
["Device.IP.Diagnostics.IPPing.Interface","TR-181i2.7",1619,"y",null,"The value MUST be the path name of a row in the IP.Interface table. The IP-layer interface over which the test is to be performed. This identifies the source IP address to use when performing the test. Example: Device.IP.Interface.1\nIf an empty string is specified, the CPE MUST use the interface as directed by its routing policy (Forwarding table entries) to determine the appropriate interface."]
["Device.IP.Diagnostics.IPPing.MaximumResponseTime","TR-181i2.7",1633,"y",null,"Result parameter indicating the maximum response time in milliseconds over all repetitions with successful responses of the most recent ping test. If there were no successful responses, this value MUST be zero."]
["Device.IP.Diagnostics.IPPing.MinimumResponseTime","TR-181i2.7",1632,"y",null,"Result parameter indicating the minimum response time in milliseconds over all repetitions with successful responses of the most recent ping test. If there were no successful responses, this value MUST be zero."]
["Device.IP.Diagnostics.IPPing.NumberOfRepetitions","TR-181i2.7",1625,"y",null,"Number of repetitions of the ping test to perform before reporting the results."]
["Device.IP.Diagnostics.IPPing.SuccessCount","TR-181i2.7",1629,"y",null,"Result parameter indicating the number of successful pings (those in which a successful response was received prior to the timeout) in the most recent ping test."]
["Device.IP.Diagnostics.IPPing.Timeout","TR-181i2.7",1626,"y",null,"Timeout in milliseconds for the ping test."]
["Device.IP.Diagnostics.TraceRoute","TR-181i2.7",1634,null,null,"This object is defines access to an IP-layer trace-route test for the specified IP interface."]
["Device.IP.Diagnostics.TraceRoute.DataBlockSize","TR-181i2.7",1656,"y",null,"Size of the data block in bytes to be sent for each trace route. By default, the CPE SHOULD set this value to 38."]
["Device.IP.Diagnostics.TraceRoute.DiagnosticsState","TR-181i2.7",1635,"y",null,"Indicates availability of diagnostic data. Enumeration of:\nNone\nRequested\nComplete\nError_CannotResolveHostName\nError_MaxHopCountExceeded\nIf the ACS sets the value of this parameter to Requested, the CPE MUST initiate the corresponding diagnostic test. When writing, the only allowed value is Requested. To ensure the use of the proper test parameters (the writable parameters in this object), the test parameters MUST be set either prior to or at the same time as (in the same SetParameterValues) setting the DiagnosticsState to Requested.\nWhen requested, the CPE SHOULD wait until after completion of the communication session with the ACS before starting the diagnostic.\nWhen the diagnostic initiated by the ACS is completed (successfully or not), the CPE MUST establish a new connection to the ACS to allow the ACS to view the results, indicating the Event code 8 DIAGNOSTICS COMPLETE in the Inform message."]
["Device.IP.Diagnostics.TraceRoute.DSCP","TR-181i2.7",1657,"y",null,"DiffServ codepoint to be used for the test packets. By default the CPE SHOULD set this value to 0."]
["Device.IP.Diagnostics.TraceRoute.Host","TR-181i2.7",1651,"y",null,"Host name or address of the host to find a route to.\nIn the case where Host is specified by name, and the name resolves to more than one address, it is up to the device implementation to choose which address to use."]
["Device.IP.Diagnostics.TraceRoute.Interface","TR-181i2.7",1648,"y",null,"The value MUST be the path name of a row in the IP.Interface table. The IP-layer interface over which the test is to be performed. This identifies the source IP address to use when performing the test.\nExample: Device.IP.Interface.1"]
["Device.IP.Diagnostics.TraceRoute.MaxHopCount","TR-181i2.7",1658,"y",null,"The maximum number of hop used in outgoing probe packets (max TTL). By default the CPE SHOULD set this value to 30."]
["Device.IP.Diagnostics.TraceRoute.NumberOfTries","TR-181i2.7",1654,"y",null,"Number of tries per hop. Set prior to running Diagnostic. By default, the CPE SHOULD set this value to 3."]
["Device.IP.Diagnostics.TraceRoute.ResponseTime","TR-181i2.7",1659,"y",null,"Result parameter indicating the response time in milliseconds the most recent trace route test. If a route could not be determined, this value MUST be zero."]
["Device.IP.Diagnostics.TraceRoute.RouteHops.{i}","TR-181i2.7",1661,"y",null,"Contains the array of hop results returned. If a route could not be determined, this array will be empty"]
["Device.IP.Diagnostics.TraceRoute.RouteHops.{i}.ErrorCode","TR-181i2.7",1664,"y",null,"Contains the error code returned for this hop. This code is directly from the ICMP CODE field."]
["Device.IP.Diagnostics.TraceRoute.RouteHops.{i}.Host","TR-181i2.7",1662,"y",null,"Result parameter indicating the Host Name if DNS is able to resolve or IP Address of a hop along the discovered route."]
["Device.IP.Diagnostics.TraceRoute.RouteHops.{i}.HostAddress","TR-181i2.7",1663,"y",null,"If this parameter is not an empty string it will contain the last IP address of the host returned for this hop and the Host will contain the Host Name returned from the reverse DNS query."]
["Device.IP.Diagnostics.TraceRoute.RouteHops.{i}.RTTimes","TR-181i2.7",1665,"y",null,"Comma-separated list (maximum length 16) of unsigned integers. Each list item contains one or more round trip times in milliseconds (one for each repetition) for this hop."]
["Device.IP.Diagnostics.TraceRoute.RouteHopsNumberOfEntries","TR-181i2.7",1660,"y",null,"The number of entries in the RouteHops table."]
["Device.IP.Diagnostics.TraceRoute.Timeout","TR-181i2.7",1655,"y",null,"Timeout in milliseconds for each hop of the trace route test. By default the CPE SHOULD set this value to 5000."]
["Device.IP.Diagnostics.UploadDiagnostics","TR-181i2.7",1762,null,null,"This object defines the diagnostics configuration for a HTTP or FTP UploadDiagnostics test.\nFiles sent by the UploadDiagnostics do not require file storage on the CPE device, and MAY be an arbitrary stream of bytes."]
["Device.IP.Diagnostics.UploadDiagnostics.BOMTime","TR-181i2.7",1829,null,null,"Begin of transmission time in UTC, which MUST be specified to microsecond precision.\nFor example: 2008-04-09T15:01:05.123456\nFor HTTP this is the time at which the first data packet is sent.\nFor FTP this is the time at which the client receives the ready for transfer notification."]
["Device.IP.Diagnostics.UploadDiagnostics.DiagnosticsState","TR-181i2.7",1765,null,null,"Indicate the availability of diagnostic data. Enumeration of:\nNone\nRequested\nCompleted\nError_InitConnectionFailed\nError_NoResponse\nError_PasswordRequestFailed\nError_LoginFailed\nError_NoTransferMode\nError_NoPASV\nError_NoCWD\nError_NoSTOR\nError_NoTransferComplete\nIf the ACS sets the value of this parameter to Requested, the CPE MUST initiate the corresponding diagnostic test. When writing, the only allowed value is Requested. To ensure the use of the proper test parameters (the writable parameters in this object), the test parameters MUST be set either prior to or at the same time as (in the same SetParameterValues) setting the DiagnosticsState to Requested.\nWhen requested, the CPE SHOULD wait until after completion of the communication session with the ACS before starting the diagnostic.\nWhen the test is completed, the value of this parameter MUST be either Completed (if the test completed successfully), or one of the Error values listed above.\nIf the value of this parameter is anything other than Completed, the values of the results parameters for this test are indeterminate.\nWhen the diagnostic initiated by the ACS is completed (successfully or not), the CPE MUST establish a new connection to the ACS to allow the ACS to view the results, indicating the Event code 8 DIAGNOSTICS COMPLETE in the Inform message.\nAfter the diagnostic is complete, the value of all result parameters (all read-only parameters in this object) MUST be retained by the CPE until either this diagnostic is run again, or the CPE reboots. After a reboot, if the CPE has not retained the result parameters from the most recent test, it MUST set the value of this parameter to None.\nModifying any of the writable parameters in this object except for this one MUST result in the value of this parameter being set to None.\nWhile the test is in progress, modifying any of the writable parameters in this object except for this one MUST result in the test being terminated and the value of this parameter being set to None.\nWhile the test is in progress, setting this parameter to Requested (and possibly modifying other writable parameters in this object) MUST result in the test being terminated and then restarted using the current values of the test parameters."]
["Device.IP.Diagnostics.UploadDiagnostics.DSCP","TR-181i2.7",1813,null,null,"DiffServ code point for marking packets transmitted in the test.\nThe default value SHOULD be zero."]
["Device.IP.Diagnostics.UploadDiagnostics.EOMTime","TR-181i2.7",1836,null,null,"End of transmission in UTC, which MUST be specified to microsecond precision.\nFor example: 2008-04-09T15:01:05.123456\nFor HTTP this is the time when the HTTP successful response code is received.\nFor FTP this is the time when the client receives a transfer complete."]
["Device.IP.Diagnostics.UploadDiagnostics.EthernetPriority","TR-181i2.7",1816,null,null,"Ethernet priority code for marking packets transmitted in the test (if applicable).\nThe default value SHOULD be zero."]
["Device.IP.Diagnostics.UploadDiagnostics.Interface","TR-181i2.7",1797,null,null,"The value MUST be the path name of the IP-layer interface over which the test is to be performed.\nThe value of this parameter MUST be either a valid interface or an empty string. An attempt to set this parameter to a different value MUST be rejected as an invalid parameter value.\nIf an empty string is specified, the CPE MUST use the default routing interface."]
["Device.IP.Diagnostics.UploadDiagnostics.ROMTime","TR-181i2.7",1822,null,null,"Request time in UTC, which MUST be specified to microsecond precision.\nFor example: 2008-04-09T15:01:05.123456\nFor HTTP this is the time at which the client sends the PUT command\nFor FTP this is the time at which the STOR command is sent."]
["Device.IP.Diagnostics.UploadDiagnostics.TCPOpenRequestTime","TR-181i2.7",1844,null,null,"Request time in UTC, which MUST be specified to microsecond precision.\nFor example: 2008-04-09T15:01:05.123456\nFor HTTP this is the time at which the TCP socket open (SYN) was sent for the HTTP connection.\nFor FTP this is the time at which the TCP socket open (SYN) was sent for the data connection\nNote: Interval of 1 microsecond SHOULD be supported."]
["Device.IP.Diagnostics.UploadDiagnostics.TCPOpenResponseTime","TR-181i2.7",1852,null,null,"Response time in UTC, which MUST be specified to microsecond precision.\nFor example: 2008-04-09T15:01:05.123456\nFor HTTP this is the Time at which the TCP ACK to the socket opening the HTTP connection was received.\nFor FTP this is the Time at which the TCP ACK to the socket opening the Data connection was received.\nNote: Interval of 1 microsecond SHOULD be supported."]
["Device.IP.Diagnostics.UploadDiagnostics.TestFileLength","TR-181i2.7",1819,null,null,"The size of the file (in bytes) to be uploaded to the server.\nThe CPE MUST insure the appropriate number of bytes are sent."]
["Device.IP.Diagnostics.UploadDiagnostics.TotalBytesSent","TR-181i2.7",1843,null,null,"The total number of bytes sent on the Interface between BOMTime and EOMTime."]
["Device.IP.Diagnostics.UploadDiagnostics.UploadTransports","TR-181i2.7",1808,null,null,"Comma-separated list of strings. Supported UploadDiagnostics transport protocols for a CPE device. Each list item is an enumeration of:\nHTTP\nFTP (OPTIONAL)"]
["Device.IP.Diagnostics.UploadDiagnostics.UploadURL","TR-181i2.7",1802,null,null,"The URL, as defined in [RFC3986], for the CPE to Upload to. This parameter MUST be in the form of a valid HTTP [RFC2616] or FTP [RFC959] URL.\nWhen using FTP transport, FTP binary transfer MUST be used.\nWhen using HTTP transport, persistent connections MUST be used and pipelining MUST NOT be used.\nWhen using HTTP transport the HTTP Authentication MUST NOT be used."]
["Device.IP.Interface.{i}","TR-181i2.7",1242,"y",null,"IP interface table (a stackable interface object as described in [Section 4.2/TR-181i2]). This table models the layer 3 IP interface.\nEach IP interface can be attached to the IPv4 and/or IPv6 stack. The interface's IP addresses and prefixes are listed in the IPv4Address, IPv6Address and IPv6Prefix tables.\nNote that support for manipulating Loopback interfaces is OPTIONAL, so the implementation MAY choose not to create (or allow the ACS to create) Interface instances of type Loopback.\nWhen the ACS administratively disables the interface, i.e. sets Enable to false, the interface's automatically-assigned IP addresses and prefixes MAY be retained. When the ACS administratively enables the interface, i.e. sets Enable to true, these IP addresses and prefixes MUST be refreshed. It's up to the implementation to decide exactly what this means: it SHOULD take all reasonable steps to refresh everything but if it is unable, for example, to refresh a prefix that still has a significant lifetime, it might well choose to retain rather than discard it.\nAt most one entry in this table (regardless of whether or not it is enabled) can exist with a given value for Alias, or with a given value for Name. On creation of a new table entry, the CPE MUST choose initial values for Alias and Name such that the new entry does not conflict with any existing entries."]
["Device.IP.Interface.{i}.Alias","TR-181i2.7",1284,"y",null,"A non-volatile handle used to reference this instance. Alias provides a mechanism for an ACS to label this instance for future reference.\nIf the CPE supports the Alias-based Addressing feature as defined in [Section 3.6.1/TR-069a4] and described in [Appendix II/TR-069a4], the following mandatory constraints MUST be enforced:\nIts value MUST NOT be empty.\nIts value MUST start with a letter.\nIf its instance object is created by the CPE, the initial value MUST start with a \"cpe-\" prefix.\nThe CPE MUST NOT change the parameter value."]
["Device.IP.Interface.{i}.AutoIPEnable","TR-181i2.7",1321,"y",null,"If true, enables auto-IP on the interface [RFC3927]. This mechanism is only used with IPv4.\nWhen auto-IP is enabled on an interface, an IPv4Address object will dynamically be created and configured with auto-IP parameter values. The exact conditions under which an auto-IP address is created (e.g. always when enabled or only in absence of dynamic IP addressing) is implementation specific."]
["Device.IP.Interface.{i}.Enable","TR-181i2.7",1251,"y",null,"Enables or disables the interface (regardless of IPv4Enable and IPv6Enable).\nThis parameter is based on ifAdminStatus from [RFC2863]."]
["Device.IP.Interface.{i}.IPv4Address.{i}","TR-181i2.7",1324,"y",null,"IPv4 address table. Entries are auto-created and auto-deleted as IP addresses are added and deleted via DHCP, auto-IP, or IPCP. Static entries are created and configured by the ACS.\nAt most one entry in this table (regardless of whether or not it is enabled) can exist with a given value for Alias. On creation of a new table entry, the CPE MUST choose an initial value for Alias such that the new entry does not conflict with any existing entries.\nAt most one enabled entry in this table can exist with the same values for IPAddress and SubnetMask."]
["Device.IP.Interface.{i}.IPv4Address.{i}.AddressingType","TR-181i2.7",1356,"y",null,"Addressing method used to assign the IP address. Enumeration of:\nDHCP\nAutoIP\nIPCP\nStatic"]
["Device.IP.Interface.{i}.IPv4Address.{i}.Alias","TR-181i2.7",1340,"y",null,"A non-volatile handle used to reference this instance. Alias provides a mechanism for an ACS to label this instance for future reference.\nIf the CPE supports the Alias-based Addressing feature as defined in [Section 3.6.1/TR-069a4] and described in [Appendix II/TR-069a4], the following mandatory constraints MUST be enforced:\nIts value MUST NOT be empty.\nIts value MUST start with a letter.\nIf its instance object is created by the CPE, the initial value MUST start with a \"cpe-\" prefix.\nThe CPE MUST NOT change the parameter value.\nThis parameter can only be modified if AddressingType is Static."]
["Device.IP.Interface.{i}.IPv4Address.{i}.Enable","TR-181i2.7",1329,"y",null,"Enables or disables this IPv4 address."]
["Device.IP.Interface.{i}.IPv4Address.{i}.IPAddress","TR-181i2.7",1350,"y",null,"[IPv4Address] IPv4 address.\nThis parameter can only be modified if the AddressingType is Static."]
["Device.IP.Interface.{i}.IPv4Address.{i}.Status","TR-181i2.7",1330,"y",null,"The status of this IPv4Address table entry. Enumeration of:\nDisabled\nEnabled\nError_Misconfigured\nError (OPTIONAL)\nThe Error_Misconfigured value indicates that a necessary configuration value is undefined or invalid.\nThe Error value MAY be used by the CPE to indicate a locally defined error condition."]
["Device.IP.Interface.{i}.IPv4Address.{i}.SubnetMask","TR-181i2.7",1353,"y",null,"[IPv4Address] Subnet mask.\nThis parameter can only be modified if the AddressingType is Static."]
["Device.IP.Interface.{i}.IPv4AddressNumberOfEntries","TR-181i2.7",1318,"y",null,"The number of entries in the IPv4Address table."]
["Device.IP.Interface.{i}.IPv4Enable","TR-181i2.7",1254,"y",null,"If set to true, attaches this interface to the IPv4 stack. If set to false, detaches this interface from the IPv4 stack.\nOnce detached from the IPv4 stack, the interface will now no longer be able to pass IPv4 packets, and will be operationally down (unless also attached to an enabled IPv6 stack).\nFor an IPv4 capable device, if IPv4Enable is not present this interface SHOULD be permanently attached to the IPv4 stack.\nNote that IPv4Enable is independent of Enable, and that to administratively enable an interface for IPv4 it is necessary for both Enable and IPv4Enable to be true."]
["Device.IP.Interface.{i}.IPv6Address.{i}","TR-181i2.7",1363,"y",null,"This table contains the IP interface's IPv6 unicast addresses. There MUST be an entry for each such address, including anycast addresses.\nThere are several ways in which entries can be added to and deleted from this table, including:\nAutomatically via SLAAC [RFC4862], which covers generation of link-local addresses (for all types of device) and global addresses (for non-router devices).\nAutomatically via DHCPv6 [RFC3315], which covers generation of any type of address (subject to the configured DHCP server policy).\nManually via a GUI or some other local management interface.\nManually via factory default configuration.\nBy the ACS.\nThis table MUST NOT include entries for the Subnet-Router anycast address [Section 2.6.1/RFC4291]. Such entries would be identical to others but with a zero interface identifier, and would add no value.\nA loopback interface will always have address ::1 [Section 2.5.3/RFC4291] and MAY also have link-local address fe80::1.\nThis object is based on ipAddressTable from [RFC4293].\nAt most one entry in this table (regardless of whether or not it is enabled) can exist with a given value for Alias. On creation of a new table entry, the CPE MUST choose an initial value for Alias such that the new entry does not conflict with any existing entries.\nAt most one enabled entry in this table can exist with a given value for IPAddress."]
["Device.IP.Interface.{i}.IPv6Address.{i}.Alias","TR-181i2.7",1405,"y",null,"A non-volatile handle used to reference this instance. Alias provides a mechanism for an ACS to label this instance for future reference.\nIf the CPE supports the Alias-based Addressing feature as defined in [Section 3.6.1/TR-069a4] and described in [Appendix II/TR-069a4], the following mandatory constraints MUST be enforced:\nIts value MUST NOT be empty.\nIts value MUST start with a letter.\nIf its instance object is created by the CPE, the initial value MUST start with a \"cpe-\" prefix.\nThe CPE MUST NOT change the parameter value.\nThis parameter can only be modified if Origin is Static."]
["Device.IP.Interface.{i}.IPv6Address.{i}.Anycast","TR-181i2.7",1441,"y",null,"Indicates whether this is an anycast address [Section 2.6/RFC4291]. Anycast addresses are syntactically identical to unicast addresses and so need to be configured explicitly.\nThis parameter can only be modified if the Origin is Static.\nThis parameter is based on ipAddressType from [RFC4293]."]
["Device.IP.Interface.{i}.IPv6Address.{i}.Enable","TR-181i2.7",1382,"y",null,"Enables or disables this IPv6Address entry."]
["Device.IP.Interface.{i}.IPv6Address.{i}.IPAddressStatus","TR-181i2.7",1393,"y",null,"[IPv6Address] IPv6 address.\nThis parameter can only be modified if the Origin is Static.\nThis parameter is based on ipAddressAddr from [RFC4293]."]
["Device.IP.Interface.{i}.IPv6Address.{i}.Origin","TR-181i2.7",1420,"y",null,"Mechanism via which the IP address was assigned. Enumeration of:\nAutoConfigured (Automatically generated. For example, a link-local address as specified by SLAAC [Section 5.3/RFC4862], a global address as specified by SLAAC [Section 5.5/RFC4862], or generated via CPE logic (e.g. from delegated prefix as specified by [RFC3633]), or from ULA /48 prefix as specified by [RFC4193])\nDHCPv6 (Assigned by DHCPv6 [RFC3315])\nWellKnown (Specified by a standards organization, e.g. the ::1 loopback address, which is defined in [RFC4291])\nStatic (For example, present in the factory default configuration (but not WellKnown), created by the ACS, or created by some other management entity (e.g. via a GUI))\nThis parameter is based on ipOrigin from [RFC4293]."]
["Device.IP.Interface.{i}.IPv6Address.{i}.PreferredLifetime","TR-181i2.7",1435,"y",null,"The time at which this address will cease to be preferred (i.e. will become deprecated), or 0001-01-01T00:00:00Z if not known. For an infinite lifetime, the parameter value MUST be 9999-12-31T23:59:59Z.\nThis parameter can only be modified if the Origin is Static."]
["Device.IP.Interface.{i}.IPv6Address.{i}.Prefix","TR-181i2.7",1428,"y",null,"The value MUST be the path name of a row in the IPv6Prefix table. If the referenced object is deleted, the parameter value MUST be set to an empty string. IPv6 address prefix.\nSome addresses, e.g. addresses assigned via the DHCPv6 IA_NA option, are not associated with a prefix, and some WellKnown prefixes might not be modeled. In both of these cases Prefix will be an empty string.\nThis parameter can only be modified if the Origin is Static.\nThis parameter is based on ipAddressPrefix from [RFC4293]."]
["Device.IP.Interface.{i}.IPv6Address.{i}.Status","TR-181i2.7",1383,"y",null,"The status of this IPv6Address table entry. Enumeration of:\nDisabled\nEnabled\nError_Misconfigured\nError (OPTIONAL)\nThe Error_Misconfigured value indicates that a necessary configuration value is undefined or invalid.\nThe Error value MAY be used by the CPE to indicate a locally defined error condition."]
["Device.IP.Interface.{i}.IPv6Address.{i}.ValidLifetime","TR-181i2.7",1438,"y",null,"The time at which this address will cease to be valid (i.e. will become invalid), or 0001-01-01T00:00:00Z if unknown. For an infinite lifetime, the parameter value MUST be 9999-12-31T23:59:59Z.\nThis parameter can only be modified if the Origin is Static."]
["Device.IP.Interface.{i}.IPv6AddressNumberOfEntries","TR-181i2.7",1319,"y",null,"The number of entries in the IPv6Address table."]
["Device.IP.Interface.{i}.IPv6Enable","TR-181i2.7",1261,"y",null,"If set to true, attaches this interface to the IPv6 stack. If set to false, detaches this interface from the IPv6 stack.\nOnce detached from the IPv6 stack, the interface will now no longer be able to pass IPv6 packets, and will be operationally down (unless also attached to an enabled IPv4 stack).\nFor an IPv6 capable device, if IPv6Enable is not present this interface SHOULD be permanently attached to the IPv6 stack.\nNote that IPv6Enable is independent of Enable, and that to administratively enable an interface for IPv6 it is necessary for both Enable and IPv6Enable to be true."]
["Device.IP.Interface.{i}.IPv6Prefix.{i}","TR-181i2.7",1446,"y",null,"This table contains the interface's IPv6 prefixes. There MUST be an entry for each such prefix, not only for prefixes learned from router advertisements.\nThere are several ways in which entries can be added to and deleted from this table, including:\nAutomatically via [RFC4861] Router Advertisements. See also RouterAdvertisement.\nAutomatically via DHCPv6 [RFC3315] prefix delegation [RFC3633]. See also DHCPv6.Client.\nAutomatically via internal CPE logic, e.g. creation of child prefixes derived from a parent prefix.\nManually via a GUI or some other local management interface.\nManually via factory default configuration.\nBy the ACS.\nThe CPE MAY choose not to create IPv6Prefix entries for WellKnown prefixes or for the ULA /48 prefix [RFC4193]. If an IPv6Prefix entry exists for the ULA /48 prefix, it MUST be on a downstream interface (i.e. an interface for which the physical layer interface object has Upstream = false).\nThis object is based on ipAddressPrefixTable from [RFC4293].\nAt most one entry in this table (regardless of whether or not it is enabled) can exist with a given value for Alias. On creation of a new table entry, the CPE MUST choose an initial value for Alias such that the new entry does not conflict with any existing entries.\nAt most one enabled entry in this table can exist with a given value for Prefix."]
["Device.IP.Interface.{i}.IPv6Prefix.{i}.Alias","TR-181i2.7",1481,"y",null,"A non-volatile handle used to reference this instance. Alias provides a mechanism for an ACS to label this instance for future reference.\nIf the CPE supports the Alias-based Addressing feature as defined in [Section 3.6.1/TR-069a4] and described in [Appendix II/TR-069a4], the following mandatory constraints MUST be enforced:\nIts value MUST NOT be empty.\nIts value MUST start with a letter.\nIf its instance object is created by the CPE, the initial value MUST start with a \"cpe-\" prefix.\nThe CPE MUST NOT change the parameter value.\nThis parameter can only be modified if Origin is Static."]
["Device.IP.Interface.{i}.IPv6Prefix.{i}.Autonomous","TR-181i2.7",1542,"y",null,"Autonomous address configuration flag [Section 4.6.2/RFC4861] as received (in the RA) for RouterAdvertisement. Indicates whether this prefix can be used for generating global addresses as specified by SLAAC [RFC4862].\nThis parameter can only be modified if Origin is Static.\nThis parameter is based on ipAddressPrefixAutonomousFlag from [RFC4293]."]
["Device.IP.Interface.{i}.IPv6Prefix.{i}.ChildPrefixBits","TR-181i2.7",1532,"y",null,"[IPv6Prefix] A prefix that specifies the length of Static Child prefixes and how they are derived from their ParentPrefix. It will be used if and only if it is not an empty string and is longer than the parent prefix (if it is not used, derivation of such prefixes is implementation-specific). Any bits to the right of the parent prefix are set to the bits in this prefix.\nFor example, for a parent prefix of fedc::/56, if this parameter had the value 123:4567:89ab:cdef::/64, the child /64 would be fedc:0:0:ef::/64. For a parent prefix of fedc::/60, the child /64 would be fedc:0:0:f::/64.\nThis parameter can only be modified if Origin is Static."]
["Device.IP.Interface.{i}.IPv6Prefix.{i}.Enable","TR-181i2.7",1464,"y",null,"Enables or disables this IPv6Prefix entry."]
["Device.IP.Interface.{i}.IPv6Prefix.{i}.OnLink","TR-181i2.7",1537,"y",null,"On-link flag [Section 4.6.2/RFC4861] as received (in the RA) for RouterAdvertisement. Indicates whether this prefix can be used for on-link determination.\nThis parameter can only be modified if Origin is Static.\nThis parameter is based on ipAddressPrefixOnLinkFlag from [RFC4293]."]
["Device.IP.Interface.{i}.IPv6Prefix.{i}.Origin","TR-181i2.7",1496,"y",null,"Mechanism via which the prefix was assigned or most recently updated. Enumeration of:\nAutoConfigured (Generated via internal CPE logic (e.g. the ULA /48 prefix) or derived from an internal prefix that is not modeled in any IPv6Prefix table)\nPrefixDelegation (Delegated via DHCPv6 [RFC3633] or some other protocol, e.g. IPv6rd [RFC5969]. Also see StaticType)\nRouterAdvertisement (Discovered via router advertisement [RFC4861] Prefix Information Option)\nWellKnown (Specified by a standards organization, e.g. fe80::/10 for link-local addresses, or ::1/128 for the loopback address, both of which are defined in [RFC4291])\nStatic (Created by the ACS, by some other management entity (e.g. via a GUI), or present in the factory default configuration (but not WellKnown). Unrelated to any shorter length prefix that might exist on the CPE. Also see StaticType. Can be used for RA (Prefix Information), DHCPv6 address assignment (IA_NA) or DHCPv6 prefix delegation (IA_PD))\nChild (Derived from an associated AutoConfigured or PrefixDelegation parent prefix. Also see StaticType, ParentPrefix and ChildPrefixBits. Can be used for RA (Prefix Information), DHCPv6 address assignment (IA_NA) or DHCPv6 prefix delegation (IA_PD))\nNote that:\nPrefixDelegation and RouterAdvertisement prefixes can exist only on upstream interfaces (i.e. interfaces for which the physical layer interface object has Upstream = true),\nAutoConfigured and WellKnown prefixes can exist on any interface, and\nStatic and Child prefixes can exist only on downstream interfaces (i.e. interfaces for which the physical layer interface object has Upstream = false).\nAlso note that a Child prefix's ParentPrefix will always be an AutoConfigured, PrefixDelegation, or RouterAdvertisement prefix.\nThis parameter is based on ipAddressOrigin from [RFC4293]."]
["Device.IP.Interface.{i}.IPv6Prefix.{i}.ParentPrefix","TR-181i2.7",1529,"y",null,"The value MUST be the path name of a row in the IP.Interface.{i}.IPv6Prefix table. If the referenced object is deleted, the parameter value MUST be set to an empty string. Indicates the parent prefix from which this prefix was derived. The parent prefix is relevant only for Child prefixes and for Static Child prefixes (both of which will always be on downstream interfaces), i.e. for Origin=Child and for (Origin,StaticType) = (Static,Child) prefixes.\nThis parameter can only be modified if Origin is Static (which makes sense only for a prefix whose StaticType is already or will be changed to Child)."]
["Device.IP.Interface.{i}.IPv6Prefix.{i}.PreferredLifetime","TR-181i2.7",1547,"y",null,"This parameter is based on ipAddressPrefixAdvPreferredLifetime from [RFC4293]. The time at which this prefix will cease to be preferred (i.e. will become deprecated), or 0001-01-01T00:00:00Z if not known. For an infinite lifetime, the parameter value MUST be 9999-12-31T23:59:59Z.\nThis parameter can only be modified if Origin is Static."]
["Device.IP.Interface.{i}.IPv6Prefix.{i}.PrefixStatus","TR-181i2.7",1472,"y",null,"[IPv6Prefix] IPv6 address prefix.\nThis parameter can only be modified if the Origin is Static.\nThis parameter is based on ipAddressPrefixPrefix from [RFC4293]."]
["Device.IP.Interface.{i}.IPv6Prefix.{i}.StaticType","TR-181i2.7",1514,"y",null,"Static prefix sub-type. For a Static prefix, this can be set to PrefixDelegation or Child, thereby creating an unconfigured prefix of the specified type that will be populated in preference to creating a new instance. This allows the ACS to pre-create \"prefix slots\" with known path names that can be referenced from elsewhere in the data model before they have been populated. Enumeration of:\nStatic (Prefix is a \"normal\" Static prefix)\nInapplicable (Prefix is not Static, so this parameter does not apply)\nPrefixDelegation (Prefix will be populated when a PrefixDelegation prefix needs to be created)\nChild (Prefix will be populated when a Child prefix needs to be created. In this case, the ACS needs also to set ParentPrefix and might want to set ChildPrefixBits (if parent prefix is not set, or goes away, then the child prefix will become operationally disabled))\nThis mechanism works as follows:\nWhen this parameter is set to PrefixDelegation or Child, the instance becomes a \"prefix slot\" of the specified type.\nSuch an instance can be administratively enabled (Enable = true) but will remain operationally disabled (Status = Disabled) until it has been populated.\nWhen a new prefix of of type T is needed, the CPE will look for a matching unpopulated instance, i.e. an instance with (Origin,StaticType,Prefix) = (Static,T,\"\"). If the CPE finds at least one such instance it will choose one and populate it. If already administratively enabled it will immediately become operationally enabled. If the CPE finds no such instances, it will create and populate a new instance with (Origin,StaticType) = (T,T). If the CPE finds more than one such instance, the algorithm via which it chooses which instance to populate is implementation-specific.\nWhen a prefix that was populated via this mechanism becomes invalid, the CPE will reset Prefix to an empty string. This does not affect the value of the Enable parameter.\nThe prefix StaticType can only be modified if Origin is Static."]
["Device.IP.Interface.{i}.IPv6Prefix.{i}.Status","TR-181i2.7",1465,"y",null,"The status of this IPv6Prefix table entry. Enumeration of:\nDisabled\nEnabled\nError (OPTIONAL)\nThe Error value MAY be used by the CPE to indicate a locally defined error condition."]
["Device.IP.Interface.{i}.IPv6Prefix.{i}.ValidLifetime","TR-181i2.7",1550,"y",null,"This parameter is based on ipAddressPrefixAdvValidLifetime from [RFC4293]. The time at which this prefix will cease to be valid (i.e. will become invalid), or 0001-01-01T00:00:00Z if not known. For an infinite lifetime, the parameter value MUST be 9999-12-31T23:59:59Z.\nThis parameter can only be modified if Origin is Static."]
["Device.IP.Interface.{i}.IPv6PrefixNumberOfEntries","TR-181i2.7",1320,"y",null,"The number of entries in the IPv6Prefix table."]
["Device.IP.Interface.{i}.LastChange","TR-181i2.7",1294,"y",null,"The accumulated time in seconds since the interface entered its current operational state."]
["Device.IP.Interface.{i}.Loopback","TR-181i2.7",1315,"y",null,"When set to true, the IP interface becomes a loopback interface and the CPE MUST set Type to Loopback. In this case, the CPE MUST also set LowerLayers to an empty string and fail subsequent attempts at setting LowerLayers until the interface is no longer a loopback.\nSupport for manipulating loopback interfaces is OPTIONAL."]
["Device.IP.Interface.{i}.LowerLayers","TR-181i2.7",1295,"y",null,"Comma-separated list (maximum length 1024) of strings. Each list item MUST be the path name of an interface object that is stacked immediately below this interface object. If the referenced object is deleted, the corresponding item MUST be removed from the list. See [Section 4.2.1/TR-181i2].\nLowerLayers MUST be an empty string and read-only when Type is Loopback, Tunnel, or Tunneled."]
["Device.IP.Interface.{i}.MaxMTUSize","TR-181i2.7",1306,"y",null,"The maximum transmission unit (MTU); the largest allowed size of an IP packet (including IP headers, but excluding lower layer headers such as Ethernet, PPP, or PPPoE headers) that is allowed to be transmitted by or through this device."]
["Device.IP.Interface.{i}.Name","TR-181i2.7",1293,"y",null,"The textual name of the interface as assigned by the CPE."]
["Device.IP.Interface.{i}.Reset","TR-181i2.7",1299,"y",null,"When set to true, the device MUST tear down the existing IP connection represented by this object and establish a new one.\nThe device MUST initiate the reset after completion of the current CWMP session. The device MAY delay resetting the connection in order to avoid interruption of a user service such as an ongoing voice call.\nReset on a disabled interface is a no-op (not an error).\nThe value of this parameter is not part of the device configuration and is always false when read."]
["Device.IP.Interface.{i}.Router","TR-181i2.7",1298,"y",null,"The value MUST be the path name of a row in the Routing.Router table. If the referenced object is deleted, the parameter value MUST be set to an empty string. The Router instance that is associated with this IP Interface entry."]
["Device.IP.Interface.{i}.Stats","TR-181i2.7",1553,"y",null,"Throughput statistics for this interface.\nThe CPE MUST reset the interface's Stats parameters (unless otherwise stated in individual object or parameter descriptions) either when the interface becomes operationally down due to a previous administrative down (i.e. the interface's Status parameter transitions to a down state after the interface is disabled) or when the interface becomes administratively up (i.e. the interface's Enable parameter transitions from false to true). Administrative and operational interface status is discussed in [Section 4.2.2/TR-181i2]."]
["Device.IP.Interface.{i}.Stats.BroadcastPacketsReceived","TR-181i2.7",1571,"y",null,"The total number of received packets, delivered by this layer to a higher layer, which were addressed to a broadcast address at this layer.\nNote that IPv6 does not define broadcast addresses, so IPv6 packets will never cause this counter to increment."]
["Device.IP.Interface.{i}.Stats.BroadcastPacketsSent","TR-181i2.7",1568,"y",null,"The total number of packets that higher-level protocols requested for transmission and which were addressed to a broadcast address at this layer, including those that were discarded or not sent.\nNote that IPv6 does not define broadcast addresses, so IPv6 packets will never cause this counter to increment."]
["Device.IP.Interface.{i}.Stats.BytesReceived","TR-181i2.7",1557,"y",null,"The total number of bytes received on the interface, including framing characters."]
["Device.IP.Interface.{i}.Stats.BytesSent","TR-181i2.7",1556,"y",null,"The total number of bytes transmitted out of the interface, including framing characters."]
["Device.IP.Interface.{i}.Stats.DiscardPacketsReceived","TR-181i2.7",1565,"y",null,"The total number of inbound packets which were chosen to be discarded even though no errors had been detected to prevent their being delivered. One possible reason for discarding such a packet could be to free up buffer space."]
["Device.IP.Interface.{i}.Stats.DiscardPacketsSent","TR-181i2.7",1564,"y",null,"The total number of outbound packets which were chosen to be discarded even though no errors had been detected to prevent their being transmitted. One possible reason for discarding such a packet could be to free up buffer space."]
["Device.IP.Interface.{i}.Stats.ErrorsReceived","TR-181i2.7",1561,"y",null,"The total number of inbound packets that contained errors preventing them from being delivered to a higher-layer protocol."]
["Device.IP.Interface.{i}.Stats.ErrorsSent","TR-181i2.7",1560,"y",null,"The total number of outbound packets that could not be transmitted because of errors."]
["Device.IP.Interface.{i}.Stats.MulticastPacketsReceived","TR-181i2.7",1567,"y",null,"The total number of received packets, delivered by this layer to a higher layer, which were addressed to a multicast address at this layer."]
["Device.IP.Interface.{i}.Stats.MulticastPacketsSent","TR-181i2.7",1566,"y",null,"The total number of packets that higher-level protocols requested for transmission and which were addressed to a multicast address at this layer, including those that were discarded or not sent."]
["Device.IP.Interface.{i}.Stats.PacketsReceived","TR-181i2.7",1559,"y",null,"The total number of packets received on the interface."]
["Device.IP.Interface.{i}.Stats.PacketsSent","TR-181i2.7",1558,"y",null,"The total number of packets transmitted out of the interface."]
["Device.IP.Interface.{i}.Stats.UnicastPacketsReceived","TR-181i2.7",1563,"y",null,"The total number of received packets, delivered by this layer to a higher layer, which were not addressed to a multicast or broadcast address at this layer."]
["Device.IP.Interface.{i}.Stats.UnicastPacketsSent","TR-181i2.7",1562,"y",null,"The total number of packets requested for transmission which were not addressed to a multicast or broadcast address at this layer, including those that were discarded or not sent."]
["Device.IP.Interface.{i}.Stats.UnknownProtoPacketsReceived","TR-181i2.7",1574,"y",null,"The total number of packets received via the interface which were discarded because of an unknown or unsupported protocol."]
["Device.IP.Interface.{i}.Status","TR-181i2.7",1269,"y",null,"The current operational state of the interface (see [Section 4.2.2/TR-181i2]). Enumeration of:\nUp\nDown\nUnknown\nDormant\nNotPresent\nLowerLayerDown\nError (OPTIONAL)\nWhen Enable is false then Status SHOULD normally be Down (or NotPresent or Error if there is a fault condition on the interface).\nWhen Enable is changed to true then Status SHOULD change to Up if and only if the interface is able to transmit and receive network traffic; it SHOULD change to Dormant if and only if the interface is operable but is waiting for external actions before it can transmit and receive network traffic (and subsequently change to Up if still operable when the expected actions have completed); it SHOULD change to LowerLayerDown if and only if the interface is prevented from entering the Up state because one or more of the interfaces beneath it is down; it SHOULD remain in the Error state if there is an error or other fault condition detected on the interface; it SHOULD remain in the NotPresent state if the interface has missing (typically hardware) components; it SHOULD change to Unknown if the state of the interface can not be determined for some reason.\nThis parameter is based on ifOperStatus from [RFC2863]."]
["Device.IP.Interface.{i}.Type","TR-181i2.7",1307,"y",null,"IP interface type. Enumeration of:\nNormal\nLoopback\nTunnel\nTunneled\nFor Loopback, Tunnel, and Tunneled IP interface objects, the LowerLayers parameter MUST be an empty string."]
["Device.IP.Interface.{i}.ULAEnable","TR-181i2.7",1268,"y",null,"Controls whether or not ULAs [RFC4193] are generated and used on this interface."]
["Device.IP.InterfaceNumberOfEntries","TR-181i2.7",1240,"y",null,"The number of entries in the Interface table."]
["Device.IP.IPv4Capable","TR-181i2.7",1215,"y",null,"Indicates whether the device is IPv4 capable."]
["Device.IP.IPv4Enable","TR-181i2.7",1216,"y",null,"Enables or disables the IPv4 stack, and so the use of IPv4 on the device. This affects only layer 3 and above.\nWhen false, IP interfaces that had been operationally up and passing IPv4 packets will now no longer be able to do so, and will be operationally down (unless also attached to an enabled IPv6 stack)."]
["Device.IP.IPv4Status","TR-181i2.7",1219,"y",null,"Indicates the status of the IPv4 stack. Enumeration of:\nDisabled\nEnabled\nError (OPTIONAL)\nThe Error value MAY be used by the CPE to indicate a locally defined error condition."]
["Device.IP.IPv6Capable","TR-181i2.7",1226,null,null,"Indicates whether the device is IPv6 capable.\nNote: If false, it is expected that IPv6-related parameters, enumeration values, etc will not be implemented by the device."]
["Device.IP.IPv6Enable","TR-181i2.7",1229,null,null,"Enables or disables the IPv6 stack, and so the use of IPv6 on the device. This affects only layer 3 and above.\nWhen false, IP interfaces that had been operationally up and passing IPv6 packets will now no longer be able to do so, and will be operationally down (unless also attached to an enabled IPv4 stack)."]
["Device.IP.IPv6Status","TR-181i2.7",1232,null,null,"Indicates the status of the IPv6 stack. Enumeration of:\nDisabled\nEnabled\nError (OPTIONAL)\nThe Error value MAY be used by the CPE to indicate a locally defined error condition."]
["Device.IP.ULAPrefix","TR-181i2.7",1239,"y",null,"[IPv6Prefix] The ULA /48 prefix [Section 3/RFC4193]."]
["Device.ManagementServer","TR-181i2.7",191,null,null,"This object contains parameters relating to the CPE's association with an ACS."]
["Device.ManagementServer.AliasBasedAddressing","TR-181i2.7",306,"y",null,"Indicates whether or not the Alias-Based Addressing Mechanism is supported.\nA true value indicates that the CPE supports the Alias-Based Addressing Mechanism, as defined in [Section 3.6.1/TR-069a4] and described in [Appendix II/TR-069a4]."]
["Device.ManagementServer.AutoCreateInstances","TR-181i2.7",317,null,null,"Enable or disable the Auto-Create Instance Mechanism. When AliasBasedAddressing is true, AutoCreateInstances indicates whether or not the CPE will automatically create instances while processing a SetParameterValues RPC (as defined in [A.3.2.1/TR-069a4]).\nA true value indicates that the CPE will perform auto-creation of instances when the Alias-Based Addressing Mechanism is used in SetParameterValues RPC.\nA false value indicates that the CPE will not create new object instances. Instead, it will reject the setting of parameters in unrecognized instances and respond with a fault code.\nThis parameter is REQUIRED for any CPE supporting Alias-Based Addressing.\nThe factory default value MUST be false."]
["Device.ManagementServer.ConnectionRequestPassword","TR-181i2.7",246,null,null,"Password used to authenticate an ACS making a Connection Request to the CPE.\nWhen read, this parameter returns an empty string, regardless of the actual value."]
["Device.ManagementServer.ConnectionRequestURL","TR-181i2.7",236,"y",null,"HTTP URL, as defined in [RFC3986], for an ACS to make a Connection Request notification to the CPE.\nIn the form:\nhttp://host:port/path\nThe host portion of the URL MAY be the IP address for the management interface of the CPE in lieu of a host name.\nNote: If the host portion of the URL is a literal IPv6 address then it MUST be enclosed in square brackets (see [Section 3.2.2/RFC3986])."]
["Device.ManagementServer.ConnectionRequestUsername","TR-181i2.7",245,"y",null,"Username used to authenticate an ACS making a Connection Request to the CPE."]
["Device.ManagementServer.ConnReqAllowedJabberIDs","TR-181i2.7",332,null,null,"When an XMPP Connection Request is sent to a CPE the XMPP IQ Stanza will contian a \"from\" address that contains the Jabber ID of the initiating entity.\nThis parameter is a Comma-separated list (up to 32 items) of strings (maximum item length 256). Each entry represents a Jabber ID, or address, that is allowed to initiate an XMPP Connection Request.\nEach Jabber ID is allowed to be either a \"Full JID\" (containing a local-part, domain-part, and resource-part in the following format: \"local-part@domain-part/resource-part\") or a \"Bare JID\" (containing a local-part and a domain-part in the following format: \"local-part@domain-part\"). \"Full JID\" entries require an exact match whereas \"Bare JID\" entries are a wildcard match and will match any Jabber ID with the same local-part and domain-part independent of the resource-part.\nFor example, if ConnReqAllowedJabberIDs contained \"ACS1@tr069.example.com, ACS2@tr-069.example.com/resource1\" then the following incoming \"from\" addresses would be allowed:\n\"ACS1@tr069.example.com/resource1\"\n\"ACS1@tr069.example.com/resource2\"\n\"ACS2@tr069.example.com/resource1\"\nAnd the following incoming \"from\" addresses would not be allowed:\n\"ACS2@tr069.example.com/resource2\"\n\"ACS@tr069.example.com/resource\"\nIf this Parameter is an empty string then all Jabber IDs are allowed and an XMPP Connection Request can not be deemed invalid due to the \"from\" address."]
["Device.ManagementServer.ConnReqJabberID","TR-181i2.7",350,null,null,"The value MUST be the value of the XMPP.Connection.{i}.JabberID contained in the XMPP.Connection instance referenced by the ConnReqXMPPConnection parameter.\nIf the ConnReqXMPPConnection parameter is empty or the XMPP.Connection instance being reference is disabled, then this value will be empty.\nIf the XMPP.Connection instance being referenced by the ConnReqXMPPConnection parameter is lost (XMPP.Connection.{i}.Status parameter changes from Enabled to some other value), then the value of this parameter MUST remain unchanged until the connection can be reestablished and a new XMPP.Connection.{i}.JabberID can be established. If the new XMPP.Connection.{i}.JabberID is identical to the existing value, then the value of this parameter MUST NOT be altered and a VALUE CHANGE event MUST NOT be generated."]
["Device.ManagementServer.ConnReqXMPPConnection","TR-181i2.7",331,null,null,"The value MUST be the path name of the XMPP.Connection instance that is used for connection requests to this ManagementServer. If the referenced object is deleted, the parameter value MUST be set to an empty string."]
["Device.ManagementServer.CWMPRetryIntervalMultiplier","TR-181i2.7",264,"y",null,"Configures the retry interval multiplier as specified in [Section 3.2.1.1/TR-069a2].\nThis value is expressed in units of 0.001. Hence the values of the multiplier range between 1.000 and 65.535.\nA value of 2000 corresponds to the default behavior that is described in [TR-069a2].\nThe device MUST use a random value between CWMPRetryMinimumWaitInterval and (CWMPRetryMinimumWaitInterval * CWMPRetryIntervalMultiplier / 1000) as the first retry wait interval. Other values in the retry pattern MUST be calculated using this value as a starting point."]
["Device.ManagementServer.CWMPRetryMinimumWaitInterval","TR-181i2.7",259,"y",null,"Configures the first session retry wait interval, in seconds, as specified in [Section 3.2.1.1/TR-069a2].\nA value of 5 corresponds to the default behavior that is described in [TR-069a2].\nThe device MUST use a random value between CWMPRetryMinimumWaitInterval and (CWMPRetryMinimumWaitInterval * CWMPRetryIntervalMultiplier / 1000) as the first retry wait interval. Other values in the retry pattern MUST be calculated using this value as a starting point."]
["Device.ManagementServer.DefaultActiveNotificationThrottle","TR-181i2.7",252,"y",null,"This parameter is used to control throttling of active notifications sent by the CPE to the ACS. It defines the minimum number of seconds that the CPE MUST wait since the end of the last session with the ACS before establishing a new session for the purpose of delivering an active notification.\nIn other words, if CPE needs to establish a new session with the ACS for the sole purpose of delivering an active notification, it MUST delay establishing such a session as needed to ensure that the minimum time since the last session completion has been met.\nThe time is counted since the last successfully completed session, regardless of whether or not it was used for active notifications or other purposes. However, if connection to the ACS is established for purposes other than just delivering active notifications, including for the purpose of retrying a failed session, such connection MUST NOT be delayed based on this parameter value, and the pending active notifications MUST be communicated during that connection.\nThe time of the last session completion does not need to be tracked across reboots."]
["Device.ManagementServer.EnableCWMP","TR-181i2.7",192,"y",null,"Enables and disables the CPE's support for CWMP.\nfalse means that CWMP support in the CPE is disabled, in which case the device MUST NOT send any Inform messages to the ACS or accept any Connection Request notifications from the ACS.\ntrue means that CWMP support on the CPE is enabled.\nThe subscriber can re-enable the CPE's CWMP support either by performing a factory reset or by using a LAN-side protocol to change the value of this parameter back to true.\nThe factory default value MUST be true."]
["Device.ManagementServer.InstanceMode","TR-181i2.7",309,null,null,"Instance identification mode as defined in [Section 3.6.1/TR-069a4]. When AliasBasedAddressing is true, InstanceMode is used by the ACS to control whether the CPE will use Instance Numbers or Instance Aliases in returned Path Names. Enumeration of:\nInstanceNumber\nInstanceAlias\nThis parameter is REQUIRED for any CPE supporting Alias-Based Addressing.\nThe factory default value MUST be InstanceNumber."]
["Device.ManagementServer.NATDetected","TR-181i2.7",301,"y",null,"When STUN is enabled, this parameter indicates whether or not the CPE has detected address and/or port mapping in use.\nA true value indicates that the received MAPPED-ADDRESS in the most recent Binding Response differs from the CPE's source address and port.\nWhen STUNEnable is false, this value MUST be false."]
["Device.ManagementServer.ParameterKey","TR-181i2.7",231,"y",null,"ParameterKey provides the ACS a reliable and extensible means to track changes made by the ACS. The value of ParameterKey MUST be equal to the value of the ParameterKey argument from the most recent successful SetParameterValues, AddObject, or DeleteObject method call from the ACS.\nThe CPE MUST set ParameterKey to the value specified in the corresponding method arguments if and only if the method completes successfully and no fault response is generated. If a method call does not complete successfully (implying that the changes requested in the method did not take effect), the value of ParameterKey MUST NOT be modified.\nThe CPE MUST only modify the value of ParameterKey as a result of SetParameterValues, AddObject, DeleteObject, or due to a factory reset. On factory reset, the value of ParameterKey MUST be set to an empty string."]
["Device.ManagementServer.Password","TR-181i2.7",213,null,null,"Password used to authenticate the CPE when making a connection to the ACS using the CPE WAN Management Protocol.\nThis password is used only for HTTP-based authentication of the CPE.\nNote that on a factory reset of the CPE, the value of this parameter might be reset to its factory value. If an ACS modifies the value of this parameter, it SHOULD be prepared to accommodate the situation that the original value is restored as the result of a factory reset.\nWhen read, this parameter returns an empty string, regardless of the actual value."]
["Device.ManagementServer.PeriodicInformEnable","TR-181i2.7",220,"y",null,"Whether or not the CPE MUST periodically send CPE information to the ACS using the Inform method call."]
["Device.ManagementServer.PeriodicInformInterval","TR-181i2.7",221,"y",null,"The duration in seconds of the interval for which the CPE MUST attempt to connect with the ACS and call the Inform method if PeriodicInformEnable is true."]
["Device.ManagementServer.PeriodicInformTime","TR-181i2.7",222,"y",null,"An absolute time reference in UTC to determine when the CPE will initiate the periodic Inform method calls. Each Inform call MUST occur at this reference time plus or minus an integer multiple of the PeriodicInformInterval.\nPeriodicInformTime is used only to set the phase of the periodic Informs. The actual value of PeriodicInformTime can be arbitrarily far into the past or future.\nFor example, if PeriodicInformInterval is 86400 (a day) and if PeriodicInformTime is set to UTC midnight on some day (in the past, present, or future) then periodic Informs will occur every day at UTC midnight. These MUST begin on the very next midnight, even if PeriodicInformTime refers to a day in the future.\nThe Unknown Time value defined in [Section 3.2/TR-106a2] indicates that no particular time reference is specified. That is, the CPE MAY locally choose the time reference, and needs only to adhere to the specified PeriodicInformInterval.\nIf absolute time is not available to the CPE, its periodic Inform behavior MUST be the same as if the PeriodicInformTime parameter was set to the Unknown Time value."]
["Device.ManagementServer.STUNEnable","TR-181i2.7",284,"y",null,"Enables or disables the use of STUN by the CPE. This applies only to the use of STUN in association with the ACS to allow UDP Connection Requests."]
["Device.ManagementServer.STUNMaximumKeepAlivePeriod","TR-181i2.7",297,"y",null,"If STUN Is enabled, the maximum period, in seconds, that STUN Binding Requests MUST be sent by the CPE for the purpose of maintaining the binding in the Gateway. This applies specifically to Binding Requests sent from the UDP Connection Request address and port.\nA value of -1 indicates that no maximum period is specified."]
["Device.ManagementServer.STUNMinimumKeepAlivePeriod","TR-181i2.7",300,"y",null,"If STUN Is enabled, the minimum period, in seconds, that STUN Binding Requests can be sent by the CPE for the purpose of maintaining the binding in the Gateway. This limit applies only to Binding Requests sent from the UDP Connection Request address and port, and only those that do not contain the BINDING-CHANGE attribute. This limit does not apply to retransmissions following the procedures defined in [RFC3489]."]
["Device.ManagementServer.STUNPassword","TR-181i2.7",294,"y",null,"The value of the STUN Password to be used in computing the MESSAGE-INTEGRITY attribute to be used in Binding Requests (only if message integrity has been requested by the STUN server).\nWhen read, this parameter returns an empty string, regardless of the actual value."]
["Device.ManagementServer.STUNServerAddress","TR-181i2.7",285,"y",null,"Host name or IP address of the STUN server for the CPE to send Binding Requests if STUN is enabled via STUNEnable.\nIf is an empty string and STUNEnable is true, the CPE MUST use the address of the ACS extracted from the host portion of the ACS URL."]
["Device.ManagementServer.STUNServerPort","TR-181i2.7",288,"y",null,"Port number of the STUN server for the CPE to send Binding Requests if STUN is enabled via STUNEnable.\nBy default, this SHOULD be the equal to the default STUN port, 3478."]
["Device.ManagementServer.STUNUsername","TR-181i2.7",291,"y",null,"If is not an empty string, the value of the STUN USERNAME attribute to be used in Binding Requests (only if message integrity has been requested by the STUN server).\nIf is an empty string, the CPE MUST NOT send STUN Binding Requests with message integrity."]
["Device.ManagementServer.SupportedConnReqMethods","TR-181i2.7",325,null,null,"Comma-separated list of strings. The connection request methods supported by this ManagementServer. Each list item is an enumeration of:\nHTTP (The connection request method as specified in [Section 3.2.2 ACS Connection Initiation/TR-069], REQUIRED)\nSTUN (The connection request method as specified in [Annex G Connection Request via NAT Gateway/TR-069], OPTIONAL)\nXMPP (The connection request method as specified in [Annex K XMPP Connection Request/TR-069a5], OPTIONAL)"]
["Device.ManagementServer.UDPConnectionRequestAddress","TR-181i2.7",271,"y",null,"Address and port to which an ACS MAY send a UDP Connection Request to the CPE (see [Annex G/TR-069a2]).\nThis parameter is represented in the form of an Authority element as defined in [RFC3986]. The value MUST be in one of the following two forms:\nhost:port\nhost\nWhen STUNEnable is true, the host and port portions of this parameter MUST represent the public address and port corresponding to the NAT binding through which the ACS can send UDP Connection Request messages (once this information is learned by the CPE through the use of STUN).\nWhen STUNEnable is false, the host and port portions of the URL MUST represent the local IP address and port on which the CPE is listening for UDP Connection Request messages.\nThe second form of this parameter MAY be used only if the port value is equal to 80.\nNote: If the host portion of the URL is a literal IPv6 address then it MUST be enclosed in square brackets (see [Section 3.2.2/RFC3986])."]
["Device.ManagementServer.UpgradesManaged","TR-181i2.7",249,"y",null,"Indicates whether or not the ACS will manage upgrades for the CPE. If true, the CPE SHOULD NOT use other means other than the ACS to seek out available upgrades. If false, the CPE MAY use other means for this purpose.\nNote that an autonomous upgrade (reported via an \"10 AUTONOMOUS TRANSFER COMPLETE\" Inform Event code) SHOULD be regarded as a managed upgrade if it is performed according to ACS-specified policy."]
["Device.ManagementServer.URL","TR-181i2.7",201,"y",null,"URL, as defined in [RFC3986], for the CPE to connect to the ACS using the CPE WAN Management Protocol.\nThis parameter MUST be in the form of a valid HTTP or HTTPS URL.\nThe host portion of this URL is used by the CPE for validating the ACS certificate when using SSL or TLS.\nNote that on a factory reset of the CPE, the value of this parameter might be reset to its factory value. If an ACS modifies the value of this parameter, it SHOULD be prepared to accommodate the situation that the original value is restored as the result of a factory reset."]
["Device.ManagementServer.Username","TR-181i2.7",208,"y",null,"Username used to authenticate the CPE when making a connection to the ACS using the CPE WAN Management Protocol.\nThis username is used only for HTTP-based authentication of the CPE.\nNote that on a factory reset of the CPE, the value of this parameter might be reset to its factory value. If an ACS modifies the value of this parameter, it SHOULD be prepared to accommodate the situation that the original value is restored as the result of a factory reset."]
["Device.MoCA","TR-181i2.7",643,null,null,"MoCA object that contains the Interface table [MoCAv1.0] [MoCAv1.1]."]
["Device.MoCA.Interface.{i}","TR-181i2.7",645,null,null,"MoCA interface table (a stackable interface object as described in [Section 4.2/TR-181i2]). Each table entry models the PHY and MAC levels of a MoCA interface [MoCAv1.0] [MoCAv1.1].\nAt most one entry in this table can exist with a given value for Alias, or with a given value for Name."]
["Device.MoCA.Interface.{i}.Alias","TR-181i2.7",666,null,null,"A non-volatile handle used to reference this instance. Alias provides a mechanism for an ACS to label this instance for future reference.\nIf the CPE supports the Alias-based Addressing feature as defined in [Section 3.6.1/TR-069a4] and described in [Appendix II/TR-069a4], the following mandatory constraints MUST be enforced:\nIts value MUST NOT be empty.\nIts value MUST start with a letter.\nIf its instance object is created by the CPE, the initial value MUST start with a \"cpe-\" prefix.\nThe CPE MUST NOT change the parameter value."]
["Device.MoCA.Interface.{i}.AssociatedDevice.{i}","TR-181i2.7",810,null,null,"This table contains information about other MoCA devices currently associated with this MoCA interface.\nAt most one entry in this table can exist with a given value for MACAddress."]
["Device.MoCA.Interface.{i}.AssociatedDevice.{i}.Active","TR-181i2.7",859,null,null,"Whether or not this remote device is currently present in the MoCA network.\nThe ability to list inactive nodes is OPTIONAL. If the CPE includes inactive nodes in this table, Active MUST be set to false for each inactive node. The length of time an inactive node remains listed in this table is a local matter to the CPE."]
["Device.MoCA.Interface.{i}.AssociatedDevice.{i}.HighestVersion","TR-181i2.7",820,null,null,"Identifies the highest MoCA version that this remote device supports.\nThis element MUST be in the form of dot-delimited integers, where each successive integer represents a more minor category of variation. For example, 1.0, where the components mean major.minor revision number. Possible patterns:\n\\d+(\\.\\d+)*\nThis parameter is based on mocaNodeMocaVersion from [MOCA11-MIB]."]
["Device.MoCA.Interface.{i}.AssociatedDevice.{i}.MACAddress","TR-181i2.7",813,null,null,"[MACAddress] The MAC address of the associated device's MoCA interface."]
["Device.MoCA.Interface.{i}.AssociatedDevice.{i}.NodeID","TR-181i2.7",814,null,null,"The Node ID of this remote device.\nThis parameter is based on mocaNodeIndex from [MOCA11-MIB]."]
["Device.MoCA.Interface.{i}.AssociatedDevice.{i}.PacketAggregationCapability","TR-181i2.7",853,null,null,"The packet aggregation capability supported by the remote device. Standard values are 0 (no support), 6 (6 packets) or 10 (10 packets).\nThis parameter is based on mocaNodePacketsAggrCapability from [MOCA11-MIB]."]
["Device.MoCA.Interface.{i}.AssociatedDevice.{i}.PHYRxRate","TR-181i2.7",830,null,null,"The PHY receive rate (in Mbps) from this remote device."]
["Device.MoCA.Interface.{i}.AssociatedDevice.{i}.PHYTxRate","TR-181i2.7",827,null,null,"The PHY transmit rate (in Mbps) to this remote device.\nThis parameter is based on mocaMeshTxRate from [MOCA11-MIB]."]
["Device.MoCA.Interface.{i}.AssociatedDevice.{i}.PreferredNC","TR-181i2.7",817,null,null,"Whether this remote device is a preferred Network Coordinator (NC).\nThis parameter is based on mocaNodePreferredNC from [MOCA11-MIB]."]
["Device.MoCA.Interface.{i}.AssociatedDevice.{i}.QAM256Capable","TR-181i2.7",850,null,null,"Whether this remote device supports the 256 QAM feature.\nThis parameter is based on mocaNodeQAM256Capable from [MOCA11-MIB]."]
["Device.MoCA.Interface.{i}.AssociatedDevice.{i}.RxBcastPowerLevel","TR-181i2.7",840,null,null,"The power level (in dBm) received at the MoCA interface from this remote device.\nThis parameter is based on mocaNodeRxGcdPower from [MOCA11-MIB]."]
["Device.MoCA.Interface.{i}.AssociatedDevice.{i}.RxErroredAndMissedPackets","TR-181i2.7",847,null,null,"The number of errored and missed packets received from this remote device.\nThis parameter is based on mocaNodeRxDrops from [MOCA11-MIB]."]
["Device.MoCA.Interface.{i}.AssociatedDevice.{i}.RxPackets","TR-181i2.7",844,null,null,"The number of packets received from this remote device (Note: Includes Broadcast, Multicast and Unicast packets).\nThis parameter is based on mocaNodeRxPackets from [MOCA11-MIB]."]
["Device.MoCA.Interface.{i}.AssociatedDevice.{i}.RxPowerLevel","TR-181i2.7",834,null,null,"The power level (in dBm) received at the MoCA interface from this remote device.\nThis parameter is based on mocaNodeRxPower from [MOCA11-MIB]."]
["Device.MoCA.Interface.{i}.AssociatedDevice.{i}.RxSNR","TR-181i2.7",856,null,null,"The signal to noise level (in dBm) received at this interface from this remote device.\nThis parameter is based on mocaNodeSNR from [MOCA11-MIB]."]
["Device.MoCA.Interface.{i}.AssociatedDevice.{i}.TxBcastRate","TR-181i2.7",837,null,null,"The broadcast PHY transmit rate (in Mbps) from this remote device.\nThis parameter is based on mocaNodeTxGcdRate from [MOCA11-MIB]."]
["Device.MoCA.Interface.{i}.AssociatedDevice.{i}.TxPackets","TR-181i2.7",843,null,null,"The number of packets transmitted to this remote device (Note: Includes Broadcast, Multicast and Unicast packets)."]
["Device.MoCA.Interface.{i}.AssociatedDevice.{i}.TxPowerControlReduction","TR-181i2.7",831,null,null,"The reduction in transmitter level (in dB) due to power control.\nThis parameter is based on mocaNodeTxPowerReduction from [MOCA11-MIB]."]
["Device.MoCA.Interface.{i}.AssociatedDeviceNumberOfEntries","TR-181i2.7",791,null,null,"The number of entries in the AssociatedDevice table."]
["Device.MoCA.Interface.{i}.BackupNC","TR-181i2.7",725,null,null,"The Node ID of the backup Network Coordinator node.\nThis parameter is based on mocaIfBackupNC from [MOCA11-MIB]."]
["Device.MoCA.Interface.{i}.BeaconPowerLimit","TR-181i2.7",768,null,null,"Beacon Transmit Power attenuation in dB relative to the maximum transmit power.\nThe MoCA interface SHOULD have Enable set to false for any change in this configuration. If the parameter is modified when Enable is true then this change might take several minutes to complete.\nThis parameter is based on mocaIfBeaconPowerLimit from [MOCA11-MIB]."]
["Device.MoCA.Interface.{i}.CurrentOperFreq","TR-181i2.7",745,null,null,"Current Operational Frequency. The RF frequency in Hz to which the MoCA interface is currently tuned. This parameter is only valid when Status is Up.\nThis parameter is based on mocaIfRFChannel from [MOCA11-MIB]."]
["Device.MoCA.Interface.{i}.CurrentVersion","TR-181i2.7",708,null,null,"Identifies the MoCA version that the MoCA network is currently running.\nThis element MUST be in the form of dot-delimited integers, where each successive integer represents a more minor category of variation. For example, 1.0, where the components mean major.minor revision number. Possible patterns:\n\\d+(\\.\\d+)*\nThis parameter is based on mocaIfNetworkVersion from [MOCA11-MIB]."]
["Device.MoCA.Interface.{i}.Enable","TR-181i2.7",648,null,null,"Enables or disables the interface.\nThis parameter is based on ifAdminStatus from [RFC2863]."]
["Device.MoCA.Interface.{i}.FirmwareVersion","TR-181i2.7",691,null,null,"This interface's firmware version.\nThis parameter is based on mocaIfSoftwareVersion from [MOCA11-MIB]."]
["Device.MoCA.Interface.{i}.FreqCapabilityMask","TR-181i2.7",734,null,null,"Hexadecimal encoded 64-bit mask of supported frequencies. This is the bit map of the spectrum that the interface supports, and each bit represents 25 MHz of spectrum. The least significant bit of the rightmost character corresponds to 800MHz, which is the lowest frequency.\nFor example, an interface that supports 1150 MHz through 1500 MHz would have a value of 0x000000001FFFC000.\nThis parameter is based on mocaIfCapabilityMask from [MOCA11-MIB]."]
["Device.MoCA.Interface.{i}.FreqCurrentMaskSetting","TR-181i2.7",739,null,null,"Hexadecimal encoded 64-bit mask of used frequencies. This is the bit map of the spectrum that can be used and is a subset of the FreqCapabilityMask. Each bit represents 25 MHz of spectrum. The least significant bit of the rightmost character corresponds to 800MHz, which is the lowest frequency.\nThis parameter is based on mocaIfChannelMask from [MOCA11-MIB]."]
["Device.MoCA.Interface.{i}.HighestVersion","TR-181i2.7",701,null,null,"Identifies the highest MoCA version that this interface supports.\nThis element MUST be in the form of dot-delimited integers, where each successive integer represents a more minor category of variation. For example, 1.0, where the components mean major.minor revision number. Possible patterns:\n\\d+(\\.\\d+)*\nThis parameter is based on mocaIfMocaVersion from [MOCA11-MIB]."]
["Device.MoCA.Interface.{i}.KeyPassphrase","TR-181i2.7",751,null,null,"MoCA Password. The value consists of numeric characters (0-9). Possible patterns:\n\\d+\nThis parameter is based on mocaIfPassword from [MOCA11-MIB].\nWhen read, this parameter returns an empty string, regardless of the actual value."]
["Device.MoCA.Interface.{i}.LastChange","TR-181i2.7",676,null,null,"The accumulated time in seconds since the interface entered its current operational state."]
["Device.MoCA.Interface.{i}.LastOperFreq","TR-181i2.7",748,null,null,"Last Operational Frequency. The RF frequency in Hz to which the MoCA interface was tuned when last in the Up state.\nThis parameter is based on mocaIfLOF from [MOCA11-MIB]."]
["Device.MoCA.Interface.{i}.LowerLayers","TR-181i2.7",677,null,null,"Comma-separated list (maximum length 1024) of strings. Each list item MUST be the path name of an interface object that is stacked immediately below this interface object. If the referenced object is deleted, the corresponding item MUST be removed from the list. See [Section 4.2.1/TR-181i2].\nNote: Since Interface is a layer 1 interface, it is expected that LowerLayers will not be used."]
["Device.MoCA.Interface.{i}.MACAddress","TR-181i2.7",688,null,null,"[MACAddress] The MAC Address of the interface.\nNote: This is not necessarily the same as the Ethernet header source or destination MAC address, which is associated with the IP interface and is modeled via the Ethernet.Link.{i}.MACAddress parameter."]
["Device.MoCA.Interface.{i}.MaxBitRate","TR-181i2.7",694,null,null,"The maximum MoCA PHY bit rate (expressed in Mbps)."]
["Device.MoCA.Interface.{i}.MaxEgressBW","TR-181i2.7",698,null,null,"The maximum bandwidth of this interface for flows from the MoCA network in Mbps.\nThis parameter is based on mocaIfMaxEgressNodeBw from [MOCA11-MIB]."]
["Device.MoCA.Interface.{i}.MaxIngressBW","TR-181i2.7",695,null,null,"The maximum bandwidth of this interface for flows onto the MoCA network in Mbps.\nThis parameter is based on mocaIfMaxIngressNodeBw from [MOCA11-MIB]."]
["Device.MoCA.Interface.{i}.MaxNodes","TR-181i2.7",721,null,null,"The maximum network node capability supported by the interface. If MaxNodes is true then the interface supports 16 nodes (the maximum for a MoCA 1.1 network). If MaxNodes is false then the interface supports 8 nodes (the maximum for a MoCA 1.0 network)."]
["Device.MoCA.Interface.{i}.Name","TR-181i2.7",675,null,null,"The textual name of the interface as assigned by the CPE."]
["Device.MoCA.Interface.{i}.NetworkCoordinator","TR-181i2.7",715,null,null,"The Node ID of the current Network Coordinator (NC) for the MoCA network.\nThis parameter is based on mocaIfNC from [MOCA11-MIB]."]
["Device.MoCA.Interface.{i}.NetworkTabooMask","TR-181i2.7",773,null,null,"Hexadecimal encoded 64-bit mask of MoCA taboo channels identified for the home network. This is the bit map of the spectrum that the interface supports, and each bit represents 25 MHz of spectrum. The least significant bit of the rightmost character corresponds to 800MHz, which is the lowest frequency.\nThis parameter is based on mocaIfTabooChannelMask from [MOCA11-MIB]."]
["Device.MoCA.Interface.{i}.NodeID","TR-181i2.7",718,null,null,"The Node ID of this interface.\nThis parameter is based on mocaIfNodeID from [MOCA11-MIB]."]
["Device.MoCA.Interface.{i}.NodeTabooMask","TR-181i2.7",776,null,null,"Hexadecimal encoded 64-bit mask of supported frequencies. This is the bit map of the spectrum that the interface supports, and each bit represents 25 MHz of spectrum. The least significant bit of the rightmost character corresponds to 800MHz, which is the lowest frequency.\nThis parameter is based on mocaIfNodeTabooChannelMask from [MOCA11-MIB]."]
["Device.MoCA.Interface.{i}.PacketAggregationCapability","TR-181i2.7",788,null,null,"The packet aggregation capability supported by the interface. Standard values are 0 (no support), 6 (6 packets) or 10 (10 packets).\nThis parameter is based on mocaIfPacketsAggrCapability from [MOCA11-MIB]."]
["Device.MoCA.Interface.{i}.PowerCntlPhyTarget","TR-181i2.7",763,null,null,"Target PHY rate in Mbps for the power control algorithm.\nThe MoCA interface SHOULD have Enable set to false for any change in this configuration. If the parameter is modified when Enable is true then this change might take several minutes to complete.\nThis parameter is based on mocaIfPowerControlTargetRate from [MOCA11-MIB]."]
["Device.MoCA.Interface.{i}.PreferredNC","TR-181i2.7",722,null,null,"Whether this interface is a preferred Network Coordinator (NC).\nThis parameter is based on mocaIfPreferredNC from [MOCA11-MIB]."]
["Device.MoCA.Interface.{i}.PrivacyEnabledSetting","TR-181i2.7",728,null,null,"Indicates whether link-layer security is enabled or disabled.\nThis parameter is based on mocaIfPrivacyEnable from [MOCA11-MIB]."]
["Device.MoCA.Interface.{i}.QAM256Capable","TR-181i2.7",785,null,null,"Whether this interface supports the 256 QAM feature.\nThis parameter is based on mocaIfQAM256Capable from [MOCA11-MIB]."]
["Device.MoCA.Interface.{i}.Stats","TR-181i2.7",792,null,null,"Throughput statistics for this interface.\nThe CPE MUST reset the interface's Stats parameters (unless otherwise stated in individual object or parameter descriptions) either when the interface becomes operationally down due to a previous administrative down (i.e. the interface's Status parameter transitions to a down state after the interface is disabled) or when the interface becomes administratively up (i.e. the interface's Enable parameter transitions from false to true). Administrative and operational interface status is discussed in [Section 4.2.2/TR-181i2]."]
["Device.MoCA.Interface.{i}.Stats.BroadcastPacketsReceived","TR-181i2.7",808,null,null,"The total number of received packets, delivered by this layer to a higher layer, which were addressed to a broadcast address at this layer."]
["Device.MoCA.Interface.{i}.Stats.BroadcastPacketsSent","TR-181i2.7",807,null,null,"The total number of packets that higher-level protocols requested for transmission and which were addressed to a broadcast address at this layer, including those that were discarded or not sent."]
["Device.MoCA.Interface.{i}.Stats.BytesReceived","TR-181i2.7",796,null,null,"The total number of bytes received on the interface, including framing characters."]
["Device.MoCA.Interface.{i}.Stats.BytesSent","TR-181i2.7",795,null,null,"The total number of bytes transmitted out of the interface, including framing characters."]
["Device.MoCA.Interface.{i}.Stats.DiscardPacketsReceived","TR-181i2.7",804,null,null,"The total number of inbound packets which were chosen to be discarded even though no errors had been detected to prevent their being delivered. One possible reason for discarding such a packet could be to free up buffer space."]
["Device.MoCA.Interface.{i}.Stats.DiscardPacketsSent","TR-181i2.7",803,null,null,"The total number of outbound packets which were chosen to be discarded even though no errors had been detected to prevent their being transmitted. One possible reason for discarding such a packet could be to free up buffer space."]
["Device.MoCA.Interface.{i}.Stats.ErrorsReceived","TR-181i2.7",800,null,null,"The total number of inbound packets that contained errors preventing them from being delivered to a higher-layer protocol."]
["Device.MoCA.Interface.{i}.Stats.ErrorsSent","TR-181i2.7",799,null,null,"The total number of outbound packets that could not be transmitted because of errors."]
["Device.MoCA.Interface.{i}.Stats.MulticastPacketsReceived","TR-181i2.7",806,null,null,"The total number of received packets, delivered by this layer to a higher layer, which were addressed to a multicast address at this layer."]
["Device.MoCA.Interface.{i}.Stats.MulticastPacketsSent","TR-181i2.7",805,null,null,"The total number of packets that higher-level protocols requested for transmission and which were addressed to a multicast address at this layer, including those that were discarded or not sent."]
["Device.MoCA.Interface.{i}.Stats.PacketsReceived","TR-181i2.7",798,null,null,"The total number of packets received on the interface."]
["Device.MoCA.Interface.{i}.Stats.PacketsSent","TR-181i2.7",797,null,null,"The total number of packets transmitted out of the interface."]
["Device.MoCA.Interface.{i}.Stats.UnicastPacketsReceived","TR-181i2.7",802,null,null,"The total number of received packets, delivered by this layer to a higher layer, which were not addressed to a multicast or broadcast address at this layer."]
["Device.MoCA.Interface.{i}.Stats.UnicastPacketsSent","TR-181i2.7",801,null,null,"The total number of packets requested for transmission which were not addressed to a multicast or broadcast address at this layer, including those that were discarded or not sent."]
["Device.MoCA.Interface.{i}.Stats.UnknownProtoPacketsReceived","TR-181i2.7",809,null,null,"The total number of packets received via the interface which were discarded because of an unknown or unsupported protocol."]
["Device.MoCA.Interface.{i}.Status","TR-181i2.7",651,null,null,"The current operational state of the interface (see [Section 4.2.2/TR-181i2]). Enumeration of:\nUp\nDown\nUnknown\nDormant\nNotPresent\nLowerLayerDown\nError (OPTIONAL)\nWhen Enable is false then Status SHOULD normally be Down (or NotPresent or Error if there is a fault condition on the interface).\nWhen Enable is changed to true then Status SHOULD change to Up if and only if the interface is able to transmit and receive network traffic; it SHOULD change to Dormant if and only if the interface is operable but is waiting for external actions before it can transmit and receive network traffic (and subsequently change to Up if still operable when the expected actions have completed); it SHOULD change to LowerLayerDown if and only if the interface is prevented from entering the Up state because one or more of the interfaces beneath it is down; it SHOULD remain in the Error state if there is an error or other fault condition detected on the interface; it SHOULD remain in the NotPresent state if the interface has missing (typically hardware) components; it SHOULD change to Unknown if the state of the interface can not be determined for some reason.\nThis parameter is based on ifOperStatus from [RFC2863]."]
["Device.MoCA.Interface.{i}.TxBcastPowerReduction","TR-181i2.7",782,null,null,"Transmit Power attenuation in dB relative to the maximum transmit power for broadcast transmissions.\nThis parameter is based on mocaIfTxGcdPowerReduction from [MOCA11-MIB]."]
["Device.MoCA.Interface.{i}.TxBcastRate","TR-181i2.7",779,null,null,"The broadcast PHY transmit rate in Mbps for this interface.\nThis parameter is based on mocaIfTxGcdRate from [MOCA11-MIB]."]
["Device.MoCA.Interface.{i}.TxPowerLimit","TR-181i2.7",758,null,null,"Transmit Power attenuation in dB relative to the maximum transmit power.\nThe MoCA interface SHOULD have Enable set to false for any change in this configuration. If the parameter is modified when Enable is true then this change might take several minutes to complete.\nThis parameter is based on mocaIfTxPowerLimit from [MOCA11-MIB]."]
["Device.MoCA.Interface.{i}.Upstream","TR-181i2.7",680,null,null,"Indicates whether the interface points towards the Internet (true) or towards End Devices (false).\nFor example:\nFor an Internet Gateway Device, Upstream will be true for all WAN interfaces and false for all LAN interfaces.\nFor a standalone WiFi Access Point that is connected via Ethernet to an Internet Gateway Device, Upstream will be true for the Ethernet interface and false for the WiFi Radio interface.\nFor an End Device, Upstream will be true for all interfaces."]
["Device.MoCA.Interface.{i}.X_RDKCENTRAL-COM_MeshTable","TR-181i2.7",862,null,null,"MoCA Mesh PHY Rate Table for this interface. This table is based on mocaMeshTable from [MOCA11-MIB].\nThis table contains the unicast transmit PHY rate between all pair of nodes in the MoCA Network. Since MeshPHYTxRate is the transmit PHY rate from MeshTxNodeId to MeshRxNodeId, this table does not contain any entries with MeshTxNodeId equals MeshRxNodeId. In addition, a MoCA network can have less than 16 nodes, hence some values of MeshTxNodeId and MeshRxNodeId in the range of 0 to 15 may not exist.\nEntries in this table cannot be created or deleted by the network management system. All entries are created or deleted by the device software."]
["Device.MoCA.Interface.{i}.X_RDKCENTRAL-COM_MeshTable.MeshPHYTxRate","TR-181i2.7",873,null,null,"The PHY transmit rate (in Mbps) from the MoCA node identified by MeshTxNodeId to the MoCA node identified by MeshRxNodeId.\nThis parameter is based on mocaMeshTxRate from [MOCA11-MIB]."]
["Device.MoCA.Interface.{i}.X_RDKCENTRAL-COM_MeshTable.MeshRxNodeId","TR-181i2.7",870,null,null,"The node ID of the receive MoCA node.\nThis parameter is based on mocaMeshRxNodeIndex from [MOCA11-MIB]."]
["Device.MoCA.Interface.{i}.X_RDKCENTRAL-COM_MeshTable.MeshTxNodeId","TR-181i2.7",867,null,null,"The node ID of the transmit MoCA node.\nThis parameter is based on mocaMeshTxNodeIndex from [MOCA11-MIB]."]
["Device.MoCA.InterfaceNumberOfEntries","TR-181i2.7",644,"y",null,"The number of entries in the Interface table."]
["Device.RootDataModelVersion","TR-181i2.7",4,null,null,"Root data model version, e.g. 2.4. For a vendor-defined root data model, this is the standard Broadband Forum model on which the vendor-defined model is based. Possible patterns:\n2\\.\\d+"]
["Device.SelfTestDiagnostics","TR-181i2.7",2098,null,null,"This diagnostics test is vendor-specific and MAY include testing hardware, software, and/or firmware."]
["Device.SelfTestDiagnostics.DiagnosticsState","TR-181i2.7",2099,null,null,"Indicates availability of diagnostic data. Enumeration of:\nNone\nRequested\nComplete\nError_Internal\nError_Other\nIf the ACS sets the value of this parameter to Requested, the CPE MUST initiate the corresponding diagnostic test. When writing, the only allowed value is Requested. To ensure the use of the proper test parameters (the writable parameters in this object), the test parameters MUST be set either prior to or at the same time as (in the same SetParameterValues) setting the DiagnosticsState to Requested.\nWhen requested, the CPE SHOULD wait until after completion of the communication session with the ACS before starting the diagnostic.\nWhen the test is completed, the value of this parameter MUST be either Complete (if the test completed successfully), or one of the Error values listed above.\nIf the value of this parameter is anything other than Complete, the values of the results parameters for this test are indeterminate.\nWhen the diagnostic initiated by the ACS is completed (successfully or not), the CPE MUST establish a new connection to the ACS to allow the ACS to view the results, indicating the Event code \"8 DIAGNOSTICS COMPLETE\" in the Inform message.\nAfter the diagnostic is complete, the value of all result parameters (all read-only parameters in this object) MUST be retained by the CPE until either this diagnostic is run again, or the CPE reboots. After a reboot, if the CPE has not retained the result parameters from the most recent test, it MUST set the value of this parameter to None.\nModifying any of the writable parameters in this object except for this one MUST result in the value of this parameter being set to None.\nWhile the test is in progress, modifying any of the writable parameters in this object except for this one MUST result in the test being terminated and the value of this parameter being set to None.\nWhile the test is in progress, setting this parameter to Requested (and possibly modifying other writable parameters in this object) MUST result in the test being terminated and then restarted using the current values of the test parameters."]
["Device.SelfTestDiagnostics.Results","TR-181i2.7",2124,null,null,"Results of self-test (vendor specific)."]
["Device.Services","TR-135 STB",4,null,null,"This object contains general services information."]
["Device.Services.STBServiceNumberOfEntries","TR-135 STB",5,null,null,"Number of entries in the STBService table."]
["Device.Time","TR-181i2.7",364,"y",null,"This object contains parameters relating an NTP or SNTP time client in the CPE."]
["Device.Time.CurrentLocalTime","TR-181i2.7",386,"y",null,"The current date and time in the CPE's local time zone."]
["Device.Time.Enable","TR-181i2.7",365,"y",null,"Enables or disables the NTP or SNTP time client."]
["Device.Time.LocalTimeZone","TR-181i2.7",387,"y",null,"The local time zone definition, encoded according to IEEE 1003.1 (POSIX). The following is an example value:\nEST+5EDT,M4.1.0/2,M10.5.0/2"]
["Device.Time.NTPServer1","TR-181i2.7",381,"y",null,"First NTP timeserver. Either a host name or IP address."]
["Device.Time.NTPServer2","TR-181i2.7",382,"y",null,"Second NTP timeserver. Either a host name or IP address."]
["Device.Time.NTPServer3","TR-181i2.7",383,"y",null,"Third NTP timeserver. Either a host name or IP address."]
["Device.Time.NTPServer4","TR-181i2.7",384,"y",null,"Fourth NTP timeserver. Either a host name or IP address."]
["Device.Time.NTPServer5","TR-181i2.7",385,"y",null,"Fifth NTP timeserver. Either a host name or IP address."]
["Device.Time.Status","TR-181i2.7",366,"y",null,"Status of Time support on the CPE. Enumeration of:\nDisabled\nUnsynchronized\nSynchronized\nError_FailedToSynchronize\nError (OPTIONAL)\nThe Unsynchronized value indicates that the CPE's absolute time has not yet been set.\nThe Synchronized value indicates that the CPE has acquired accurate absolute time; its current time is accurate.\nThe Error_FailedToSynchronize value indicates that the CPE failed to acquire accurate absolute time; its current time is not accurate.\nThe Error value MAY be used by the CPE to indicate a locally defined error condition."]
["Device.UPnP","TR-181i2.7",1932,null,null,"This object contains all UPnP related objects and parameters including Device and Discovery related objects and parameters."]
["Device.UPnP.Description","TR-181i2.7",2044,null,null,"This object contains information from the Description Document discovered from the UPnP Devices and Services."]
["Device.UPnP.Description.DeviceInstance.{i}","TR-181i2.7",2047,null,null,"This table contains the information from Device Description Document retrieved for a discovered UPnP root or embedded device.\nAt most one entry in this table can exist with a given value for UDN."]
["Device.UPnP.Description.DeviceInstance.{i}.DeviceType","TR-181i2.7",2057,null,null,"The value of the UPnP deviceType element in the Device Description Document for this DeviceInstance, or an empty string if this value is not provided by the device."]
["Device.UPnP.Description.DeviceInstance.{i}.DiscoveryDevice","TR-181i2.7",2054,null,null,"The value MUST be the path name of a Discovery.RootDevice table entry (if this is a root device) or a Discovery.Device table entry (if this is an embedded device). If the referenced object is deleted, the parameter value MUST be set to an empty string.\nThis DiscoveryDevice value can be an empty string because the referenced object has been deleted or the CPE was unable to retrieve the Description Document due to some out-of-band error. The determination to delete this DeviceInstance or use an empty string is implementation specific."]
["Device.UPnP.Description.DeviceInstance.{i}.FriendlyName","TR-181i2.7",2058,null,null,"The value of the UPnP friendlyName element in the Device Description Document for this DeviceInstance, or an empty string if this value is not provided by the device."]
["Device.UPnP.Description.DeviceInstance.{i}.Manufacturer","TR-181i2.7",2059,null,null,"The value of the UPnP manufacturer element in the Device Description Document for this DeviceInstance, or an empty string if this value is not provided by the device."]
["Device.UPnP.Description.DeviceInstance.{i}.ManufacturerURL","TR-181i2.7",2060,null,null,"The value of the UPnP manufacturerURL element in the Device Description Document for this DeviceInstance, or an empty string if this value is not provided by the device."]
["Device.UPnP.Description.DeviceInstance.{i}.ModelDescription","TR-181i2.7",2061,null,null,"The value of the UPnP modelDescription element in the Device Description Document for this DeviceInstance, or an empty string if this value is not provided by the device."]
["Device.UPnP.Description.DeviceInstance.{i}.ModelName","TR-181i2.7",2062,null,null,"The value of the UPnP modelName element in the Device Description Document for this DeviceInstance, or an empty string if this value is not provided by the device."]
["Device.UPnP.Description.DeviceInstance.{i}.ModelNumber","TR-181i2.7",2063,null,null,"The value of the UPnP modelNumber element in the Device Description Document for this DeviceInstance, or an empty string if this value is not provided by the device."]
["Device.UPnP.Description.DeviceInstance.{i}.ModelURL","TR-181i2.7",2064,null,null,"The value of the UPnP modelURL element in the Device Description Document for this DeviceInstance, or an empty string if this value is not provided by the device."]
["Device.UPnP.Description.DeviceInstance.{i}.ParentDevice","TR-181i2.7",2053,null,null,"The value MUST be the path name of a DeviceInstance table entry (if this is an embedded device) or an empty string (if this is a root device). If the referenced object is deleted, the parameter value MUST be set to an empty string."]
["Device.UPnP.Description.DeviceInstance.{i}.PresentationURL","TR-181i2.7",2067,null,null,"The value of the UPnP presentationURL element in the Device Description Document for this DeviceInstance and MUST be an absolute URL.\nThe way to obtain an absolute URL from the presentationURL element is specified in [UPnP-DAv1] and [UPnP-DAv11].\nIf the presentationURL is not provided by the device then this value MUST be an empty string."]
["Device.UPnP.Description.DeviceInstance.{i}.SerialNumber","TR-181i2.7",2065,null,null,"The value of the UPnP serialNumber element in the Device Description Document for this DeviceInstance, or an empty string if this value is not provided by the device."]
["Device.UPnP.Description.DeviceInstance.{i}.UDN","TR-181i2.7",2050,null,null,"[UUID] Unique Device Name of this device represented as a UUID for the device.\nThis value is extracted from the UDN element in the Device Description Document with the leading uuid: removed."]
["Device.UPnP.Description.DeviceInstance.{i}.UPC","TR-181i2.7",2066,null,null,"The value of the UPnP UPC element in the Device Description Document for this DeviceInstance, or an empty string if this value is not provided by the device."]
["Device.UPnP.Description.DeviceInstanceNumberOfEntries","TR-181i2.7",2045,null,null,"The number of entries in the DeviceInstance table."]
["Device.UPnP.Description.ServiceInstance.{i}","TR-181i2.7",2072,null,null,"This table contains the information from Device Description Document retrieved for a discovered UPnP service.\nAt most one entry in this table can exist with the same values for ParentDevice and ServiceId."]
["Device.UPnP.Description.ServiceInstance.{i}.ControlURL","TR-181i2.7",2088,null,null,"The value of the UPnP controlURL element in the Device Description Document for this ServiceInstance and MUST be an absolute URL.\nThe way to obtain an absolute URL from the controlURL element is specified in [UPnP-DAv1] and [UPnP-DAv11].\nIf the controlURL is not provided by the device then this value MUST be an empty string"]
["Device.UPnP.Description.ServiceInstance.{i}.EventSubURL","TR-181i2.7",2093,null,null,"The value of the UPnP eventSubURL element in the Device Description Document for this ServiceInstance and MUST be an absolute URL.\nThe way to obtain an absolute URL from the eventSubURLL element is specified in [UPnP-DAv1] and [UPnP-DAv11].\nIf the eventSubURL is not provided by the device then this value MUST be an empty string"]
["Device.UPnP.Description.ServiceInstance.{i}.ParentDevice","TR-181i2.7",2075,null,null,"The value MUST be the path name of a DeviceInstance table entry. If the referenced object is deleted, the parameter value MUST be set to an empty string."]
["Device.UPnP.Description.ServiceInstance.{i}.SCPDURL","TR-181i2.7",2083,null,null,"The value of the UPnP SCPDURL element in the Device Description Document for this ServiceInstance and MUST be an absolute URL.\nThe way to obtain an absolute URL from the SCPDURL element is specified in [UPnP-DAv1] and [UPnP-DAv11].\nIf the SCPDURL is not provided by the device then this value MUST be an empty string."]
["Device.UPnP.Description.ServiceInstance.{i}.ServiceDiscovery","TR-181i2.7",2079,null,null,"The value MUST be the path name of a Discovery.Service table entry. If the referenced object is deleted, the parameter value MUST be set to an empty string.\nThis ServiceDiscovery value can be an empty string because the referenced object has been deleted or the CPE was unable to retrieve the Description Document due to some out-of-band error. The determination to delete this ServiceInstance or use an empty string is implementation specific."]
["Device.UPnP.Description.ServiceInstance.{i}.ServiceId","TR-181i2.7",2076,null,null,"The value of the UPnP serviceId element in the Device Description Document for this ServiceInstance, or an empty string if this value is not provided by the service.\nIf the UPnP serviceId is not provided by the UPnP service, this ServiceInstance MUST be deleted."]
["Device.UPnP.Description.ServiceInstance.{i}.ServiceType","TR-181i2.7",2082,null,null,"The value of the UPnP serviceType element in the Device Description Document for this ServiceInstance, or an empty string if this value is not provided by the service."]
["Device.UPnP.Description.ServiceInstanceNumberOfEntries","TR-181i2.7",2046,null,null,"The number of entries in the ServiceInstance table."]
["Device.UPnP.Device","TR-181i2.7",1933,null,null,"This object defines the UPnP devices and UPnP services that are implemented by the CPE."]
["Device.UPnP.Device.Capabilities","TR-181i2.7",1936,null,null,"This object defines what UPnP capabilities this device has."]
["Device.UPnP.Device.Capabilities.UPnPArchitecture","TR-181i2.7",1937,null,null,"Numeric value indicating the major version of the supported UPnP architecture.\nIf UPnP 1.1 is supported the value is 1. If UPnP 2.0 is supported the value is 2.\nA value of 0 indicates no UPnP support."]
["Device.UPnP.Device.Capabilities.UPnPArchitectureMinorVer","TR-181i2.7",1942,null,null,"Numeric value indicating the minor version of the supported UPnP architecture.\nIf UPnP 1.1 is supported the value is 1. If UPnP 2.0 is supported the value is 0.\nIf UPnPArchitecture is 0 then this parameter SHOULD be ignored."]
["Device.UPnP.Device.Capabilities.UPnPMediaRenderer","TR-181i2.7",1947,null,null,"Numeric value indicating the supported revision for UPnP Media Renderer.\nA value of 0 indicates no support."]
["Device.UPnP.Device.Enable","TR-181i2.7",1934,null,null,"Enables/Disables UPnP support."]
["Device.UPnP.Device.UPnPMediaRenderer","TR-181i2.7",1935,null,null,"Enables/Disables UPnP Media Renderer."]
["Device.UPnP.Discovery","TR-181i2.7",1950,null,null,"UPnP [UPnP-DAv1] SSDP discovered root devices, embedded devices and embedded services.\nThe CPE MAY, but need not, retain some or all of the information in this object across reboots."]
["Device.UPnP.Discovery.Device.{i}","TR-181i2.7",1989,null,null,"UPnP embedded device table. This table contains an entry for each UPnP embedded device that has been discovered via SSDP.\nAt most one entry in this table can exist with a given value for UUID."]
["Device.UPnP.Discovery.Device.{i}.LastUpdate","TR-181i2.7",2020,null,null,"The date and time at which the last advertisement from this Device was received."]
["Device.UPnP.Discovery.Device.{i}.LeaseTime","TR-181i2.7",2013,null,null,"The UPnP embedded device lease time in seconds, extracted from the CACHE-CONTROL header."]
["Device.UPnP.Discovery.Device.{i}.Location","TR-181i2.7",2014,null,null,"The value of the LOCATION header for this UPnP embedded device, which is the URL of the root device's DDD (Device Description Document)."]
["Device.UPnP.Discovery.Device.{i}.Server","TR-181i2.7",2015,null,null,"The value of the SERVER header for this UPnP embedded device, which is a string of the following form:\nOS/version UPnP/udaversion product/version\nwhere UPnP is a literal string, udaversion is the version of the UPnP Device Architecture."]
["Device.UPnP.Discovery.Device.{i}.Status","TR-181i2.7",1992,null,null,"The status of the UPnP embedded device. Enumeration of:\nLeaseActive (Device is active and UPnP lease has not expired)\nLeaseExpired (Device is inactive because UPnP lease has expired)\nByebyeReceived (Device is inactive because byebye message was received)\nThe ability to list inactive UPnP embedded devices is OPTIONAL. The length of time an inactive device remains listed in this table is a local matter to the CPE."]
["Device.UPnP.Discovery.Device.{i}.USN","TR-181i2.7",2005,null,null,"The value of the USN (Unique Service Name) header for this UPnP embedded device. Two discovery messages are sent for embedded devices, and this SHOULD be the value of the USN header of the following form:\nuuid:device-UUID::urn:domain-name:device:deviceType:v\nSSDP is an unreliable protocol and it is possible that no discovery message containing the USN header of the above form was ever received. If so, the other form MAY be used:\nuuid:device-UUID"]
["Device.UPnP.Discovery.Device.{i}.UUID","TR-181i2.7",1999,null,null,"This UPnP embedded device's UUID (Universally Unique IDentifier) [RFC4122], extracted from any of its USN (Unique Service Name) headers. This is a 36-byte string that uniquely identifies the device, the following is an example:\n02c29d2a-dbfd-2d91-99c9-306d537e9856\n[0-9A-Fa-f]{8}-([0-9A-Fa-f]{4}-){3}[0-9A-Fa-f]{12}"]
["Device.UPnP.Discovery.DeviceNumberOfEntries","TR-181i2.7",1954,null,null,"The number of entries in the Device table."]
["Device.UPnP.Discovery.RootDevice.{i}","TR-181i2.7",1956,null,null,"UPnP root device table. This table contains an entry for each UPnP root device that has been discovered via SSDP.\nAt most one entry in this table can exist with a given value for UUID."]
["Device.UPnP.Discovery.RootDevice.{i}.LastUpdate","TR-181i2.7",1988,null,null,"The date and time at which the last advertisement from this RootDevice was received."]
["Device.UPnP.Discovery.RootDevice.{i}.LeaseTime","TR-181i2.7",1981,null,null,"The UPnP root device lease time in seconds, extracted from the CACHE-CONTROL header."]
["Device.UPnP.Discovery.RootDevice.{i}.Location","TR-181i2.7",1982,null,null,"The value of the LOCATION header for this UPnP root device, which is the URL of the root device's DDD (Device Description Document)."]
["Device.UPnP.Discovery.RootDevice.{i}.Server","TR-181i2.7",1983,null,null,"The value of the SERVER header for this UPnP root device, which is a string of the following form:\nOS/version UPnP/udaversion product/version\nwhere UPnP is a literal string, udaversion is the version of the UPnP Device Architecture."]
["Device.UPnP.Discovery.RootDevice.{i}.Status","TR-181i2.7",1959,null,null,"The status of the UPnP root device. Enumeration of:\nLeaseActive (Device is active and UPnP lease has not expired)\nLeaseExpired (Device is inactive because UPnP lease has expired)\nByebyeReceived (Device is inactive because byebye message was received)\nThe ability to list inactive UPnP root devices is OPTIONAL. The length of time an inactive device remains listed in this table is a local matter to the CPE."]
["Device.UPnP.Discovery.RootDevice.{i}.USN","TR-181i2.7",1972,null,null,"The value of the USN (Unique Service Name) header for this UPnP root device. Three discovery messages are sent for root devices, and this SHOULD be the value of the USN header of the following form:\nuuid:device-UUID::urn:domain-name:device:deviceType:v\nSSDP is an unreliable protocol and it is possible that no discovery message containing the USN header of the above form was ever received. If so, one of the other two forms MAY be used:\nuuid:device-UUID::upnp:rootdevice\nuuid:device-UUID (for root device UUID)"]
["Device.UPnP.Discovery.RootDevice.{i}.UUID","TR-181i2.7",1966,null,null,"This UPnP root device's UUID (Universally Unique IDentifier) [RFC4122], extracted from any of its USN (Unique Service Name) headers. This is a 36-byte string that uniquely identifies the device, the following is an example:\n02c29d2a-dbfd-2d91-99c9-306d537e9856\n[0-9A-Fa-f]{8}-([0-9A-Fa-f]{4}-){3}[0-9A-Fa-f]{12}"]
["Device.UPnP.Discovery.RootDeviceNumberOfEntries","TR-181i2.7",1953,null,null,"The number of entries in the RootDevice table."]
["Device.UPnP.Discovery.Service.{i}","TR-181i2.7",2021,null,null,"UPnP embedded service table. This table contains an entry for each UPnP embedded service that has been discovered via SSDP.\nAt most one entry in this table can exist with a given value for USN."]
["Device.UPnP.Discovery.Service.{i}.LastUpdate","TR-181i2.7",2042,null,null,"The date and time at which the last advertisement from this Service was received."]
["Device.UPnP.Discovery.Service.{i}.LeaseTime","TR-181i2.7",2035,null,null,"The UPnP embedded service lease time in seconds, extracted from the CACHE-CONTROL header."]
["Device.UPnP.Discovery.Service.{i}.Location","TR-181i2.7",2036,null,null,"The value of the LOCATION header for this UPnP embedded service, which is the URL of the root device's DDD (Device Description Document)."]
["Device.UPnP.Discovery.Service.{i}.ParentDevice","TR-181i2.7",2043,null,null,"The value MUST be the path name of the RootDevice or Device table entries that embeds this Service. If the referenced object is deleted, the parameter value MUST be set to an empty string. This parameter is populated by extracting the \"device-UUID\" from the service's USN and matching the value against the root device or embedded device UUID value."]
["Device.UPnP.Discovery.Service.{i}.Server","TR-181i2.7",2037,null,null,"The value of the SERVER header for this UPnP embedded service, which is a string of the following form:\nOS/version UPnP/udaversion product/version\nwhere UPnP is a literal string, udaversion is the version of the UPnP Device Architecture."]
["Device.UPnP.Discovery.Service.{i}.Status","TR-181i2.7",2024,null,null,"The status of the UPnP embedded service. Enumeration of:\nLeaseActive (Service is active and UPnP lease has not expired)\nLeaseExpired (Service is inactive because UPnP lease has expired)\nByebyeReceived (Service is inactive because byebye message was received)\nThe ability to list inactive UPnP embedded services is OPTIONAL. The length of time an inactive service remains listed in this table is a local matter to the CPE."]
["Device.UPnP.Discovery.Service.{i}.USN","TR-181i2.7",2031,null,null,"The value of the USN (Unique Service Name) header for this UPnP embedded service. This is of the following form:\nuuid:device-UUID::urn:domain-name:service:serviceType:v"]
["Device.UPnP.Discovery.ServiceNumberOfEntries","TR-181i2.7",1955,null,null,"The number of entries in the Service table."]
["Device.USB","TR-181i2.7",552,null,null,"Universal Serial Bus ([USB1.0], [USB2.0], [USB3.0]). This object contains the Interface, Port, and USBHosts objects."]
["Device.USB.USBHosts","TR-181i2.7",553,null,null,"This object models the CPE's USB Host controllers.\nSee [Appendix I/TR-157] for Theory of Operation."]
["Device.USB.USBHosts.Host.{i}","TR-181i2.7",557,null,null,"Table of CPE USB Host controllers.\nAt most one entry in this table can exist with a given value for Name, or with a given value for Alias."]
["Device.USB.USBHosts.Host.{i}.Alias","TR-181i2.7",560,null,null,"A non-volatile handle used to reference this instance. Alias provides a mechanism for an ACS to label this instance for future reference.\nIf the CPE supports the Alias-based Addressing feature as defined in [Section 3.6.1/TR-069a4] and described in [Appendix II/TR-069a4], the following mandatory constraints MUST be enforced:\nIts value MUST NOT be empty.\nIts value MUST start with a letter.\nIf its instance object is created by the CPE, the initial value MUST start with a \"cpe-\" prefix.\nThe CPE MUST NOT change the parameter value."]
["Device.USB.USBHosts.Host.{i}.Device.{i}","TR-181i2.7",590,null,null,"Table of connected USB devices.\nAt most one entry in this table can exist with a given value for DeviceNumber."]
["Device.USB.USBHosts.Host.{i}.Device.{i}.Configuration.{i}","TR-181i2.7",629,null,null,"Table of device configurations.\nAt most one entry in this table can exist with a given value for ConfigurationNumber."]
["Device.USB.USBHosts.Host.{i}.Device.{i}.Configuration.{i}.ConfigurationNumber","TR-181i2.7",632,null,null,"The identifier for each Device Configuration."]
["Device.USB.USBHosts.Host.{i}.Device.{i}.Configuration.{i}.Interface.{i}","TR-181i2.7",634,null,null,"Table of device interface descriptors.\nAt most one entry in this table can exist with a given value for InterfaceNumber."]
["Device.USB.USBHosts.Host.{i}.Device.{i}.Configuration.{i}.Interface.{i}.InterfaceClass","TR-181i2.7",638,null,null,"Class Code as assigned by USB-IF.\nWhen 0x00, each interface specifies its own class code. When 0xFF, the class code is vendor specified."]
["Device.USB.USBHosts.Host.{i}.Device.{i}.Configuration.{i}.Interface.{i}.InterfaceNumber","TR-181i2.7",637,null,null,"Number of this interface (from USB interface descriptor)."]
["Device.USB.USBHosts.Host.{i}.Device.{i}.Configuration.{i}.Interface.{i}.InterfaceProtocol","TR-181i2.7",642,null,null,"Protocol code (assigned by USB-IF)."]
["Device.USB.USBHosts.Host.{i}.Device.{i}.Configuration.{i}.Interface.{i}.InterfaceSubClass","TR-181i2.7",641,null,null,"Subclass code (assigned by USB-IF)."]
["Device.USB.USBHosts.Host.{i}.Device.{i}.Configuration.{i}.InterfaceNumberOfEntries","TR-181i2.7",633,null,null,"The number of entries in the Interface table."]
["Device.USB.USBHosts.Host.{i}.Device.{i}.ConfigurationNumberOfEntries","TR-181i2.7",628,null,null,"The number of entries in the Configuration table."]
["Device.USB.USBHosts.Host.{i}.Device.{i}.DeviceClass","TR-181i2.7",595,null,null,"Class Code as assigned by USB-IF.\nWhen 0x00, each device specifies its own class code. When 0xFF, the class code is vendor specified."]
["Device.USB.USBHosts.Host.{i}.Device.{i}.DeviceNumber","TR-181i2.7",593,null,null,"Device number on USB bus."]
["Device.USB.USBHosts.Host.{i}.Device.{i}.DeviceProtocol","TR-181i2.7",600,null,null,"Protocol code (assigned by USB-IF)."]
["Device.USB.USBHosts.Host.{i}.Device.{i}.DeviceSubClass","TR-181i2.7",598,null,null,"Subclass code (assigned by USB-IF)."]
["Device.USB.USBHosts.Host.{i}.Device.{i}.DeviceVersion","TR-181i2.7",599,null,null,"Device release number."]
["Device.USB.USBHosts.Host.{i}.Device.{i}.IsSelfPowered","TR-181i2.7",625,null,null,"When true the associated device is at least partly powered by a local source (see [Chapter 9.4.5/USB2.0]).\nWhen false the associated device draws all the current it needs from the USB bus."]
["Device.USB.USBHosts.Host.{i}.Device.{i}.IsSuspended","TR-181i2.7",622,null,null,"When true the associated Device is in a suspended (i.e. low-power) state (see [Chapter 11.9/USB2.0]).\nWhen false the associated Device is in any of the other states specified by the USB 2.0 Device State Machine (see [Chapter 9.1.1/USB2.0])."]
["Device.USB.USBHosts.Host.{i}.Device.{i}.Manufacturer","TR-181i2.7",603,null,null,"Device Manufacturer string descriptor."]
["Device.USB.USBHosts.Host.{i}.Device.{i}.MaxChildren","TR-181i2.7",621,null,null,"Number of ports. Only applies for hub device, equal to 0 for other devices."]
["Device.USB.USBHosts.Host.{i}.Device.{i}.Parent","TR-181i2.7",618,null,null,"The value MUST be the path name of a row in the Device table. If the referenced object is deleted, the parameter value MUST be set to an empty string. This is a reference to the parent USB device (e.g. hub device).\nThis is an empty string for a device connected to the Host controller (root hub)."]
["Device.USB.USBHosts.Host.{i}.Device.{i}.Port","TR-181i2.7",606,null,null,"Hub port on parent device.\n0 when no parent."]
["Device.USB.USBHosts.Host.{i}.Device.{i}.ProductClass","TR-181i2.7",604,null,null,"Device Product Class string descriptor."]
["Device.USB.USBHosts.Host.{i}.Device.{i}.ProductID","TR-181i2.7",601,null,null,"Product ID (assigned by manufacturer)."]
["Device.USB.USBHosts.Host.{i}.Device.{i}.Rate","TR-181i2.7",610,null,null,"Speed of the USB device. Enumeration of:\nLow (1.5 Mbits/sec (187.5 KB/sec) defined in [USB1.0])\nFull (12 Mbits/sec (1.5 MB/sec) defined in [USB1.0])\nHigh (480 Mbits/sec (60 MB/sec) defined in [USB2.0])\nSuper (5.0 Gbits/sec (625 MB/sec) defined in [USB3.0])\nInternal signaling between the connected USB device and the USB Host Controller provide the information needed to determine the negotiated rate."]
["Device.USB.USBHosts.Host.{i}.Device.{i}.SerialNumber","TR-181i2.7",605,null,null,"Device SerialNumber string descriptor."]
["Device.USB.USBHosts.Host.{i}.Device.{i}.USBPort","TR-181i2.7",609,null,null,"The value MUST be the path name of a row in the USB.Port table. If the referenced object is deleted, the parameter value MUST be set to an empty string. This is a reference to the USB host device to which this (external) USB device is connected."]
["Device.USB.USBHosts.Host.{i}.Device.{i}.USBVersion","TR-181i2.7",594,null,null,"USB specification version with which the device complies. Example: \"1.1\""]
["Device.USB.USBHosts.Host.{i}.Device.{i}.VendorID","TR-181i2.7",602,null,null,"Vendor ID (assigned by USB-IF)."]
["Device.USB.USBHosts.Host.{i}.DeviceNumberOfEntries","TR-181i2.7",589,null,null,"The number of entries in the Device table."]
["Device.USB.USBHosts.Host.{i}.Enable","TR-181i2.7",569,null,null,"Enables or disables the USB Host controller."]
["Device.USB.USBHosts.Host.{i}.Name","TR-181i2.7",570,null,null,"User-readable host controller name."]
["Device.USB.USBHosts.Host.{i}.PowerManagementEnable","TR-181i2.7",585,null,null,"When set to true, PowerManagementEnable enables the Host Controller to invoke Power Management policy, i.e. controlled Suspend (see [USB2.0], Chapters 4.3.2, 7.1.7.6, and 11.9).\nWhen set to false PowerManagementEnable immediately disables the Host controller Power Management policy."]
["Device.USB.USBHosts.Host.{i}.Reset","TR-181i2.7",580,null,null,"When set to true, reset the Host Controller and apply the reset signaling (see [Chapter 7.1.7.5/USB2.0]) to all of the Host Controller Hub downstream ports.\nThe value is not saved in the device's state and setting it to false has no effect.\nWhen read, this parameter returns false, regardless of the actual value."]
["Device.USB.USBHosts.Host.{i}.Type","TR-181i2.7",571,null,null,"Type of USB Host\nEnumeration of:\nOHCI (Open Host Controller Interface)\nEHCI (Enhanced Host Controller Interface)\nUHCI (Universal Host Controller Interface)\nxHCI (Extensible Host Controller Interface)"]
["Device.USB.USBHosts.Host.{i}.USBVersion","TR-181i2.7",588,null,null,"USB specification version with which the controller complies. Example: \"1.1\""]
["Device.USB.USBHosts.HostNumberOfEntries","TR-181i2.7",556,null,null,"The number of entries in the Host table."]
["Device.WiFi","TR-181i2.7",876,null,null,"The WiFi object is based on the WiFi Alliance 802.11 specifications ([802.11-2007]). It defines interface objects (Radio and SSID), and application objects (AccessPoint and EndPoint)."]
["Device.WiFi.EndPoint.{i}","TR-181i2.7",1097,null,null,"This object models an 802.11 connection from the perspective of a wireless end point. Each EndPoint entry is associated with a particular SSID interface instance via the SSIDReference parameter, and an associated active Profile instance via the ProfileReference parameter. The active profile is responsible for specifying the actual SSID and security settings used by the end point.\nFor enabled table entries, if SSIDReference or ProfileReference is not a valid reference then the table entry is inoperable and the CPE MUST set Status to Error_Misconfigured.\nNote: The EndPoint table includes a unique key parameter that is a strong reference. If a strongly referenced object is deleted, the CPE will set the referencing parameter to an empty string. However, doing so under these circumstances might cause the updated EndPoint row to then violate the table's unique key constraint; if this occurs, the CPE MUST set Status to Error_Misconfigured and disable the offending EndPoint row.\nAt most one entry in this table (regardless of whether or not it is enabled) can exist with a given value for Alias. On creation of a new table entry, the CPE MUST choose an initial value for Alias such that the new entry does not conflict with any existing entries.\nAt most one enabled entry in this table can exist with a given value for SSIDReference."]
["Device.WiFi.EndPoint.{i}.Alias","TR-181i2.7",1117,null,null,"A non-volatile handle used to reference this instance. Alias provides a mechanism for an ACS to label this instance for future reference.\nIf the CPE supports the Alias-based Addressing feature as defined in [Section 3.6.1/TR-069a4] and described in [Appendix II/TR-069a4], the following mandatory constraints MUST be enforced:\nIts value MUST NOT be empty.\nIts value MUST start with a letter.\nIf its instance object is created by the CPE, the initial value MUST start with a \"cpe-\" prefix.\nThe CPE MUST NOT change the parameter value."]
["Device.WiFi.EndPoint.{i}.Enable","TR-181i2.7",1106,null,null,"Enables or disables this end point."]
["Device.WiFi.EndPoint.{i}.Profile.{i}","TR-181i2.7",1147,null,null,"EndPoint Profile table.\nAt most one entry in this table (regardless of whether or not it is enabled) can exist with a given value for Alias. On creation of a new table entry, the CPE MUST choose an initial value for Alias such that the new entry does not conflict with any existing entries.\nAt most one enabled entry in this table can exist with all the same values for SSID, Location and Priority."]
["Device.WiFi.EndPoint.{i}.Profile.{i}.Alias","TR-181i2.7",1163,null,null,"A non-volatile handle used to reference this instance. Alias provides a mechanism for an ACS to label this instance for future reference.\nIf the CPE supports the Alias-based Addressing feature as defined in [Section 3.6.1/TR-069a4] and described in [Appendix II/TR-069a4], the following mandatory constraints MUST be enforced:\nIts value MUST NOT be empty.\nIts value MUST start with a letter.\nIf its instance object is created by the CPE, the initial value MUST start with a \"cpe-\" prefix.\nThe CPE MUST NOT change the parameter value."]
["Device.WiFi.EndPoint.{i}.Profile.{i}.Enable","TR-181i2.7",1152,null,null,"Enables or disables this Profile.\nWhen there are multiple WiFi EndPoint Profiles, e.g. each instance supports a different SSID and/or different security configuration, this parameter can be used to control which of the instances are currently enabled."]
["Device.WiFi.EndPoint.{i}.Profile.{i}.Location","TR-181i2.7",1173,null,null,"Location of the profile. This value serves as a reminder from the user, describing the location of the profile. For example: \"Home\", \"Office\", \"Neighbor House\", \"Airport\", etc. An empty string is also valid."]
["Device.WiFi.EndPoint.{i}.Profile.{i}.Priority","TR-181i2.7",1174,null,null,"The profile Priority defines one of the criteria used by the End Point to automatically select the \"best\" AP when several APs with known profiles are simultaneously available for association.\nIn this situation, the End Point has to select the AP with the higher priority in its profile. If there are several APs with the same priority, providing different SSID or the same SSID, then the wireless end point has to select the APs according to other criteria like signal quality, SNR, etc.\n0 is the highest priority."]
["Device.WiFi.EndPoint.{i}.Profile.{i}.Security","TR-181i2.7",1179,null,null,"This object contains security related parameters that apply to a WiFi End Point profile [802.11-2007]."]
["Device.WiFi.EndPoint.{i}.Profile.{i}.Security.KeyPassphrase","TR-181i2.7",1195,null,null,"A passphrase from which the PreSharedKey is to be generated, for WPA-Personal or WPA2-Personal or WPA-WPA2-Personal security modes.\nIf KeyPassphrase is written, then PreSharedKey is immediately generated. The ACS SHOULD NOT set both the KeyPassphrase and the PreSharedKey directly (the result of doing this is undefined). The key is generated as specified by WPA, which uses PBKDF2 from PKCS #5: Password-based Cryptography Specification Version 2.0 [RFC2898].\nWhen read, this parameter returns an empty string, regardless of the actual value."]
["Device.WiFi.EndPoint.{i}.Profile.{i}.Security.ModeEnabled","TR-181i2.7",1180,null,null,"The value MUST be a member of the list reported by the Security.ModesSupported parameter. Indicates which security mode is enabled."]
["Device.WiFi.EndPoint.{i}.Profile.{i}.Security.PreSharedKey","TR-181i2.7",1188,null,null,"A literal PreSharedKey (PSK) expressed as a hexadecimal string.\nPreSharedKey is only used if ModeEnabled is set to WPA-Personal or WPA2-Personal or WPA-WPA2-Personal.\nIf KeyPassphrase is written, then PreSharedKey is immediately generated. The ACS SHOULD NOT set both the KeyPassphrase and the PreSharedKey directly (the result of doing this is undefined).\nWhen read, this parameter returns an empty string, regardless of the actual value."]
["Device.WiFi.EndPoint.{i}.Profile.{i}.Security.WEPKey","TR-181i2.7",1181,null,null,"A WEP key expressed as a hexadecimal string.\nWEPKey is used only if ModeEnabled is set to WEP-64 or WEP-128.\nA 5 byte WEPKey corresponds to security mode WEP-64 and a 13 byte WEPKey corresponds to security mode WEP-128.\nWhen read, this parameter returns an empty string, regardless of the actual value."]
["Device.WiFi.EndPoint.{i}.Profile.{i}.SSID","TR-181i2.7",1172,null,null,"The profile identifier in use by the connection. The SSID is an identifier that is attached to packets sent over the wireless LAN that functions as an ID for joining a particular radio network (BSS)."]
["Device.WiFi.EndPoint.{i}.Profile.{i}.Status","TR-181i2.7",1155,null,null,"Indicates the status of this Profile. Enumeration of:\nActive\nAvailable\nError (OPTIONAL)\nDisabled\nThe Active value is reserved for the instance that is actively connected. The Available value represents an instance that is not currently active, but is also not disabled or in error. The Error value MAY be used by the CPE to indicate a locally defined error condition."]
["Device.WiFi.EndPoint.{i}.ProfileNumberOfEntries","TR-181i2.7",1128,null,null,"The number of entries in the Profile table."]
["Device.WiFi.EndPoint.{i}.ProfileReference","TR-181i2.7",1126,null,null,"The value MUST be the path name of a row in the Profile table. If the referenced object is deleted, the parameter value MUST be set to an empty string. This is the currently active profile, which specifies the SSID and security settings to be used by the end point."]
["Device.WiFi.EndPoint.{i}.Security","TR-181i2.7",1134,null,null,"This object contains security related parameters that apply to a WiFi end point [802.11-2007]."]
["Device.WiFi.EndPoint.{i}.Security.ModesSupported","TR-181i2.7",1135,null,null,"Comma-separated list of strings. Indicates which security modes this EndPoint instance is capable of supporting. Each list item is an enumeration of:\nNone\nWEP-64\nWEP-128\nWPA-Personal\nWPA2-Personal\nWPA-WPA2-Personal\nWPA-Enterprise\nWPA2-Enterprise\nWPA-WPA2-Enterprise"]
["Device.WiFi.EndPoint.{i}.SSIDReference","TR-181i2.7",1127,null,null,"The value MUST be the path name of a row in the SSID table. If the referenced object is deleted, the parameter value MUST be set to an empty string. SSIDReference is determined based on the Profile.{i}.SSID within the associated ProfileReference) endpoint profile. SSIDReference MUST be an empty string if ProfileReference is an empty string (i.e. only when an active profile is assigned can the associated SSID interface be determined)."]
["Device.WiFi.EndPoint.{i}.Stats","TR-181i2.7",1129,null,null,"Throughput statistics for this end point."]
["Device.WiFi.EndPoint.{i}.Stats.LastDataDownlinkRate","TR-181i2.7",1130,null,null,"The data transmit rate in kbps that was most recently used for transmission from the access point to the end point device."]
["Device.WiFi.EndPoint.{i}.Stats.LastDataUplinkRate","TR-181i2.7",1131,null,null,"The data transmit rate in kbps that was most recently used for transmission from the end point to the access point device."]
["Device.WiFi.EndPoint.{i}.Stats.Retransmissions","TR-181i2.7",1133,null,null,"The number of packets that had to be re-transmitted, from the last 100 packets sent to the access point. Multiple re-transmissions of the same packet count as one."]
["Device.WiFi.EndPoint.{i}.Stats.SignalStrength","TR-181i2.7",1132,null,null,"An indicator of radio signal strength of the downlink from the access point to the end point, measured in dBm, as an average of the last 100 packets received from the device."]
["Device.WiFi.EndPoint.{i}.Status","TR-181i2.7",1107,null,null,"Indicates the status of this end point. Enumeration of:\nDisabled\nEnabled\nError_Misconfigured\nError (OPTIONAL)\nThe Error_Misconfigured value indicates that a necessary configuration value is undefined or invalid.\nThe Error value MAY be used by the CPE to indicate a locally defined error condition."]
["Device.WiFi.EndPoint.{i}.WPS","TR-181i2.7",1200,null,null,"This object contains parameters related to Wi-Fi Protected Setup [WPSv1.0] for this end point."]
["Device.WiFi.EndPoint.{i}.WPS.ConfigMethodsEnabled","TR-181i2.7",1213,null,null,"Comma-separated list of strings. Each list item MUST be a member of the list reported by the ConfigMethodsSupported parameter. Indicates the WPS configuration methods enabled on the device."]
["Device.WiFi.EndPoint.{i}.WPS.ConfigMethodsSupported","TR-181i2.7",1202,null,null,"Comma-separated list of strings. Indicates the WPS configuration methods supported by the device. Each list item is an enumeration of:\nUSBFlashDrive\nEthernet\nExternalNFCToken\nIntegratedNFCToken\nNFCInterface\nPushButton\nPIN\nThis parameter corresponds directly to the \"Config Methods\" attribute of the WPS specification [WPSv1.0]."]
["Device.WiFi.EndPoint.{i}.WPS.Enable","TR-181i2.7",1201,null,null,"Enables or disables WPS functionality for this end point."]
["Device.WiFi.EndPointNumberOfEntries","TR-181i2.7",879,null,null,"The number of entries in the EndPoint table."]
["Device.WiFi.Radio.{i}","TR-181i2.7",880,null,null,"This object models an 802.11 wireless radio on a device (a stackable interface object as described in [Section 4.2/TR-181i2]).\nIf the device can establish more than one connection simultaneously (e.g. a dual radio device), a separate Radio instance MUST be used for each physical radio of the device. See [Appendix III.1/TR-181i2] for additional information.\nNote: A dual-band single-radio device (e.g. an 802.11a/b/g radio) can be configured to operate at 2.4 or 5 GHz frequency bands, but only a single frequency band is used to transmit/receive at a given time. Therefore, a single Radio instance is used even for a dual-band radio.\nAt most one entry in this table can exist with a given value for Alias, or with a given value for Name."]
["Device.WiFi.Radio.{i}.Alias","TR-181i2.7",905,null,null,"A non-volatile handle used to reference this instance. Alias provides a mechanism for an ACS to label this instance for future reference.\nIf the CPE supports the Alias-based Addressing feature as defined in [Section 3.6.1/TR-069a4] and described in [Appendix II/TR-069a4], the following mandatory constraints MUST be enforced:\nIts value MUST NOT be empty.\nIts value MUST start with a letter.\nIf its instance object is created by the CPE, the initial value MUST start with a \"cpe-\" prefix.\nThe CPE MUST NOT change the parameter value."]
["Device.WiFi.Radio.{i}.AutoChannelEnable","TR-181i2.7",971,null,null,"Enable or disable automatic channel selection.\nSet to false to disable the automatic channel selection procedure, in which case the currently selected channel remains selected.\nSet to true to enable the automatic channel selection procedure. This procedure MUST automatically select the channel, and MAY also change it subsequently.\nAutoChannelEnable MUST automatically change to false whenever the channel is manually selected, i.e. whenever the Channel parameter is written.\nWhenever AutoChannelEnable is true, the value of the Channel parameter MUST be the channel selected by the automatic channel selection procedure."]
["Device.WiFi.Radio.{i}.AutoChannelRefreshPeriod","TR-181i2.7",980,null,null,"The time period in seconds between two consecutive automatic channel selections. A value of 0 means that the automatic channel selection is done only at boot time.\nThis parameter is significant only if AutoChannelEnable is set to true."]
["Device.WiFi.Radio.{i}.AutoChannelSupported","TR-181i2.7",970,null,null,"Indicates whether automatic channel selection is supported by this radio. If false, then AutoChannelEnable MUST be false."]
["Device.WiFi.Radio.{i}.ChannelsInUse","TR-181i2.7",962,null,null,"The current radio channel used by the connection. To request automatic channel selection, set AutoChannelEnable to true.\nWhenever AutoChannelEnable is true, the value of the Channel parameter MUST be the channel selected by the automatic channel selection procedure.\nNote: Valid Channel values depend on the OperatingFrequencyBand and RegulatoryDomain values specified."]
["Device.WiFi.Radio.{i}.Enable","TR-181i2.7",887,null,null,"Enables or disables the radio.\nThis parameter is based on ifAdminStatus from [RFC2863]."]
["Device.WiFi.Radio.{i}.ExtensionChannel","TR-181i2.7",989,null,null,"The secondary extension channel position, applicable when operating in wide channel mode (i.e. when OperatingChannelBandwidth is set to 40MHz or Auto). Enumeration of:\nAboveControlChannel\nBelowControlChannel\nAuto"]
["Device.WiFi.Radio.{i}.GuardInterval","TR-181i2.7",995,null,null,"The guard interval value between OFDM symbols (applicable to 802.11n specifications only). Enumeration of:\n400nsec\n800nsec\nAuto"]
["Device.WiFi.Radio.{i}.IEEE80211hEnabled","TR-181i2.7",1007,null,null,"Indicates whether IEEE 802.11h functionality is enabled on this radio. The value can be true only if the 802.11a or the 802.11n@5GHz standard is supported and enabled (i.e. OperatingFrequencyBand is 5GHz and OperatingStandards includes a and/or n)."]
["Device.WiFi.Radio.{i}.IEEE80211hSupported","TR-181i2.7",1006,null,null,"Indicates whether IEEE 802.11h [802.11h-2003] functionality is supported by this radio. The value can be true only if the 802.11a or the 802.11n@5GHz standard is supported (i.e. SupportedFrequencyBands includes 5GHz and SupportedStandards includes a and/or n)."]
["Device.WiFi.Radio.{i}.LastChange","TR-181i2.7",915,null,null,"The accumulated time in seconds since the radio entered its current operational state."]
["Device.WiFi.Radio.{i}.LowerLayers","TR-181i2.7",916,null,null,"Comma-separated list (maximum length 1024) of strings. Each list item MUST be the path name of an interface object that is stacked immediately below this interface object. If the referenced object is deleted, the corresponding item MUST be removed from the list. See [Section 4.2.1/TR-181i2].\nNote: Since Radio is a layer 1 interface, it is expected that LowerLayers will not be used."]
["Device.WiFi.Radio.{i}.MaxBitRate","TR-181i2.7",927,null,null,"The maximum PHY bit rate supported by this interface (expressed in Mbps)."]
["Device.WiFi.Radio.{i}.MCS","TR-181i2.7",1001,null,null,"The Modulation Coding Scheme index (applicable to 802.11n specifications only). Values from 0 to 15 MUST be supported ([802.11n-2009]). A value of -1 indicates automatic selection of the MCS index."]
["Device.WiFi.Radio.{i}.Name","TR-181i2.7",914,null,null,"The textual name of the radio as assigned by the CPE."]
["Device.WiFi.Radio.{i}.OperatingChannelBandwidth","TR-181i2.7",983,null,null,"The channel bandwidth (applicable to 802.11n specifications only). Enumeration of:\n20MHz\n40MHz (wide mode)\nAuto"]
["Device.WiFi.Radio.{i}.OperatingFrequencyBand","TR-181i2.7",933,null,null,"The value MUST be a member of the list reported by the SupportedFrequencyBands parameter. Indicates the frequency band at which the radio is operating.\nIf the radio supports multiple bands, and OperatingFrequencyBand is changed, then all parameters whose value is not valid for the new frequency band (e.g. Channel) MUST be set to a valid value (according to some CPE vendor-specific behavior)."]
["Device.WiFi.Radio.{i}.OperatingStandards","TR-181i2.7",948,null,null,"Comma-separated list of strings. Each list item MUST be a member of the list reported by the SupportedStandards parameter. List items indicate which IEEE 802.11 standard this Radio instance is configured for.\nEach value indicates support for the indicated standard.\nIf OperatingFrequencyBand is set to 2.4GHz, only values b, g, n are allowed.\nIf OperatingFrequencyBand is set to 5GHz, only values a, n are allowed.\nFor example, a value of \"g,b\" (or \"b,g\" - order is not important) means that the 802.11g standard [802.11g-2003] is used with a backwards-compatible mode for 802.11b [802.11b-1999]. A value of \"g\" means that only the 802.11g standard can be used."]
["Device.WiFi.Radio.{i}.PossibleChannels","TR-181i2.7",957,null,null,"Comma-separated list (maximum length 1024) of strings. List items represent possible radio channels for the wireless standard (a, b, g, n) and the regulatory domain.\nRanges in the form \"n-m\" are permitted.\nFor example, for 802.11b and North America, would be \"1-11\"."]
["Device.WiFi.Radio.{i}.RegulatoryDomain","TR-181i2.7",1008,null,null,"The 802.11d Regulatory Domain. First two octets are [ISO3166-1] two-character country code. The third octet is either \" \" (all environments), \"O\" (outside) or \"I\" (inside). Possible patterns:\n[A-Z][A-Z][ OI]"]
["Device.WiFi.Radio.{i}.Stats","TR-181i2.7",1012,null,null,"Throughput statistics for this interface.\nThe CPE MUST reset the interface's Stats parameters (unless otherwise stated in individual object or parameter descriptions) either when the interface becomes operationally down due to a previous administrative down (i.e. the interface's Status parameter transitions to a down state after the interface is disabled) or when the interface becomes administratively up (i.e. the interface's Enable parameter transitions from false to true). Administrative and operational interface status is discussed in [Section 4.2.2/TR-181i2]."]
["Device.WiFi.Radio.{i}.Stats.BytesReceived","TR-181i2.7",1016,null,null,"The total number of bytes received on the interface, including framing characters."]
["Device.WiFi.Radio.{i}.Stats.BytesSent","TR-181i2.7",1015,null,null,"The total number of bytes transmitted out of the interface, including framing characters."]
["Device.WiFi.Radio.{i}.Stats.DiscardPacketsReceived","TR-181i2.7",1022,null,null,"The total number of inbound packets which were chosen to be discarded even though no errors had been detected to prevent their being delivered. One possible reason for discarding such a packet could be to free up buffer space."]
["Device.WiFi.Radio.{i}.Stats.DiscardPacketsSent","TR-181i2.7",1021,null,null,"The total number of outbound packets which were chosen to be discarded even though no errors had been detected to prevent their being transmitted. One possible reason for discarding such a packet could be to free up buffer space."]
["Device.WiFi.Radio.{i}.Stats.ErrorsReceived","TR-181i2.7",1020,null,null,"The total number of inbound packets that contained errors preventing them from being delivered to a higher-layer protocol."]
["Device.WiFi.Radio.{i}.Stats.ErrorsSent","TR-181i2.7",1019,null,null,"The total number of outbound packets that could not be transmitted because of errors."]
["Device.WiFi.Radio.{i}.Stats.FCSErrorCount","TR-181i2.7",1024,null,null,"The number of packets that were received with a detected FCS error. This parameter is based on dot11FCSErrorCount from [Annex C/802.11-2012]."]
["Device.WiFi.Radio.{i}.Stats.InvalidMACCount","TR-181i2.7",1025,null,null,"The number of packets that were received with a detected invalid MAC header error."]
["Device.WiFi.Radio.{i}.Stats.PacketsOtherReceived","TR-181i2.7",1026,null,null,"The number of packets that were received, but which were destined for a MAC address that is not associated with this interface."]
["Device.WiFi.Radio.{i}.Stats.PacketsReceived","TR-181i2.7",1018,null,null,"The total number of packets received on the interface."]
["Device.WiFi.Radio.{i}.Stats.PacketsSent","TR-181i2.7",1017,null,null,"The total number of packets transmitted out of the interface."]
["Device.WiFi.Radio.{i}.Stats.PLCPErrorCount","TR-181i2.7",1023,null,null,"The number of packets that were received with a detected Physical Layer Convergence Protocol (PLCP) header error."]
["Device.WiFi.Radio.{i}.Status","TR-181i2.7",890,null,null,"The current operational state of the radio (see [Section 4.2.2/TR-181i2]). Enumeration of:\nUp\nDown\nUnknown\nDormant\nNotPresent\nLowerLayerDown\nError (OPTIONAL)\nWhen Enable is false then Status SHOULD normally be Down (or NotPresent or Error if there is a fault condition on the interface).\nWhen Enable is changed to true then Status SHOULD change to Up if and only if the interface is able to transmit and receive network traffic; it SHOULD change to Dormant if and only if the interface is operable but is waiting for external actions before it can transmit and receive network traffic (and subsequently change to Up if still operable when the expected actions have completed); it SHOULD change to LowerLayerDown if and only if the interface is prevented from entering the Up state because one or more of the interfaces beneath it is down; it SHOULD remain in the Error state if there is an error or other fault condition detected on the interface; it SHOULD remain in the NotPresent state if the interface has missing (typically hardware) components; it SHOULD change to Unknown if the state of the interface can not be determined for some reason.\nThis parameter is based on ifOperStatus from [RFC2863]."]
["Device.WiFi.Radio.{i}.SupportedFrequencyBands","TR-181i2.7",928,null,null,"Comma-separated list of strings. List items indicate the frequency bands at which the radio can operate. Each list item is an enumeration of:\n2.4GHz\n5GHz"]
["Device.WiFi.Radio.{i}.SupportedStandards","TR-181i2.7",936,null,null,"Comma-separated list of strings. List items indicate which IEEE 802.11 standards this Radio instance can support simultaneously, in the frequency band specified by OperatingFrequencyBand. Each list item is an enumeration of:\na ([802.11a-1999])\nb ([802.11b-1999])\ng ([802.11g-2003])\nn ([802.11n-2009])\nEach value indicates support for the indicated standard.\nIf OperatingFrequencyBand is set to 2.4GHz, only values b, g, n are allowed.\nIf OperatingFrequencyBand is set to 5GHz, only values a, n are allowed."]
["Device.WiFi.Radio.{i}.TransmitPowerSupported","TR-181i2.7",1002,null,null,"Indicates the current transmit power level as a percentage of full power. The value MUST be one of the values reported by the TransmitPowerSupported parameter. A value of -1 indicates auto mode (automatic decision by CPE)."]
["Device.WiFi.Radio.{i}.Upstream","TR-181i2.7",919,null,null,"Indicates whether the interface points towards the Internet (true) or towards End Devices (false).\nFor example:\nFor an Internet Gateway Device, Upstream will be true for all WAN interfaces and false for all LAN interfaces.\nFor a standalone WiFi Access Point that is connected via Ethernet to an Internet Gateway Device, Upstream will be true for the Ethernet interface and false for the WiFi Radio interface.\nFor an End Device, Upstream will be true for all interfaces."]
["Device.WiFi.RadioNumberOfEntries","TR-181i2.7",877,null,null,"The number of entries in the Radio table."]
["Device.WiFi.SSID.{i}","TR-181i2.7",1027,null,null,"WiFi SSID table (a stackable interface object as described in [Section 4.2/TR-181i2]), where table entries model the MAC layer. A WiFi SSID entry is typically stacked on top of a Radio object.\nWiFi SSID is also a multiplexing layer, i.e. more than one SSID can be stacked above a single Radio.\nAt most one entry in this table (regardless of whether or not it is enabled) can exist with a given value for Alias, or with a given value for Name. On creation of a new table entry, the CPE MUST choose initial values for Alias and Name such that the new entry does not conflict with any existing entries.\nAt most one enabled entry in this table can exist with a given value for SSID, or with a given value for BSSID."]
["Device.WiFi.SSID.{i}.Alias","TR-181i2.7",1052,null,null,"A non-volatile handle used to reference this instance. Alias provides a mechanism for an ACS to label this instance for future reference.\nIf the CPE supports the Alias-based Addressing feature as defined in [Section 3.6.1/TR-069a4] and described in [Appendix II/TR-069a4], the following mandatory constraints MUST be enforced:\nIts value MUST NOT be empty.\nIts value MUST start with a letter.\nIf its instance object is created by the CPE, the initial value MUST start with a \"cpe-\" prefix.\nThe CPE MUST NOT change the parameter value."]
["Device.WiFi.SSID.{i}.BSSID","TR-181i2.7",1064,null,null,"[MACAddress] The Basic Service Set ID.\nThis is the MAC address of the access point, which can either be local (when this instance models an access point SSID) or remote (when this instance models an end point SSID)."]
["Device.WiFi.SSID.{i}.Enable","TR-181i2.7",1034,null,null,"Enables or disables the SSID entry.\nThis parameter is based on ifAdminStatus from [RFC2863]."]
["Device.WiFi.SSID.{i}.LastChange","TR-181i2.7",1062,null,null,"The accumulated time in seconds since the SSID entered its current operational state."]
["Device.WiFi.SSID.{i}.LowerLayers","TR-181i2.7",1063,null,null,"Comma-separated list (maximum length 1024) of strings. Each list item MUST be the path name of an interface object that is stacked immediately below this interface object. If the referenced object is deleted, the corresponding item MUST be removed from the list. See [Section 4.2.1/TR-181i2]."]
["Device.WiFi.SSID.{i}.MACAddress","TR-181i2.7",1067,null,null,"[MACAddress] The MAC address of this interface.\nIf this instance models an access point SSID, MACAddress is the same as MACAddress.\nNote: This is not necessarily the same as the Ethernet header source or destination MAC address, which is associated with the IP interface and is modeled via the Ethernet.Link.{i}.MACAddress parameter."]
["Device.WiFi.SSID.{i}.Name","TR-181i2.7",1061,null,null,"The textual name of the SSID entry as assigned by the CPE."]
["Device.WiFi.SSID.{i}.SSID","TR-181i2.7",1072,null,null,"The current service set identifier in use by the connection. The SSID is an identifier that is attached to packets sent over the wireless LAN that functions as an ID for joining a particular radio network (BSS)."]
["Device.WiFi.SSID.{i}.Stats","TR-181i2.7",1073,null,null,"Throughput statistics for this interface.\nThe CPE MUST reset the interface's Stats parameters (unless otherwise stated in individual object or parameter descriptions) either when the interface becomes operationally down due to a previous administrative down (i.e. the interface's Status parameter transitions to a down state after the interface is disabled) or when the interface becomes administratively up (i.e. the interface's Enable parameter transitions from false to true). Administrative and operational interface status is discussed in [Section 4.2.2/TR-181i2]."]
["Device.WiFi.SSID.{i}.Stats.ACKFailureCount","TR-181i2.7",1085,null,null,"The number of expected ACKs that were never received. This parameter is based on dot11ACKFailureCount from [802.11-2012]."]
["Device.WiFi.SSID.{i}.Stats.AggregatedPacketCount","TR-181i2.7",1086,null,null,"The number of aggregated packets that were transmitted. This applies only to 802.11n and 802.11ac."]
["Device.WiFi.SSID.{i}.Stats.BroadcastPacketsReceived","TR-181i2.7",1095,null,null,"The total number of received packets, delivered by this layer to a higher layer, which were addressed to a broadcast address at this layer."]
["Device.WiFi.SSID.{i}.Stats.BroadcastPacketsSent","TR-181i2.7",1094,null,null,"The total number of packets that higher-level protocols requested for transmission and which were addressed to a broadcast address at this layer, including those that were discarded or not sent."]
["Device.WiFi.SSID.{i}.Stats.BytesReceived","TR-181i2.7",1077,null,null,"The total number of bytes received on the interface, including framing characters."]
["Device.WiFi.SSID.{i}.Stats.BytesSent","TR-181i2.7",1076,null,null,"The total number of bytes transmitted out of the interface, including framing characters."]
["Device.WiFi.SSID.{i}.Stats.DiscardPacketsReceived","TR-181i2.7",1091,null,null,"The total number of inbound packets which were chosen to be discarded even though no errors had been detected to prevent their being delivered. One possible reason for discarding such a packet could be to free up buffer space."]
["Device.WiFi.SSID.{i}.Stats.DiscardPacketsSent","TR-181i2.7",1090,null,null,"The total number of outbound packets which were chosen to be discarded even though no errors had been detected to prevent their being transmitted. One possible reason for discarding such a packet could be to free up buffer space."]
["Device.WiFi.SSID.{i}.Stats.ErrorsReceived","TR-181i2.7",1087,null,null,"The total number of inbound packets that contained errors preventing them from being delivered to a higher-layer protocol."]
["Device.WiFi.SSID.{i}.Stats.ErrorsSent","TR-181i2.7",1080,null,null,"The total number of outbound packets that could not be transmitted because of errors."]
["Device.WiFi.SSID.{i}.Stats.FailedRetransCount","TR-181i2.7",1082,null,null,"The number of packets that were not transmitted successfully due to the number of retransmission attempts exceeding an 802.11 retry limit. This parameter is based on dot11FailedCount from [802.11-2012]."]
["Device.WiFi.SSID.{i}.Stats.MulticastPacketsReceived","TR-181i2.7",1093,null,null,"The total number of received packets, delivered by this layer to a higher layer, which were addressed to a multicast address at this layer."]
["Device.WiFi.SSID.{i}.Stats.MulticastPacketsSent","TR-181i2.7",1092,null,null,"The total number of packets that higher-level protocols requested for transmission and which were addressed to a multicast address at this layer, including those that were discarded or not sent."]
["Device.WiFi.SSID.{i}.Stats.MultipleRetryCount","TR-181i2.7",1084,null,null,"The number of packets that were successfully transmitted after more than one retransmission. This parameter is based on dot11MultipleRetryCount from [802.11-2012]."]
["Device.WiFi.SSID.{i}.Stats.PacketsReceived","TR-181i2.7",1079,null,null,"The total number of packets received on the interface."]
["Device.WiFi.SSID.{i}.Stats.PacketsSent","TR-181i2.7",1078,null,null,"The total number of packets transmitted out of the interface."]
["Device.WiFi.SSID.{i}.Stats.RetransCount","TR-181i2.7",1081,null,null,"The total number of transmitted packets which were retransmissions. Two retransmissions of the same packet results in this counter incrementing by two."]
["Device.WiFi.SSID.{i}.Stats.RetryCount","TR-181i2.7",1083,null,null,"The number of packets that were successfully transmitted after one or more retransmissions. This parameter is based on dot11RetryCount from [802.11-2012]."]
["Device.WiFi.SSID.{i}.Stats.UnicastPacketsReceived","TR-181i2.7",1089,null,null,"The total number of received packets, delivered by this layer to a higher layer, which were not addressed to a multicast or broadcast address at this layer."]
["Device.WiFi.SSID.{i}.Stats.UnicastPacketsSent","TR-181i2.7",1088,null,null,"The total number of packets requested for transmission which were not addressed to a multicast or broadcast address at this layer, including those that were discarded or not sent."]
["Device.WiFi.SSID.{i}.Stats.UnknownProtoPacketsReceived","TR-181i2.7",1096,null,null,"The total number of packets received via the interface which were discarded because of an unknown or unsupported protocol."]
["Device.WiFi.SSID.{i}.Status","TR-181i2.7",1037,null,null,"The current operational state of the SSID entry (see [Section 4.2.2/TR-181i2]). Enumeration of:\nUp\nDown\nUnknown\nDormant\nNotPresent\nLowerLayerDown\nError (OPTIONAL)\nWhen Enable is false then Status SHOULD normally be Down (or NotPresent or Error if there is a fault condition on the interface).\nWhen Enable is changed to true then Status SHOULD change to Up if and only if the interface is able to transmit and receive network traffic; it SHOULD change to Dormant if and only if the interface is operable but is waiting for external actions before it can transmit and receive network traffic (and subsequently change to Up if still operable when the expected actions have completed); it SHOULD change to LowerLayerDown if and only if the interface is prevented from entering the Up state because one or more of the interfaces beneath it is down; it SHOULD remain in the Error state if there is an error or other fault condition detected on the interface; it SHOULD remain in the NotPresent state if the interface has missing (typically hardware) components; it SHOULD change to Unknown if the state of the interface can not be determined for some reason.\nThis parameter is based on ifOperStatus from [RFC2863]."]
["Device.WiFi.SSIDNumberOfEntries","TR-181i2.7",878,null,null,"The number of entries in the SSID table."]
["Device.XMPP","TR-181i2.7",2125,null,null,"The XMPP represents the XMPP capabilities of the device as described in [Appendix III/TR-069a5]."]
["Device.XMPP.Connection.{i}","TR-181i2.7",2127,null,null,"The Connection represents a XMPP connection between the device and a server. The Username, Domain and Resource comprise the full identity (JabberID) of this Connection for this device.\nAt most one entry in this table (regardless of whether or not it is enabled) can exist with a given value for Alias. On creation of a new table entry, the CPE MUST choose an initial value for Alias such that the new entry does not conflict with any existing entries.\nAt most one enabled entry in this table can exist with all the same values for Username, Domain and Resource."]
["Device.XMPP.Connection.{i}.Alias","TR-181i2.7",2135,null,null,"A non-volatile handle used to reference this instance. Alias provides a mechanism for an ACS to label this instance for future reference.\nIf the CPE supports the Alias-based Addressing feature as defined in [Section 3.6.1/TR-069a4] and described in [Appendix II/TR-069a4], the following mandatory constraints MUST be enforced:\nIts value MUST NOT be empty.\nIts value MUST start with a letter.\nIf its value is not assigned by the ACS, it MUST start with a \"cpe-\" prefix.\nThe CPE MUST NOT change the parameter value."]
["Device.XMPP.Connection.{i}.Domain","TR-181i2.7",2150,null,null,"The proposed domain-part of the Jabber ID of this Connection."]
["Device.XMPP.Connection.{i}.Enable","TR-181i2.7",2132,null,null,"Enables or disables this Connection.\nThis parameter is based on ifAdminStatus from [RFC2863]."]
["Device.XMPP.Connection.{i}.JabberID","TR-181i2.7",2152,null,null,"The complete Jabber ID as determined by the first-hop XMPP server at time of connection establishment. This Jabber ID will usually be the standard concatentation of the local-part (Username), domain-part (Domain), and resource-part (Resource) as defined in [Section 2.1/RFC6120] (local-part@domain-part/resource-part), but since the Jabber ID is owned by the first-hop XMPP Server there are cases where the value will be different."]
["Device.XMPP.Connection.{i}.KeepAliveInterval","TR-181i2.7",2174,null,null,"The number of seconds that keep alive events as specified in [Section 4.6.1/RFC6120] are sent by this Connection.\nA value of 0 disables the keep alive functionality. A value of -1 indicates that the keep alive interval is a vendor specific implementation.\n[Section 4.6.4/RFC6120] recommends not checking more frequently than every 5 minutes (or 300 seconds)."]
["Device.XMPP.Connection.{i}.LastChangeDate","TR-181i2.7",2168,null,null,"The date and time at which this Connection entered into its current operational state."]
["Device.XMPP.Connection.{i}.Password","TR-181i2.7",2145,null,null,"Password used to authenticate this Connection when making a connection to the Server using the procedure outlined in [Section 6/RFC6120].\nNote that on a factory reset of the CPE, the value of this parameter might be reset to its factory value. If an ACS modifies the value of this parameter, it SHOULD be prepared to accommodate the situation that the original value is restored as the result of a factory reset.\nWhen read, this parameter returns an empty string, regardless of the actual value."]
["Device.XMPP.Connection.{i}.Resource","TR-181i2.7",2151,null,null,"The proposed resource-part of the Jabber ID of this Connection."]
["Device.XMPP.Connection.{i}.Server.{i}","TR-181i2.7",2212,null,null,"The Server represents an XMPP server to be used for a Connection.\nThis table is only relevant when Connection.{i}.ServerConnectAlgorithm is set to ServerTable. If Connection.{i}.ServerConnectAlgorithm is set to DNS-SRV then any instances of this table are ignored by this Connection.\nAt most one entry in this table (regardless of whether or not it is enabled) can exist with a given value for Alias. On creation of a new table entry, the CPE MUST choose an initial value for Alias such that the new entry does not conflict with any existing entries.\nAt most one enabled entry in this table can exist with the same values for ServerAddress and Port."]
["Device.XMPP.Connection.{i}.Server.{i}.Alias","TR-181i2.7",2222,null,null,"A non-volatile handle used to reference this instance. Alias provides a mechanism for an ACS to label this instance for future reference.\nIf the CPE supports the Alias-based Addressing feature as defined in [Section 3.6.1/TR-069a4] and described in [Appendix II/TR-069a4], the following mandatory constraints MUST be enforced:\nIts value MUST NOT be empty.\nIts value MUST start with a letter.\nIf its value is not assigned by the ACS, it MUST start with a \"cpe-\" prefix.\nThe CPE MUST NOT change the parameter value."]
["Device.XMPP.Connection.{i}.Server.{i}.Enable","TR-181i2.7",2219,null,null,"Enables or disables this Server.\nThis parameter is based on ifAdminStatus from [RFC2863]."]
["Device.XMPP.Connection.{i}.Server.{i}.Port","TR-181i2.7",2236,null,null,"Port number of the XMPP server for this Connection."]
["Device.XMPP.Connection.{i}.Server.{i}.Priority","TR-181i2.7",2231,null,null,"The priority of this Server that is used by the Connection when determining the Server to connect. The Connection MUST contact the Server with the lowest-numbered priority that the Connection can reach as defined in [RFC2782]. The selection of Servers with the same Priority value utilizes the Weight parameter to determine which Server is selected by the Connection."]
["Device.XMPP.Connection.{i}.Server.{i}.ServerAddress","TR-181i2.7",2233,null,null,"Fully Qualified Domain Name (FQDN) or IP address of the XMPP server for this Connection.\nIf the value of this Parameter is a FQDN that resolves to multiple addresses then each address SHOULD be attemtped (in an implemnetation-specific order) until a connection can be made or all addresses are exhausted, in which case the next Server instance (based on Priority and Weight) SHOULD be used."]
["Device.XMPP.Connection.{i}.Server.{i}.Weight","TR-181i2.7",2232,null,null,"This parameter specifies a relative weight for entries with the same Priority. The mechanism is defined in [RFC2782]. A value of -1 indicates that the implementation of this parameter is specific to the Vendor."]
["Device.XMPP.Connection.{i}.ServerConnectAlgorithm","TR-181i2.7",2169,null,null,"The algorithm the Connection uses when connecting with the associated lists of servers. Enumeration of:\nDNS-SRV (Use the connection algorithm as specified in [Section 3.2/RFC6120] where the value of the Domain parameter is used to look up the server address and port to use)\nServerTable (Use the instances of the Server table based on the values of the Server.{i}.Priority and Server.{i}.Weight parameters as the basis for reconnect. Instances must be reachable and reachable instances with the lowest value MUST be preferred)"]
["Device.XMPP.Connection.{i}.ServerConnectAttempts","TR-181i2.7",2179,null,null,"The number of times that this Connection attempts to connect to a given IP address before moving on to the current server's next IP address, or to the next server if the current server has no more IP addresses.\nIf ServerConnectAttempts, ServerRetryInitialInterval, ServerRetryIntervalMultiplier and ServerRetryMaxInterval all have their default values, the maximum reconnection wait intervals, in minutes, will be {1, 2, 4, 8, 16, 32, 64, 128, 256, 512, 512, 512, 512, 512, 512}. After the initial attempt there are 15 further attempts, making a total of 16. The maximum reconnection wait interval is reached on the 10th retry, i.e. the 11th attempt.\nNOTE: If this Connection fails to connect to any of the servers' IP addresses, fallback behavior SHOULD be as specified in [Section 3.2/RFC6120].\nNOTE: If the value of this parameter is 0, server connection and reconnection behavior is implementation-dependent."]
["Device.XMPP.Connection.{i}.ServerNumberOfEntries","TR-181i2.7",2211,null,null,"The number of entries in the Server table."]
["Device.XMPP.Connection.{i}.ServerRetryInitialInterval","TR-181i2.7",2186,null,null,"The maximum first reconnection wait interval, in seconds, as specified in [Annex K XMPP Connection Request/TR-069a5].\nThe Device MUST use a random value between 0 and ServerRetryInitialInterval as the first reconnection wait interval.\nNOTE: If the value of the ServerConnectAttempts parameter is 0, the value of this parameter is ignored."]
["Device.XMPP.Connection.{i}.ServerRetryIntervalMultiplier","TR-181i2.7",2191,null,null,"The reconnection interval multiplier as specified in [Annex K XMPP Connection Request/TR-069a5]. This value is expressed in units of 0.001. Hence the values of the multiplier range between 1.000 and 65.535.\nFor the nth reconnection wait interval, the Device MUST use a random value, in seconds, between 0 and ServerRetryInitialInterval * (ServerRetryIntervalMultiplier / 1000) ** (n - 1).\nNOTE: If the value of the ServerConnectAttempts parameter is 0, the value of this parameter is ignored."]
["Device.XMPP.Connection.{i}.ServerRetryMaxInterval","TR-181i2.7",2196,null,null,"The maximum reconnection wait interval, in seconds.\nIf the nth reconnection wait interval calculated from ServerRetryInitialInterval and ServerRetryIntervalMultiplier exceeds the value of this parameter, then the Device MUST use the value of this parameter as the next reconnection wait interval.\nNOTE: If the value of the ServerConnectAttempts parameter is 0, the value of this parameter is ignored."]
["Device.XMPP.Connection.{i}.Stats","TR-181i2.7",2237,null,null,"XMPP Connection statistics information for this resource."]
["Device.XMPP.Connection.{i}.Stats.ReceivedErrorMessages","TR-181i2.7",2240,null,null,"The number of XMPP stanzas (iq, presence, or message) that have been received on this Connection where the type attribute had a value of \"error\"."]
["Device.XMPP.Connection.{i}.Stats.ReceivedMessages","TR-181i2.7",2238,null,null,"The number of XMPP stanzas (iq, presence, or message) that have been received on this Connection."]
["Device.XMPP.Connection.{i}.Stats.TransmittedErrorMessages","TR-181i2.7",2241]
["Device.XMPP.Connection.{i}.Stats.TransmittedMessages","TR-181i2.7",2239,null,null,"The number of XMPP stanzas (iq, presence, or message) that have been transmitted by this Connection."]
["Device.XMPP.Connection.{i}.Status","TR-181i2.7",2153,null,null,"The current operational state of this Connection (see [Section 4.2.2/TR-181i2]). Enumeration of:\nEnabled\nDisabled\nUnknown\nDormant\nConnecting\nServerNotPresent\nError_Misconfigured\nError_AuthenticationFailure\nError (OPTIONAL)\nWhen Enable is false then Status SHOULD normally be Disabled or Error if there is a fault condition on the interface).\nWhen Enable is changed to true then Status SHOULD change to Enabled if and only if the interface is able to transmit and receive PDUs; it SHOULD change to Dormant if and only if the interface is operable but is waiting for external actions before it can transmit and receive network traffic (and subsequently change to Enabled if still operable when the expected actions have completed); it SHOULD change to Unknown if the state of the interface can not be determined for some reason."]
["Device.XMPP.Connection.{i}.TLSEstablished","TR-181i2.7",2206,null,null,"This parameter represents the TLS state of this XMPP Connection.\nIf this XMPP Connection is established and is secured by TLS then the value of this parameter is true.\nIf this XMPP Connection is either not established or established but not secured by TLS then the value of this parameter is false."]
["Device.XMPP.Connection.{i}.Username","TR-181i2.7",2144,null,null,"The proposed local-part of the Jabber ID of this Connection, and the value to be used to authenticate this Connection when making a connection to the Server using the procedure outlined in [Section 6/RFC6120]."]
["Device.XMPP.Connection.{i}.UseTLS","TR-181i2.7",2201,null,null,"This parameter allows an ACS to configure whether or not this XMPP Connection is required to use TLS independent of whether or not the XMPP Server that is being connected to is configured for TLS \"mandatory-to-negotiate\".\nIf the value of UseTLS is true then the CPE will initiate TLS negotiation if not required to by the XMPP Server.\nIf the value of UseTLS is false then the CPE will not initiate TLS negotiation if not required to by the XMPP Server."]
["Device.XMPP.ConnectionNumberOfEntries","TR-181i2.7",2126,null,null,"The number of entries in the Connection table."]
["STBService.{i}","TR-135 STB",6,null,null,"The top-level object for an STB CPE.\nAt most one entry in this table can exist with a given value for Alias."]
["STBService.{i}.Alias","TR-135 STB",10,null,null,"A non-volatile handle used to reference this instance. Alias provides a mechanism for an ACS to label this instance for future reference.\nIf the CPE supports the Alias-based Addressing feature as defined in [Section 3.6.1/TR-069a4] and described in [Appendix II/TR-069a4], the following mandatory constraints MUST be enforced:\nIts value MUST NOT be empty.\nIts value MUST start with a letter.\nIf its instance object is created by the CPE, the initial value MUST start with a \"cpe-\" prefix.\nThe CPE MUST NOT change the parameter value."]
["STBService.{i}.Capabilities","TR-135 STB",19,null,null,"The overall capabilities of the STB CPE. This is a constant read-only object, meaning that only a firmware update will cause these values to be altered."]
["STBService.{i}.Capabilities.AudioOutput","TR-135 STB",20,null,null,"Audio output capabilities. The audio output stage may include selecting output formats, selecting output connectors, and copy protection."]
["STBService.{i}.Capabilities.AudioOutput.AudioFormats","TR-135 STB",21,null,null,"Comma-separated list of strings. Supported audio output formats. Each list item is an enumeration of:\nANALOG-MONO\nANALOG-2-CHANNELS\nANALOG-5.1-CHANNELS\nDIGITAL-OPTICAL-SP/DIF\nDIGITAL-COAXIAL-SP/DIF\nHDMI\nRF (modulated analog signals on coax)\nNote that these refer to supported output formats and not to physical connectors."]
["STBService.{i}.Capabilities.HDMI","TR-135 STB",48,null,null,"This object describes the characteristics of the HDMI interface, if any."]
["STBService.{i}.Capabilities.HDMI.CECSupport","TR-135 STB",93,null,null,"Indicates whether the STB is supporting HDMI-CEC features as described in [HDMI]."]
["STBService.{i}.Capabilities.HDMI.HDMI3D","TR-135 STB",94,null,null,"Indicates whether the STB is supporting the 3D video formats mandated by [HDMI]."]
["STBService.{i}.Capabilities.HDMI.SupportedResolutions","TR-135 STB",49,null,null,"Comma-separated list of strings. Video resolutions supported for the HDMI video output. Each list item is an enumeration of:\n640x480p/60Hz\n1280x720p/60Hz\n1920x1080i/60Hz\n720x480p/60Hz\n720(1440)x480i/60Hz\n1280x720p/50Hz\n1920x1080i/50Hz\n720x576p/50Hz\n720(1440)x240p/60Hz\n2880x480i/60Hz\n2880x240p/60Hz\n1440x480p/60Hz\n1920x1080p/60Hz\n720(1440)x288p/50Hz\n2880x576i/50Hz\n2880x288p/50Hz\n1440x576p/50Hz\n1920x1080p/50Hz\n1920x1080p/24Hz\n1920x1080p/25Hz\n1920x1080p/30Hz\n2880x480p/60Hz\n2880x576p/50Hz\n1920x1080i (1250 total)/50Hz\n720(1440)x480i/120Hz\n720x480p/120Hz\n1920x1080i/120Hz\n1280x720p/120Hz\n720(1440)x480i/240Hz\n720x480p/240Hz\n720(1440)x576i/100Hz\n720x576p/100Hz\n1920x1080i/100Hz\n1280x720p/100Hz\n720(1440)x576i/200Hz\n720x576p/200Hz\n1280x720p/24Hz\n1280x720p/25Hz\n1280x720p/30Hz\n1920x1080p/120Hz\n1920x1080p/100Hz"]
["STBService.{i}.Capabilities.VideoOutput","TR-135 STB",32,null,null,"Video output capabilities. The video output stage may include selecting output formats, selecting output connectors, and copy protection."]
["STBService.{i}.Capabilities.VideoOutput.DisplayFormats","TR-135 STB",47,null,null,"Comma-separated list of strings. Each entry is a supported display format and MUST be in the form of “x:y”, such as for example “4:3, 16:9, 14:9\"."]
["STBService.{i}.Capabilities.VideoOutput.HDCP","TR-135 STB",46,null,null,"Supported version of HDCP digital content protection standard."]
["STBService.{i}.Capabilities.VideoOutput.Macrovision","TR-135 STB",45,null,null,"Supported version of Macrovision digital content protection standard."]
["STBService.{i}.Capabilities.VideoOutput.VideoFormats","TR-135 STB",33,null,null,"Comma-separated list of strings. Supported video output formats. Each list item is an enumeration of:\nCVBS\nS-Video (same as Y/C)\nYPrPb\nRGsB (RGB with Sync on Green)\nRGB (RGB with external Sync)\nHDMI\nDVI\nRF (modulated analog signals on coax)\nNote that these refer to supported output formats and not to physical connectors."]
["STBService.{i}.Components","TR-135 STB",95,null,null,"Details of STB logical or physical internal components. Unlike the Capabilities object, which is read-only and which doesn't describe individual instances, this object contains some writeable parameters."]
["STBService.{i}.Components.AudioOutput.{i}","TR-135 STB",129,null,null,"Audio output instance table.\nAt most one entry in this table can exist with a given value for Name, or with a given value for Alias."]
["STBService.{i}.Components.AudioOutput.{i}.Alias","TR-135 STB",141,null,null,"A non-volatile handle used to reference this instance. Alias provides a mechanism for an ACS to label this instance for future reference.\nIf the CPE supports the Alias-based Addressing feature as defined in [Section 3.6.1/TR-069a4] and described in [Appendix II/TR-069a4], the following mandatory constraints MUST be enforced:\nIts value MUST NOT be empty.\nIts value MUST start with a letter.\nIf its instance object is created by the CPE, the initial value MUST start with a \"cpe-\" prefix.\nThe CPE MUST NOT change the parameter value."]
["STBService.{i}.Components.AudioOutput.{i}.AudioFormat","TR-135 STB",151,null,null,"The value MUST be a member of the list reported by the Capabilities.AudioOutput.AudioFormats parameter, or else be an empty string. Currently active audio output format, or an empty string if no audio output format is currently active.\nNote that this parameter refers to output formats and not to physical connectors."]
["STBService.{i}.Components.AudioOutput.{i}.AudioLevel","TR-135 STB",154,null,null,"The audio level on this audio output in % (0 is quietest and 100 is loudest). This setting is independent of the mute status.\nFor some audio formats, the audio level is not meaningful, in which case this parameter SHOULD have a fixed value of 0."]
["STBService.{i}.Components.AudioOutput.{i}.CancelMute","TR-135 STB",158,null,null,"When set to true, cancels this audio output's mute status. Setting it to false has no effect. The value is not saved in device state and is always false when read."]
["STBService.{i}.Components.AudioOutput.{i}.Enable","TR-135 STB",132,null,null,"Enables or disables this audio output."]
["STBService.{i}.Components.AudioOutput.{i}.Name","TR-135 STB",150,null,null,"Human-readable name associated with this audio output."]
["STBService.{i}.Components.AudioOutput.{i}.Status","TR-135 STB",133,null,null,"The status of this audio output. Enumeration of:\nDisabled\nEnabled\nMuted (i.e. Enabled and Muted)\nError (OPTIONAL)\nThe Error value MAY be used by the CPE to indicate a locally defined error condition."]
["STBService.{i}.Components.AudioOutput.{i}.X_RDKCENTRAL-COM_AudioCompression","TR-135 STB",159,null,null,"Audio compression technique used within the given audio port. Enumeration of:\nNone\nLight\nMedium\nHeavy\nIt is linked to dsGetAudioCompression() & dsSetAudioCompression() APIs."]
["STBService.{i}.Components.AudioOutput.{i}.X_RDKCENTRAL-COM_AudioDB","TR-135 STB",169,null,null,"Current audio decibel (DB) level for the given audio port. It is linked to dsGetAudioDB() & dsSetAudioDB() APIs."]
["STBService.{i}.Components.AudioOutput.{i}.X_RDKCENTRAL-COM_AudioEncoding","TR-135 STB",170,null,null,"Type of encoding used in a given audio port. Enumeration of:\nNone\nDisplay\nPCM\nAC3\nIt is linked to dsGetAudioEncoding() & dsSetAudioEncoding() API."]
["STBService.{i}.Components.AudioOutput.{i}.X_RDKCENTRAL-COM_AudioGain","TR-135 STB",178,null,null,"The audio gain for a given audio port. It is linked to dsGetAudioGain() & dsSetAudioGain() APIs."]
["STBService.{i}.Components.AudioOutput.{i}.X_RDKCENTRAL-COM_AudioLoopThru","TR-135 STB",187,null,null,"Sets or informs about audio being configured for loopthru for the given audio port."]
["STBService.{i}.Components.AudioOutput.{i}.X_RDKCENTRAL-COM_AudioOptimalLevel","TR-135 STB",157,null,null,"Optimal audio level for the given audio port. It is linked to dsGetAudioOptimalLevel() APIs."]
["STBService.{i}.Components.AudioOutput.{i}.X_RDKCENTRAL-COM_AudioStereoMode","TR-135 STB",179,null,null,"Stereo mode used in a given audio port. Enumeration of:\nUnknown\nMono\nStereo\nSurround\nIt is linked to dsGetStereoMode() & dsSetStereoMode() API."]
["STBService.{i}.Components.AudioOutput.{i}.X_RDKCENTRAL-COM_MaxAudioDB","TR-135 STB",168,null,null,"Maximum DB that can be supported on a given audio port. It is linked to dsGetAudioMaxDB() API."]
["STBService.{i}.Components.AudioOutput.{i}.X_RDKCENTRAL-COM_MinAudioDB","TR-135 STB",167,null,null,"Minimum DB that can be supported on a given audio port. It is linked to dsGetAudioMinDB() API."]
["STBService.{i}.Components.AudioOutputNumberOfEntries","TR-135 STB",97,null,null,"The number of entries in the AudioOutput table."]
["STBService.{i}.Components.HDMI.{i}","TR-135 STB",275,null,null,"HDMI instance table. This object allows configuration of the STB’s HDMI output.\nAt most one entry in this table can exist with a given value for Name, or with a given value for Alias."]
["STBService.{i}.Components.HDMI.{i}.Alias","TR-135 STB",286,null,null,"A non-volatile handle used to reference this instance. Alias provides a mechanism for an ACS to label this instance for future reference.\nIf the CPE supports the Alias-based Addressing feature as defined in [Section 3.6.1/TR-069a4] and described in [Appendix II/TR-069a4], the following mandatory constraints MUST be enforced:\nIts value MUST NOT be empty.\nIts value MUST start with a letter.\nIf its instance object is created by the CPE, the initial value MUST start with a \"cpe-\" prefix.\nThe CPE MUST NOT change the parameter value."]
["STBService.{i}.Components.HDMI.{i}.DisplayDevice","TR-135 STB",310,null,null,"HDMI connected display device configuration. This object provides parameters from the HDMI connected device if any."]
["STBService.{i}.Components.HDMI.{i}.DisplayDevice.AutoLipSyncSupport","TR-135 STB",327,null,null,"When set to true, indicates the connected display device supports auto lip synchronization. This mode consists in communicating over HDMI, the delay to be applied by the STB to the audio in order to preserve the lip sync."]
["STBService.{i}.Components.HDMI.{i}.DisplayDevice.CECSupport","TR-135 STB",324,null,null,"When set to true, indicates the connected HDMI device is supporting HDMI-CEC features.\nWhen set to false, indicates the connected HDMI device does not support HDMI CEC."]
["STBService.{i}.Components.HDMI.{i}.DisplayDevice.EEDID","TR-135 STB",319,null,null,"Enhanced Extended Display Information Data (E-EDID) retrieved from the connected HDMI device."]
["STBService.{i}.Components.HDMI.{i}.DisplayDevice.HDMI3DPresent","TR-135 STB",328]
["STBService.{i}.Components.HDMI.{i}.DisplayDevice.Name","TR-135 STB",318,null,null,"Human-readable name associated with this display device."]
["STBService.{i}.Components.HDMI.{i}.DisplayDevice.PreferredResolution","TR-135 STB",322,null,null,"The value MUST be a member of the list reported by the Capabilities.HDMI.SupportedResolutions parameter. Preferred connected HDMI device resolution format."]
["STBService.{i}.Components.HDMI.{i}.DisplayDevice.Status","TR-135 STB",311,null,null,"The status of the connected HDMI Display device. Enumeration of:\nPresent\nNone\nError (OPTIONAL)\nThe Error value MAY be used by the CPE to indicate a locally defined error condition."]
["STBService.{i}.Components.HDMI.{i}.DisplayDevice.SupportedResolutions","TR-135 STB",321,null,null,"Comma-separated list of strings. Each entry is a supported resolution of the connected HDMI device and MUST be one element of Capabilities.HDMI.SupportedResolutions."]
["STBService.{i}.Components.HDMI.{i}.DisplayDevice.VideoLatency","TR-135 STB",323,null,null,"Video latency, in milliseconds, being applied in the connected HDMI device. This parameter is extracted from the E-EDID and can be used to compensate the video latency to preserve lipsync."]
["STBService.{i}.Components.HDMI.{i}.DisplayDevice.X_RDKCENTRAL-COM_EDID","TR-135 STB",320,null,null,"Get the EDID information of the connected HDMI display."]
["STBService.{i}.Components.HDMI.{i}.Enable","TR-135 STB",278,null,null,"Enables or disables the HDMI output."]
["STBService.{i}.Components.HDMI.{i}.Name","TR-135 STB",295,null,null,"Human-readable name associated with this output."]
["STBService.{i}.Components.HDMI.{i}.ResolutionMode","TR-135 STB",296,null,null,"The resolution mode of the HDMI output.\nIn Auto mode, the resolution is automatically set at the best format via HDMI protocols.\nIn Manual mode, the resolution to be applied to the HDMI output is given by the ResolutionValue parameter. Enumeration of:\nAuto\nManual"]
["STBService.{i}.Components.HDMI.{i}.ResolutionValue","TR-135 STB",305,null,null,"The value MUST be a member of the list reported by the Capabilities.HDMI.SupportedResolutions parameter, or else be an empty string. When ResolutionMode is set to Manual mode, a write action configures the resolution to be applied to the HDMI output,\nWhen ResolutionMode is set to Auto, a write action as no effect.\nA read action provides the current resolution of the HDMI output."]
["STBService.{i}.Components.HDMI.{i}.Status","TR-135 STB",279,null,null,"The status of HDMI output. Enumeration of:\nDisabled\nEnabled\nError (OPTIONAL)\nThe Error value MAY be used by the CPE to indicate a locally defined error condition."]
["STBService.{i}.Components.HDMINumberOfEntries","TR-135 STB",99,null,null,"The number of entries in the HDMI table."]
["STBService.{i}.Components.SPDIF.{i}","TR-135 STB",188,null,null,"S/PDIF output instance table configuration. This object, if present, is connected to the audio ouput instance currently delivering S/PDIF audio format as described in [SPDIF].\nAt most one entry in this table can exist with a given value for Name, or with a given value for Alias."]
["STBService.{i}.Components.SPDIF.{i}.Alias","TR-135 STB",199,null,null,"A non-volatile handle used to reference this instance. Alias provides a mechanism for an ACS to label this instance for future reference.\nIf the CPE supports the Alias-based Addressing feature as defined in [Section 3.6.1/TR-069a4] and described in [Appendix II/TR-069a4], the following mandatory constraints MUST be enforced:\nIts value MUST NOT be empty.\nIts value MUST start with a letter.\nIf its instance object is created by the CPE, the initial value MUST start with a \"cpe-\" prefix.\nThe CPE MUST NOT change the parameter value."]
["STBService.{i}.Components.SPDIF.{i}.AudioDelay","TR-135 STB",213,null,null,"Audio delay value, in milliseconds, currently being applied to the audio stream on the S/PDIF interface. The audio delay is entered by the user via his local UI, when necessary for correcting the lipsync."]
["STBService.{i}.Components.SPDIF.{i}.Enable","TR-135 STB",191,null,null,"Enables or disables the S/PDIF output."]
["STBService.{i}.Components.SPDIF.{i}.ForcePCM","TR-135 STB",209,null,null,"When set to true, forces the audio format over S/PDIF to be in PCM mode.\nWhen set to false, let the compressed audio format be carried over S/PDIF (passthrough)."]
["STBService.{i}.Components.SPDIF.{i}.Name","TR-135 STB",208,null,null,"Human-readable name associated with this output."]
["STBService.{i}.Components.SPDIF.{i}.Passthrough","TR-135 STB",212,null,null,"When in Passthrough mode, the STB sends the audio stream over S/PDIF without decoding it."]
["STBService.{i}.Components.SPDIF.{i}.Status","TR-135 STB",192,null,null,"The status of this S/PDIF output. Enumeration of:\nDisabled\nEnabled\nError (OPTIONAL)\nThe Error value MAY be used by the CPE to indicate a locally defined error condition."]
["STBService.{i}.Components.SPDIFNumberOfEntries","TR-135 STB",100,null,null,"The number of entries in the SPDIF table."]
["STBService.{i}.Components.VideoDecoder.{i}","TR-135 STB",101,null,null,"Video decoder instance table. It contains data representing the current status of the video decoder.\nAt most one entry in this table can exist with a given value for Name, or with a given value for Alias."]
["STBService.{i}.Components.VideoDecoder.{i}.Alias","TR-135 STB",114,null,null,"A non-volatile handle used to reference this instance. Alias provides a mechanism for an ACS to label this instance for future reference.\nIf the CPE supports the Alias-based Addressing feature as defined in [Section 3.6.1/TR-069a4] and described in [Appendix II/TR-069a4], the following mandatory constraints MUST be enforced:\nIts value MUST NOT be empty.\nIts value MUST start with a letter.\nIf its instance object is created by the CPE, the initial value MUST start with a \"cpe-\" prefix.\nThe CPE MUST NOT change the parameter value."]
["STBService.{i}.Components.VideoDecoder.{i}.ContentAspectRatio","TR-135 STB",124,null,null,"Indicates the native aspect ratio of the content available at this decoder. Enumeration of:\n0.16875\n0.672916666666667"]
["STBService.{i}.Components.VideoDecoder.{i}.Enable","TR-135 STB",104,null,null,"Enables or disables this video decoder."]
["STBService.{i}.Components.VideoDecoder.{i}.Name","TR-135 STB",123,null,null,"Human-readable name associated with this video decoder."]
["STBService.{i}.Components.VideoDecoder.{i}.Status","TR-135 STB",106,null,null,"The status of this video decoder. Enumeration of:\nDisabled\nEnabled\nX_RDKCENTRAL-COM Standby (ie. Enabled & Standby)\nError (OPTIONAL)\nThe Error value MAY be used by the CPE to indicate a locally defined error condition."]
["STBService.{i}.Components.VideoDecoder.{i}.X_RDKCENTRAL-COM_Standby","TR-135 STB",105,null,null,"If set to true, puts the decoder in Standby mode.\nIf set to false, puts the decoder in PowerON mode."]
["STBService.{i}.Components.VideoDecoderNumberOfEntries","TR-135 STB",96,null,null,"The number of entries in the VideoDecoder table."]
["STBService.{i}.Components.VideoOutput.{i}","TR-135 STB",214,null,null,"Video output instance table.\nAt most one entry in this table can exist with a given value for Name, or with a given value for Alias."]
["STBService.{i}.Components.VideoOutput.{i}.Alias","TR-135 STB",226,null,null,"A non-volatile handle used to reference this instance. Alias provides a mechanism for an ACS to label this instance for future reference.\nIf the CPE supports the Alias-based Addressing feature as defined in [Section 3.6.1/TR-069a4] and described in [Appendix II/TR-069a4], the following mandatory constraints MUST be enforced:\nIts value MUST NOT be empty.\nIts value MUST start with a letter.\nIf its instance object is created by the CPE, the initial value MUST start with a \"cpe-\" prefix.\nThe CPE MUST NOT change the parameter value."]
["STBService.{i}.Components.VideoOutput.{i}.AspectRatioBehaviour","TR-135 STB",246,null,null,"Indicates the aspect ratio behaviour for display on monitors with an aspect ratio different from that of the content, which is specified in Components.VideoDecoder.{i}.ContentAspectRatio. Enumeration of:\nX_RDKCENTRAL-COM Unknown\nNone\nX_RDKCENTRAL-COM Full\nLetterbox (DEPRECATED and replaced by following values)\n16:9 Letterbox\n14:9 Letterbox\nCenterCutOut\nX_RDKCENTRAL-COM PAN SCAN\nX_RDKCENTRAL-COM 2.21:1 Letterbox on 4:3\nX_RDKCENTRAL-COM 2.21:1 Letterbox on 16:9\nX_RDKCENTRAL-COM Platform\nX_RDKCENTRAL-COM 16:9 Zoom\nX_RDKCENTRAL-COM 4:3 Pillarbox\nX_RDKCENTRAL-COM 4:3 Wide\nCombined (DEPRECATED and replaced by following values)\nCombined 16:9 Letterbox and CenterCutOut\nCombined 14:9 Letterbox and CenterCutOut"]
["STBService.{i}.Components.VideoOutput.{i}.ColorbarEnable","TR-135 STB",235,null,null,"Enables or disables the color bar display.\nWhen set to true, the CPE MUST suspend the running service currently using the video output (e.g. IPTV broadcast reception) and MUST display the color bar.\nWhen set to false, the CPE MUST resume the previousely running service.\nThis parameter MUST be always initialized with the value false on STB boot."]
["STBService.{i}.Components.VideoOutput.{i}.DisplayFormat","TR-135 STB",266,null,null,"The value MUST be a member of the list reported by the Capabilities.VideoOutput.DisplayFormats parameter, or else be an empty string. Display format being connected to this VideoOutput.\nThis parameter is used by the STB to determine whether an aspect ratio conversion is required."]
["STBService.{i}.Components.VideoOutput.{i}.Enable","TR-135 STB",217,null,null,"Enables or disables this video output."]
["STBService.{i}.Components.VideoOutput.{i}.HDCP","TR-135 STB",272,null,null,"Indicates whether HDCP is being used on this video output.\nThe HDCP version supported is indicated in Capabilities.VideoOutput.HDCP."]
["STBService.{i}.Components.VideoOutput.{i}.Macrovision","TR-135 STB",269,null,null,"Indicates whether Macrovision analog protection is being used on this video output.\nThe Macrovision version supported is indicated in Capabilities.VideoOutput.Macrovision."]
["STBService.{i}.Components.VideoOutput.{i}.Name","TR-135 STB",242,null,null,"Human-readable name associated with this Video output."]
["STBService.{i}.Components.VideoOutput.{i}.Status","TR-135 STB",218,null,null,"The status of this video output. Enumeration of:\nDisabled\nEnabled\nColorbarEnabled\nError (OPTIONAL)\nThe Error value MAY be used by the CPE to indicate a locally defined error condition."]
["STBService.{i}.Components.VideoOutput.{i}.VideoFormat","TR-135 STB",243,null,null,"The value MUST be a member of the list reported by the Capabilities.VideoOutput.VideoFormats parameter, or else be an empty string. Currently active video output format, or an empty string if no video output format is currently active.\nNote that this parameter refers to output formats and not to physical connectors."]
["STBService.{i}.Components.VideoOutputNumberOfEntries","TR-135 STB",98,null,null,"The number of entries in the VideoOutput table."]
["STBService.{i}.Components.X_RDKCENTRAL-COM_RF4CE","RDK Custom DM",45,null,null,"This object provides information about RF4CE (ZigBee) Interface and paired remotes."]
["STBService.{i}.Components.X_RDKCENTRAL-COM_RF4CE.ActiveChannel","RDK Custom DM",58,null,null,"Active channel information (1 byte Number, 1 byte Pollution - total 2 bytes or 4 hex digits) for RF4CE interface"]
["STBService.{i}.Components.X_RDKCENTRAL-COM_RF4CE.BackupChannel","RDK Custom DM",59,null,null,"Backup channel information (1 byte Number, 1 byte Pollution - total 2 bytes or 4 hex digits) for RF4CE interface"]
["STBService.{i}.Components.X_RDKCENTRAL-COM_RF4CE.Enable","RDK Custom DM",46,null,null,"Enables or disables the RF4CE interface on the device."]
["STBService.{i}.Components.X_RDKCENTRAL-COM_RF4CE.MACAddress","RDK Custom DM",55,null,null,"The 8 byte (16 hex digits) MAC Address of the interface"]
["STBService.{i}.Components.X_RDKCENTRAL-COM_RF4CE.NetworkAddress","RDK Custom DM",56,null,null,"The 2 byte (4 hes digits) 802.15.4 PAN network address (short address - Node Id)"]
["STBService.{i}.Components.X_RDKCENTRAL-COM_RF4CE.PairedRemotesNumberOfEntries","RDK Custom DM",60,null,null,"The number of entries in the PairedRemote table"]
["STBService.{i}.Components.X_RDKCENTRAL-COM_RF4CE.PANID","RDK Custom DM",57,null,null,"The 2 byte (4 hex digits) 802.15.4 PAN network id"]
["STBService.{i}.Components.X_RDKCENTRAL-COM_RF4CE.Remote.{i}","RDK Custom DM",61,null,null,"Paired Remote instance table. This object provides information about the paired remotes.\nAt most one entry in this table can exist with a given value for Name, or with a given value for Alias."]
["STBService.{i}.Components.X_RDKCENTRAL-COM_RF4CE.Remote.{i}.Alias","RDK Custom DM",64,null,null,"A non-volatile handle used to reference this instance. Alias provides a mechanism for an ACS to label this instance for future reference.\nIf the CPE supports the Alias-based Addressing feature as defined in [Section 3.6.1/TR-069a4] and described in [Appendix II/TR-069a4], the following mandatory constraints MUST be enforced:\nIts value MUST NOT be empty.\nIts value MUST start with a letter.\nIf its instance object is created by the CPE, the initial value MUST start with a \"cpe-\" prefix.\nThe CPE MUST NOT change the parameter value."]
["STBService.{i}.Components.X_RDKCENTRAL-COM_RF4CE.Remote.{i}.BatteryLevelLoaded","RDK Custom DM",80,null,null,"Remote Control's battery level when loaded"]
["STBService.{i}.Components.X_RDKCENTRAL-COM_RF4CE.Remote.{i}.BatteryLevelUnloaded","RDK Custom DM",81,null,null,"Remote Control's battery level when unloaded"]
["STBService.{i}.Components.X_RDKCENTRAL-COM_RF4CE.Remote.{i}.LinkQuality","RDK Custom DM",79,null,null,"Link quality"]
["STBService.{i}.Components.X_RDKCENTRAL-COM_RF4CE.Remote.{i}.MACAddress","RDK Custom DM",74,null,null,"The 8 byte (16 hex digits) MAC Address of the Remote Control ZigBee interface"]
["STBService.{i}.Components.X_RDKCENTRAL-COM_RF4CE.Remote.{i}.Name","RDK Custom DM",73,null,null,"Human-readable name associated with this entry"]
["STBService.{i}.Components.X_RDKCENTRAL-COM_RF4CE.Remote.{i}.NetworkAddress","RDK Custom DM",75,null,null,"The 2 byte (4 hex digits) 802.15.4 PAN network address (short address - Node Id)"]
["STBService.{i}.Components.X_RDKCENTRAL-COM_RF4CE.Remote.{i}.SignalStrength","RDK Custom DM",78,null,null,"Signal strength in dBm"]
["STBService.{i}.Components.X_RDKCENTRAL-COM_RF4CE.Remote.{i}.Stats","RDK Custom DM",82,null,null,"Remote Control statistics."]
["STBService.{i}.Components.X_RDKCENTRAL-COM_RF4CE.Remote.{i}.Stats.IRPackets","RDK Custom DM",83,null,null,"IR Packets sent by the RC"]
["STBService.{i}.Components.X_RDKCENTRAL-COM_RF4CE.Remote.{i}.Stats.RFPackets","RDK Custom DM",84,null,null,"RF Packets sent by the RC"]
["STBService.{i}.Components.X_RDKCENTRAL-COM_RF4CE.Remote.{i}.VersionInfoHW","RDK Custom DM",77,null,null,"Hardware VersionInfo of the Remote Control"]
["STBService.{i}.Components.X_RDKCENTRAL-COM_RF4CE.Remote.{i}.VersionInfoSW","RDK Custom DM",76,null,null,"Software VersionInfo of the Remote Control"]
["STBService.{i}.Components.X_RDKCENTRAL-COM_RF4CE.Status","RDK Custom DM",47,null,null,"Indicates the status of the RF4CE interface on the device. Enumeration of:\nUp\nDown\nError (OPTIONAL)\nThe Error value MAY be used by the CPE to indicate a locally defined error condition."]
["STBService.{i}.Components.X_RDKCENTRAL-COM_RF4CE.VersionInfo","RDK Custom DM",54,null,null,"Interface VersionInfo."]
["STBService.{i}.Components.X_RDKCENTRAL-COM_SDCard","RDK Custom DM",85,null,null,"SDCard object. This object provides information about the SD Card Interface."]
["STBService.{i}.Components.X_RDKCENTRAL-COM_SDCard.BadBlocks","RDK Custom DM",114,null,null,"Number of Bad Blocks on the SD Card"]
["STBService.{i}.Components.X_RDKCENTRAL-COM_SDCard.Capacity","RDK Custom DM",107,null,null,"SD Card memory size in MB"]
["STBService.{i}.Components.X_RDKCENTRAL-COM_SDCard.CardFailed","RDK Custom DM",113,null,null,"true if the card is no longer readable/writable which could be due to Card/Host interface failure"]
["STBService.{i}.Components.X_RDKCENTRAL-COM_SDCard.FormatNow","RDK Custom DM",86,null,null,"Command to re-format card. Setting this parameter to true will cause the CPE to format the inserted SD Card. The parameter will be set to false by the device once the formatting of the SD card has been initiated."]
["STBService.{i}.Components.X_RDKCENTRAL-COM_SDCard.LifeElapsed","RDK Custom DM",110,null,null,"A value from 0 to 100. It may increment in 10% or lower increments (e.g. 5% or 1%) depending on Card+Host capabilities. Refer CMD56."]
["STBService.{i}.Components.X_RDKCENTRAL-COM_SDCard.LotID","RDK Custom DM",105,null,null,"Manufacturing lot ID"]
["STBService.{i}.Components.X_RDKCENTRAL-COM_SDCard.Manufacturer","RDK Custom DM",103,null,null,"Manufacturer of SD Flash card (1 byte MID field in CID register)"]
["STBService.{i}.Components.X_RDKCENTRAL-COM_SDCard.Model","RDK Custom DM",104,null,null,"Model of SD Flash card (5 character PNM field in CID register)"]
["STBService.{i}.Components.X_RDKCENTRAL-COM_SDCard.ReadOnly","RDK Custom DM",108,null,null,"True if user has switched SD Card to read only mode. False oterwise."]
["STBService.{i}.Components.X_RDKCENTRAL-COM_SDCard.SerialNumber","RDK Custom DM",106,null,null,"Unique serial number of SD Flash card (32 bit PSN field in CID register)"]
["STBService.{i}.Components.X_RDKCENTRAL-COM_SDCard.Status","RDK Custom DM",87,null,null,"The status of the connected SD Card. Enumeration of:\nPresent\nNone\nError (OPTIONAL)\nThe Error value MAY be used by the CPE to indicate a locally defined error condition."]
["STBService.{i}.Components.X_RDKCENTRAL-COM_SDCard.TimeUsed","RDK Custom DM",111,null,null,"Aggregate usage in hours"]
["STBService.{i}.Components.X_RDKCENTRAL-COM_SDCard.TotalBlocks","RDK Custom DM",115,null,null,"Total number of Blocks on the SD Card"]
["STBService.{i}.Components.X_RDKCENTRAL-COM_SDCard.TSBQualified","RDK Custom DM",109,null,null,"True if card is approved for Comcast TSB use.  For Xi3v1, this will be based on the expected signature. False otherwise."]
["STBService.{i}.Components.X_RDKCENTRAL-COM_SDCard.Type","RDK Custom DM",94,null,null,"The type of the connected SD Card. Enumeration of:\nUNKNOWN\nSDSC\nSDHC\nSDXC\nSDIO\nThe UNKNOWN value MAY be used by the CPE to indicate that the type of the SD Card could not be determined."]
["STBService.{i}.Components.X_RDKCENTRAL-COM_SDCard.WriteFailed","RDK Custom DM",112,null,null,"true if the card is no longer writable due to hard failure"]
["STBService.{i}.Enable","TR-135 STB",9,null,null,"Enables or disables this STBService instance."]